Workbook

Sheet Instructions
A1: Instructions to use the WRE Ranking Workbook
A2: Begin on the Inventory worksheet.
A3: Enter the pertinent information (Items in blue transfer to the WRE Ranking Worksheet)
C4: County
C5: Administering County
C6: Application Type
C7: Applicant(s)
C8: Date
C9: Assisted by
C10: NEST# (if applicable)
C11: Flooded Land - Acres *
B13: * Flooded Land must meet the following criteria:
B15: - Located in the Prairie Pothole Region (All of North Dakota north and east of Lake Sakakawea)
B16: - Offered area is a minimum of 20 contiguous acres
B17: - Soils are hydric - Areas that meet the ponding criteria (soils that pond for longer than 7 consecutive days during the growing season) will be labeled hydric, regardless of soil type.
B19: - Depth of water is 6.5 feet or less at time of enrollment
B20: - Saturated or inundated area on aerial photography exceeds the boundaries of NWI identified wetlands
A23: Estimated Restoration Cost Section
B24: Complete this portion of the sheet after completing the "Wetland Inventory" and "Landuse Inventory". Some of the data from the "Wetland Inventory" and "Landuse Inventory" will populate portions of this section.
B28: The worksheet provides the producer with an estimate of their share of restoration costs.
B30: NRCS will pay 75% of three weed control operations for establishment. Year 1 (year seeded) the weed control is a component of 327 Conservation Cover. Years 2 and 3 will be 595 Pest Management. No partners pay for weed control.
A34: Wetland Inventory Instructions
B35: Wetland Inventory - (must be completed for all offers)
A36: The yellow shaded top portion of the Wetland_Inventory sheet is a summary of the wetland basins and acres entered on this sheet. The summary information is automatically transferred to the Inventory sheet.
A39: The columns of the wetland inventory sheet are described below:
B41: Wetland Info - Basin #
C42: Number each basin.
B44: Wetland Info - Acres
C45: Enter the acres of each wetland basin. This is the total acres of the wetland basin in the offered area, no matter if split by a field boundary or if NWI has identified multiple labels for the wetland. Note: The location (landuse) of the wetland will be handled on the worksheet titled Landuse_Inventory where all or parts of the wetland can be attributed to one or more landuses.
B51: Wetland Info - Type
C52: Taken from the NWI Map. Wetlands with multiple NWI labels will be assigned the wettest label. If the wetland has not been identified on the NWI, the District Conservationist will make the determination as to the correct label for this wetland. (Consult Area Biologist if necessary). One wetland = one label.
D56: Select from the following:
E57: pema
E58: pemc
E59: pemf | F59: includes pem/abf
E60: other
B62: Acres Planted - to Upland Species
C63: Wetland acres the landowner(s) agrees to seed to the same native upland grass mix as the remainder of the offer.
B66: Acres Planted - to Hydrophytic Species
C67: Wetland acres the landowner(s) agrees to seed to a mix of native hydrophytic vegetation.
B69: Wetland Degraded but NO Restoration
C70: This column only needs to be completed if there is no restoration identified for the basin. See the possible responses and their description below.
C73: Yes - The wetland is degraded but no hydrological manipulation has occurred. Degradation may be by poor grazing management, cattail or reed canary monoculture or formerly cropped now in perennial cover including Pastureland and CRP. Proper 644 Wetland Habitat Management or an approved 528 Prescribed Grazing plan will restore these wetlands.
C79: No - The wetland is not degraded. The wetland has no hydrologic manipulation, identifiable sediment accumulation and a diverse native plant community. (Only degraded wetlands are used to determine eligibity of an offer based on total acres). The non-degraded wetland may be included in the WRE offer as other adjacent lands, but not as wetland making other uplands eligible.
C85: Left Blank - This field should be left blank if any of the other restoration options have information entered in them.
B88: Number of Ditch Plugs Needed:
C89: Number of ditch plugs needed as components of the 657 wetland restoration for that wetland. Occasionally, a wetlands may require more than one ditch plug for restoration.
B92: Water Retention:
C93: Number of water control structures installed, such as weirs, dikes or screw gates as 657 wetland restoration components. Recommend getting an Engineer's Estimate for cost estimate.
B97: Dugouts to be Filled:
C98: Number of dugouts which will be filled in. Each dugout is credited with 1.5 acres of restoration.
B101: Sediment Removal (acres and cuyds):
C102: Acres and cubic yards of sediment removal needed as components of 657 wetland restoration. Enter the number of acres needing sediment removal and the estimated cubic yards will calculated. The worksheet uses 6" of sediment as an estimate for the auto calculation. Utilize the override by typing in the actual cubic yards if the depth of sediment and area are both known.
B108: Obstruction Removal - Rock Piles:
C109: Number of rock piles to be removed. One acre of restoration is used per rock pile to estimate restoration cost.
B112: Obstruction Removal - Trees:
C113: Number of trees to be removed. One tenth (0.1) acre of restoration is used per tree. If large numbers of trees are to be removed for restoration consult Area Office or State Office. Use the column 'Tree Rows' for field and farmstead windbreaks.
B117: Obstruction Removal - Trees Rows:
C118: Enter a 'Yes', if the basin has tree rows to be removed. Leave blank if there are no tree rows to be removed. Acres of tree rows to be removed must be entered on the Inventory tab. Use the column 'Trees' for individual trees.
B122: Obstruction Removal - Fence
C123: Enter a 'Yes', if the basin has a fence to be removed. Leave blank if no fence to be removed. Total feet of fence to be removed must be entered on the Inventory tab.
B126: Obstruction Removal - Other:
C127: The number of other obstructions needing to be removed. Consult Area Office or State Office for cost estimates if necessary.
B130: Comments/Needs
C131: This column does not require any input, but will provide information reminders for the data entry person. These reminders coincide with the type of restoration and will be one of the following: (When all data appears complete "OK" or "OK - Wetland Degraded - No Restoration Needed" will appear.)
C136: Enter Wetland Acres
C137: Enter Wetland Type
C138: Non-degraded or Restoration Needed
C139: Planted acres > wetland acres
C140: Can NOT have Restor. & No Restor. Needed
C141: OK - Wetland Degraded - No Restoration Needed
C142: OK
A144: To Print the Wetland Inventory Only:
B145: Click on the Print Wetlands Inventory to print the inventory. (By using the command button only those lines with entries will print.) All ranking sheets will print by clicking print on ranking sheet.
A148: Landuse Inventory Instructions
B149: Landuse Inventory - (must be completed for all offers)
A150: Landuse Inventory is used to determine ratios of uplands/adjacent lands to degraded wetlands and also assist in developing restoration cost estimates and practices. This sheet is also used to determine the landuse of a wetland. A wetland may be considered to be included/partially surrounded by up to three different landuse fields.
A154: On the top portion make the appropriate entries for:
B155: Field #
C156: Correlate with landuse map.
B157: Land Use
C158: Cropland, CRP Active, Rangeland, Pastureland, Hayland, Wildlife Land, or Forest Land
B159: Acres
C160: Enter the total acres of each field.
B161: Upland Acres Planted
C162: Enter the upland acres to be seeded to native grasses and forbs Do not include wetland acres planted to upland seed mixes.
A164: The following are shaded in yellow and are either calculated entries or populated from the table below.
B165: Existing Upland Cover
C166: This is a calculated cell that subtracts 'Upland Acres Planted' and 'Wetland Acres' from 'Acres'. These acres are entered in the Restoration Section of the 'Inventory' sheet as Conservation Cover (327) - Upland Existing Cover (NOT cost shared).
B169: Wetland Acres (from below)
C170: Summarizes wetland acres from table below into the proper landuse field.
B171: Upland Acres
C172: Calculates upland acres in field by subtracting wetland acres from field acres.
A173: The next column includes comments to assist in completing the worksheet.
B174: Comments/Needs
C175: This column does not require any input, but will provide information reminders for the data entry person. These reminders include references to acres, cropland acres needing to be seeded, etc and will be one of the following: (When all data appears complete "OK" or "No wetlands located in this field - OK?" will appear.)
C180: Top (field listing) portion of page:
C181: Enter Land Use
C182: Enter Land Use Acres
C183: Enter Acres to be Planted
C184: Acres Planted (Upland) > Field Acres
C185: Wetland Acres > Field Acres
C186: Acres Planted (wet.+up.) > Field Acres
C187: No wetlands located in this field - OK?
C188: OK
A190: The bottom portion of the Landuse_Inventory sheet is necessary to identify multiple landuses without double or triple counting wetlands. For each landuse that a wetland is located in a portion of those wetland acres must be attributed to that land use. If the wetland is within one landuse/field enter all acres for that landuse, but if the wetland is located in more than one landuse field prorate the wetland acres between the fields. Prorate the wetland acres with your best estimate. Following are a few examples on prorating.
B196: Wetland basins divided into 2 or 3 landuses will be split here.
B198: Example 1: | C198: Wetland Basin 4 - 4.0 acres located in one field
B199: Example 2: | C199: Wetland Basin 3 - 3.0 acres located between two different landuses
B200: Example 3: | C200: Wetland Basin 3 - 5 acres located between three different landuses
B202: Example 1 identifies wetland basin #4 as being entirely within the cropland landuse. Therefore, all of the acres in wetland basin #4 are identified in the Primary Field and Primary Field Wetland Acres column.
B205: Example 2 identifies wetland basin #3 as being split between field 1 cropland and field 4 wildlife/idle land. Since 2.2 of the 3.0 acres are estimated cropland, 2.2 will be entered in the Primary Field column and 0.8 acres will be entered the Secondary Field column.
B209: Example 3 identifies wetland basin #1 as being split between three different landuses, field 1 cropland, field 2 rangeland, and field 3 cropland. Since 5.0 are estimated in field 3 cropland. 3.0 acres will be entered in the Primary Field. 1.0 will be entered in the Secondary Field and 1.0 will be entered in Tertiary Field.
C214: Basin # | D214: Acres | E214: Wetland Acres in Primary Field | F214: Wetland Acres in Secondary Field | G214: Wetland Acres in Tertiary Field
B215: Example 1: | C215: 4 | D215: 4 | E215: 4
B216: Example 2: | C216: 3 | D216: 3 | E216: 2.2 | F216: 0.8
B217: Example 3: | C217: 1 | D217: 5 | E217: 3 | F217: 1 | G217: 1
A219: The columns for this section are defined below. Those items shaded in yellow on the Landuse_Inventory sheet are either imported from the Wetland_Inventory sheet or calculated. Those columns which are not shaded yellow require an entry.
B222: Wetland Info - Basin #
C223: Number each basin. (from Wetland_Inventory sheet)
B224: Wetland Info - Acres
C225: Enter the acres of each wetland basin. (from Wetland_Inventory sheet)
B226: Wetland Info - Type
C227: Wetland type (from Wetland_Inventory sheet)
B228: To Upland Acres Planted - Species
C229: Acres of wetlands planted to NON-hydrophytic species. (from Wetland_Inventory sheet)
B230: Acres Planted - To Hydrophytic Species
C231: Acres of wetlands planted to hydrophytic species. (from Wetland_Inventory sheet)
B232: Primary Field
C233: Chose the field where the majority of the wetland acres lie.
B234: Wetland Acres in First Field
C235: Estimate wetland acres in Primary Field. If the landuse is entirely in one landuse, all the acres go in this column.
B237: Secondary Field
C238: If the wetland basin is split by 2 or more landuses, enter the secondary field associated with this wetland.
B240: Wetland Acres in Secondary Field
C241: Estimate wetland acres in Secondary Field.
B242: Tertiary Field
C243: If more than two fields are associated with the wetland basin chose from the list of fields/landuses the third field associated with this wetland basin.
B245: Wetland Acres in Tertiary Field
C246: Estimate the wetland basin acres to the third field.
B247: Wetland Acres Check
C248: This is a calculated entry that adds the acres in each of the landuses for the basin. This column will equal acres in that basin when done.
B250: Wetland Acres remaining
C251: This is a calculated entry that shows the remaining basin acres that need to be prorated to the different fields/landuses. Each row will equal 0 when done and correct.
A253: To Print the Landuse Inventory Only:
B254: Click on the Print Landuse Inventory to print the inventory. (By using the command button only those lines with entries will print.) All ranking sheets will print by clicking print on ranking sheet.
A257: Complete the remaining factors on the Ranking Sheet.
B259: Points are calculated as the ranking factor information is entered. If a factor is an eligibility criteria and the data entered does not meet eligibility requirements, the word "INELIGIBLE" will appear in the total points awarded box as well as in the indicated WRE ranking factor.
B263: Many of the ranking factors have a choice list to select from.
A265: To Print the Ranking Workbook
B266: Click on 'Print Ranking Workbook' to print the entire ranking workbook. The items printed will be Wetland Inventory, Landuse Inventory, Inventory, Ranking, and SO_Summary. Please submit all these sheets.
A269: To Reset Ranking Worksheet
B270: Click on 'Reset Worksheet' to reset the ranking worksheet only.
A271: To Reset the ENTIRE Ranking Workbook
B272: Click on 'Reset Workbook' to reset the ranking workbook. All the data entered on each of the worksheets (Wetland Inventory, Landuse Inventory, Inventory, Ranking) will be cleared.
A275: Description of Ranking Factors and Points
B276: The following factors are separated into three sections:
B277: Wetland Factors
B278: Floodplain Specific Factors
B279: Wetland and Floodplain Factors
A281: Comments
B282: There is a comment section at the bottom of the ranking sheet for all comments pertaining to the offer. If a comment is in reference to a particular factor, state the factor number in the comment.
A285: Prairie Pothole Specific Factors
A286: FACTOR 1 | B286: Estimate Surface Acres of Basins to be Restored (657) vegetatively
B288: This is the measured or estimated acres of wetland or former wetland acres which will be restored vegetatively. To be considered restored the acres MUST be seeded to wetland species. Tree removal from the wetland also qualifies for this factor. Reference the e-FOTG for 657 standard.
B292: A point is awarded for each acre to a maximum of 30 points.
A294: FACTOR 2 | B294: Wetland Basins to be Hydrologically Restored
B296: This factor considers both the number of basins and acres restored to be hydrologically restored (e.g. ditch plug, broken tile, dike, diversion, sediment removal, etc.). Factor 2A is the number of wetland basins. Factor 2B is the wetland acres restored.
B300: Factor 2A | D300: Number of Basins
I301: Points per Basin
D302: Ditch Plug / Water Retention AND Sed.Rem./Dugouts | I302: =Ranking!N11 -> 15
D303: Ditch Plug / Water Retention ONLY | I303: =Ranking!N12 -> 13
D304: Sediment Removal and/or Dugouts ONLY | I304: =Ranking!N13 -> 3
B306: Factor 2B | D306: Acres of Restoration
I307: Points per Acre
D308: Ditch Plug / Water Retention AND Sed.Rem./Dugouts | I308: =Ranking!N19 -> 5
D309: Ditch Plug / Water Retention ONLY | I309: =Ranking!N20 -> 4
D310: Sediment Removal and/or Dugouts ONLY | I310: =Ranking!N21 -> 1
A312: FACTOR 3 | B312: Upland to Wetland Ratio
B314: For pothole wetland type areas, this score is the result of a ratio between upland (includes non-degraded wetlands) and wetland acres. A ratio greater than 6:1 scores makes the application ineligible.
D317: Upland to Wetland Ratio | F317: Points
D319: >6 | F319: Ineligible
D320: 4 to <=6 | F320: =Ranking!R31 -> 15
D321: 2 to <4 | F321: =Ranking!R32 -> 10
D322: 1 to <2 | F322: =Ranking!R33 -> 5
D323: 0 to <1 | F323: =Ranking!R34 -> 0
L324: lookup table for use in ranking sheet
A325: FACTOR 4 | B325: Wetland Types | L325: Factor # | M325: Factor Title | N325: Factor Description
L326: 1 | M326: =B286 -> Estimate Surface Acres of Basins to be Restored (657) vegetatively | N326: =B288 -> This is the measured or estimated acres of wetland or former wetland acres which will be restored vegetatively. To be considered restored the acres MUST be seeded to wetland species. Tree removal from the wetland also qualifies for this factor. Reference the e-FOTG for 657 standard.
B327: This score is the combination of the wetland type, variability of wetland types within the offer, and the ratio of upland acres to existing pemf acres NOT being hydrologically restored. | L327: 2 | M327: =B294 -> Wetland Basins to be Hydrologically Restored | N327: =B296 -> This factor considers both the number of basins and acres restored to be hydrologically restored (e.g. ditch plug, broken tile, dike, diversion, sediment removal, etc.). Factor 2A is the number of wetland basins. Factor 2B is the wetland acres restored.
L328: 3 | M328: =B312 -> Upland to Wetland Ratio | N328: =B314 -> For pothole wetland type areas, this score is the result of a ratio between upland (includes non-degraded wetlands) and wetland acres. A ratio greater than 6:1 scores makes the application ineligible.
L329: 4 | M329: =B325 -> Wetland Types | N329: =B327 -> This score is the combination of the wetland type, variability of wetland types within the offer, and the ratio of upland acres to existing pemf acres NOT being hydrologically restored.
B330: Maximum points for this factor is 75. | L330: 5 | M330: =B359 -> State Geographic Area From USFWS Water Breeding Pairs Map | N330: =B361 -> Locate the offer on the statewide 2012 Waterfowl Breeding Pairs per square mile thunderstorm maps and choose the majority color for the WRE offer. See "Breeding_Pairs_Map" worksheet tab.
L331: 6 | M331: =B375 -> Proximity to Other Protected Wetlands | N331: =B377 -> Protected wetlands are wetlands in public ownership or protected by public easement. Examples of such programs are Waterfowl Production Areas, State Game Management Areas, Emergency Watershed Protection Easement areas, or lands with USFWS permanent wetland easements. Other WRE Easements do NOT qualify since they are not permanent.
D332: Wetland Type | F332: Points per basin | L332: 7 | M332: =B386 -> Threatened and Endangered Species Occur in County | N332: =B388 -> See the “County Occurrence of Endangered, Threatened and Candidate Species and Designated Critical Habitat in North Dakota” in Section I of the FOTG (is be updated for FY16). When the WRE offer is in a County recognized as having T & E species, the points are awarded. Points awarded based status of selected species. The two following tables identify the points assigned to the selected species and then the number of points for each county due to the presence of those selected species.
D333: pema | F333: =Ranking!R21 -> 2.5 | L333: 8 | M333: =B420 -> Operation and Maintenance | N333: =B422 -> How much maintenance will be needed after restoration?
D334: pemc | F334: =Ranking!R22 -> 2 | L334: 9 | M334: =B431 -> Partners Release Form | N334: =B433 -> Partners include SCDs, Ducks Unlimited, FWS, local Water boards, Pheasants Forever, etc. The document allows NRCD to release client information to Conservation Partners, but does not constitute a financial commitment. The release form must be signed and attached to award points. This document is attached to the bulletin.
D335: pem/abf or pemf | F335: =Ranking!R23 -> 1 | L335: 10 | M335: =B442 -> Water Quality Improvement | N335: =B444 -> The ND Health Dept. has identified priority watersheds by 8 digit HUCs. Those watersheds with impaired waters are granted 5 points. See "HUC_map" worksheet tab for watershed HUC.
D336: other | F336: =Ranking!R24 -> 0.5 | L336: 11 | M336: =B472 -> Retention | N336: =B474 -> Will the easement's vegetative and hydrologically restored areas remain protected after the WRE easement has expired or will it return to cropland? If a public entity i.e. Natural Resources Trust, NDGF, USFWS (purchase agreement or easement) has formally agreed to extend the life of the restoration, then answer yes.
L337: 12 | M337: =B483 -> Producer will accept less than 75% of NRCS GARC for 30-Year Easement | N337: =B485 -> Will landowner (in writing) accept less than 75% of NRCS established value? If YES, enter the percent of appraised value chosen by the applicant.
... 158 more rows

Sheet Wetland_Inventory
A1: Wetlands / Prairie Potholes Inventory (FY 2016)
A2: =IF(Inventory!C3=Inventory!C4,Inventory!C3&" - "&Inventory!C7,IF(Inventory!C4="",Inventory!C3&" - "&Inventory!C7,Inventory!C4&" (land in "&Inventory!C3&") - "&Inventory!C7)) -> - | AG2: Degraded vegetatively | AI2: all cropped wetland acres
A3: Wetland Inventory - Enter wetland information by basin | AI3: for other landuses 1/10 acre per tree removed
C4: Wetland Acres (from below) | AG4: Degraded Hydrologically | AI4: max acres = wetland acres, ditch plugs or water retention max out acres
C5: Wetland Type | E5: Acres | F5: Basins | AH5: Acres allowed per rockpile | AJ5: 1 | AL5: only given credit to max acres
C6: =BY16 -> pema | E6: =SUMIF($C$14:$C$161,C6,$B$14:$B$161) -> 0 | F6: =COUNTIF($C$14:$C$161,C6) -> 0 | AH6: Acres allowed per dugout | AJ6: 1.5 | AL6: only given credit to max acres
C7: =BY17 -> pemc | E7: =SUMIF($C$14:$C$161,C7,$B$14:$B$161) -> 0 | F7: =COUNTIF($C$14:$C$161,C7) -> 0 | H7: Note: Any wetland basins that may required a SWC permit will be high lighted. Criteria used is >= 6 acres and ditch plugs / water retention. Any wetland with greater than 12.5 ac-ft of restoration requires a SWC permit. Contact AO for additional instructions. | AG7: Degraded with sediment
C8: =BY18 -> pemf | E8: =SUMIF($C$14:$C$161,C8,$B$14:$B$161) -> 0 | F8: =COUNTIF($C$14:$C$161,C8) -> 0
C9: =BY19 -> other | E9: =SUMIF($C$14:$C$161,C9,$B$14:$B$161) -> 0 | F9: =COUNTIF($C$14:$C$161,C9) -> 0
C10: Total | E10: =SUM(E5:E9) -> 0 | F10: =SUM(F5:F9) -> 0 | AX10: Ditch Plugs/ Retention & Sed. Removal | AZ10: Ditch Plugs/ Retention | BB10: Sed. Removal & Dugout Only
P11: =Ranking!H1 -> FY16-ver1 | AI11: Degraded vegetatively
A12: Wetland Info | D12: Acres Planted | F12: Wetland Degraded, but NO Restoration Needed | G12: Ditch Plugs (no.) | H12: Water Retention * (no.) | I12: Dugouts to be filled (no.) | J12: Sediment Removal | L12: Obstruction Removal * | S12: Error Checking - wetland section | AJ12: Factor 1 | AM12: Degraded Hydrologically
A13: Basin # | B13: Acres | C13: Type | D13: To Upland Species | E13: To Hydrophytic Species | J13: Acres (max of 2) | K13: CuYds | L13: Rock piles (no.) | M13: Trees (no.) | N13: Tree rows (Yes or left blank) | O13: Fence (Yes or left blank) | P13: Other (no.) | Q13: Comments/Needs | S13: result | T13: 1 | U13: 2 | V13: 3 | W13: 4 | X13: 5 | Y13: 6 | Z13: 7 | AA13: 8 | AB13: 9 | AC13: 10 | AD13: 11 | AF13: Landuse - no longer used FY11 | AG13: Non-degraded | AH13: Degraded - existing cover | AI13: Planted Acres - upland species | AJ13: Planted Acres - wetland species | AK13: Tree Acres | AL13: basins | AM13: Degraded with sediment | AN13: Ditch plug / Water Retention | AO13: Rockpiles (1 ac/rockpile) | AP13: Dugout filled (1.5 ac/dugout) | AQ13: Acres | AR13: Total Degraded Acres | AS13: Total Degraded Basins | AT13: Total Non-Degraded Basins | AV13: Degraded with sediment / Dugout (Acres) | AX13: Acres | AY13: Basins | AZ13: Acres | BA13: Basins | BB13: Acres Sed. Rem | BC13: Basins | BD13: Acres | BE13: Basins | BW13: Dropdown selections
K14: =ROUND(J14*43560*0.5/27,1) -> 0 | Q14: =CHOOSE(S14,$CC$31,$CC$32,$CC$33,$CC$34,$CC$35,$CC$36,$CC$37,$CC$38,$CC$39,$CC$40,$CC$41) ->  | S14: =MIN(T14:AD14) -> 1 | T14: =IF(AND(A14="",D14=""),T$13,"") -> 1 | U14: =IF(AND(B14="",A14<>""),U$13,"") ->  | V14: =IF(AND(C14="",A14<>""),V$13,"") ->  | W14: =IF(AND(AND(AND(SUM(D14:M14)+P14=0,AND(N14<>"Yes",O14<>"Yes")),F14<>"yes"),A14<>""),W$13,"") ->  | X14: =IF(AND(A14<>"",(D14+E14)>B14),X$13,"") ->  | AB14: =IF(AND(SUM(E14:P14)>0,F14="yes",A14<>""),AB$13,"") ->  | AC14: =IF(AND(F14="yes",A14<>""),AC$13,"") ->  | AD14: =AD$13 -> 11 | AF14: =IF(ISNA(VLOOKUP(D14,#REF!,2,FALSE)),"",VLOOKUP(D14,#REF!,2,FALSE)) ->  | AG14: =IF(Q14=$CC$34,B14,0) -> 0 | AH14: =IF(Q14=$CC$40,B14,IF(B14-AG14-AI14-AK14-AM14-AQ14>0,B14-AG14-AI14-AK14-AM14-AQ14,0)) -> 0 | AI14: =D14 -> 0 | AJ14: =E14 -> 0 | AK14: =IF(M14<>"",M14*0.1,0) -> 0 | AL14: =IF(OR(AJ14>0,AK14>0),1,0) -> 0 | AM14: =J14 -> 0 | AN14: =IF(SUM(G14:H14)>0,B14,0) -> 0 | AO14: =L14*$AJ$5 -> 0 | AP14: =I14*$AJ$6 -> 0 | AQ14: =IF(AN14>0,AN14,IF(SUM(AO14:AP14)+AM14>B14,B14,SUM(AO14:AP14)+AM14)) -> 0 | AR14: =IF(AQ14+SUM(AH14:AK14)+AM14>B14,B14,AQ14+SUM(AH14:AK14)+AM14) -> 0 | AS14: =IF(AR14>0,1,0) -> 0 | AT14: =IF(B14<>"",IF(AR14=0,1,0),0) -> 0 | AV14: =IF(AM14+AP14>B14,B14,AM14+AP14) -> 0 | AX14: =IF(AND($AV14>0,$AN14>0),B14,0) -> 0 | AY14: =IF(AND($AV14>0,$AN14>0),1,0) -> 0 | AZ14: =IF($AX14>0,0,IF($AN14>0,$B14,0)) -> 0 | BA14: =IF($AX14>0,0,IF($AN14>0,1,0)) -> 0 | BB14: =IF($AX14>0,0,IF($AV14>0,$AV14,0)) -> 0 | BC14: =IF($AX14>0,0,IF($AV14>0,1,0)) -> 0 | BW14: Land Use | BY14: Wetland Type | CA14: Degraded Wetland
K15: 0 | S15: =MIN(T15:AD15) -> 1 | T15: =IF(AND(A15="",D15=""),T$13,"") -> 1 | U15: =IF(AND(B15="",A15<>""),U$13,"") ->  | V15: =IF(AND(C15="",A15<>""),V$13,"") ->  | AD15: =AD$13 -> 11 | AF15: =IF(ISNA(VLOOKUP(D15,#REF!,2,FALSE)),"",VLOOKUP(D15,#REF!,2,FALSE)) ->  | AG15: =IF(Q15=$CC$34,B15,0) -> 0 | AH15: =IF(Q15=$CC$40,B15,IF(B15-AG15-AI15-AK15-AM15-AQ15>0,B15-AG15-AI15-AK15-AM15-AQ15,0)) -> 0 | AI15: =D15 -> 0 | AJ15: =E15 -> 0 | AK15: =IF(M15<>"",M15*0.1,0) -> 0 | AL15: =IF(OR(AJ15>0,AK15>0),1,0) -> 0 | AM15: =J15 -> 0 | AN15: =IF(SUM(G15:H15)>0,B15,0) -> 0 | AO15: =L15*$AJ$5 -> 0 | AP15: =I15*$AJ$6 -> 0 | AQ15: =IF(AN15>0,AN15,IF(SUM(AO15:AP15)+AM15>B15,B15,SUM(AO15:AP15)+AM15)) -> 0 | AR15: =IF(AQ15+SUM(AH15:AK15)+AM15>B15,B15,AQ15+SUM(AH15:AK15)+AM15) -> 0 | AS15: =IF(AR15>0,1,0) -> 0 | AT15: =IF(B15<>"",IF(AR15=0,1,0),0) -> 0 | AV15: =IF(AM15+AP15>B15,B15,AM15+AP15) -> 0 | AX15: =IF(AND($AV15>0,$AN15>0),B15,0) -> 0 | AY15: =IF(AND($AV15>0,$AN15>0),1,0) -> 0 | AZ15: =IF($AX15>0,0,IF($AN15>0,$B15,0)) -> 0 | BA15: 0 | BB15: =IF($AX15>0,0,IF($AV15>0,$AV15,0)) -> 0 | BC15: =IF($AX15>0,0,IF($AV15>0,1,0)) -> 0
K16: 0 | S16: 1 | T16: 1 | AD16: 11 | AF16: =IF(ISNA(VLOOKUP(D16,#REF!,2,FALSE)),"",VLOOKUP(D16,#REF!,2,FALSE)) ->  | AG16: 0 | AH16: 0 | AI16: 0 | AJ16: 0 | AK16: 0 | AL16: 0 | AM16: 0 | AN16: 0 | AO16: 0 | AP16: 0 | AQ16: 0 | AR16: 0 | AS16: 0 | AT16: 0 | AV16: 0 | AX16: 0 | AY16: 0 | AZ16: 0 | BA16: 0 | BB16: 0 | BC16: 0 | BW16: Cropland | BY16: pema | CA16: Yes
K17: 0 | S17: 1 | T17: 1 | AD17: 11 | AF17: =IF(ISNA(VLOOKUP(D17,#REF!,2,FALSE)),"",VLOOKUP(D17,#REF!,2,FALSE)) ->  | AG17: 0 | AH17: 0 | AI17: 0 | AJ17: 0 | AK17: 0 | AL17: 0 | AM17: 0 | AN17: 0 | AO17: 0 | AP17: 0 | AQ17: 0 | AR17: 0 | AS17: 0 | AT17: 0 | AV17: 0 | AX17: 0 | AY17: 0 | AZ17: 0 | BA17: 0 | BB17: 0 | BC17: 0 | BW17: CRP (Active) | BY17: pemc | CA17: No
K18: 0 | S18: 1 | T18: 1 | AD18: 11 | AF18: =IF(ISNA(VLOOKUP(D18,#REF!,2,FALSE)),"",VLOOKUP(D18,#REF!,2,FALSE)) ->  | AG18: 0 | AH18: 0 | AI18: 0 | AJ18: 0 | AK18: 0 | AL18: 0 | AM18: 0 | AN18: 0 | AO18: 0 | AP18: 0 | AQ18: =IF(AN18>0,AN18,IF(SUM(AO18:AP18)+AM18>B18,B18,SUM(AO18:AP18)+AM18)) -> 0 | AR18: 0 | AS18: 0 | AT18: 0 | AV18: 0 | AX18: 0 | AY18: 0 | AZ18: 0 | BA18: 0 | BB18: 0 | BC18: 0 | BW18: Rangeland | BY18: pemf | BZ18: includes pem/abf
K19: 0 | S19: 1 | T19: 1 | AD19: 11 | AF19: =IF(ISNA(VLOOKUP(D19,#REF!,2,FALSE)),"",VLOOKUP(D19,#REF!,2,FALSE)) ->  | AG19: 0 | AH19: 0 | AI19: 0 | AJ19: 0 | AK19: 0 | AL19: 0 | AM19: 0 | AN19: 0 | AO19: 0 | AP19: 0 | AQ19: 0 | AR19: 0 | AS19: 0 | AT19: 0 | AV19: 0 | AX19: 0 | AY19: 0 | AZ19: 0 | BA19: 0 | BB19: 0 | BC19: 0 | BW19: Pastureland | BY19: other
K20: 0 | S20: 1 | T20: 1 | AD20: 11 | AF20: =IF(ISNA(VLOOKUP(D20,#REF!,2,FALSE)),"",VLOOKUP(D20,#REF!,2,FALSE)) ->  | AG20: 0 | AH20: 0 | AI20: 0 | AJ20: 0 | AK20: 0 | AL20: 0 | AM20: 0 | AN20: 0 | AO20: 0 | AP20: 0 | AQ20: 0 | AR20: 0 | AS20: 0 | AT20: 0 | AV20: 0 | AX20: 0 | AY20: 0 | AZ20: 0 | BA20: 0 | BB20: 0 | BC20: 0 | BJ20: Acres | BK20: Basins | BW20: Hayland
K21: 0 | S21: 1 | T21: 1 | AD21: 11 | AF21: =IF(ISNA(VLOOKUP(D21,#REF!,2,FALSE)),"",VLOOKUP(D21,#REF!,2,FALSE)) ->  | AG21: 0 | AH21: 0 | AI21: 0 | AJ21: 0 | AK21: 0 | AL21: 0 | AM21: 0 | AN21: 0 | AO21: 0 | AP21: 0 | AQ21: 0 | AR21: 0 | AS21: 0 | AT21: 0 | AV21: 0 | AX21: 0 | AY21: 0 | AZ21: 0 | BA21: 0 | BB21: 0 | BC21: 0 | BG21: Total - wetlands / prairie potholes | BJ21: =SUM($B$14:$B$161) -> 0 | BK21: =COUNT($B$14:$B$161) -> 0 | BT21: * must be addressed in cost section under other conservation practices planned section | BW21: Wildlife/Idle
K22: 0 | S22: 1 | T22: 1 | AD22: 11 | AF22: =IF(ISNA(VLOOKUP(D22,#REF!,2,FALSE)),"",VLOOKUP(D22,#REF!,2,FALSE)) ->  | AG22: 0 | AH22: 0 | AI22: 0 | AJ22: 0 | AK22: 0 | AL22: 0 | AM22: 0 | AN22: 0 | AO22: 0 | AP22: 0 | AQ22: 0 | AR22: 0 | AS22: 0 | AT22: 0 | AV22: 0 | AX22: 0 | AY22: 0 | AZ22: 0 | BA22: 0 | BB22: 0 | BC22: 0 | BG22: Non-degraded | BJ22: =SUM($AG$14:$AG$161) -> 0 | BK22: =COUNTIF($AG$14:$AG$161,">0") -> 0 | BW22: Forest Land
K23: 0 | S23: 1 | T23: 1 | AD23: 11 | AF23: =IF(ISNA(VLOOKUP(D23,#REF!,2,FALSE)),"",VLOOKUP(D23,#REF!,2,FALSE)) ->  | AG23: 0 | AH23: 0 | AI23: 0 | AJ23: 0 | AK23: 0 | AL23: 0 | AM23: 0 | AN23: 0 | AO23: 0 | AP23: 0 | AQ23: 0 | AR23: 0 | AS23: 0 | AT23: 0 | AV23: 0 | AX23: 0 | AY23: 0 | AZ23: 0 | BA23: 0 | BB23: 0 | BC23: 0 | BG23: Degraded | BJ23: =SUM($AR$14:$AR$161) -> 0 | BK23: =SUM($AS$14:$AS$161) -> 0
K24: 0 | S24: 1 | T24: 1 | AD24: 11 | AF24: =IF(ISNA(VLOOKUP(D24,#REF!,2,FALSE)),"",VLOOKUP(D24,#REF!,2,FALSE)) ->  | AG24: 0 | AH24: 0 | AI24: 0 | AJ24: 0 | AK24: 0 | AL24: 0 | AM24: 0 | AN24: 0 | AO24: 0 | AP24: 0 | AQ24: 0 | AR24: 0 | AS24: 0 | AT24: 0 | AV24: 0 | AX24: 0 | AY24: 0 | AZ24: 0 | BA24: 0 | BB24: 0 | BC24: 0 | BG24: Following may not add up to Degraded total
K25: 0 | S25: 1 | T25: 1 | AD25: 11 | AF25: =IF(ISNA(VLOOKUP(D25,#REF!,2,FALSE)),"",VLOOKUP(D25,#REF!,2,FALSE)) ->  | AG25: 0 | AH25: 0 | AI25: 0 | AJ25: 0 | AK25: 0 | AL25: 0 | AM25: 0 | AN25: 0 | AO25: 0 | AP25: 0 | AQ25: 0 | AR25: 0 | AS25: 0 | AT25: 0 | AV25: 0 | AX25: 0 | AY25: 0 | AZ25: 0 | BA25: 0 | BB25: 0 | BC25: 0 | BG25: Degraded - existing cover | BJ25: =SUM($AH$14:$AH$161) -> 0 | BK25: =COUNTIF($AH$14:$AH$161,">0") -> 0
K26: 0 | S26: 1 | T26: 1 | AD26: 11 | AF26: =IF(ISNA(VLOOKUP(D26,#REF!,2,FALSE)),"",VLOOKUP(D26,#REF!,2,FALSE)) ->  | AG26: 0 | AH26: 0 | AI26: 0 | AJ26: 0 | AK26: 0 | AL26: 0 | AM26: 0 | AN26: 0 | AO26: 0 | AP26: 0 | AQ26: 0 | AR26: 0 | AS26: 0 | AT26: 0 | AV26: 0 | AX26: 0 | AY26: 0 | AZ26: 0 | BA26: 0 | BB26: 0 | BC26: 0 | BG26: Degraded vegetatively | BJ26: =SUM($AJ$14:$AK$161) -> 0 | BK26: =SUM($AL$14:$AL$161) -> 0 | BL26: <-- used for factor 1
K27: 0 | S27: 1 | T27: 1 | AD27: 11 | AF27: =IF(ISNA(VLOOKUP(D27,#REF!,2,FALSE)),"",VLOOKUP(D27,#REF!,2,FALSE)) ->  | AG27: 0 | AH27: 0 | AI27: 0 | AJ27: 0 | AK27: 0 | AL27: 0 | AM27: 0 | AN27: 0 | AO27: 0 | AP27: 0 | AQ27: 0 | AR27: 0 | AS27: 0 | AT27: 0 | AV27: 0 | AX27: 0 | AY27: 0 | AZ27: 0 | BA27: 0 | BB27: 0 | BC27: 0 | BG27: Degraded mechanically | BJ27: =SUM($AQ$14:$AQ$161) -> 0 | BK27: =COUNTIF($AQ$14:$AQ$161,">0") -> 0 | BL27: <-- used for factor 2
K28: 0 | S28: 1 | T28: 1 | AD28: 11 | AF28: =IF(ISNA(VLOOKUP(D28,#REF!,2,FALSE)),"",VLOOKUP(D28,#REF!,2,FALSE)) ->  | AG28: 0 | AH28: 0 | AI28: 0 | AJ28: 0 | AK28: 0 | AL28: 0 | AM28: 0 | AN28: 0 | AO28: 0 | AP28: 0 | AQ28: 0 | AR28: 0 | AS28: 0 | AT28: 0 | AV28: 0 | AX28: 0 | AY28: 0 | AZ28: 0 | BA28: 0 | BB28: 0 | BC28: 0 | BG28: - Plugs/Retention & Sed. | BJ28: =SUM($AX$14:$AX$161) -> 0 | BK28: =COUNTIF($AX$14:$AX$161,">0") -> 0 | BL28: <-- used for factor 2
K29: 0 | S29: 1 | T29: 1 | AD29: 11 | AF29: =IF(ISNA(VLOOKUP(D29,#REF!,2,FALSE)),"",VLOOKUP(D29,#REF!,2,FALSE)) ->  | AG29: 0 | AH29: 0 | AI29: 0 | AJ29: 0 | AK29: 0 | AL29: 0 | AM29: 0 | AN29: 0 | AO29: 0 | AP29: 0 | AQ29: 0 | AR29: 0 | AS29: 0 | AT29: 0 | AV29: 0 | AX29: 0 | AY29: 0 | AZ29: 0 | BA29: 0 | BB29: 0 | BC29: 0 | BG29: - Plugs/Retention Only | BJ29: =SUM($AZ$14:$AZ$161) -> 0 | BK29: =COUNTIF($AZ$14:$AZ$161,">0") -> 0 | BL29: <-- used for factor 2
K30: 0 | S30: 1 | T30: 1 | AD30: 11 | AF30: =IF(ISNA(VLOOKUP(D30,#REF!,2,FALSE)),"",VLOOKUP(D30,#REF!,2,FALSE)) ->  | AG30: 0 | AH30: 0 | AI30: 0 | AJ30: 0 | AK30: 0 | AL30: 0 | AM30: 0 | AN30: 0 | AO30: 0 | AP30: 0 | AQ30: 0 | AR30: 0 | AS30: 0 | AT30: 0 | AV30: 0 | AX30: 0 | AY30: 0 | AZ30: 0 | BA30: 0 | BB30: 0 | BC30: 0 | BG30: - Sed. Removal/Dugout Only | BJ30: =SUM($BB$14:$BB$161) -> 0 | BK30: =COUNTIF($BB$14:$BB$161,">0") -> 0 | BW30: Error Checking - field section | CB30: Error Checking - wetland section
K31: 0 | S31: 1 | T31: 1 | AD31: 11 | AF31: =IF(ISNA(VLOOKUP(D31,#REF!,2,FALSE)),"",VLOOKUP(D31,#REF!,2,FALSE)) ->  | AG31: 0 | AH31: 0 | AI31: 0 | AJ31: 0 | AK31: 0 | AL31: 0 | AM31: 0 | AN31: 0 | AO31: 0 | AP31: 0 | AQ31: 0 | AR31: 0 | AS31: 0 | AT31: 0 | AV31: 0 | AX31: 0 | AY31: 0 | AZ31: 0 | BA31: 0 | BB31: 0 | BC31: 0 | BG31: Degraded with sediment | BJ31: =SUM($AM$14:$AM$161) -> 0 | BK31: =COUNTIF($AM$14:$AM$161,">0") -> 0 | BL31: total acres for sediment removal | BW31: 1 | CB31: 1
K32: 0 | S32: 1 | T32: 1 | AD32: 11 | AF32: =IF(ISNA(VLOOKUP(D32,#REF!,2,FALSE)),"",VLOOKUP(D32,#REF!,2,FALSE)) ->  | AG32: 0 | AH32: 0 | AI32: 0 | AJ32: 0 | AK32: 0 | AL32: 0 | AM32: 0 | AN32: 0 | AO32: 0 | AP32: 0 | AQ32: 0 | AR32: 0 | AS32: 0 | AT32: 0 | AV32: 0 | AX32: 0 | AY32: 0 | AZ32: 0 | BA32: 0 | BB32: 0 | BC32: 0 | BW32: 2 | BX32: Enter Land Use | CB32: 2 | CC32: Enter Wetland Acres
K33: 0 | S33: 1 | T33: 1 | AD33: 11 | AF33: =IF(ISNA(VLOOKUP(D33,#REF!,2,FALSE)),"",VLOOKUP(D33,#REF!,2,FALSE)) ->  | AG33: 0 | AH33: 0 | AI33: 0 | AJ33: 0 | AK33: 0 | AL33: 0 | AM33: 0 | AN33: 0 | AO33: 0 | AP33: 0 | AQ33: 0 | AR33: 0 | AS33: 0 | AT33: 0 | AV33: 0 | AX33: 0 | AY33: 0 | AZ33: 0 | BA33: 0 | BB33: 0 | BC33: 0 | BW33: 3 | BX33: Enter Land Use Acres | CB33: 3 | CC33: Enter Wetland Type
K34: 0 | S34: 1 | T34: 1 | W34: =IF(AND(AND(AND(SUM(D34:M34)+P34=0,AND(N34<>"Yes",O34<>"Yes")),F34<>"yes"),A34<>""),W$13,"") ->  | X34: =IF(AND(A34<>"",(D34+E34)>B34),X$13,"") ->  | AB34: =IF(AND(SUM(E34:P34)>0,F34="yes",A34<>""),AB$13,"") ->  | AC34: =IF(AND(F34="yes",A34<>""),AC$13,"") ->  | AD34: 11 | AF34: =IF(ISNA(VLOOKUP(D34,#REF!,2,FALSE)),"",VLOOKUP(D34,#REF!,2,FALSE)) ->  | AG34: 0 | AH34: 0 | AI34: 0 | AJ34: 0 | AK34: 0 | AL34: 0 | AM34: 0 | AN34: 0 | AO34: 0 | AP34: 0 | AQ34: 0 | AR34: 0 | AS34: 0 | AT34: 0 | AV34: 0 | AX34: 0 | AY34: 0 | AZ34: 0 | BA34: 0 | BB34: 0 | BC34: 0 | BW34: 4 | BX34: Enter Acres to be Planted | CB34: 4 | CC34: Non-degraded or Restoration Needed
K35: 0 | S35: 1 | T35: 1 | W35: =IF(AND(AND(AND(SUM(D35:M35)+P35=0,AND(N35<>"Yes",O35<>"Yes")),F35<>"yes"),A35<>""),W$13,"") ->  | X35: =IF(AND(A35<>"",(D35+E35)>B35),X$13,"") ->  | AB35: =IF(AND(SUM(E35:P35)>0,F35="yes",A35<>""),AB$13,"") ->  | AC35: =IF(AND(F35="yes",A35<>""),AC$13,"") ->  | AD35: 11 | AF35: =IF(ISNA(VLOOKUP(D35,#REF!,2,FALSE)),"",VLOOKUP(D35,#REF!,2,FALSE)) ->  | AG35: 0 | AH35: 0 | AI35: 0 | AJ35: 0 | AK35: 0 | AL35: 0 | AM35: 0 | AN35: 0 | AO35: 0 | AP35: 0 | AQ35: 0 | AR35: 0 | AS35: 0 | AT35: 0 | AV35: 0 | AX35: 0 | AY35: 0 | AZ35: 0 | BA35: 0 | BB35: 0 | BC35: 0 | BW35: 5 | BX35: Acres Planted (Upland) > Field Acres | CB35: 5 | CC35: Planted acres > wetland acres
K36: 0 | S36: 1 | T36: 1 | AD36: 11 | AF36: =IF(ISNA(VLOOKUP(D36,#REF!,2,FALSE)),"",VLOOKUP(D36,#REF!,2,FALSE)) ->  | AG36: 0 | AH36: 0 | AI36: 0 | AJ36: 0 | AK36: 0 | AL36: 0 | AM36: 0 | AN36: 0 | AO36: 0 | AP36: 0 | AQ36: 0 | AR36: 0 | AS36: 0 | AT36: 0 | AV36: 0 | AX36: 0 | AY36: 0 | AZ36: 0 | BA36: 0 | BB36: 0 | BC36: 0 | BG36: Wetland Restoration Items | BK36: Number | BL36: Basins | BW36: 6 | BX36: Wetland Acres > Field Acres | CB36: 6 | CC36: not used
K37: 0 | S37: 1 | T37: 1 | AD37: 11 | AF37: =IF(ISNA(VLOOKUP(D37,#REF!,2,FALSE)),"",VLOOKUP(D37,#REF!,2,FALSE)) ->  | AG37: 0 | AH37: 0 | AI37: 0 | AJ37: 0 | AK37: 0 | AL37: 0 | AM37: 0 | AN37: 0 | AO37: 0 | AP37: 0 | AQ37: 0 | AR37: 0 | AS37: 0 | AT37: 0 | AV37: 0 | AX37: 0 | AY37: 0 | AZ37: 0 | BA37: 0 | BB37: 0 | BC37: 0 | BG37: Number of ditch plugs needed | BK37: =SUM($G$14:$G$161) -> 0 | BL37: =COUNT($G$14:$G$161) -> 0 | BW37: 7 | BX37: Acres Planted (wet.+up.) > Field Acres | CB37: 7 | CC37: not used
K38: 0 | S38: 1 | T38: 1 | AD38: 11 | AF38: =IF(ISNA(VLOOKUP(D38,#REF!,2,FALSE)),"",VLOOKUP(D38,#REF!,2,FALSE)) ->  | AG38: 0 | AH38: 0 | AI38: 0 | AJ38: 0 | AK38: 0 | AL38: 0 | AM38: 0 | AN38: 0 | AO38: 0 | AP38: 0 | AQ38: 0 | AR38: 0 | AS38: 0 | AT38: 0 | AV38: 0 | AX38: 0 | AY38: 0 | AZ38: 0 | BA38: 0 | BB38: 0 | BC38: 0 | BG38: Number of Water Retention | BK38: =SUM($H$14:$H$161) -> 0 | BL38: =COUNT($H$14:$H$161) -> 0 | BM38: <-- makes factor 8 structural | BW38: 8 | BX38: Not used | CB38: 8 | CC38: not used
K39: 0 | S39: 1 | T39: 1 | AD39: 11 | AF39: =IF(ISNA(VLOOKUP(D39,#REF!,2,FALSE)),"",VLOOKUP(D39,#REF!,2,FALSE)) ->  | AG39: 0 | AH39: 0 | AI39: 0 | AJ39: 0 | AK39: 0 | AL39: 0 | AM39: 0 | AN39: 0 | AO39: 0 | AP39: 0 | AQ39: 0 | AR39: 0 | AS39: 0 | AT39: 0 | AV39: 0 | AX39: 0 | AY39: 0 | AZ39: 0 | BA39: 0 | BB39: 0 | BC39: 0 | BG39: CuYds of sediment removal | BK39: =SUM($K$14:$K$161) -> 0 | BL39: =COUNT($J$14:$J$161) -> 0 | BW39: 9 | BX39: Not used | CB39: 9 | CC39: Can NOT have Restor. & No Restor. Needed
K40: 0 | S40: 1 | T40: 1 | AD40: 11 | AF40: =IF(ISNA(VLOOKUP(D40,#REF!,2,FALSE)),"",VLOOKUP(D40,#REF!,2,FALSE)) ->  | AG40: 0 | AH40: 0 | AI40: 0 | AJ40: 0 | AK40: 0 | AL40: 0 | AM40: 0 | AN40: 0 | AO40: 0 | AP40: 0 | AQ40: 0 | AR40: 0 | AS40: 0 | AT40: 0 | AV40: 0 | AX40: 0 | AY40: 0 | AZ40: 0 | BA40: 0 | BB40: 0 | BC40: 0 | BG40: Rockpiles | BK40: =SUM($L$14:$L$161) -> 0 | BL40: =COUNT($L$14:$L$161) -> 0 | BM40: =BK40*0.1 -> 0 | BN40: Acres | BW40: 10 | BX40: Not used | CB40: 10 | CC40: OK - Wetland Degraded - No Restoration Needed
K41: 0 | S41: 1 | T41: 1 | AD41: 11 | AF41: =IF(ISNA(VLOOKUP(D41,#REF!,2,FALSE)),"",VLOOKUP(D41,#REF!,2,FALSE)) ->  | AG41: 0 | AH41: 0 | AI41: 0 | AJ41: 0 | AK41: 0 | AL41: 0 | AM41: 0 | AN41: 0 | AO41: 0 | AP41: 0 | AQ41: 0 | AR41: 0 | AS41: 0 | AT41: 0 | AV41: 0 | AX41: 0 | AY41: 0 | AZ41: 0 | BA41: 0 | BB41: 0 | BC41: 0 | BG41: Trees | BK41: =SUM($M$14:$M$161) -> 0 | BL41: =COUNT($M$14:$M$161) -> 0 | BM41: =BK41*0.1 -> 0 | BN41: Acres | BW41: 11 | BX41: OK | CB41: 11 | CC41: OK
K42: 0 | S42: 1 | T42: 1 | AD42: 11 | AF42: =IF(ISNA(VLOOKUP(D42,#REF!,2,FALSE)),"",VLOOKUP(D42,#REF!,2,FALSE)) ->  | AG42: 0 | AH42: 0 | AI42: 0 | AJ42: 0 | AK42: 0 | AL42: 0 | AM42: 0 | AN42: 0 | AO42: 0 | AP42: 0 | AQ42: 0 | AR42: 0 | AS42: 0 | AT42: 0 | AV42: 0 | AX42: 0 | AY42: 0 | AZ42: 0 | BA42: 0 | BB42: 0 | BC42: 0 | BG42: Tree rows | BK42: =IF(COUNTIF($N$14:$N$161,"Yes")>0,"Yes","") ->  | BL42: =IF(COUNTIF($N$14:$N$161,"Yes")>0,"Yes","") ->  | BM42: =ROUND(BK42*50/43560,1) ->  | BN42: Acres
K43: 0 | S43: 1 | T43: 1 | AD43: 11 | AF43: =IF(ISNA(VLOOKUP(D43,#REF!,2,FALSE)),"",VLOOKUP(D43,#REF!,2,FALSE)) ->  | AG43: 0 | AH43: 0 | AI43: 0 | AJ43: 0 | AK43: 0 | AL43: 0 | AM43: 0 | AN43: 0 | AO43: 0 | AP43: 0 | AQ43: 0 | AR43: 0 | AS43: 0 | AT43: 0 | AV43: 0 | AX43: 0 | AY43: 0 | AZ43: 0 | BA43: 0 | BB43: 0 | BC43: 0 | BG43: Dugouts | BK43: =SUM($I$14:$I$161) -> 0 | BL43: =COUNT($I$14:$I$161) -> 0 | BM43: =BK43*1500 -> 0 | BN43: cuyd | BO43: 1500 cuyd/dugout
K44: 0 | S44: 1 | T44: 1 | AD44: 11 | AF44: =IF(ISNA(VLOOKUP(D44,#REF!,2,FALSE)),"",VLOOKUP(D44,#REF!,2,FALSE)) ->  | AG44: 0 | AH44: 0 | AI44: 0 | AJ44: 0 | AK44: 0 | AL44: 0 | AM44: 0 | AN44: 0 | AO44: 0 | AP44: 0 | AQ44: 0 | AR44: 0 | AS44: 0 | AT44: 0 | AV44: 0 | AX44: 0 | AY44: 0 | AZ44: 0 | BA44: 0 | BB44: 0 | BC44: 0 | BG44: Fence removal - ft | BK44: =IF(COUNTIF($O$14:$O$161,"Yes")>0,"Yes","") ->  | BL44: =IF(COUNTIF($O$14:$O$161,"Yes")>0,"Yes","") -> 
K45: 0 | S45: 1 | T45: 1 | AD45: 11 | AF45: =IF(ISNA(VLOOKUP(D45,#REF!,2,FALSE)),"",VLOOKUP(D45,#REF!,2,FALSE)) ->  | AG45: 0 | AH45: 0 | AI45: 0 | AJ45: 0 | AK45: 0 | AL45: 0 | AM45: 0 | AN45: 0 | AO45: 0 | AP45: 0 | AQ45: 0 | AR45: 0 | AS45: 0 | AT45: 0 | AV45: 0 | AX45: 0 | AY45: 0 | AZ45: 0 | BA45: 0 | BB45: 0 | BC45: 0 | BG45: Acres of vegetation needed - Wetland Species | BK45: =SUM($E$14:$E$161) -> 0 | BL45: =COUNT($E$14:$E$161) -> 0
K46: 0 | Q46: =CHOOSE(S46,$CC$31,$CC$32,$CC$33,$CC$34,$CC$35,$CC$36,$CC$37,$CC$38,$CC$39,$CC$40,$CC$41) ->  | S46: 1 | T46: 1 | AD46: 11 | AF46: =IF(ISNA(VLOOKUP(D46,#REF!,2,FALSE)),"",VLOOKUP(D46,#REF!,2,FALSE)) ->  | AG46: 0 | AH46: 0 | AI46: 0 | AJ46: 0 | AK46: 0 | AL46: 0 | AM46: 0 | AN46: 0 | AO46: 0 | AP46: 0 | AQ46: 0 | AR46: 0 | AS46: 0 | AT46: 0 | AV46: 0 | AX46: 0 | AY46: 0 | AZ46: 0 | BA46: 0 | BB46: 0 | BC46: 0 | BG46: Acres of vegetation needed - Upland species | BK46: =SUM($D$14:$D$161) -> 0 | BL46: =COUNT($D$14:$D$161) -> 0
K47: 0 | S47: 1 | T47: 1 | AD47: 11 | AF47: =IF(ISNA(VLOOKUP(D47,#REF!,2,FALSE)),"",VLOOKUP(D47,#REF!,2,FALSE)) ->  | AG47: 0 | AH47: 0 | AI47: 0 | AJ47: 0 | AK47: 0 | AL47: 0 | AM47: 0 | AN47: 0 | AO47: 0 | AP47: 0 | AQ47: 0 | AR47: 0 | AS47: 0 | AT47: 0 | AV47: 0 | AX47: 0 | AY47: 0 | AZ47: 0 | BA47: 0 | BB47: 0 | BC47: 0
K48: 0 | S48: 1 | T48: 1 | AD48: 11 | AF48: =IF(ISNA(VLOOKUP(D48,#REF!,2,FALSE)),"",VLOOKUP(D48,#REF!,2,FALSE)) ->  | AG48: 0 | AH48: 0 | AI48: 0 | AJ48: 0 | AK48: 0 | AL48: 0 | AM48: 0 | AN48: 0 | AO48: 0 | AP48: 0 | AQ48: 0 | AR48: 0 | AS48: 0 | AT48: 0 | AV48: 0 | AX48: 0 | AY48: 0 | AZ48: 0 | BA48: 0 | BB48: 0 | BC48: 0
K49: 0 | S49: 1 | T49: 1 | AD49: 11 | AF49: =IF(ISNA(VLOOKUP(D49,#REF!,2,FALSE)),"",VLOOKUP(D49,#REF!,2,FALSE)) ->  | AG49: 0 | AH49: 0 | AI49: 0 | AJ49: 0 | AK49: 0 | AL49: 0 | AM49: 0 | AN49: 0 | AO49: 0 | AP49: 0 | AQ49: 0 | AR49: 0 | AS49: 0 | AT49: 0 | AV49: 0 | AX49: 0 | AY49: 0 | AZ49: 0 | BA49: 0 | BB49: 0 | BC49: 0 | BG49: pemf acres hydrologically restored
K50: 0 | S50: 1 | T50: 1 | AD50: 11 | AF50: =IF(ISNA(VLOOKUP(D50,#REF!,2,FALSE)),"",VLOOKUP(D50,#REF!,2,FALSE)) ->  | AG50: 0 | AH50: 0 | AI50: 0 | AJ50: 0 | AK50: 0 | AL50: 0 | AM50: 0 | AN50: 0 | AO50: 0 | AP50: 0 | AQ50: 0 | AR50: 0 | AS50: 0 | AT50: 0 | AV50: 0 | AX50: 0 | AY50: 0 | AZ50: 0 | BA50: 0 | BB50: 0 | BC50: 0 | BH50: Acres | BI50: Ratio
K51: 0 | S51: 1 | T51: 1 | AD51: 11 | AF51: =IF(ISNA(VLOOKUP(D51,#REF!,2,FALSE)),"",VLOOKUP(D51,#REF!,2,FALSE)) ->  | AG51: 0 | AH51: 0 | AI51: 0 | AJ51: 0 | AK51: 0 | AL51: 0 | AM51: 0 | AN51: 0 | AO51: 0 | AP51: 0 | AQ51: 0 | AR51: 0 | AS51: 0 | AT51: 0 | AV51: 0 | AX51: 0 | AY51: 0 | AZ51: 0 | BA51: 0 | BB51: 0 | BC51: 0 | BG51: Total | BH51: =E8 -> 0 | BI51: =IF(BH51=0,0,$BH$55/BH51) -> 0
K52: 0 | S52: 1 | T52: 1 | AD52: 11 | AF52: =IF(ISNA(VLOOKUP(D52,#REF!,2,FALSE)),"",VLOOKUP(D52,#REF!,2,FALSE)) ->  | AG52: 0 | AH52: 0 | AI52: 0 | AJ52: 0 | AK52: 0 | AL52: 0 | AM52: 0 | AN52: 0 | AO52: 0 | AP52: 0 | AQ52: 0 | AR52: 0 | AS52: 0 | AT52: 0 | AV52: 0 | AX52: 0 | AY52: 0 | AZ52: 0 | BA52: 0 | BB52: 0 | BC52: 0 | BG52: Restored | BH52: =SUMIF($C$14:$C$161,$BY$18,$AN$14:$AN$161) -> 0 | BI52: =IF(BH52=0,0,$BH$55/BH52) -> 0
K53: 0 | S53: 1 | T53: 1 | AD53: 11 | AF53: =IF(ISNA(VLOOKUP(D53,#REF!,2,FALSE)),"",VLOOKUP(D53,#REF!,2,FALSE)) ->  | AG53: 0 | AH53: 0 | AI53: 0 | AJ53: 0 | AK53: 0 | AL53: 0 | AM53: 0 | AN53: 0 | AO53: 0 | AP53: 0 | AQ53: 0 | AR53: 0 | AS53: 0 | AT53: 0 | AV53: 0 | AX53: 0 | AY53: 0 | AZ53: 0 | BA53: 0 | BB53: 0 | BC53: 0 | BG53: Not restored | BH53: =BH51-BH52 -> 0 | BI53: =IF(BH53=0,0,$BH$55/BH53) -> 0
K54: 0 | S54: 1 | T54: 1 | AD54: 11 | AF54: =IF(ISNA(VLOOKUP(D54,#REF!,2,FALSE)),"",VLOOKUP(D54,#REF!,2,FALSE)) ->  | AG54: 0 | AH54: 0 | AI54: 0 | AJ54: 0 | AK54: 0 | AL54: 0 | AM54: 0 | AN54: 0 | AO54: 0 | AP54: 0 | AQ54: 0 | AR54: 0 | AS54: 0 | AT54: 0 | AV54: 0 | AX54: 0 | AY54: 0 | AZ54: 0 | BA54: 0 | BB54: 0 | BC54: 0
K55: 0 | S55: 1 | T55: 1 | AD55: 11 | AF55: =IF(ISNA(VLOOKUP(D55,#REF!,2,FALSE)),"",VLOOKUP(D55,#REF!,2,FALSE)) ->  | AG55: 0 | AH55: 0 | AI55: 0 | AJ55: 0 | AK55: 0 | AL55: 0 | AM55: 0 | AN55: 0 | AO55: 0 | AP55: 0 | AQ55: 0 | AR55: 0 | AS55: 0 | AT55: 0 | AV55: 0 | AX55: 0 | AY55: 0 | AZ55: 0 | BA55: 0 | BB55: 0 | BC55: 0 | BG55: Upland Acres | BH55: =Landuse_Inventory!K15 -> 0
K56: 0 | S56: 1 | T56: 1 | AD56: 11 | AF56: =IF(ISNA(VLOOKUP(D56,#REF!,2,FALSE)),"",VLOOKUP(D56,#REF!,2,FALSE)) ->  | AG56: 0 | AH56: 0 | AI56: 0 | AJ56: 0 | AK56: 0 | AL56: 0 | AM56: 0 | AN56: 0 | AO56: 0 | AP56: 0 | AQ56: 0 | AR56: 0 | AS56: 0 | AT56: 0 | AV56: 0 | AX56: 0 | AY56: 0 | AZ56: 0 | BA56: 0 | BB56: 0 | BC56: 0
K57: 0 | S57: 1 | T57: 1 | AD57: 11 | AF57: =IF(ISNA(VLOOKUP(D57,#REF!,2,FALSE)),"",VLOOKUP(D57,#REF!,2,FALSE)) ->  | AG57: 0 | AH57: 0 | AI57: 0 | AJ57: 0 | AK57: 0 | AL57: 0 | AM57: 0 | AN57: 0 | AO57: 0 | AP57: 0 | AQ57: 0 | AR57: 0 | AS57: 0 | AT57: 0 | AV57: 0 | AX57: 0 | AY57: 0 | AZ57: 0 | BA57: 0 | BB57: 0 | BC57: 0
K58: 0 | S58: 1 | T58: 1 | AD58: 11 | AF58: =IF(ISNA(VLOOKUP(D58,#REF!,2,FALSE)),"",VLOOKUP(D58,#REF!,2,FALSE)) ->  | AG58: 0 | AH58: 0 | AI58: 0 | AJ58: 0 | AK58: 0 | AL58: 0 | AM58: 0 | AN58: 0 | AO58: 0 | AP58: 0 | AQ58: 0 | AR58: 0 | AS58: 0 | AT58: 0 | AV58: 0 | AX58: 0 | AY58: 0 | AZ58: 0 | BA58: 0 | BB58: 0 | BC58: 0
K59: 0 | S59: 1 | T59: 1 | AD59: 11 | AF59: =IF(ISNA(VLOOKUP(D59,#REF!,2,FALSE)),"",VLOOKUP(D59,#REF!,2,FALSE)) ->  | AG59: 0 | AH59: 0 | AI59: 0 | AJ59: 0 | AK59: 0 | AL59: 0 | AM59: 0 | AN59: 0 | AO59: 0 | AP59: 0 | AQ59: 0 | AR59: 0 | AS59: 0 | AT59: 0 | AV59: 0 | AX59: 0 | AY59: 0 | AZ59: 0 | BA59: 0 | BB59: 0 | BC59: 0
K60: 0 | S60: 1 | T60: 1 | AD60: 11 | AF60: =IF(ISNA(VLOOKUP(D60,#REF!,2,FALSE)),"",VLOOKUP(D60,#REF!,2,FALSE)) ->  | AG60: 0 | AH60: 0 | AI60: 0 | AJ60: 0 | AK60: 0 | AL60: 0 | AM60: 0 | AN60: 0 | AO60: 0 | AP60: 0 | AQ60: 0 | AR60: 0 | AS60: 0 | AT60: 0 | AV60: 0 | AX60: 0 | AY60: 0 | AZ60: 0 | BA60: 0 | BB60: 0 | BC60: 0
K61: 0 | S61: 1 | T61: 1 | AD61: 11 | AF61: =IF(ISNA(VLOOKUP(D61,#REF!,2,FALSE)),"",VLOOKUP(D61,#REF!,2,FALSE)) ->  | AG61: 0 | AH61: 0 | AI61: 0 | AJ61: 0 | AK61: 0 | AL61: 0 | AM61: 0 | AN61: 0 | AO61: 0 | AP61: 0 | AQ61: 0 | AR61: 0 | AS61: 0 | AT61: 0 | AV61: 0 | AX61: 0 | AY61: 0 | AZ61: 0 | BA61: 0 | BB61: 0 | BC61: 0
K62: 0 | S62: 1 | T62: 1 | AD62: 11 | AF62: =IF(ISNA(VLOOKUP(D62,#REF!,2,FALSE)),"",VLOOKUP(D62,#REF!,2,FALSE)) ->  | AG62: 0 | AH62: 0 | AI62: 0 | AJ62: 0 | AK62: 0 | AL62: 0 | AM62: 0 | AN62: 0 | AO62: 0 | AP62: 0 | AQ62: 0 | AR62: 0 | AS62: 0 | AT62: 0 | AV62: 0 | AX62: 0 | AY62: 0 | AZ62: 0 | BA62: 0 | BB62: 0 | BC62: 0
K63: 0 | S63: 1 | T63: 1 | AD63: 11 | AF63: =IF(ISNA(VLOOKUP(D63,#REF!,2,FALSE)),"",VLOOKUP(D63,#REF!,2,FALSE)) ->  | AG63: 0 | AH63: 0 | AI63: 0 | AJ63: 0 | AK63: 0 | AL63: 0 | AM63: 0 | AN63: 0 | AO63: 0 | AP63: 0 | AQ63: 0 | AR63: 0 | AS63: 0 | AT63: 0 | AV63: 0 | AX63: 0 | AY63: 0 | AZ63: 0 | BA63: 0 | BB63: 0 | BC63: 0
K64: 0 | S64: 1 | T64: 1 | AD64: 11 | AF64: =IF(ISNA(VLOOKUP(D64,#REF!,2,FALSE)),"",VLOOKUP(D64,#REF!,2,FALSE)) ->  | AG64: 0 | AH64: 0 | AI64: 0 | AJ64: 0 | AK64: 0 | AL64: 0 | AM64: 0 | AN64: 0 | AO64: 0 | AP64: 0 | AQ64: 0 | AR64: 0 | AS64: 0 | AT64: 0 | AV64: 0 | AX64: 0 | AY64: 0 | AZ64: 0 | BA64: 0 | BB64: 0 | BC64: 0
K65: 0 | S65: 1 | T65: 1 | AD65: 11 | AF65: =IF(ISNA(VLOOKUP(D65,#REF!,2,FALSE)),"",VLOOKUP(D65,#REF!,2,FALSE)) ->  | AG65: 0 | AH65: 0 | AI65: 0 | AJ65: 0 | AK65: 0 | AL65: 0 | AM65: 0 | AN65: 0 | AO65: 0 | AP65: 0 | AQ65: 0 | AR65: 0 | AS65: 0 | AT65: 0 | AV65: 0 | AX65: 0 | AY65: 0 | AZ65: 0 | BA65: 0 | BB65: 0 | BC65: 0
K66: 0 | S66: 1 | T66: 1 | AD66: 11 | AF66: =IF(ISNA(VLOOKUP(D66,#REF!,2,FALSE)),"",VLOOKUP(D66,#REF!,2,FALSE)) ->  | AG66: 0 | AH66: 0 | AI66: 0 | AJ66: 0 | AK66: 0 | AL66: 0 | AM66: 0 | AN66: 0 | AO66: 0 | AP66: 0 | AQ66: 0 | AR66: 0 | AS66: 0 | AT66: 0 | AV66: 0 | AX66: 0 | AY66: 0 | AZ66: 0 | BA66: 0 | BB66: 0 | BC66: 0
K67: 0 | S67: 1 | T67: 1 | AD67: 11 | AF67: =IF(ISNA(VLOOKUP(D67,#REF!,2,FALSE)),"",VLOOKUP(D67,#REF!,2,FALSE)) ->  | AG67: 0 | AH67: 0 | AI67: 0 | AJ67: 0 | AK67: 0 | AL67: 0 | AM67: 0 | AN67: 0 | AO67: 0 | AP67: 0 | AQ67: 0 | AR67: 0 | AS67: 0 | AT67: 0 | AV67: 0 | AX67: 0 | AY67: 0 | AZ67: 0 | BA67: 0 | BB67: 0 | BC67: 0
K68: 0 | S68: 1 | T68: 1 | AD68: 11 | AF68: =IF(ISNA(VLOOKUP(D68,#REF!,2,FALSE)),"",VLOOKUP(D68,#REF!,2,FALSE)) ->  | AG68: 0 | AH68: 0 | AI68: 0 | AJ68: 0 | AK68: 0 | AL68: 0 | AM68: 0 | AN68: 0 | AO68: 0 | AP68: 0 | AQ68: 0 | AR68: 0 | AS68: 0 | AT68: 0 | AV68: 0 | AX68: 0 | AY68: 0 | AZ68: 0 | BA68: 0 | BB68: 0 | BC68: 0
K69: 0 | S69: 1 | T69: 1 | AD69: 11 | AF69: =IF(ISNA(VLOOKUP(D69,#REF!,2,FALSE)),"",VLOOKUP(D69,#REF!,2,FALSE)) ->  | AG69: 0 | AH69: 0 | AI69: 0 | AJ69: 0 | AK69: 0 | AL69: 0 | AM69: 0 | AN69: 0 | AO69: 0 | AP69: 0 | AQ69: 0 | AR69: 0 | AS69: 0 | AT69: 0 | AV69: 0 | AX69: 0 | AY69: 0 | AZ69: 0 | BA69: 0 | BB69: 0 | BC69: 0
K70: 0 | S70: 1 | T70: 1 | AD70: 11 | AF70: =IF(ISNA(VLOOKUP(D70,#REF!,2,FALSE)),"",VLOOKUP(D70,#REF!,2,FALSE)) ->  | AG70: 0 | AH70: 0 | AI70: 0 | AJ70: 0 | AK70: 0 | AL70: 0 | AM70: 0 | AN70: 0 | AO70: 0 | AP70: 0 | AQ70: 0 | AR70: 0 | AS70: 0 | AT70: 0 | AV70: 0 | AX70: 0 | AY70: 0 | AZ70: 0 | BA70: 0 | BB70: 0 | BC70: 0
K71: 0 | S71: 1 | T71: 1 | AD71: 11 | AF71: =IF(ISNA(VLOOKUP(D71,#REF!,2,FALSE)),"",VLOOKUP(D71,#REF!,2,FALSE)) ->  | AG71: 0 | AH71: 0 | AI71: 0 | AJ71: 0 | AK71: 0 | AL71: 0 | AM71: 0 | AN71: 0 | AO71: 0 | AP71: 0 | AQ71: 0 | AR71: 0 | AS71: 0 | AT71: 0 | AV71: 0 | AX71: 0 | AY71: 0 | AZ71: 0 | BA71: 0 | BB71: 0 | BC71: 0
K72: 0 | S72: 1 | T72: 1 | AD72: 11 | AF72: =IF(ISNA(VLOOKUP(D72,#REF!,2,FALSE)),"",VLOOKUP(D72,#REF!,2,FALSE)) ->  | AG72: 0 | AH72: 0 | AI72: 0 | AJ72: 0 | AK72: 0 | AL72: 0 | AM72: 0 | AN72: 0 | AO72: 0 | AP72: 0 | AQ72: 0 | AR72: 0 | AS72: 0 | AT72: 0 | AV72: 0 | AX72: 0 | AY72: 0 | AZ72: 0 | BA72: 0 | BB72: 0 | BC72: 0
K73: 0 | S73: 1 | T73: 1 | AD73: 11 | AF73: =IF(ISNA(VLOOKUP(D73,#REF!,2,FALSE)),"",VLOOKUP(D73,#REF!,2,FALSE)) ->  | AG73: 0 | AH73: 0 | AI73: 0 | AJ73: 0 | AK73: 0 | AL73: 0 | AM73: 0 | AN73: 0 | AO73: 0 | AP73: 0 | AQ73: 0 | AR73: 0 | AS73: 0 | AT73: 0 | AV73: 0 | AX73: 0 | AY73: 0 | AZ73: 0 | BA73: 0 | BB73: 0 | BC73: 0
K74: 0 | S74: 1 | T74: 1 | AD74: 11 | AF74: =IF(ISNA(VLOOKUP(D74,#REF!,2,FALSE)),"",VLOOKUP(D74,#REF!,2,FALSE)) ->  | AG74: 0 | AH74: 0 | AI74: 0 | AJ74: 0 | AK74: 0 | AL74: 0 | AM74: 0 | AN74: 0 | AO74: 0 | AP74: 0 | AQ74: 0 | AR74: 0 | AS74: 0 | AT74: 0 | AV74: 0 | AX74: 0 | AY74: 0 | AZ74: 0 | BA74: 0 | BB74: 0 | BC74: 0
K75: 0 | S75: 1 | T75: 1 | AD75: 11 | AF75: =IF(ISNA(VLOOKUP(D75,#REF!,2,FALSE)),"",VLOOKUP(D75,#REF!,2,FALSE)) ->  | AG75: 0 | AH75: 0 | AI75: 0 | AJ75: 0 | AK75: 0 | AL75: 0 | AM75: 0 | AN75: 0 | AO75: 0 | AP75: 0 | AQ75: 0 | AR75: 0 | AS75: 0 | AT75: 0 | AV75: 0 | AX75: 0 | AY75: 0 | AZ75: 0 | BA75: 0 | BB75: 0 | BC75: 0
K76: 0 | S76: 1 | T76: 1 | AD76: 11 | AF76: =IF(ISNA(VLOOKUP(D76,#REF!,2,FALSE)),"",VLOOKUP(D76,#REF!,2,FALSE)) ->  | AG76: 0 | AH76: 0 | AI76: 0 | AJ76: 0 | AK76: 0 | AL76: 0 | AM76: 0 | AN76: 0 | AO76: 0 | AP76: 0 | AQ76: 0 | AR76: 0 | AS76: 0 | AT76: 0 | AV76: 0 | AX76: 0 | AY76: 0 | AZ76: 0 | BA76: 0 | BB76: 0 | BC76: 0
K77: 0 | S77: 1 | T77: 1 | AD77: 11 | AF77: =IF(ISNA(VLOOKUP(D77,#REF!,2,FALSE)),"",VLOOKUP(D77,#REF!,2,FALSE)) ->  | AG77: 0 | AH77: 0 | AI77: 0 | AJ77: 0 | AK77: 0 | AL77: 0 | AM77: 0 | AN77: 0 | AO77: 0 | AP77: 0 | AQ77: 0 | AR77: 0 | AS77: 0 | AT77: 0 | AV77: 0 | AX77: 0 | AY77: 0 | AZ77: 0 | BA77: 0 | BB77: 0 | BC77: 0
K78: =ROUND(J78*43560*0.5/27,1) -> 0 | Q78: =CHOOSE(S78,$CC$31,$CC$32,$CC$33,$CC$34,$CC$35,$CC$36,$CC$37,$CC$38,$CC$39,$CC$40,$CC$41) ->  | S78: 1 | T78: 1 | AD78: 11 | AF78: =IF(ISNA(VLOOKUP(D78,#REF!,2,FALSE)),"",VLOOKUP(D78,#REF!,2,FALSE)) ->  | AG78: 0 | AH78: 0 | AI78: 0 | AJ78: 0 | AK78: 0 | AL78: 0 | AM78: 0 | AN78: 0 | AO78: 0 | AP78: 0 | AQ78: 0 | AR78: 0 | AS78: 0 | AT78: 0 | AV78: 0 | AX78: 0 | AY78: 0 | AZ78: 0 | BA78: =IF($AX78>0,0,IF($AN78>0,1,0)) -> 0 | BB78: 0 | BC78: 0
K79: 0 | S79: =MIN(T79:AD79) -> 1 | T79: =IF(AND(A79="",D79=""),T$13,"") -> 1 | U79: =IF(AND(B79="",A79<>""),U$13,"") ->  | V79: =IF(AND(C79="",A79<>""),V$13,"") ->  | AD79: =AD$13 -> 11 | AF79: =IF(ISNA(VLOOKUP(D79,#REF!,2,FALSE)),"",VLOOKUP(D79,#REF!,2,FALSE)) ->  | AG79: =IF(Q79=$CC$34,B79,0) -> 0 | AH79: =IF(Q79=$CC$40,B79,IF(B79-AG79-AI79-AK79-AM79-AQ79>0,B79-AG79-AI79-AK79-AM79-AQ79,0)) -> 0 | AI79: =D79 -> 0 | AJ79: =E79 -> 0 | AK79: =IF(M79<>"",M79*0.1,0) -> 0 | AL79: =IF(OR(AJ79>0,AK79>0),1,0) -> 0 | AM79: =J79 -> 0 | AN79: =IF(SUM(G79:H79)>0,B79,0) -> 0 | AO79: =L79*$AJ$5 -> 0 | AP79: =I79*$AJ$6 -> 0 | AQ79: =IF(AN79>0,AN79,IF(SUM(AO79:AP79)+AM79>B79,B79,SUM(AO79:AP79)+AM79)) -> 0 | AR79: =IF(AQ79+SUM(AH79:AK79)+AM79>B79,B79,AQ79+SUM(AH79:AK79)+AM79) -> 0 | AS79: =IF(AR79>0,1,0) -> 0 | AT79: =IF(B79<>"",IF(AR79=0,1,0),0) -> 0 | AV79: =IF(AM79+AP79>B79,B79,AM79+AP79) -> 0 | AX79: =IF(AND($AV79>0,$AN79>0),B79,0) -> 0 | AY79: =IF(AND($AV79>0,$AN79>0),1,0) -> 0 | AZ79: =IF($AX79>0,0,IF($AN79>0,$B79,0)) -> 0 | BA79: 0 | BB79: =IF($AX79>0,0,IF($AV79>0,$AV79,0)) -> 0 | BC79: =IF($AX79>0,0,IF($AV79>0,1,0)) -> 0
K80: 0 | S80: 1 | T80: 1 | AD80: 11 | AF80: =IF(ISNA(VLOOKUP(D80,#REF!,2,FALSE)),"",VLOOKUP(D80,#REF!,2,FALSE)) ->  | AG80: 0 | AH80: 0 | AI80: 0 | AJ80: 0 | AK80: 0 | AL80: 0 | AM80: 0 | AN80: 0 | AO80: 0 | AP80: 0 | AQ80: 0 | AR80: 0 | AS80: 0 | AT80: 0 | AV80: 0 | AX80: 0 | AY80: 0 | AZ80: 0 | BA80: 0 | BB80: 0 | BC80: 0
K81: 0 | S81: 1 | T81: 1 | AD81: 11 | AF81: =IF(ISNA(VLOOKUP(D81,#REF!,2,FALSE)),"",VLOOKUP(D81,#REF!,2,FALSE)) ->  | AG81: 0 | AH81: 0 | AI81: 0 | AJ81: 0 | AK81: 0 | AL81: 0 | AM81: 0 | AN81: 0 | AO81: 0 | AP81: 0 | AQ81: 0 | AR81: 0 | AS81: 0 | AT81: 0 | AV81: 0 | AX81: 0 | AY81: 0 | AZ81: 0 | BA81: 0 | BB81: 0 | BC81: 0
K82: 0 | S82: 1 | T82: 1 | AD82: 11 | AF82: =IF(ISNA(VLOOKUP(D82,#REF!,2,FALSE)),"",VLOOKUP(D82,#REF!,2,FALSE)) ->  | AG82: 0 | AH82: 0 | AI82: 0 | AJ82: 0 | AK82: 0 | AL82: 0 | AM82: 0 | AN82: 0 | AO82: 0 | AP82: 0 | AQ82: 0 | AR82: 0 | AS82: 0 | AT82: 0 | AV82: 0 | AX82: 0 | AY82: 0 | AZ82: 0 | BA82: 0 | BB82: 0 | BC82: 0
K83: 0 | S83: 1 | T83: 1 | AD83: 11 | AF83: =IF(ISNA(VLOOKUP(D83,#REF!,2,FALSE)),"",VLOOKUP(D83,#REF!,2,FALSE)) ->  | AG83: 0 | AH83: 0 | AI83: 0 | AJ83: 0 | AK83: 0 | AL83: 0 | AM83: 0 | AN83: 0 | AO83: 0 | AP83: 0 | AQ83: 0 | AR83: 0 | AS83: 0 | AT83: 0 | AV83: 0 | AX83: 0 | AY83: 0 | AZ83: 0 | BA83: 0 | BB83: 0 | BC83: 0
K84: 0 | S84: 1 | T84: 1 | AD84: 11 | AF84: =IF(ISNA(VLOOKUP(D84,#REF!,2,FALSE)),"",VLOOKUP(D84,#REF!,2,FALSE)) ->  | AG84: 0 | AH84: 0 | AI84: 0 | AJ84: 0 | AK84: 0 | AL84: 0 | AM84: 0 | AN84: 0 | AO84: 0 | AP84: 0 | AQ84: 0 | AR84: 0 | AS84: 0 | AT84: 0 | AV84: 0 | AX84: 0 | AY84: 0 | AZ84: 0 | BA84: 0 | BB84: 0 | BC84: 0
K85: 0 | S85: 1 | T85: 1 | AD85: 11 | AF85: =IF(ISNA(VLOOKUP(D85,#REF!,2,FALSE)),"",VLOOKUP(D85,#REF!,2,FALSE)) ->  | AG85: 0 | AH85: 0 | AI85: 0 | AJ85: 0 | AK85: 0 | AL85: 0 | AM85: 0 | AN85: 0 | AO85: 0 | AP85: 0 | AQ85: 0 | AR85: 0 | AS85: 0 | AT85: 0 | AV85: 0 | AX85: 0 | AY85: 0 | AZ85: 0 | BA85: 0 | BB85: 0 | BC85: 0
K86: 0 | S86: 1 | T86: 1 | AD86: 11 | AF86: =IF(ISNA(VLOOKUP(D86,#REF!,2,FALSE)),"",VLOOKUP(D86,#REF!,2,FALSE)) ->  | AG86: 0 | AH86: 0 | AI86: 0 | AJ86: 0 | AK86: 0 | AL86: 0 | AM86: 0 | AN86: 0 | AO86: 0 | AP86: 0 | AQ86: 0 | AR86: 0 | AS86: 0 | AT86: 0 | AV86: 0 | AX86: 0 | AY86: 0 | AZ86: 0 | BA86: 0 | BB86: 0 | BC86: 0
K87: 0 | S87: 1 | T87: 1 | AD87: 11 | AF87: =IF(ISNA(VLOOKUP(D87,#REF!,2,FALSE)),"",VLOOKUP(D87,#REF!,2,FALSE)) ->  | AG87: 0 | AH87: 0 | AI87: 0 | AJ87: 0 | AK87: 0 | AL87: 0 | AM87: 0 | AN87: 0 | AO87: 0 | AP87: 0 | AQ87: 0 | AR87: 0 | AS87: 0 | AT87: 0 | AV87: 0 | AX87: 0 | AY87: 0 | AZ87: 0 | BA87: 0 | BB87: 0 | BC87: 0
K88: 0 | S88: 1 | T88: 1 | AD88: 11 | AF88: =IF(ISNA(VLOOKUP(D88,#REF!,2,FALSE)),"",VLOOKUP(D88,#REF!,2,FALSE)) ->  | AG88: 0 | AH88: 0 | AI88: 0 | AJ88: 0 | AK88: 0 | AL88: 0 | AM88: 0 | AN88: 0 | AO88: 0 | AP88: 0 | AQ88: 0 | AR88: 0 | AS88: 0 | AT88: 0 | AV88: 0 | AX88: 0 | AY88: 0 | AZ88: 0 | BA88: 0 | BB88: 0 | BC88: 0
K89: 0 | S89: 1 | T89: 1 | AD89: 11 | AF89: =IF(ISNA(VLOOKUP(D89,#REF!,2,FALSE)),"",VLOOKUP(D89,#REF!,2,FALSE)) ->  | AG89: 0 | AH89: 0 | AI89: 0 | AJ89: 0 | AK89: 0 | AL89: 0 | AM89: 0 | AN89: 0 | AO89: 0 | AP89: 0 | AQ89: 0 | AR89: 0 | AS89: 0 | AT89: 0 | AV89: 0 | AX89: 0 | AY89: 0 | AZ89: 0 | BA89: 0 | BB89: 0 | BC89: 0
K90: 0 | S90: 1 | T90: 1 | AD90: 11 | AF90: =IF(ISNA(VLOOKUP(D90,#REF!,2,FALSE)),"",VLOOKUP(D90,#REF!,2,FALSE)) ->  | AG90: 0 | AH90: 0 | AI90: 0 | AJ90: 0 | AK90: 0 | AL90: 0 | AM90: 0 | AN90: 0 | AO90: 0 | AP90: 0 | AQ90: 0 | AR90: 0 | AS90: 0 | AT90: 0 | AV90: 0 | AX90: 0 | AY90: 0 | AZ90: 0 | BA90: 0 | BB90: 0 | BC90: 0
K91: 0 | S91: 1 | T91: 1 | AD91: 11 | AF91: =IF(ISNA(VLOOKUP(D91,#REF!,2,FALSE)),"",VLOOKUP(D91,#REF!,2,FALSE)) ->  | AG91: 0 | AH91: 0 | AI91: 0 | AJ91: 0 | AK91: 0 | AL91: 0 | AM91: 0 | AN91: 0 | AO91: 0 | AP91: 0 | AQ91: 0 | AR91: 0 | AS91: 0 | AT91: 0 | AV91: 0 | AX91: 0 | AY91: 0 | AZ91: 0 | BA91: 0 | BB91: 0 | BC91: 0
K92: 0 | S92: 1 | T92: 1 | AD92: 11 | AF92: =IF(ISNA(VLOOKUP(D92,#REF!,2,FALSE)),"",VLOOKUP(D92,#REF!,2,FALSE)) ->  | AG92: 0 | AH92: 0 | AI92: 0 | AJ92: 0 | AK92: 0 | AL92: 0 | AM92: 0 | AN92: 0 | AO92: 0 | AP92: 0 | AQ92: 0 | AR92: 0 | AS92: 0 | AT92: 0 | AV92: 0 | AX92: 0 | AY92: 0 | AZ92: 0 | BA92: 0 | BB92: 0 | BC92: 0
K93: 0 | S93: 1 | T93: 1 | AD93: 11 | AF93: =IF(ISNA(VLOOKUP(D93,#REF!,2,FALSE)),"",VLOOKUP(D93,#REF!,2,FALSE)) ->  | AG93: 0 | AH93: 0 | AI93: 0 | AJ93: 0 | AK93: 0 | AL93: 0 | AM93: 0 | AN93: 0 | AO93: 0 | AP93: 0 | AQ93: 0 | AR93: 0 | AS93: 0 | AT93: 0 | AV93: 0 | AX93: 0 | AY93: 0 | AZ93: 0 | BA93: 0 | BB93: 0 | BC93: 0
K94: 0 | S94: 1 | T94: 1 | AD94: 11 | AF94: =IF(ISNA(VLOOKUP(D94,#REF!,2,FALSE)),"",VLOOKUP(D94,#REF!,2,FALSE)) ->  | AG94: 0 | AH94: 0 | AI94: 0 | AJ94: 0 | AK94: 0 | AL94: 0 | AM94: 0 | AN94: 0 | AO94: 0 | AP94: 0 | AQ94: 0 | AR94: 0 | AS94: 0 | AT94: 0 | AV94: 0 | AX94: 0 | AY94: 0 | AZ94: 0 | BA94: 0 | BB94: 0 | BC94: 0
K95: 0 | S95: 1 | T95: 1 | AD95: 11 | AF95: =IF(ISNA(VLOOKUP(D95,#REF!,2,FALSE)),"",VLOOKUP(D95,#REF!,2,FALSE)) ->  | AG95: 0 | AH95: 0 | AI95: 0 | AJ95: 0 | AK95: 0 | AL95: 0 | AM95: 0 | AN95: 0 | AO95: 0 | AP95: 0 | AQ95: 0 | AR95: 0 | AS95: 0 | AT95: 0 | AV95: 0 | AX95: 0 | AY95: 0 | AZ95: 0 | BA95: 0 | BB95: 0 | BC95: 0
K96: 0 | S96: 1 | T96: 1 | AD96: 11 | AF96: =IF(ISNA(VLOOKUP(D96,#REF!,2,FALSE)),"",VLOOKUP(D96,#REF!,2,FALSE)) ->  | AG96: 0 | AH96: 0 | AI96: 0 | AJ96: 0 | AK96: 0 | AL96: 0 | AM96: 0 | AN96: 0 | AO96: 0 | AP96: 0 | AQ96: 0 | AR96: 0 | AS96: 0 | AT96: 0 | AV96: 0 | AX96: 0 | AY96: 0 | AZ96: 0 | BA96: 0 | BB96: 0 | BC96: 0
K97: 0 | S97: 1 | T97: 1 | AD97: 11 | AF97: =IF(ISNA(VLOOKUP(D97,#REF!,2,FALSE)),"",VLOOKUP(D97,#REF!,2,FALSE)) ->  | AG97: 0 | AH97: 0 | AI97: 0 | AJ97: 0 | AK97: 0 | AL97: 0 | AM97: 0 | AN97: 0 | AO97: 0 | AP97: 0 | AQ97: 0 | AR97: 0 | AS97: 0 | AT97: 0 | AV97: 0 | AX97: 0 | AY97: 0 | AZ97: 0 | BA97: 0 | BB97: 0 | BC97: 0
K98: 0 | S98: 1 | T98: 1 | AD98: 11 | AF98: =IF(ISNA(VLOOKUP(D98,#REF!,2,FALSE)),"",VLOOKUP(D98,#REF!,2,FALSE)) ->  | AG98: 0 | AH98: 0 | AI98: 0 | AJ98: 0 | AK98: 0 | AL98: 0 | AM98: 0 | AN98: 0 | AO98: 0 | AP98: 0 | AQ98: 0 | AR98: 0 | AS98: 0 | AT98: 0 | AV98: 0 | AX98: 0 | AY98: 0 | AZ98: 0 | BA98: 0 | BB98: 0 | BC98: 0
K99: 0 | S99: 1 | T99: 1 | W99: =IF(AND(AND(AND(SUM(D99:M99)+P99=0,AND(N99<>"Yes",O99<>"Yes")),F99<>"yes"),A99<>""),W$13,"") ->  | X99: =IF(AND(A99<>"",(D99+E99)>B99),X$13,"") ->  | AB99: =IF(AND(SUM(E99:P99)>0,F99="yes",A99<>""),AB$13,"") ->  | AC99: =IF(AND(F99="yes",A99<>""),AC$13,"") ->  | AD99: 11 | AF99: =IF(ISNA(VLOOKUP(D99,#REF!,2,FALSE)),"",VLOOKUP(D99,#REF!,2,FALSE)) ->  | AG99: 0 | AH99: 0 | AI99: 0 | AJ99: 0 | AK99: 0 | AL99: 0 | AM99: 0 | AN99: 0 | AO99: 0 | AP99: 0 | AQ99: 0 | AR99: 0 | AS99: 0 | AT99: 0 | AV99: 0 | AX99: 0 | AY99: 0 | AZ99: 0 | BA99: 0 | BB99: 0 | BC99: 0
K100: 0 | S100: 1 | T100: 1 | AD100: 11 | AF100: =IF(ISNA(VLOOKUP(D100,#REF!,2,FALSE)),"",VLOOKUP(D100,#REF!,2,FALSE)) ->  | AG100: 0 | AH100: 0 | AI100: 0 | AJ100: 0 | AK100: 0 | AL100: 0 | AM100: 0 | AN100: 0 | AO100: 0 | AP100: 0 | AQ100: 0 | AR100: 0 | AS100: 0 | AT100: 0 | AV100: 0 | AX100: 0 | AY100: 0 | AZ100: 0 | BA100: 0 | BB100: 0 | BC100: 0
K101: 0 | S101: 1 | T101: 1 | AD101: 11 | AF101: =IF(ISNA(VLOOKUP(D101,#REF!,2,FALSE)),"",VLOOKUP(D101,#REF!,2,FALSE)) ->  | AG101: 0 | AH101: 0 | AI101: 0 | AJ101: 0 | AK101: 0 | AL101: 0 | AM101: 0 | AN101: 0 | AO101: 0 | AP101: 0 | AQ101: 0 | AR101: 0 | AS101: 0 | AT101: 0 | AV101: 0 | AX101: 0 | AY101: 0 | AZ101: 0 | BA101: 0 | BB101: 0 | BC101: 0
K102: 0 | S102: 1 | T102: 1 | AD102: 11 | AF102: =IF(ISNA(VLOOKUP(D102,#REF!,2,FALSE)),"",VLOOKUP(D102,#REF!,2,FALSE)) ->  | AG102: 0 | AH102: 0 | AI102: 0 | AJ102: 0 | AK102: 0 | AL102: 0 | AM102: 0 | AN102: 0 | AO102: 0 | AP102: 0 | AQ102: 0 | AR102: 0 | AS102: 0 | AT102: 0 | AV102: 0 | AX102: 0 | AY102: 0 | AZ102: 0 | BA102: 0 | BB102: 0 | BC102: 0
K103: 0 | S103: 1 | T103: 1 | AD103: 11 | AF103: =IF(ISNA(VLOOKUP(D103,#REF!,2,FALSE)),"",VLOOKUP(D103,#REF!,2,FALSE)) ->  | AG103: 0 | AH103: 0 | AI103: 0 | AJ103: 0 | AK103: 0 | AL103: 0 | AM103: 0 | AN103: 0 | AO103: 0 | AP103: 0 | AQ103: 0 | AR103: 0 | AS103: 0 | AT103: 0 | AV103: 0 | AX103: 0 | AY103: 0 | AZ103: 0 | BA103: 0 | BB103: 0 | BC103: 0
K104: 0 | S104: 1 | T104: 1 | AD104: 11 | AF104: =IF(ISNA(VLOOKUP(D104,#REF!,2,FALSE)),"",VLOOKUP(D104,#REF!,2,FALSE)) ->  | AG104: 0 | AH104: 0 | AI104: 0 | AJ104: 0 | AK104: 0 | AL104: 0 | AM104: 0 | AN104: 0 | AO104: 0 | AP104: 0 | AQ104: 0 | AR104: 0 | AS104: 0 | AT104: 0 | AV104: 0 | AX104: 0 | AY104: 0 | AZ104: 0 | BA104: 0 | BB104: 0 | BC104: 0
K105: 0 | S105: 1 | T105: 1 | AD105: 11 | AF105: =IF(ISNA(VLOOKUP(D105,#REF!,2,FALSE)),"",VLOOKUP(D105,#REF!,2,FALSE)) ->  | AG105: 0 | AH105: 0 | AI105: 0 | AJ105: 0 | AK105: 0 | AL105: 0 | AM105: 0 | AN105: 0 | AO105: 0 | AP105: 0 | AQ105: 0 | AR105: 0 | AS105: 0 | AT105: 0 | AV105: 0 | AX105: 0 | AY105: 0 | AZ105: 0 | BA105: 0 | BB105: 0 | BC105: 0
K106: 0 | S106: 1 | T106: 1 | AD106: 11 | AF106: =IF(ISNA(VLOOKUP(D106,#REF!,2,FALSE)),"",VLOOKUP(D106,#REF!,2,FALSE)) ->  | AG106: 0 | AH106: 0 | AI106: 0 | AJ106: 0 | AK106: 0 | AL106: 0 | AM106: 0 | AN106: 0 | AO106: 0 | AP106: 0 | AQ106: 0 | AR106: 0 | AS106: 0 | AT106: 0 | AV106: 0 | AX106: 0 | AY106: 0 | AZ106: 0 | BA106: 0 | BB106: 0 | BC106: 0
K107: 0 | S107: 1 | T107: 1 | AD107: 11 | AF107: =IF(ISNA(VLOOKUP(D107,#REF!,2,FALSE)),"",VLOOKUP(D107,#REF!,2,FALSE)) ->  | AG107: 0 | AH107: 0 | AI107: 0 | AJ107: 0 | AK107: 0 | AL107: 0 | AM107: 0 | AN107: 0 | AO107: 0 | AP107: 0 | AQ107: 0 | AR107: 0 | AS107: 0 | AT107: 0 | AV107: 0 | AX107: 0 | AY107: 0 | AZ107: 0 | BA107: 0 | BB107: 0 | BC107: 0
K108: 0 | S108: 1 | T108: 1 | AD108: 11 | AF108: =IF(ISNA(VLOOKUP(D108,#REF!,2,FALSE)),"",VLOOKUP(D108,#REF!,2,FALSE)) ->  | AG108: 0 | AH108: 0 | AI108: 0 | AJ108: 0 | AK108: 0 | AL108: 0 | AM108: 0 | AN108: 0 | AO108: 0 | AP108: 0 | AQ108: 0 | AR108: 0 | AS108: 0 | AT108: 0 | AV108: 0 | AX108: 0 | AY108: 0 | AZ108: 0 | BA108: 0 | BB108: 0 | BC108: 0
K109: 0 | S109: 1 | T109: 1 | AD109: 11 | AF109: =IF(ISNA(VLOOKUP(D109,#REF!,2,FALSE)),"",VLOOKUP(D109,#REF!,2,FALSE)) ->  | AG109: 0 | AH109: 0 | AI109: 0 | AJ109: 0 | AK109: 0 | AL109: 0 | AM109: 0 | AN109: 0 | AO109: 0 | AP109: 0 | AQ109: 0 | AR109: 0 | AS109: 0 | AT109: 0 | AV109: 0 | AX109: 0 | AY109: 0 | AZ109: 0 | BA109: 0 | BB109: 0 | BC109: 0
K110: 0 | Q110: =CHOOSE(S110,$CC$31,$CC$32,$CC$33,$CC$34,$CC$35,$CC$36,$CC$37,$CC$38,$CC$39,$CC$40,$CC$41) ->  | S110: 1 | T110: 1 | AD110: 11 | AF110: =IF(ISNA(VLOOKUP(D110,#REF!,2,FALSE)),"",VLOOKUP(D110,#REF!,2,FALSE)) ->  | AG110: 0 | AH110: 0 | AI110: 0 | AJ110: 0 | AK110: 0 | AL110: 0 | AM110: 0 | AN110: 0 | AO110: 0 | AP110: 0 | AQ110: 0 | AR110: 0 | AS110: 0 | AT110: 0 | AV110: 0 | AX110: 0 | AY110: 0 | AZ110: 0 | BA110: 0 | BB110: 0 | BC110: 0
K111: 0 | S111: 1 | T111: 1 | AD111: 11 | AF111: =IF(ISNA(VLOOKUP(D111,#REF!,2,FALSE)),"",VLOOKUP(D111,#REF!,2,FALSE)) ->  | AG111: 0 | AH111: 0 | AI111: 0 | AJ111: 0 | AK111: 0 | AL111: 0 | AM111: 0 | AN111: 0 | AO111: 0 | AP111: 0 | AQ111: 0 | AR111: 0 | AS111: 0 | AT111: 0 | AV111: 0 | AX111: 0 | AY111: 0 | AZ111: 0 | BA111: 0 | BB111: 0 | BC111: 0
K112: 0 | S112: 1 | T112: 1 | AD112: 11 | AF112: =IF(ISNA(VLOOKUP(D112,#REF!,2,FALSE)),"",VLOOKUP(D112,#REF!,2,FALSE)) ->  | AG112: 0 | AH112: 0 | AI112: 0 | AJ112: 0 | AK112: 0 | AL112: 0 | AM112: 0 | AN112: 0 | AO112: 0 | AP112: 0 | AQ112: 0 | AR112: 0 | AS112: 0 | AT112: 0 | AV112: 0 | AX112: 0 | AY112: 0 | AZ112: 0 | BA112: 0 | BB112: 0 | BC112: 0
K113: 0 | S113: 1 | T113: 1 | AD113: 11 | AF113: =IF(ISNA(VLOOKUP(D113,#REF!,2,FALSE)),"",VLOOKUP(D113,#REF!,2,FALSE)) ->  | AG113: 0 | AH113: 0 | AI113: 0 | AJ113: 0 | AK113: 0 | AL113: 0 | AM113: 0 | AN113: 0 | AO113: 0 | AP113: 0 | AQ113: 0 | AR113: 0 | AS113: 0 | AT113: 0 | AV113: 0 | AX113: 0 | AY113: 0 | AZ113: 0 | BA113: 0 | BB113: 0 | BC113: 0
K114: 0 | S114: 1 | T114: 1 | AD114: 11 | AF114: =IF(ISNA(VLOOKUP(D114,#REF!,2,FALSE)),"",VLOOKUP(D114,#REF!,2,FALSE)) ->  | AG114: 0 | AH114: 0 | AI114: 0 | AJ114: 0 | AK114: 0 | AL114: 0 | AM114: 0 | AN114: 0 | AO114: 0 | AP114: 0 | AQ114: 0 | AR114: 0 | AS114: 0 | AT114: 0 | AV114: 0 | AX114: 0 | AY114: 0 | AZ114: 0 | BA114: 0 | BB114: 0 | BC114: 0
K115: 0 | S115: 1 | T115: 1 | AD115: 11 | AF115: =IF(ISNA(VLOOKUP(D115,#REF!,2,FALSE)),"",VLOOKUP(D115,#REF!,2,FALSE)) ->  | AG115: 0 | AH115: 0 | AI115: 0 | AJ115: 0 | AK115: 0 | AL115: 0 | AM115: 0 | AN115: 0 | AO115: 0 | AP115: 0 | AQ115: 0 | AR115: 0 | AS115: 0 | AT115: 0 | AV115: 0 | AX115: 0 | AY115: 0 | AZ115: 0 | BA115: 0 | BB115: 0 | BC115: 0
K116: 0 | S116: 1 | T116: 1 | AD116: 11 | AF116: =IF(ISNA(VLOOKUP(D116,#REF!,2,FALSE)),"",VLOOKUP(D116,#REF!,2,FALSE)) ->  | AG116: 0 | AH116: 0 | AI116: 0 | AJ116: 0 | AK116: 0 | AL116: 0 | AM116: 0 | AN116: 0 | AO116: 0 | AP116: 0 | AQ116: 0 | AR116: 0 | AS116: 0 | AT116: 0 | AV116: 0 | AX116: 0 | AY116: 0 | AZ116: 0 | BA116: 0 | BB116: 0 | BC116: 0
K117: 0 | S117: 1 | T117: 1 | AD117: 11 | AF117: =IF(ISNA(VLOOKUP(D117,#REF!,2,FALSE)),"",VLOOKUP(D117,#REF!,2,FALSE)) ->  | AG117: 0 | AH117: 0 | AI117: 0 | AJ117: 0 | AK117: 0 | AL117: 0 | AM117: 0 | AN117: 0 | AO117: 0 | AP117: 0 | AQ117: 0 | AR117: 0 | AS117: 0 | AT117: 0 | AV117: 0 | AX117: 0 | AY117: 0 | AZ117: 0 | BA117: 0 | BB117: 0 | BC117: 0
K118: 0 | S118: 1 | T118: 1 | AD118: 11 | AF118: =IF(ISNA(VLOOKUP(D118,#REF!,2,FALSE)),"",VLOOKUP(D118,#REF!,2,FALSE)) ->  | AG118: 0 | AH118: 0 | AI118: 0 | AJ118: 0 | AK118: 0 | AL118: 0 | AM118: 0 | AN118: 0 | AO118: 0 | AP118: 0 | AQ118: 0 | AR118: 0 | AS118: 0 | AT118: 0 | AV118: 0 | AX118: 0 | AY118: 0 | AZ118: 0 | BA118: 0 | BB118: 0 | BC118: 0
K119: 0 | S119: 1 | T119: 1 | AD119: 11 | AF119: =IF(ISNA(VLOOKUP(D119,#REF!,2,FALSE)),"",VLOOKUP(D119,#REF!,2,FALSE)) ->  | AG119: 0 | AH119: 0 | AI119: 0 | AJ119: 0 | AK119: 0 | AL119: 0 | AM119: 0 | AN119: 0 | AO119: 0 | AP119: 0 | AQ119: 0 | AR119: 0 | AS119: 0 | AT119: 0 | AV119: 0 | AX119: 0 | AY119: 0 | AZ119: 0 | BA119: 0 | BB119: 0 | BC119: 0
K120: 0 | S120: 1 | T120: 1 | AD120: 11 | AF120: =IF(ISNA(VLOOKUP(D120,#REF!,2,FALSE)),"",VLOOKUP(D120,#REF!,2,FALSE)) ->  | AG120: 0 | AH120: 0 | AI120: 0 | AJ120: 0 | AK120: 0 | AL120: 0 | AM120: 0 | AN120: 0 | AO120: 0 | AP120: 0 | AQ120: 0 | AR120: 0 | AS120: 0 | AT120: 0 | AV120: 0 | AX120: 0 | AY120: 0 | AZ120: 0 | BA120: 0 | BB120: 0 | BC120: 0
K121: 0 | S121: 1 | T121: 1 | AD121: 11 | AF121: =IF(ISNA(VLOOKUP(D121,#REF!,2,FALSE)),"",VLOOKUP(D121,#REF!,2,FALSE)) ->  | AG121: 0 | AH121: 0 | AI121: 0 | AJ121: 0 | AK121: 0 | AL121: 0 | AM121: 0 | AN121: 0 | AO121: 0 | AP121: 0 | AQ121: 0 | AR121: 0 | AS121: 0 | AT121: 0 | AV121: 0 | AX121: 0 | AY121: 0 | AZ121: 0 | BA121: 0 | BB121: 0 | BC121: 0
K122: 0 | S122: 1 | T122: 1 | AD122: 11 | AF122: =IF(ISNA(VLOOKUP(D122,#REF!,2,FALSE)),"",VLOOKUP(D122,#REF!,2,FALSE)) ->  | AG122: 0 | AH122: 0 | AI122: 0 | AJ122: 0 | AK122: 0 | AL122: 0 | AM122: 0 | AN122: 0 | AO122: 0 | AP122: 0 | AQ122: 0 | AR122: 0 | AS122: 0 | AT122: 0 | AV122: 0 | AX122: 0 | AY122: 0 | AZ122: 0 | BA122: 0 | BB122: 0 | BC122: 0
K123: 0 | S123: 1 | T123: 1 | AD123: 11 | AF123: =IF(ISNA(VLOOKUP(D123,#REF!,2,FALSE)),"",VLOOKUP(D123,#REF!,2,FALSE)) ->  | AG123: 0 | AH123: 0 | AI123: 0 | AJ123: 0 | AK123: 0 | AL123: 0 | AM123: 0 | AN123: 0 | AO123: 0 | AP123: 0 | AQ123: 0 | AR123: 0 | AS123: 0 | AT123: 0 | AV123: 0 | AX123: 0 | AY123: 0 | AZ123: 0 | BA123: 0 | BB123: 0 | BC123: 0
K124: 0 | S124: 1 | T124: 1 | AD124: 11 | AF124: =IF(ISNA(VLOOKUP(D124,#REF!,2,FALSE)),"",VLOOKUP(D124,#REF!,2,FALSE)) ->  | AG124: 0 | AH124: 0 | AI124: 0 | AJ124: 0 | AK124: 0 | AL124: 0 | AM124: 0 | AN124: 0 | AO124: 0 | AP124: 0 | AQ124: 0 | AR124: 0 | AS124: 0 | AT124: 0 | AV124: 0 | AX124: 0 | AY124: 0 | AZ124: 0 | BA124: 0 | BB124: 0 | BC124: 0
K125: 0 | S125: 1 | T125: 1 | AD125: 11 | AF125: =IF(ISNA(VLOOKUP(D125,#REF!,2,FALSE)),"",VLOOKUP(D125,#REF!,2,FALSE)) ->  | AG125: 0 | AH125: 0 | AI125: 0 | AJ125: 0 | AK125: 0 | AL125: 0 | AM125: 0 | AN125: 0 | AO125: 0 | AP125: 0 | AQ125: 0 | AR125: 0 | AS125: 0 | AT125: 0 | AV125: 0 | AX125: 0 | AY125: 0 | AZ125: 0 | BA125: 0 | BB125: 0 | BC125: 0
K126: 0 | S126: 1 | T126: 1 | AD126: 11 | AF126: =IF(ISNA(VLOOKUP(D126,#REF!,2,FALSE)),"",VLOOKUP(D126,#REF!,2,FALSE)) ->  | AG126: 0 | AH126: 0 | AI126: 0 | AJ126: 0 | AK126: 0 | AL126: 0 | AM126: 0 | AN126: 0 | AO126: 0 | AP126: 0 | AQ126: 0 | AR126: 0 | AS126: 0 | AT126: 0 | AV126: 0 | AX126: 0 | AY126: 0 | AZ126: 0 | BA126: 0 | BB126: 0 | BC126: 0
K127: 0 | S127: 1 | T127: 1 | AD127: 11 | AF127: =IF(ISNA(VLOOKUP(D127,#REF!,2,FALSE)),"",VLOOKUP(D127,#REF!,2,FALSE)) ->  | AG127: 0 | AH127: 0 | AI127: 0 | AJ127: 0 | AK127: 0 | AL127: 0 | AM127: 0 | AN127: 0 | AO127: 0 | AP127: 0 | AQ127: 0 | AR127: 0 | AS127: 0 | AT127: 0 | AV127: 0 | AX127: 0 | AY127: 0 | AZ127: 0 | BA127: 0 | BB127: 0 | BC127: 0
K128: 0 | S128: 1 | T128: 1 | AD128: 11 | AF128: =IF(ISNA(VLOOKUP(D128,#REF!,2,FALSE)),"",VLOOKUP(D128,#REF!,2,FALSE)) ->  | AG128: 0 | AH128: 0 | AI128: 0 | AJ128: 0 | AK128: 0 | AL128: 0 | AM128: 0 | AN128: 0 | AO128: 0 | AP128: 0 | AQ128: 0 | AR128: 0 | AS128: 0 | AT128: 0 | AV128: 0 | AX128: 0 | AY128: 0 | AZ128: 0 | BA128: 0 | BB128: 0 | BC128: 0
K129: 0 | S129: 1 | T129: 1 | AD129: 11 | AF129: =IF(ISNA(VLOOKUP(D129,#REF!,2,FALSE)),"",VLOOKUP(D129,#REF!,2,FALSE)) ->  | AG129: 0 | AH129: 0 | AI129: 0 | AJ129: 0 | AK129: 0 | AL129: 0 | AM129: 0 | AN129: 0 | AO129: 0 | AP129: 0 | AQ129: 0 | AR129: 0 | AS129: 0 | AT129: 0 | AV129: 0 | AX129: 0 | AY129: 0 | AZ129: 0 | BA129: 0 | BB129: 0 | BC129: 0
K130: 0 | S130: 1 | T130: 1 | AD130: 11 | AF130: =IF(ISNA(VLOOKUP(D130,#REF!,2,FALSE)),"",VLOOKUP(D130,#REF!,2,FALSE)) ->  | AG130: 0 | AH130: 0 | AI130: 0 | AJ130: 0 | AK130: 0 | AL130: 0 | AM130: 0 | AN130: 0 | AO130: 0 | AP130: 0 | AQ130: 0 | AR130: 0 | AS130: 0 | AT130: 0 | AV130: 0 | AX130: 0 | AY130: 0 | AZ130: 0 | BA130: 0 | BB130: 0 | BC130: 0
K131: 0 | S131: 1 | T131: 1 | AD131: 11 | AF131: =IF(ISNA(VLOOKUP(D131,#REF!,2,FALSE)),"",VLOOKUP(D131,#REF!,2,FALSE)) ->  | AG131: 0 | AH131: 0 | AI131: 0 | AJ131: 0 | AK131: 0 | AL131: 0 | AM131: 0 | AN131: 0 | AO131: 0 | AP131: 0 | AQ131: 0 | AR131: 0 | AS131: 0 | AT131: 0 | AV131: 0 | AX131: 0 | AY131: 0 | AZ131: 0 | BA131: 0 | BB131: 0 | BC131: 0
K132: 0 | S132: 1 | T132: 1 | AD132: 11 | AF132: =IF(ISNA(VLOOKUP(D132,#REF!,2,FALSE)),"",VLOOKUP(D132,#REF!,2,FALSE)) ->  | AG132: 0 | AH132: 0 | AI132: 0 | AJ132: 0 | AK132: 0 | AL132: 0 | AM132: 0 | AN132: 0 | AO132: 0 | AP132: 0 | AQ132: 0 | AR132: 0 | AS132: 0 | AT132: 0 | AV132: 0 | AX132: 0 | AY132: 0 | AZ132: 0 | BA132: 0 | BB132: 0 | BC132: 0
K133: 0 | S133: 1 | T133: 1 | AD133: 11 | AF133: =IF(ISNA(VLOOKUP(D133,#REF!,2,FALSE)),"",VLOOKUP(D133,#REF!,2,FALSE)) ->  | AG133: 0 | AH133: 0 | AI133: 0 | AJ133: 0 | AK133: 0 | AL133: 0 | AM133: 0 | AN133: 0 | AO133: 0 | AP133: 0 | AQ133: 0 | AR133: 0 | AS133: 0 | AT133: 0 | AV133: 0 | AX133: 0 | AY133: 0 | AZ133: 0 | BA133: 0 | BB133: 0 | BC133: 0
K134: 0 | S134: 1 | T134: 1 | AD134: 11 | AF134: =IF(ISNA(VLOOKUP(D134,#REF!,2,FALSE)),"",VLOOKUP(D134,#REF!,2,FALSE)) ->  | AG134: 0 | AH134: 0 | AI134: 0 | AJ134: 0 | AK134: 0 | AL134: 0 | AM134: 0 | AN134: 0 | AO134: 0 | AP134: 0 | AQ134: 0 | AR134: 0 | AS134: 0 | AT134: 0 | AV134: 0 | AX134: 0 | AY134: 0 | AZ134: 0 | BA134: 0 | BB134: 0 | BC134: 0
K135: 0 | S135: 1 | T135: 1 | AD135: 11 | AF135: =IF(ISNA(VLOOKUP(D135,#REF!,2,FALSE)),"",VLOOKUP(D135,#REF!,2,FALSE)) ->  | AG135: 0 | AH135: 0 | AI135: 0 | AJ135: 0 | AK135: 0 | AL135: 0 | AM135: 0 | AN135: 0 | AO135: 0 | AP135: 0 | AQ135: 0 | AR135: 0 | AS135: 0 | AT135: 0 | AV135: 0 | AX135: 0 | AY135: 0 | AZ135: 0 | BA135: 0 | BB135: 0 | BC135: 0
K136: 0 | S136: 1 | T136: 1 | AD136: 11 | AF136: =IF(ISNA(VLOOKUP(D136,#REF!,2,FALSE)),"",VLOOKUP(D136,#REF!,2,FALSE)) ->  | AG136: 0 | AH136: 0 | AI136: 0 | AJ136: 0 | AK136: 0 | AL136: 0 | AM136: 0 | AN136: 0 | AO136: 0 | AP136: 0 | AQ136: 0 | AR136: 0 | AS136: 0 | AT136: 0 | AV136: 0 | AX136: 0 | AY136: 0 | AZ136: 0 | BA136: 0 | BB136: 0 | BC136: 0
K137: 0 | S137: 1 | T137: 1 | AD137: 11 | AF137: =IF(ISNA(VLOOKUP(D137,#REF!,2,FALSE)),"",VLOOKUP(D137,#REF!,2,FALSE)) ->  | AG137: 0 | AH137: 0 | AI137: 0 | AJ137: 0 | AK137: 0 | AL137: 0 | AM137: 0 | AN137: 0 | AO137: 0 | AP137: 0 | AQ137: 0 | AR137: 0 | AS137: 0 | AT137: 0 | AV137: 0 | AX137: 0 | AY137: 0 | AZ137: 0 | BA137: 0 | BB137: 0 | BC137: 0
K138: 0 | S138: 1 | T138: 1 | AD138: 11 | AF138: =IF(ISNA(VLOOKUP(D138,#REF!,2,FALSE)),"",VLOOKUP(D138,#REF!,2,FALSE)) ->  | AG138: 0 | AH138: 0 | AI138: 0 | AJ138: 0 | AK138: 0 | AL138: 0 | AM138: 0 | AN138: 0 | AO138: 0 | AP138: 0 | AQ138: 0 | AR138: 0 | AS138: 0 | AT138: 0 | AV138: 0 | AX138: 0 | AY138: 0 | AZ138: 0 | BA138: 0 | BB138: 0 | BC138: 0
K139: 0 | S139: 1 | T139: 1 | AD139: 11 | AF139: =IF(ISNA(VLOOKUP(D139,#REF!,2,FALSE)),"",VLOOKUP(D139,#REF!,2,FALSE)) ->  | AG139: 0 | AH139: 0 | AI139: 0 | AJ139: 0 | AK139: 0 | AL139: 0 | AM139: 0 | AN139: 0 | AO139: 0 | AP139: 0 | AQ139: 0 | AR139: 0 | AS139: 0 | AT139: 0 | AV139: 0 | AX139: 0 | AY139: 0 | AZ139: 0 | BA139: 0 | BB139: 0 | BC139: 0
K140: 0 | S140: 1 | T140: 1 | AD140: 11 | AF140: =IF(ISNA(VLOOKUP(D140,#REF!,2,FALSE)),"",VLOOKUP(D140,#REF!,2,FALSE)) ->  | AG140: 0 | AH140: 0 | AI140: 0 | AJ140: 0 | AK140: 0 | AL140: 0 | AM140: 0 | AN140: 0 | AO140: 0 | AP140: 0 | AQ140: 0 | AR140: 0 | AS140: 0 | AT140: 0 | AV140: 0 | AX140: 0 | AY140: 0 | AZ140: 0 | BA140: 0 | BB140: 0 | BC140: 0
K141: 0 | S141: 1 | T141: 1 | AD141: 11 | AF141: =IF(ISNA(VLOOKUP(D141,#REF!,2,FALSE)),"",VLOOKUP(D141,#REF!,2,FALSE)) ->  | AG141: 0 | AH141: 0 | AI141: 0 | AJ141: 0 | AK141: 0 | AL141: 0 | AM141: 0 | AN141: 0 | AO141: 0 | AP141: 0 | AQ141: 0 | AR141: 0 | AS141: 0 | AT141: 0 | AV141: 0 | AX141: 0 | AY141: 0 | AZ141: 0 | BA141: 0 | BB141: 0 | BC141: 0
K142: =ROUND(J142*43560*0.5/27,1) -> 0 | Q142: =CHOOSE(S142,$CC$31,$CC$32,$CC$33,$CC$34,$CC$35,$CC$36,$CC$37,$CC$38,$CC$39,$CC$40,$CC$41) ->  | S142: 1 | T142: 1 | AD142: 11 | AF142: =IF(ISNA(VLOOKUP(D142,#REF!,2,FALSE)),"",VLOOKUP(D142,#REF!,2,FALSE)) ->  | AG142: 0 | AH142: 0 | AI142: 0 | AJ142: 0 | AK142: 0 | AL142: 0 | AM142: 0 | AN142: 0 | AO142: 0 | AP142: 0 | AQ142: 0 | AR142: 0 | AS142: 0 | AT142: 0 | AV142: 0 | AX142: 0 | AY142: 0 | AZ142: 0 | BA142: =IF($AX142>0,0,IF($AN142>0,1,0)) -> 0 | BB142: 0 | BC142: 0
K143: 0 | S143: =MIN(T143:AD143) -> 1 | T143: =IF(AND(A143="",D143=""),T$13,"") -> 1 | U143: =IF(AND(B143="",A143<>""),U$13,"") ->  | V143: =IF(AND(C143="",A143<>""),V$13,"") ->  | AD143: =AD$13 -> 11 | AF143: =IF(ISNA(VLOOKUP(D143,#REF!,2,FALSE)),"",VLOOKUP(D143,#REF!,2,FALSE)) ->  | AG143: =IF(Q143=$CC$34,B143,0) -> 0 | AH143: =IF(Q143=$CC$40,B143,IF(B143-AG143-AI143-AK143-AM143-AQ143>0,B143-AG143-AI143-AK143-AM143-AQ143,0)) -> 0 | AI143: =D143 -> 0 | AJ143: =E143 -> 0 | AK143: =IF(M143<>"",M143*0.1,0) -> 0 | AL143: =IF(OR(AJ143>0,AK143>0),1,0) -> 0 | AM143: =J143 -> 0 | AN143: =IF(SUM(G143:H143)>0,B143,0) -> 0 | AO143: =L143*$AJ$5 -> 0 | AP143: =I143*$AJ$6 -> 0 | AQ143: =IF(AN143>0,AN143,IF(SUM(AO143:AP143)+AM143>B143,B143,SUM(AO143:AP143)+AM143)) -> 0 | AR143: =IF(AQ143+SUM(AH143:AK143)+AM143>B143,B143,AQ143+SUM(AH143:AK143)+AM143) -> 0 | AS143: =IF(AR143>0,1,0) -> 0 | AT143: =IF(B143<>"",IF(AR143=0,1,0),0) -> 0 | AV143: =IF(AM143+AP143>B143,B143,AM143+AP143) -> 0 | AX143: =IF(AND($AV143>0,$AN143>0),B143,0) -> 0 | AY143: =IF(AND($AV143>0,$AN143>0),1,0) -> 0 | AZ143: =IF($AX143>0,0,IF($AN143>0,$B143,0)) -> 0 | BA143: 0 | BB143: =IF($AX143>0,0,IF($AV143>0,$AV143,0)) -> 0 | BC143: =IF($AX143>0,0,IF($AV143>0,1,0)) -> 0
K144: 0 | S144: 1 | T144: 1 | AD144: 11 | AF144: =IF(ISNA(VLOOKUP(D144,#REF!,2,FALSE)),"",VLOOKUP(D144,#REF!,2,FALSE)) ->  | AG144: 0 | AH144: 0 | AI144: 0 | AJ144: 0 | AK144: 0 | AL144: 0 | AM144: 0 | AN144: 0 | AO144: 0 | AP144: 0 | AQ144: 0 | AR144: 0 | AS144: 0 | AT144: 0 | AV144: 0 | AX144: 0 | AY144: 0 | AZ144: 0 | BA144: 0 | BB144: 0 | BC144: 0
K145: 0 | S145: 1 | T145: 1 | AD145: 11 | AF145: =IF(ISNA(VLOOKUP(D145,#REF!,2,FALSE)),"",VLOOKUP(D145,#REF!,2,FALSE)) ->  | AG145: 0 | AH145: 0 | AI145: 0 | AJ145: 0 | AK145: 0 | AL145: 0 | AM145: 0 | AN145: 0 | AO145: 0 | AP145: 0 | AQ145: 0 | AR145: 0 | AS145: 0 | AT145: 0 | AV145: 0 | AX145: 0 | AY145: 0 | AZ145: 0 | BA145: 0 | BB145: 0 | BC145: 0
K146: 0 | S146: 1 | T146: 1 | AD146: 11 | AF146: =IF(ISNA(VLOOKUP(D146,#REF!,2,FALSE)),"",VLOOKUP(D146,#REF!,2,FALSE)) ->  | AG146: 0 | AH146: 0 | AI146: 0 | AJ146: 0 | AK146: 0 | AL146: 0 | AM146: 0 | AN146: 0 | AO146: 0 | AP146: 0 | AQ146: 0 | AR146: 0 | AS146: 0 | AT146: 0 | AV146: 0 | AX146: 0 | AY146: 0 | AZ146: 0 | BA146: 0 | BB146: 0 | BC146: 0
K147: 0 | S147: 1 | T147: 1 | AD147: 11 | AF147: =IF(ISNA(VLOOKUP(D147,#REF!,2,FALSE)),"",VLOOKUP(D147,#REF!,2,FALSE)) ->  | AG147: 0 | AH147: 0 | AI147: 0 | AJ147: 0 | AK147: 0 | AL147: 0 | AM147: 0 | AN147: 0 | AO147: 0 | AP147: 0 | AQ147: 0 | AR147: 0 | AS147: 0 | AT147: 0 | AV147: 0 | AX147: 0 | AY147: 0 | AZ147: 0 | BA147: 0 | BB147: 0 | BC147: 0
K148: 0 | S148: 1 | T148: 1 | AD148: 11 | AF148: =IF(ISNA(VLOOKUP(D148,#REF!,2,FALSE)),"",VLOOKUP(D148,#REF!,2,FALSE)) ->  | AG148: 0 | AH148: 0 | AI148: 0 | AJ148: 0 | AK148: 0 | AL148: 0 | AM148: 0 | AN148: 0 | AO148: 0 | AP148: 0 | AQ148: 0 | AR148: 0 | AS148: 0 | AT148: 0 | AV148: 0 | AX148: 0 | AY148: 0 | AZ148: 0 | BA148: 0 | BB148: 0 | BC148: 0
K149: 0 | S149: 1 | T149: 1 | AD149: 11 | AF149: =IF(ISNA(VLOOKUP(D149,#REF!,2,FALSE)),"",VLOOKUP(D149,#REF!,2,FALSE)) ->  | AG149: 0 | AH149: 0 | AI149: 0 | AJ149: 0 | AK149: 0 | AL149: 0 | AM149: 0 | AN149: 0 | AO149: 0 | AP149: 0 | AQ149: 0 | AR149: 0 | AS149: 0 | AT149: 0 | AV149: 0 | AX149: 0 | AY149: 0 | AZ149: 0 | BA149: 0 | BB149: 0 | BC149: 0
K150: 0 | S150: 1 | T150: 1 | AD150: 11 | AF150: =IF(ISNA(VLOOKUP(D150,#REF!,2,FALSE)),"",VLOOKUP(D150,#REF!,2,FALSE)) ->  | AG150: 0 | AH150: 0 | AI150: 0 | AJ150: 0 | AK150: 0 | AL150: 0 | AM150: 0 | AN150: 0 | AO150: 0 | AP150: 0 | AQ150: 0 | AR150: 0 | AS150: 0 | AT150: 0 | AV150: 0 | AX150: 0 | AY150: 0 | AZ150: 0 | BA150: 0 | BB150: 0 | BC150: 0
K151: 0 | S151: 1 | T151: 1 | AD151: 11 | AF151: =IF(ISNA(VLOOKUP(D151,#REF!,2,FALSE)),"",VLOOKUP(D151,#REF!,2,FALSE)) ->  | AG151: 0 | AH151: 0 | AI151: 0 | AJ151: 0 | AK151: 0 | AL151: 0 | AM151: 0 | AN151: 0 | AO151: 0 | AP151: 0 | AQ151: 0 | AR151: 0 | AS151: 0 | AT151: 0 | AV151: 0 | AX151: 0 | AY151: 0 | AZ151: 0 | BA151: 0 | BB151: 0 | BC151: 0
K152: 0 | S152: 1 | T152: 1 | AD152: 11 | AF152: =IF(ISNA(VLOOKUP(D152,#REF!,2,FALSE)),"",VLOOKUP(D152,#REF!,2,FALSE)) ->  | AG152: 0 | AH152: 0 | AI152: 0 | AJ152: 0 | AK152: 0 | AL152: 0 | AM152: 0 | AN152: 0 | AO152: 0 | AP152: 0 | AQ152: 0 | AR152: 0 | AS152: 0 | AT152: 0 | AV152: 0 | AX152: 0 | AY152: 0 | AZ152: 0 | BA152: 0 | BB152: 0 | BC152: 0
K153: 0 | S153: 1 | T153: 1 | AD153: 11 | AF153: =IF(ISNA(VLOOKUP(D153,#REF!,2,FALSE)),"",VLOOKUP(D153,#REF!,2,FALSE)) ->  | AG153: 0 | AH153: 0 | AI153: 0 | AJ153: 0 | AK153: 0 | AL153: 0 | AM153: 0 | AN153: 0 | AO153: 0 | AP153: 0 | AQ153: 0 | AR153: 0 | AS153: 0 | AT153: 0 | AV153: 0 | AX153: 0 | AY153: 0 | AZ153: 0 | BA153: 0 | BB153: 0 | BC153: 0
K154: 0 | S154: 1 | T154: 1 | AD154: 11 | AF154: =IF(ISNA(VLOOKUP(D154,#REF!,2,FALSE)),"",VLOOKUP(D154,#REF!,2,FALSE)) ->  | AG154: 0 | AH154: 0 | AI154: 0 | AJ154: 0 | AK154: 0 | AL154: 0 | AM154: 0 | AN154: 0 | AO154: 0 | AP154: 0 | AQ154: 0 | AR154: 0 | AS154: 0 | AT154: 0 | AV154: 0 | AX154: 0 | AY154: 0 | AZ154: 0 | BA154: 0 | BB154: 0 | BC154: 0
K155: 0 | S155: 1 | T155: 1 | AD155: 11 | AF155: =IF(ISNA(VLOOKUP(D155,#REF!,2,FALSE)),"",VLOOKUP(D155,#REF!,2,FALSE)) ->  | AG155: 0 | AH155: 0 | AI155: 0 | AJ155: 0 | AK155: 0 | AL155: 0 | AM155: 0 | AN155: 0 | AO155: 0 | AP155: 0 | AQ155: 0 | AR155: 0 | AS155: 0 | AT155: 0 | AV155: 0 | AX155: 0 | AY155: 0 | AZ155: 0 | BA155: 0 | BB155: 0 | BC155: 0
K156: 0 | S156: 1 | T156: 1 | AD156: 11 | AF156: =IF(ISNA(VLOOKUP(D156,#REF!,2,FALSE)),"",VLOOKUP(D156,#REF!,2,FALSE)) ->  | AG156: 0 | AH156: 0 | AI156: 0 | AJ156: 0 | AK156: 0 | AL156: 0 | AM156: 0 | AN156: 0 | AO156: 0 | AP156: 0 | AQ156: 0 | AR156: 0 | AS156: 0 | AT156: 0 | AV156: 0 | AX156: 0 | AY156: 0 | AZ156: 0 | BA156: 0 | BB156: 0 | BC156: 0
K157: 0 | S157: 1 | T157: 1 | AD157: 11 | AF157: =IF(ISNA(VLOOKUP(D157,#REF!,2,FALSE)),"",VLOOKUP(D157,#REF!,2,FALSE)) ->  | AG157: 0 | AH157: 0 | AI157: 0 | AJ157: 0 | AK157: 0 | AL157: 0 | AM157: 0 | AN157: 0 | AO157: 0 | AP157: 0 | AQ157: 0 | AR157: 0 | AS157: 0 | AT157: 0 | AV157: 0 | AX157: 0 | AY157: 0 | AZ157: 0 | BA157: 0 | BB157: 0 | BC157: 0
K158: 0 | S158: 1 | T158: 1 | AD158: 11 | AF158: =IF(ISNA(VLOOKUP(D158,#REF!,2,FALSE)),"",VLOOKUP(D158,#REF!,2,FALSE)) ->  | AG158: 0 | AH158: 0 | AI158: 0 | AJ158: 0 | AK158: 0 | AL158: 0 | AM158: 0 | AN158: 0 | AO158: 0 | AP158: 0 | AQ158: 0 | AR158: 0 | AS158: 0 | AT158: 0 | AV158: 0 | AX158: 0 | AY158: 0 | AZ158: 0 | BA158: 0 | BB158: 0 | BC158: 0
K159: 0 | S159: 1 | T159: 1 | AD159: 11 | AF159: =IF(ISNA(VLOOKUP(D159,#REF!,2,FALSE)),"",VLOOKUP(D159,#REF!,2,FALSE)) ->  | AG159: 0 | AH159: 0 | AI159: 0 | AJ159: 0 | AK159: 0 | AL159: 0 | AM159: 0 | AN159: 0 | AO159: 0 | AP159: 0 | AQ159: 0 | AR159: 0 | AS159: 0 | AT159: 0 | AV159: 0 | AX159: 0 | AY159: 0 | AZ159: 0 | BA159: 0 | BB159: 0 | BC159: 0
K160: 0 | S160: 1 | T160: 1 | AD160: 11 | AF160: =IF(ISNA(VLOOKUP(D160,#REF!,2,FALSE)),"",VLOOKUP(D160,#REF!,2,FALSE)) ->  | AG160: 0 | AH160: 0 | AI160: 0 | AJ160: 0 | AK160: 0 | AL160: 0 | AM160: 0 | AN160: 0 | AO160: 0 | AP160: 0 | AQ160: 0 | AR160: 0 | AS160: 0 | AT160: 0 | AV160: 0 | AX160: 0 | AY160: 0 | AZ160: 0 | BA160: 0 | BB160: 0 | BC160: 0
K161: 0 | S161: 1 | T161: 1 | AD161: 11 | AF161: =IF(ISNA(VLOOKUP(D161,#REF!,2,FALSE)),"",VLOOKUP(D161,#REF!,2,FALSE)) ->  | AG161: 0 | AH161: 0 | AI161: 0 | AJ161: 0 | AK161: 0 | AL161: 0 | AM161: 0 | AN161: 0 | AO161: 0 | AP161: 0 | AQ161: 0 | AR161: 0 | AS161: 0 | AT161: 0 | AV161: 0 | AX161: 0 | AY161: 0 | AZ161: 0 | BA161: 0 | BB161: 0 | BC161: 0
A162: If more lines are needed, contact your area office ARC or Biologist
K163: =ROUND(J163*43560*0.5/27,1) -> 0 | Q163: =CHOOSE(S163,$CC$31,$CC$32,$CC$33,$CC$34,$CC$35,$CC$36,$CC$37,$CC$38,$CC$39,$CC$40,$CC$41) ->  | S163: =MIN(T163:AD163) -> 1 | T163: =IF(AND(A163="",D163=""),T$13,"") -> 1 | U163: =IF(AND(B163="",A163<>""),U$13,"") ->  | V163: =IF(AND(C163="",A163<>""),V$13,"") ->  | W163: =IF(AND(AND(AND(SUM(D163:M163)+P163=0,AND(N163<>"Yes",O163<>"Yes")),F163<>"yes"),A163<>""),W$13,"") ->  | X163: =IF(AND(A163<>"",(D163+E163)>B163),X$13,"") ->  | AB163: =IF(AND(SUM(E163:P163)>0,F163="yes",A163<>""),AB$13,"") ->  | AC163: =IF(AND(F163="yes",A163<>""),AC$13,"") ->  | AD163: =AD$13 -> 11 | AF163: =IF(ISNA(VLOOKUP(D163,#REF!,2,FALSE)),"",VLOOKUP(D163,#REF!,2,FALSE)) ->  | AG163: =IF(Q163=$CC$34,B163,0) -> 0 | AH163: =IF(Q163=$CC$40,B163,IF(B163-AG163-AI163-AK163-AM163-AQ163>0,B163-AG163-AI163-AK163-AM163-AQ163,0)) -> 0 | AI163: =D163 -> 0 | AJ163: =E163 -> 0 | AK163: =IF(M163<>"",M163*0.1,0) -> 0 | AL163: =IF(OR(AJ163>0,AK163>0),1,0) -> 0 | AM163: =J163 -> 0 | AN163: =IF(SUM(G163:H163)>0,B163,0) -> 0 | AO163: =L163*$AJ$5 -> 0 | AP163: =I163*$AJ$6 -> 0 | AQ163: =IF(AN163>0,AN163,IF(SUM(AO163:AP163)+AM163>B163,B163,SUM(AO163:AP163)+AM163)) -> 0 | AR163: =IF(AQ163+SUM(AH163:AK163)+AM163>B163,B163,AQ163+SUM(AH163:AK163)+AM163) -> 0 | AS163: =IF(AR163>0,1,0) -> 0 | AT163: =IF(B163<>"",IF(AR163=0,1,0),0) -> 0 | AV163: =IF(AM163+AP163>B163,B163,AM163+AP163) -> 0 | AX163: =IF(AND($AV163>0,$AN163>0),B163,0) -> 0 | AY163: 0 | AZ163: 0 | BA163: 0 | BB163: 0 | BC163: 0
A164: x | B164: x | C164: x | D164: x | E164: x | F164: x | G164: x | H164: x | I164: x | J164: x | K164: x | L164: x | M164: x | N164: x | O164: x | P164: x

Sheet Landuse_Inventory
A1: Wetlands / Prairie Potholes Inventory (FY 2016)
A2: Wetlands by Landuse Inventory - Enter wetland information by basin
C3: Field # | D3: Land Use | E3: Acres | F3: Upland Acres Planted | G3: Existing Upland Cover | H3: Wetland Acres (from below) | K3: Upland Acres | N3: Comments/Needs | P3: Error Checking - field section | AC3: Land Use | AE3: Error Checking - field section
P4: result | Q4: 1 | R4: 2 | S4: 3 | T4: 4 | U4: 5 | V4: 6 | W4: 7 | X4: 8 | Y4: 9 | Z4: 10 | AA4: 11 | AE4: 1 | AN4: Upland | AO4: pema | AP4: pemc | AQ4: pemf | AR4: other | AS4: Total
G5: =E5-F5-I5 -> 0 | I5: =SUMIF($H$19:$H$166,C5,$I$19:$I$166)+SUMIF($J$19:$J$166,C5,$K$19:$K$166)+SUMIF($F$19:$F$166,C5,$G$19:$G$166) -> 0 | K5: =E5-I5 -> 0 | N5: =CHOOSE(P5,$AF$4,$AF$5,$AF$6,$AF$7,$AF$8,$AF$9,$AF$10,$AF$11,$AF$12,$AF$13,$AF$14) ->  | P5: =MIN(Q5:AA5) -> 1 | Q5: =IF(AND(C5="",D5=""),Q$4,"") -> 1 | R5: =IF(AND(C5<>"",D5=""),R$4,"") ->  | S5: =IF(AND(E5="",D5<>""),S$4,"") ->  | T5: =IF(AND(F5="",D5=$AC$5),T$4,"") ->  | U5: =IF(F5>E5,U$4,"") ->  | V5: =IF(I5>E5,V$4,"") ->  | W5: =IF((I5+F5)>E5,W$4,"") ->  | X5: =IF(C5="","",IF(I5=0,X$4,"")) ->  | AA5: =AA$4 -> 11 | AC5: Cropland | AE5: 2 | AF5: Enter Land Use | AM5: Cropland | AN5: =SUMIF($D$5:$D$14,AM5,$K$5:$K$14) -> 0 | AO5: =SUMIF($AI$19:$AI$166,AO$4,$AJ$19:$AJ$166) -> 0 | AP5: =SUMIF($AI$19:$AI$166,AP$4,$AJ$19:$AJ$166) -> 0 | AQ5: 0 | AR5: 0 | AS5: =SUM(AN5:AR5) -> 0
G6: =E6-F6-I6 -> 0 | I6: 0 | K6: =E6-I6 -> 0 | P6: =MIN(Q6:AA6) -> 1 | Q6: 1 | W6: =IF((H6+F6)>E6,W$4,"") ->  | AA6: =AA$4 -> 11 | AC6: CRP (Active) | AE6: 3 | AF6: Enter Land Use Acres | AM6: CRP (Active) | AN6: =SUMIF($D$5:$D$14,AM6,$K$5:$K$14) -> 0 | AO6: =SUMIF($AI$19:$AI$166,AO$4,$AK$19:$AK$166) -> 0 | AP6: =SUMIF($AI$19:$AI$166,AP$4,$AK$19:$AK$166) -> 0 | AQ6: 0 | AR6: 0 | AS6: =SUM(AN6:AR6) -> 0
G7: 0 | I7: 0 | K7: 0 | P7: 1 | Q7: 1 | AA7: 11 | AC7: Rangeland | AE7: 4 | AF7: Enter Acres to be Planted | AM7: Rangeland | AN7: 0 | AO7: =SUMIF($AI$19:$AI$166,AO$4,$AL$19:$AL$166) -> 0 | AP7: =SUMIF($AI$19:$AI$166,AP$4,$AL$19:$AL$166) -> 0 | AQ7: 0 | AR7: 0 | AS7: 0
G8: 0 | I8: 0 | K8: 0 | P8: 1 | Q8: 1 | AA8: 11 | AC8: Pastureland | AE8: 5 | AF8: Acres Planted (Upland) > Field Acres | AM8: Pastureland | AN8: 0 | AO8: =SUMIF($AI$19:$AI$166,AO$4,$AM$19:$AM$166) -> 0 | AP8: =SUMIF($AI$19:$AI$166,AP$4,$AM$19:$AM$166) -> 0 | AQ8: 0 | AR8: 0 | AS8: 0
G9: 0 | I9: 0 | K9: 0 | P9: =MIN(Q9:AA9) -> 1 | Q9: 1 | AA9: 11 | AC9: Hayland | AE9: 6 | AF9: Wetland Acres > Field Acres - Check Field # below to ensure wetlands are in correct field!! | AM9: Hayland | AN9: 0 | AO9: =SUMIF($AI$19:$AI$166,AO$4,$AN$19:$AN$166) -> 0 | AP9: =SUMIF($AI$19:$AI$166,AP$4,$AN$19:$AN$166) -> 0 | AQ9: 0 | AR9: 0 | AS9: 0
G10: 0 | I10: 0 | K10: 0 | P10: =MIN(Q10:AA10) -> 1 | Q10: 1 | AA10: 11 | AC10: Wildlife/Idle | AE10: 7 | AF10: Upland Acres Planted + Wetland Acres > Field Acres | AM10: Wildlife/Idle | AN10: 0 | AO10: =SUMIF($AI$19:$AI$166,AO$4,$AO$19:$AO$166) -> 0 | AP10: =SUMIF($AI$19:$AI$166,AP$4,$AO$19:$AO$166) -> 0 | AQ10: 0 | AR10: 0 | AS10: 0
G11: 0 | I11: 0 | K11: 0 | P11: 1 | Q11: 1 | AA11: 11 | AC11: Forest Land | AE11: 8 | AF11: No wetlands located in this field - OK? | AM11: Forest Land | AN11: 0 | AO11: =SUMIF($AI$19:$AI$166,AO$4,$AP$19:$AP$166) -> 0 | AP11: =SUMIF($AI$19:$AI$166,AP$4,$AP$19:$AP$166) -> 0 | AQ11: 0 | AR11: 0 | AS11: 0
G12: 0 | I12: 0 | K12: 0 | P12: =MIN(Q12:AA12) -> 1 | Q12: 1 | AA12: 11 | AE12: 9 | AF12: Not used | AN12: =SUM(AN5:AN11) -> 0 | AO12: =SUM(AO5:AO11) -> 0 | AP12: 0 | AQ12: 0 | AR12: 0 | AS12: 0
G13: 0 | I13: 0 | K13: 0 | P13: =MIN(Q13:AA13) -> 1 | Q13: 1 | AA13: 11 | AE13: 10 | AF13: Not used
G14: 0 | I14: 0 | K14: 0 | P14: 1 | Q14: 1 | X14: =IF(C14="","",IF(I14=0,X$4,"")) ->  | AA14: 11 | AE14: 11 | AF14: OK
C15: Total | E15: =SUM(E5:E14) -> 0 | F15: =SUM(F5:F14) -> 0 | G15: =SUM(G5:G14) -> 0 | I15: =SUM(I5:I14) -> 0 | K15: =SUM(K5:K14) -> 0
A16: Wetland by Landuse Inventory - Enter wetland information | M16: =Ranking!H1 -> FY16-ver1
A17: Wetland Info | D17: Acres Planted | F17: Primary Field | G17: Wetland Acres in Primary Field | H17: Secondary Field | I17: Wetland Acres in Second ary Field | J17: Tertiary Field | K17: Wetland Acres in Tertiary Field | L17: Wetland Acres Check | M17: Wetland Acres remaining | AJ17: Total | AS17: First | AZ17: Second | BG17: Third
A18: Basin # | B18: Acres | C18: Type | D18: To Upland Species | E18: To Hydrophytic Species | AB18: First Landuse | AC18: First Landuse Acres | AD18: Second Landuse | AE18: Second Landuse Acres | AF18: Third Landuse | AG18: Third Landuse Acres | AI18: wetland | AJ18: Cropland | AK18: CRP (Active) | AL18: Rangeland | AM18: Pastureland | AN18: Hayland | AO18: Wildlife/Idle | AP18: Forest Land | AS18: Cropland | AT18: CRP (Active) | AU18: Rangeland | AV18: Pastureland | AW18: Hayland | AX18: Wildlife/Idle | AY18: Forest Land | AZ18: Cropland | BA18: CRP (Active) | BB18: Rangeland | BC18: Pastureland | BD18: Hayland | BE18: Wildlife/Idle | BF18: Forest Land | BG18: Cropland | BH18: CRP (Active) | BI18: Rangeland | BJ18: Pastureland | BK18: Hayland | BL18: Wildlife/Idle | BM18: Forest Land
A19: =IF(Wetland_Inventory!A14<>"",Wetland_Inventory!A14,"") ->  | B19: =IF(Wetland_Inventory!B14<>"",Wetland_Inventory!B14,"") ->  | C19: =IF(Wetland_Inventory!C14<>"",Wetland_Inventory!C14,"") ->  | D19: =IF(Wetland_Inventory!D14<>"",Wetland_Inventory!D14,"") ->  | E19: =IF(Wetland_Inventory!E14<>"",Wetland_Inventory!E14,"") ->  | L19: =IF(A19="","",G19+I19+K19) ->  | M19: =IF(A19="","",B19-L19) ->  | AB19: =IF(ISNA(VLOOKUP(F19,$C$5:$D$14,2,FALSE)),"",VLOOKUP(F19,$C$5:$D$14,2,FALSE)) ->  | AC19: =IF(AB19<>"",G19,"") ->  | AD19: =IF(ISNA(VLOOKUP(H19,$C$5:$D$14,2,FALSE)),"",VLOOKUP(H19,$C$5:$D$14,2,FALSE)) ->  | AE19: =IF(AD19<>"",I19,"") ->  | AF19: =IF(ISNA(VLOOKUP(J19,$C$5:$D$14,2,FALSE)),"",VLOOKUP(J19,$C$5:$D$14,2,FALSE)) ->  | AG19: =IF(AF19<>"",K19,"") ->  | AI19: =IF(C19<>"",C19,"") ->  | AJ19: =AS19+AZ19+BG19 -> 0 | AK19: =AT19+BA19+BH19 -> 0 | AL19: =AU19+BB19+BI19 -> 0 | AM19: =AV19+BC19+BJ19 -> 0 | AN19: =AW19+BD19+BK19 -> 0 | AO19: =AX19+BE19+BL19 -> 0 | AP19: =AY19+BF19+BM19 -> 0 | AQ19: =SUM(AJ19:AP19) -> 0 | AS19: =IF($AB19=AS$18,$AC19,0) -> 0 | AT19: 0 | AU19: 0 | AV19: 0 | AW19: 0 | AX19: 0 | AY19: 0 | AZ19: =IF($AD19=AZ$18,$AE19,0) -> 0 | BA19: 0 | BB19: 0 | BC19: 0 | BD19: 0 | BE19: 0 | BF19: 0 | BG19: =IF($AF19=BG$18,$AG19,0) -> 0 | BH19: 0 | BI19: 0 | BJ19: 0 | BK19: 0 | BL19: 0 | BM19: 0
A20: =IF(Wetland_Inventory!A15<>"",Wetland_Inventory!A15,"") ->  | B20: =IF(Wetland_Inventory!B15<>"",Wetland_Inventory!B15,"") ->  | C20: =IF(Wetland_Inventory!C15<>"",Wetland_Inventory!C15,"") ->  | D20: =IF(Wetland_Inventory!D15<>"",Wetland_Inventory!D15,"") ->  | E20: =IF(Wetland_Inventory!E15<>"",Wetland_Inventory!E15,"") ->  | L20: =IF(A20="","",G20+I20+K20) ->  | M20: =IF(A20="","",B20-L20) ->  | AJ20: 0 | AK20: 0 | AL20: 0 | AM20: 0 | AN20: 0 | AO20: 0 | AP20: 0 | AQ20: 0 | AS20: 0 | AT20: 0 | AU20: 0 | AV20: 0 | AW20: 0 | AX20: 0 | AY20: 0 | AZ20: 0 | BA20: 0 | BB20: 0 | BC20: 0 | BD20: 0 | BE20: 0 | BF20: 0 | BG20: 0 | BH20: 0 | BI20: 0 | BJ20: 0 | BK20: 0 | BL20: 0 | BM20: 0
A21: =IF(Wetland_Inventory!A16<>"",Wetland_Inventory!A16,"") ->  | B21: =IF(Wetland_Inventory!B16<>"",Wetland_Inventory!B16,"") ->  | C21: =IF(Wetland_Inventory!C16<>"",Wetland_Inventory!C16,"") ->  | D21: =IF(Wetland_Inventory!D16<>"",Wetland_Inventory!D16,"") ->  | E21: =IF(Wetland_Inventory!E16<>"",Wetland_Inventory!E16,"") ->  | AJ21: 0 | AK21: 0 | AL21: 0 | AM21: 0 | AN21: 0 | AO21: 0 | AP21: 0 | AQ21: 0 | AS21: 0 | AT21: 0 | AU21: 0 | AV21: 0 | AW21: 0 | AX21: 0 | AY21: 0 | AZ21: 0 | BA21: 0 | BB21: 0 | BC21: 0 | BD21: 0 | BE21: 0 | BF21: 0 | BG21: 0 | BH21: 0 | BI21: 0 | BJ21: 0 | BK21: 0 | BL21: 0 | BM21: 0
A22: =IF(Wetland_Inventory!A17<>"",Wetland_Inventory!A17,"") ->  | B22: =IF(Wetland_Inventory!B17<>"",Wetland_Inventory!B17,"") ->  | C22: =IF(Wetland_Inventory!C17<>"",Wetland_Inventory!C17,"") ->  | D22: =IF(Wetland_Inventory!D17<>"",Wetland_Inventory!D17,"") ->  | E22: =IF(Wetland_Inventory!E17<>"",Wetland_Inventory!E17,"") ->  | AJ22: 0 | AK22: 0 | AL22: 0 | AM22: 0 | AN22: 0 | AO22: 0 | AP22: 0 | AQ22: 0 | AS22: 0 | AT22: 0 | AU22: 0 | AV22: 0 | AW22: 0 | AX22: 0 | AY22: 0 | AZ22: 0 | BA22: 0 | BB22: 0 | BC22: 0 | BD22: 0 | BE22: 0 | BF22: 0 | BG22: 0 | BH22: 0 | BI22: 0 | BJ22: 0 | BK22: 0 | BL22: 0 | BM22: 0
A23: =IF(Wetland_Inventory!A18<>"",Wetland_Inventory!A18,"") ->  | B23: =IF(Wetland_Inventory!B18<>"",Wetland_Inventory!B18,"") ->  | C23: =IF(Wetland_Inventory!C18<>"",Wetland_Inventory!C18,"") ->  | D23: =IF(Wetland_Inventory!D18<>"",Wetland_Inventory!D18,"") ->  | E23: =IF(Wetland_Inventory!E18<>"",Wetland_Inventory!E18,"") ->  | AB23: =IF(ISNA(VLOOKUP(F23,$C$5:$D$14,2,FALSE)),"",VLOOKUP(F23,$C$5:$D$14,2,FALSE)) ->  | AC23: =IF(AB23<>"",G23,"") ->  | AD23: =IF(ISNA(VLOOKUP(H23,$C$5:$D$14,2,FALSE)),"",VLOOKUP(H23,$C$5:$D$14,2,FALSE)) ->  | AE23: =IF(AD23<>"",I23,"") ->  | AF23: =IF(ISNA(VLOOKUP(J23,$C$5:$D$14,2,FALSE)),"",VLOOKUP(J23,$C$5:$D$14,2,FALSE)) ->  | AG23: =IF(AF23<>"",K23,"") ->  | AI23: =IF(C23<>"",C23,"") ->  | AJ23: =AS23+AZ23+BG23 -> 0 | AK23: =AT23+BA23+BH23 -> 0 | AL23: 0 | AM23: 0 | AN23: 0 | AO23: 0 | AP23: 0 | AQ23: =SUM(AJ23:AP23) -> 0 | AS23: 0 | AT23: 0 | AU23: 0 | AV23: 0 | AW23: 0 | AX23: 0 | AY23: 0 | AZ23: 0 | BA23: 0 | BB23: 0 | BC23: 0 | BD23: 0 | BE23: 0 | BF23: 0 | BG23: 0 | BH23: 0 | BI23: 0 | BJ23: 0 | BK23: 0 | BL23: 0 | BM23: 0
A24: =IF(Wetland_Inventory!A19<>"",Wetland_Inventory!A19,"") ->  | B24: =IF(Wetland_Inventory!B19<>"",Wetland_Inventory!B19,"") ->  | C24: =IF(Wetland_Inventory!C19<>"",Wetland_Inventory!C19,"") ->  | D24: =IF(Wetland_Inventory!D19<>"",Wetland_Inventory!D19,"") ->  | E24: =IF(Wetland_Inventory!E19<>"",Wetland_Inventory!E19,"") ->  | AJ24: 0 | AK24: 0 | AL24: 0 | AM24: 0 | AN24: 0 | AO24: 0 | AP24: 0 | AQ24: 0 | AS24: 0 | AT24: 0 | AU24: 0 | AV24: 0 | AW24: 0 | AX24: 0 | AY24: 0 | AZ24: 0 | BA24: 0 | BB24: 0 | BC24: 0 | BD24: 0 | BE24: 0 | BF24: 0 | BG24: 0 | BH24: 0 | BI24: 0 | BJ24: 0 | BK24: 0 | BL24: 0 | BM24: 0
A25: =IF(Wetland_Inventory!A20<>"",Wetland_Inventory!A20,"") ->  | B25: =IF(Wetland_Inventory!B20<>"",Wetland_Inventory!B20,"") ->  | C25: =IF(Wetland_Inventory!C20<>"",Wetland_Inventory!C20,"") ->  | D25: =IF(Wetland_Inventory!D20<>"",Wetland_Inventory!D20,"") ->  | E25: =IF(Wetland_Inventory!E20<>"",Wetland_Inventory!E20,"") ->  | AJ25: 0 | AK25: 0 | AL25: 0 | AM25: 0 | AN25: 0 | AO25: 0 | AP25: 0 | AQ25: 0 | AS25: 0 | AT25: 0 | AU25: 0 | AV25: 0 | AW25: 0 | AX25: 0 | AY25: 0 | AZ25: 0 | BA25: 0 | BB25: 0 | BC25: 0 | BD25: 0 | BE25: 0 | BF25: 0 | BG25: 0 | BH25: 0 | BI25: 0 | BJ25: 0 | BK25: 0 | BL25: 0 | BM25: 0
A26: =IF(Wetland_Inventory!A21<>"",Wetland_Inventory!A21,"") ->  | B26: =IF(Wetland_Inventory!B21<>"",Wetland_Inventory!B21,"") ->  | C26: =IF(Wetland_Inventory!C21<>"",Wetland_Inventory!C21,"") ->  | D26: =IF(Wetland_Inventory!D21<>"",Wetland_Inventory!D21,"") ->  | E26: =IF(Wetland_Inventory!E21<>"",Wetland_Inventory!E21,"") ->  | AJ26: 0 | AK26: 0 | AL26: 0 | AM26: 0 | AN26: 0 | AO26: 0 | AP26: 0 | AQ26: 0 | AS26: 0 | AT26: 0 | AU26: 0 | AV26: 0 | AW26: 0 | AX26: 0 | AY26: 0 | AZ26: 0 | BA26: 0 | BB26: 0 | BC26: 0 | BD26: 0 | BE26: 0 | BF26: 0 | BG26: 0 | BH26: 0 | BI26: 0 | BJ26: 0 | BK26: 0 | BL26: 0 | BM26: 0
A27: =IF(Wetland_Inventory!A22<>"",Wetland_Inventory!A22,"") ->  | B27: =IF(Wetland_Inventory!B22<>"",Wetland_Inventory!B22,"") ->  | C27: =IF(Wetland_Inventory!C22<>"",Wetland_Inventory!C22,"") ->  | D27: =IF(Wetland_Inventory!D22<>"",Wetland_Inventory!D22,"") ->  | E27: =IF(Wetland_Inventory!E22<>"",Wetland_Inventory!E22,"") ->  | AJ27: 0 | AK27: 0 | AL27: 0 | AM27: 0 | AN27: 0 | AO27: 0 | AP27: 0 | AQ27: 0 | AS27: 0 | AT27: 0 | AU27: 0 | AV27: 0 | AW27: 0 | AX27: 0 | AY27: 0 | AZ27: 0 | BA27: 0 | BB27: 0 | BC27: 0 | BD27: 0 | BE27: 0 | BF27: 0 | BG27: 0 | BH27: 0 | BI27: 0 | BJ27: 0 | BK27: 0 | BL27: 0 | BM27: 0
A28: =IF(Wetland_Inventory!A23<>"",Wetland_Inventory!A23,"") ->  | B28: =IF(Wetland_Inventory!B23<>"",Wetland_Inventory!B23,"") ->  | C28: =IF(Wetland_Inventory!C23<>"",Wetland_Inventory!C23,"") ->  | D28: =IF(Wetland_Inventory!D23<>"",Wetland_Inventory!D23,"") ->  | E28: =IF(Wetland_Inventory!E23<>"",Wetland_Inventory!E23,"") ->  | AJ28: 0 | AK28: 0 | AL28: 0 | AM28: 0 | AN28: 0 | AO28: 0 | AP28: 0 | AQ28: 0 | AS28: 0 | AT28: 0 | AU28: 0 | AV28: 0 | AW28: 0 | AX28: 0 | AY28: 0 | AZ28: 0 | BA28: 0 | BB28: 0 | BC28: 0 | BD28: 0 | BE28: 0 | BF28: 0 | BG28: 0 | BH28: 0 | BI28: 0 | BJ28: 0 | BK28: 0 | BL28: 0 | BM28: 0
A29: =IF(Wetland_Inventory!A24<>"",Wetland_Inventory!A24,"") ->  | B29: =IF(Wetland_Inventory!B24<>"",Wetland_Inventory!B24,"") ->  | C29: =IF(Wetland_Inventory!C24<>"",Wetland_Inventory!C24,"") ->  | D29: =IF(Wetland_Inventory!D24<>"",Wetland_Inventory!D24,"") ->  | E29: =IF(Wetland_Inventory!E24<>"",Wetland_Inventory!E24,"") ->  | AJ29: 0 | AK29: 0 | AL29: 0 | AM29: 0 | AN29: 0 | AO29: 0 | AP29: 0 | AQ29: 0 | AS29: 0 | AT29: 0 | AU29: 0 | AV29: 0 | AW29: 0 | AX29: 0 | AY29: 0 | AZ29: 0 | BA29: 0 | BB29: 0 | BC29: 0 | BD29: 0 | BE29: 0 | BF29: 0 | BG29: 0 | BH29: 0 | BI29: 0 | BJ29: 0 | BK29: 0 | BL29: 0 | BM29: 0
A30: =IF(Wetland_Inventory!A25<>"",Wetland_Inventory!A25,"") ->  | B30: =IF(Wetland_Inventory!B25<>"",Wetland_Inventory!B25,"") ->  | C30: =IF(Wetland_Inventory!C25<>"",Wetland_Inventory!C25,"") ->  | D30: =IF(Wetland_Inventory!D25<>"",Wetland_Inventory!D25,"") ->  | E30: =IF(Wetland_Inventory!E25<>"",Wetland_Inventory!E25,"") ->  | AJ30: 0 | AK30: 0 | AL30: 0 | AM30: 0 | AN30: 0 | AO30: 0 | AP30: 0 | AQ30: 0 | AS30: 0 | AT30: 0 | AU30: 0 | AV30: 0 | AW30: 0 | AX30: 0 | AY30: 0 | AZ30: 0 | BA30: 0 | BB30: 0 | BC30: 0 | BD30: 0 | BE30: 0 | BF30: 0 | BG30: 0 | BH30: 0 | BI30: 0 | BJ30: 0 | BK30: 0 | BL30: 0 | BM30: 0
A31: =IF(Wetland_Inventory!A26<>"",Wetland_Inventory!A26,"") ->  | B31: =IF(Wetland_Inventory!B26<>"",Wetland_Inventory!B26,"") ->  | C31: =IF(Wetland_Inventory!C26<>"",Wetland_Inventory!C26,"") ->  | D31: =IF(Wetland_Inventory!D26<>"",Wetland_Inventory!D26,"") ->  | E31: =IF(Wetland_Inventory!E26<>"",Wetland_Inventory!E26,"") ->  | AJ31: 0 | AK31: 0 | AL31: 0 | AM31: 0 | AN31: 0 | AO31: 0 | AP31: 0 | AQ31: 0 | AS31: 0 | AT31: 0 | AU31: 0 | AV31: 0 | AW31: 0 | AX31: 0 | AY31: 0 | AZ31: 0 | BA31: 0 | BB31: 0 | BC31: 0 | BD31: 0 | BE31: 0 | BF31: 0 | BG31: 0 | BH31: 0 | BI31: 0 | BJ31: 0 | BK31: 0 | BL31: 0 | BM31: 0
A32: =IF(Wetland_Inventory!A27<>"",Wetland_Inventory!A27,"") ->  | B32: =IF(Wetland_Inventory!B27<>"",Wetland_Inventory!B27,"") ->  | C32: =IF(Wetland_Inventory!C27<>"",Wetland_Inventory!C27,"") ->  | D32: =IF(Wetland_Inventory!D27<>"",Wetland_Inventory!D27,"") ->  | E32: =IF(Wetland_Inventory!E27<>"",Wetland_Inventory!E27,"") ->  | AJ32: 0 | AK32: 0 | AL32: 0 | AM32: 0 | AN32: 0 | AO32: 0 | AP32: 0 | AQ32: 0 | AS32: 0 | AT32: 0 | AU32: 0 | AV32: 0 | AW32: 0 | AX32: 0 | AY32: 0 | AZ32: 0 | BA32: 0 | BB32: 0 | BC32: 0 | BD32: 0 | BE32: 0 | BF32: 0 | BG32: 0 | BH32: 0 | BI32: 0 | BJ32: 0 | BK32: 0 | BL32: 0 | BM32: 0
A33: =IF(Wetland_Inventory!A28<>"",Wetland_Inventory!A28,"") ->  | B33: =IF(Wetland_Inventory!B28<>"",Wetland_Inventory!B28,"") ->  | C33: =IF(Wetland_Inventory!C28<>"",Wetland_Inventory!C28,"") ->  | D33: =IF(Wetland_Inventory!D28<>"",Wetland_Inventory!D28,"") ->  | E33: =IF(Wetland_Inventory!E28<>"",Wetland_Inventory!E28,"") ->  | AJ33: 0 | AK33: 0 | AL33: 0 | AM33: 0 | AN33: 0 | AO33: 0 | AP33: 0 | AQ33: 0 | AS33: 0 | AT33: 0 | AU33: 0 | AV33: 0 | AW33: 0 | AX33: 0 | AY33: 0 | AZ33: 0 | BA33: 0 | BB33: 0 | BC33: 0 | BD33: 0 | BE33: 0 | BF33: 0 | BG33: 0 | BH33: 0 | BI33: 0 | BJ33: 0 | BK33: 0 | BL33: 0 | BM33: 0
A34: =IF(Wetland_Inventory!A29<>"",Wetland_Inventory!A29,"") ->  | B34: =IF(Wetland_Inventory!B29<>"",Wetland_Inventory!B29,"") ->  | C34: =IF(Wetland_Inventory!C29<>"",Wetland_Inventory!C29,"") ->  | D34: =IF(Wetland_Inventory!D29<>"",Wetland_Inventory!D29,"") ->  | E34: =IF(Wetland_Inventory!E29<>"",Wetland_Inventory!E29,"") ->  | AJ34: 0 | AK34: 0 | AL34: 0 | AM34: 0 | AN34: 0 | AO34: 0 | AP34: 0 | AQ34: 0 | AS34: 0 | AT34: 0 | AU34: 0 | AV34: 0 | AW34: 0 | AX34: 0 | AY34: 0 | AZ34: 0 | BA34: 0 | BB34: 0 | BC34: 0 | BD34: 0 | BE34: 0 | BF34: 0 | BG34: 0 | BH34: 0 | BI34: 0 | BJ34: 0 | BK34: 0 | BL34: 0 | BM34: 0
A35: =IF(Wetland_Inventory!A30<>"",Wetland_Inventory!A30,"") ->  | B35: =IF(Wetland_Inventory!B30<>"",Wetland_Inventory!B30,"") ->  | C35: =IF(Wetland_Inventory!C30<>"",Wetland_Inventory!C30,"") ->  | D35: =IF(Wetland_Inventory!D30<>"",Wetland_Inventory!D30,"") ->  | E35: =IF(Wetland_Inventory!E30<>"",Wetland_Inventory!E30,"") ->  | AJ35: 0 | AK35: =AT35+BA35+BH35 -> 0 | AL35: =AU35+BB35+BI35 -> 0 | AM35: =AV35+BC35+BJ35 -> 0 | AN35: =AW35+BD35+BK35 -> 0 | AO35: =AX35+BE35+BL35 -> 0 | AP35: =AY35+BF35+BM35 -> 0 | AQ35: 0 | AS35: 0 | AT35: 0 | AU35: 0 | AV35: 0 | AW35: 0 | AX35: 0 | AY35: 0 | AZ35: 0 | BA35: 0 | BB35: 0 | BC35: 0 | BD35: 0 | BE35: 0 | BF35: 0 | BG35: 0 | BH35: 0 | BI35: 0 | BJ35: 0 | BK35: 0 | BL35: 0 | BM35: 0
A36: =IF(Wetland_Inventory!A31<>"",Wetland_Inventory!A31,"") ->  | B36: =IF(Wetland_Inventory!B31<>"",Wetland_Inventory!B31,"") ->  | C36: =IF(Wetland_Inventory!C31<>"",Wetland_Inventory!C31,"") ->  | D36: =IF(Wetland_Inventory!D31<>"",Wetland_Inventory!D31,"") ->  | E36: =IF(Wetland_Inventory!E31<>"",Wetland_Inventory!E31,"") ->  | AJ36: 0 | AK36: 0 | AL36: 0 | AM36: 0 | AN36: 0 | AO36: 0 | AP36: 0 | AQ36: 0 | AS36: =IF($AB36=AS$18,$AC36,0) -> 0 | AT36: 0 | AU36: 0 | AV36: 0 | AW36: 0 | AX36: 0 | AY36: 0 | AZ36: =IF($AD36=AZ$18,$AE36,0) -> 0 | BA36: 0 | BB36: 0 | BC36: 0 | BD36: 0 | BE36: 0 | BF36: 0 | BG36: =IF($AF36=BG$18,$AG36,0) -> 0 | BH36: 0 | BI36: 0 | BJ36: 0 | BK36: 0 | BL36: 0 | BM36: 0
A37: =IF(Wetland_Inventory!A32<>"",Wetland_Inventory!A32,"") ->  | B37: =IF(Wetland_Inventory!B32<>"",Wetland_Inventory!B32,"") ->  | C37: =IF(Wetland_Inventory!C32<>"",Wetland_Inventory!C32,"") ->  | D37: =IF(Wetland_Inventory!D32<>"",Wetland_Inventory!D32,"") ->  | E37: =IF(Wetland_Inventory!E32<>"",Wetland_Inventory!E32,"") ->  | AJ37: 0 | AK37: 0 | AL37: 0 | AM37: 0 | AN37: 0 | AO37: 0 | AP37: 0 | AQ37: 0 | AS37: 0 | AT37: 0 | AU37: 0 | AV37: 0 | AW37: 0 | AX37: 0 | AY37: 0 | AZ37: 0 | BA37: 0 | BB37: 0 | BC37: 0 | BD37: 0 | BE37: 0 | BF37: 0 | BG37: 0 | BH37: 0 | BI37: 0 | BJ37: 0 | BK37: 0 | BL37: 0 | BM37: 0
A38: =IF(Wetland_Inventory!A33<>"",Wetland_Inventory!A33,"") ->  | B38: =IF(Wetland_Inventory!B33<>"",Wetland_Inventory!B33,"") ->  | C38: =IF(Wetland_Inventory!C33<>"",Wetland_Inventory!C33,"") ->  | D38: =IF(Wetland_Inventory!D33<>"",Wetland_Inventory!D33,"") ->  | E38: =IF(Wetland_Inventory!E33<>"",Wetland_Inventory!E33,"") ->  | AJ38: 0 | AK38: 0 | AL38: 0 | AM38: 0 | AN38: 0 | AO38: 0 | AP38: 0 | AQ38: 0 | AS38: 0 | AT38: 0 | AU38: 0 | AV38: 0 | AW38: 0 | AX38: 0 | AY38: 0 | AZ38: 0 | BA38: 0 | BB38: 0 | BC38: 0 | BD38: 0 | BE38: 0 | BF38: 0 | BG38: 0 | BH38: 0 | BI38: 0 | BJ38: 0 | BK38: 0 | BL38: 0 | BM38: 0
A39: =IF(Wetland_Inventory!A34<>"",Wetland_Inventory!A34,"") ->  | B39: =IF(Wetland_Inventory!B34<>"",Wetland_Inventory!B34,"") ->  | C39: =IF(Wetland_Inventory!C34<>"",Wetland_Inventory!C34,"") ->  | D39: =IF(Wetland_Inventory!D34<>"",Wetland_Inventory!D34,"") ->  | E39: =IF(Wetland_Inventory!E34<>"",Wetland_Inventory!E34,"") ->  | AJ39: 0 | AK39: 0 | AL39: 0 | AM39: 0 | AN39: 0 | AO39: 0 | AP39: 0 | AQ39: 0 | AS39: 0 | AT39: 0 | AU39: 0 | AV39: 0 | AW39: 0 | AX39: 0 | AY39: 0 | AZ39: 0 | BA39: 0 | BB39: 0 | BC39: 0 | BD39: 0 | BE39: 0 | BF39: 0 | BG39: 0 | BH39: 0 | BI39: 0 | BJ39: 0 | BK39: 0 | BL39: 0 | BM39: 0
A40: =IF(Wetland_Inventory!A35<>"",Wetland_Inventory!A35,"") ->  | B40: =IF(Wetland_Inventory!B35<>"",Wetland_Inventory!B35,"") ->  | C40: =IF(Wetland_Inventory!C35<>"",Wetland_Inventory!C35,"") ->  | D40: =IF(Wetland_Inventory!D35<>"",Wetland_Inventory!D35,"") ->  | E40: =IF(Wetland_Inventory!E35<>"",Wetland_Inventory!E35,"") ->  | AJ40: 0 | AK40: 0 | AL40: 0 | AM40: 0 | AN40: 0 | AO40: 0 | AP40: 0 | AQ40: 0 | AS40: 0 | AT40: 0 | AU40: 0 | AV40: 0 | AW40: 0 | AX40: 0 | AY40: 0 | AZ40: 0 | BA40: 0 | BB40: 0 | BC40: 0 | BD40: 0 | BE40: 0 | BF40: 0 | BG40: 0 | BH40: 0 | BI40: 0 | BJ40: 0 | BK40: 0 | BL40: 0 | BM40: 0
A41: =IF(Wetland_Inventory!A36<>"",Wetland_Inventory!A36,"") ->  | B41: =IF(Wetland_Inventory!B36<>"",Wetland_Inventory!B36,"") ->  | C41: =IF(Wetland_Inventory!C36<>"",Wetland_Inventory!C36,"") ->  | D41: =IF(Wetland_Inventory!D36<>"",Wetland_Inventory!D36,"") ->  | E41: =IF(Wetland_Inventory!E36<>"",Wetland_Inventory!E36,"") ->  | AJ41: 0 | AK41: 0 | AL41: 0 | AM41: 0 | AN41: 0 | AO41: 0 | AP41: 0 | AQ41: 0 | AS41: 0 | AT41: 0 | AU41: 0 | AV41: 0 | AW41: 0 | AX41: 0 | AY41: 0 | AZ41: 0 | BA41: 0 | BB41: 0 | BC41: 0 | BD41: 0 | BE41: 0 | BF41: 0 | BG41: 0 | BH41: 0 | BI41: 0 | BJ41: 0 | BK41: 0 | BL41: 0 | BM41: 0
A42: =IF(Wetland_Inventory!A37<>"",Wetland_Inventory!A37,"") ->  | B42: =IF(Wetland_Inventory!B37<>"",Wetland_Inventory!B37,"") ->  | C42: =IF(Wetland_Inventory!C37<>"",Wetland_Inventory!C37,"") ->  | D42: =IF(Wetland_Inventory!D37<>"",Wetland_Inventory!D37,"") ->  | E42: =IF(Wetland_Inventory!E37<>"",Wetland_Inventory!E37,"") ->  | AJ42: 0 | AK42: 0 | AL42: 0 | AM42: 0 | AN42: 0 | AO42: 0 | AP42: 0 | AQ42: 0 | AS42: 0 | AT42: 0 | AU42: 0 | AV42: 0 | AW42: 0 | AX42: 0 | AY42: 0 | AZ42: 0 | BA42: 0 | BB42: 0 | BC42: 0 | BD42: 0 | BE42: 0 | BF42: 0 | BG42: 0 | BH42: 0 | BI42: 0 | BJ42: 0 | BK42: 0 | BL42: 0 | BM42: 0
A43: =IF(Wetland_Inventory!A38<>"",Wetland_Inventory!A38,"") ->  | B43: =IF(Wetland_Inventory!B38<>"",Wetland_Inventory!B38,"") ->  | C43: =IF(Wetland_Inventory!C38<>"",Wetland_Inventory!C38,"") ->  | D43: =IF(Wetland_Inventory!D38<>"",Wetland_Inventory!D38,"") ->  | E43: =IF(Wetland_Inventory!E38<>"",Wetland_Inventory!E38,"") ->  | AJ43: 0 | AK43: 0 | AL43: 0 | AM43: 0 | AN43: 0 | AO43: 0 | AP43: 0 | AQ43: 0 | AS43: 0 | AT43: 0 | AU43: 0 | AV43: 0 | AW43: 0 | AX43: 0 | AY43: 0 | AZ43: 0 | BA43: 0 | BB43: 0 | BC43: 0 | BD43: 0 | BE43: 0 | BF43: 0 | BG43: 0 | BH43: 0 | BI43: 0 | BJ43: 0 | BK43: 0 | BL43: 0 | BM43: 0
A44: =IF(Wetland_Inventory!A39<>"",Wetland_Inventory!A39,"") ->  | B44: =IF(Wetland_Inventory!B39<>"",Wetland_Inventory!B39,"") ->  | C44: =IF(Wetland_Inventory!C39<>"",Wetland_Inventory!C39,"") ->  | D44: =IF(Wetland_Inventory!D39<>"",Wetland_Inventory!D39,"") ->  | E44: =IF(Wetland_Inventory!E39<>"",Wetland_Inventory!E39,"") ->  | AJ44: 0 | AK44: 0 | AL44: 0 | AM44: 0 | AN44: 0 | AO44: 0 | AP44: 0 | AQ44: 0 | AS44: 0 | AT44: 0 | AU44: 0 | AV44: 0 | AW44: 0 | AX44: 0 | AY44: 0 | AZ44: 0 | BA44: 0 | BB44: 0 | BC44: 0 | BD44: 0 | BE44: 0 | BF44: 0 | BG44: 0 | BH44: 0 | BI44: 0 | BJ44: 0 | BK44: 0 | BL44: 0 | BM44: 0
A45: =IF(Wetland_Inventory!A40<>"",Wetland_Inventory!A40,"") ->  | B45: =IF(Wetland_Inventory!B40<>"",Wetland_Inventory!B40,"") ->  | C45: =IF(Wetland_Inventory!C40<>"",Wetland_Inventory!C40,"") ->  | D45: =IF(Wetland_Inventory!D40<>"",Wetland_Inventory!D40,"") ->  | E45: =IF(Wetland_Inventory!E40<>"",Wetland_Inventory!E40,"") ->  | AJ45: 0 | AK45: 0 | AL45: 0 | AM45: 0 | AN45: 0 | AO45: 0 | AP45: 0 | AQ45: 0 | AS45: 0 | AT45: 0 | AU45: 0 | AV45: 0 | AW45: 0 | AX45: 0 | AY45: 0 | AZ45: 0 | BA45: 0 | BB45: 0 | BC45: 0 | BD45: 0 | BE45: 0 | BF45: 0 | BG45: 0 | BH45: 0 | BI45: 0 | BJ45: 0 | BK45: 0 | BL45: 0 | BM45: 0
A46: =IF(Wetland_Inventory!A41<>"",Wetland_Inventory!A41,"") ->  | B46: =IF(Wetland_Inventory!B41<>"",Wetland_Inventory!B41,"") ->  | C46: =IF(Wetland_Inventory!C41<>"",Wetland_Inventory!C41,"") ->  | D46: =IF(Wetland_Inventory!D41<>"",Wetland_Inventory!D41,"") ->  | E46: =IF(Wetland_Inventory!E41<>"",Wetland_Inventory!E41,"") ->  | AJ46: 0 | AK46: 0 | AL46: 0 | AM46: 0 | AN46: 0 | AO46: 0 | AP46: 0 | AQ46: 0 | AS46: 0 | AT46: 0 | AU46: 0 | AV46: 0 | AW46: 0 | AX46: 0 | AY46: 0 | AZ46: 0 | BA46: 0 | BB46: 0 | BC46: 0 | BD46: 0 | BE46: 0 | BF46: 0 | BG46: 0 | BH46: 0 | BI46: 0 | BJ46: 0 | BK46: 0 | BL46: 0 | BM46: 0
A47: =IF(Wetland_Inventory!A42<>"",Wetland_Inventory!A42,"") ->  | B47: =IF(Wetland_Inventory!B42<>"",Wetland_Inventory!B42,"") ->  | C47: =IF(Wetland_Inventory!C42<>"",Wetland_Inventory!C42,"") ->  | D47: =IF(Wetland_Inventory!D42<>"",Wetland_Inventory!D42,"") ->  | E47: =IF(Wetland_Inventory!E42<>"",Wetland_Inventory!E42,"") ->  | AJ47: 0 | AK47: 0 | AL47: 0 | AM47: 0 | AN47: 0 | AO47: 0 | AP47: 0 | AQ47: 0 | AS47: 0 | AT47: 0 | AU47: 0 | AV47: 0 | AW47: 0 | AX47: 0 | AY47: 0 | AZ47: 0 | BA47: 0 | BB47: 0 | BC47: 0 | BD47: 0 | BE47: 0 | BF47: 0 | BG47: 0 | BH47: 0 | BI47: 0 | BJ47: 0 | BK47: 0 | BL47: 0 | BM47: 0
A48: =IF(Wetland_Inventory!A43<>"",Wetland_Inventory!A43,"") ->  | B48: =IF(Wetland_Inventory!B43<>"",Wetland_Inventory!B43,"") ->  | C48: =IF(Wetland_Inventory!C43<>"",Wetland_Inventory!C43,"") ->  | D48: =IF(Wetland_Inventory!D43<>"",Wetland_Inventory!D43,"") ->  | E48: =IF(Wetland_Inventory!E43<>"",Wetland_Inventory!E43,"") ->  | AJ48: 0 | AK48: 0 | AL48: 0 | AM48: 0 | AN48: 0 | AO48: 0 | AP48: 0 | AQ48: 0 | AS48: 0 | AT48: 0 | AU48: 0 | AV48: 0 | AW48: 0 | AX48: 0 | AY48: 0 | AZ48: 0 | BA48: 0 | BB48: 0 | BC48: 0 | BD48: 0 | BE48: 0 | BF48: 0 | BG48: 0 | BH48: 0 | BI48: 0 | BJ48: 0 | BK48: 0 | BL48: 0 | BM48: 0
A49: =IF(Wetland_Inventory!A44<>"",Wetland_Inventory!A44,"") ->  | B49: =IF(Wetland_Inventory!B44<>"",Wetland_Inventory!B44,"") ->  | C49: =IF(Wetland_Inventory!C44<>"",Wetland_Inventory!C44,"") ->  | D49: =IF(Wetland_Inventory!D44<>"",Wetland_Inventory!D44,"") ->  | E49: =IF(Wetland_Inventory!E44<>"",Wetland_Inventory!E44,"") ->  | AJ49: 0 | AK49: 0 | AL49: 0 | AM49: 0 | AN49: 0 | AO49: 0 | AP49: 0 | AQ49: 0 | AS49: 0 | AT49: 0 | AU49: 0 | AV49: 0 | AW49: 0 | AX49: 0 | AY49: 0 | AZ49: 0 | BA49: 0 | BB49: 0 | BC49: 0 | BD49: 0 | BE49: 0 | BF49: 0 | BG49: 0 | BH49: 0 | BI49: 0 | BJ49: 0 | BK49: 0 | BL49: 0 | BM49: 0
A50: =IF(Wetland_Inventory!A45<>"",Wetland_Inventory!A45,"") ->  | B50: =IF(Wetland_Inventory!B45<>"",Wetland_Inventory!B45,"") ->  | C50: =IF(Wetland_Inventory!C45<>"",Wetland_Inventory!C45,"") ->  | D50: =IF(Wetland_Inventory!D45<>"",Wetland_Inventory!D45,"") ->  | E50: =IF(Wetland_Inventory!E45<>"",Wetland_Inventory!E45,"") ->  | AJ50: 0 | AK50: 0 | AL50: 0 | AM50: 0 | AN50: 0 | AO50: 0 | AP50: 0 | AQ50: 0 | AS50: 0 | AT50: 0 | AU50: 0 | AV50: 0 | AW50: 0 | AX50: 0 | AY50: 0 | AZ50: 0 | BA50: 0 | BB50: 0 | BC50: 0 | BD50: 0 | BE50: 0 | BF50: 0 | BG50: 0 | BH50: 0 | BI50: 0 | BJ50: 0 | BK50: 0 | BL50: 0 | BM50: 0
A51: =IF(Wetland_Inventory!A46<>"",Wetland_Inventory!A46,"") ->  | B51: =IF(Wetland_Inventory!B46<>"",Wetland_Inventory!B46,"") ->  | C51: =IF(Wetland_Inventory!C46<>"",Wetland_Inventory!C46,"") ->  | D51: =IF(Wetland_Inventory!D46<>"",Wetland_Inventory!D46,"") ->  | E51: =IF(Wetland_Inventory!E46<>"",Wetland_Inventory!E46,"") ->  | AJ51: 0 | AK51: 0 | AL51: 0 | AM51: 0 | AN51: 0 | AO51: 0 | AP51: 0 | AQ51: 0 | AS51: 0 | AT51: 0 | AU51: 0 | AV51: 0 | AW51: 0 | AX51: 0 | AY51: 0 | AZ51: 0 | BA51: 0 | BB51: 0 | BC51: 0 | BD51: 0 | BE51: 0 | BF51: 0 | BG51: 0 | BH51: 0 | BI51: 0 | BJ51: 0 | BK51: 0 | BL51: 0 | BM51: 0
A52: =IF(Wetland_Inventory!A47<>"",Wetland_Inventory!A47,"") ->  | B52: =IF(Wetland_Inventory!B47<>"",Wetland_Inventory!B47,"") ->  | C52: =IF(Wetland_Inventory!C47<>"",Wetland_Inventory!C47,"") ->  | D52: =IF(Wetland_Inventory!D47<>"",Wetland_Inventory!D47,"") ->  | E52: =IF(Wetland_Inventory!E47<>"",Wetland_Inventory!E47,"") ->  | AJ52: 0 | AK52: 0 | AL52: 0 | AM52: 0 | AN52: 0 | AO52: 0 | AP52: 0 | AQ52: 0 | AS52: 0 | AT52: 0 | AU52: 0 | AV52: 0 | AW52: 0 | AX52: 0 | AY52: 0 | AZ52: 0 | BA52: 0 | BB52: 0 | BC52: 0 | BD52: 0 | BE52: 0 | BF52: 0 | BG52: 0 | BH52: 0 | BI52: 0 | BJ52: 0 | BK52: 0 | BL52: 0 | BM52: 0
A53: =IF(Wetland_Inventory!A48<>"",Wetland_Inventory!A48,"") ->  | B53: =IF(Wetland_Inventory!B48<>"",Wetland_Inventory!B48,"") ->  | C53: =IF(Wetland_Inventory!C48<>"",Wetland_Inventory!C48,"") ->  | D53: =IF(Wetland_Inventory!D48<>"",Wetland_Inventory!D48,"") ->  | E53: =IF(Wetland_Inventory!E48<>"",Wetland_Inventory!E48,"") ->  | AJ53: 0 | AK53: 0 | AL53: 0 | AM53: 0 | AN53: 0 | AO53: 0 | AP53: 0 | AQ53: 0 | AS53: 0 | AT53: 0 | AU53: 0 | AV53: 0 | AW53: 0 | AX53: 0 | AY53: 0 | AZ53: 0 | BA53: 0 | BB53: 0 | BC53: 0 | BD53: 0 | BE53: 0 | BF53: 0 | BG53: 0 | BH53: 0 | BI53: 0 | BJ53: 0 | BK53: 0 | BL53: 0 | BM53: 0
A54: =IF(Wetland_Inventory!A49<>"",Wetland_Inventory!A49,"") ->  | B54: =IF(Wetland_Inventory!B49<>"",Wetland_Inventory!B49,"") ->  | C54: =IF(Wetland_Inventory!C49<>"",Wetland_Inventory!C49,"") ->  | D54: =IF(Wetland_Inventory!D49<>"",Wetland_Inventory!D49,"") ->  | E54: =IF(Wetland_Inventory!E49<>"",Wetland_Inventory!E49,"") ->  | AJ54: 0 | AK54: 0 | AL54: 0 | AM54: 0 | AN54: 0 | AO54: 0 | AP54: 0 | AQ54: 0 | AS54: 0 | AT54: 0 | AU54: 0 | AV54: 0 | AW54: 0 | AX54: 0 | AY54: 0 | AZ54: 0 | BA54: 0 | BB54: 0 | BC54: 0 | BD54: 0 | BE54: 0 | BF54: 0 | BG54: 0 | BH54: 0 | BI54: 0 | BJ54: 0 | BK54: 0 | BL54: 0 | BM54: 0
A55: =IF(Wetland_Inventory!A50<>"",Wetland_Inventory!A50,"") ->  | B55: =IF(Wetland_Inventory!B50<>"",Wetland_Inventory!B50,"") ->  | C55: =IF(Wetland_Inventory!C50<>"",Wetland_Inventory!C50,"") ->  | D55: =IF(Wetland_Inventory!D50<>"",Wetland_Inventory!D50,"") ->  | E55: =IF(Wetland_Inventory!E50<>"",Wetland_Inventory!E50,"") ->  | AJ55: 0 | AK55: 0 | AL55: 0 | AM55: 0 | AN55: 0 | AO55: 0 | AP55: 0 | AQ55: 0 | AS55: 0 | AT55: 0 | AU55: 0 | AV55: 0 | AW55: 0 | AX55: 0 | AY55: 0 | AZ55: 0 | BA55: 0 | BB55: 0 | BC55: 0 | BD55: 0 | BE55: 0 | BF55: 0 | BG55: 0 | BH55: 0 | BI55: 0 | BJ55: 0 | BK55: 0 | BL55: 0 | BM55: 0
A56: =IF(Wetland_Inventory!A51<>"",Wetland_Inventory!A51,"") ->  | B56: =IF(Wetland_Inventory!B51<>"",Wetland_Inventory!B51,"") ->  | C56: =IF(Wetland_Inventory!C51<>"",Wetland_Inventory!C51,"") ->  | D56: =IF(Wetland_Inventory!D51<>"",Wetland_Inventory!D51,"") ->  | E56: =IF(Wetland_Inventory!E51<>"",Wetland_Inventory!E51,"") ->  | AJ56: 0 | AK56: 0 | AL56: 0 | AM56: 0 | AN56: 0 | AO56: 0 | AP56: 0 | AQ56: 0 | AS56: 0 | AT56: 0 | AU56: 0 | AV56: 0 | AW56: 0 | AX56: 0 | AY56: 0 | AZ56: 0 | BA56: 0 | BB56: 0 | BC56: 0 | BD56: 0 | BE56: 0 | BF56: 0 | BG56: 0 | BH56: 0 | BI56: 0 | BJ56: 0 | BK56: 0 | BL56: 0 | BM56: 0
A57: =IF(Wetland_Inventory!A52<>"",Wetland_Inventory!A52,"") ->  | B57: =IF(Wetland_Inventory!B52<>"",Wetland_Inventory!B52,"") ->  | C57: =IF(Wetland_Inventory!C52<>"",Wetland_Inventory!C52,"") ->  | D57: =IF(Wetland_Inventory!D52<>"",Wetland_Inventory!D52,"") ->  | E57: =IF(Wetland_Inventory!E52<>"",Wetland_Inventory!E52,"") ->  | AJ57: 0 | AK57: 0 | AL57: 0 | AM57: 0 | AN57: 0 | AO57: 0 | AP57: 0 | AQ57: 0 | AS57: 0 | AT57: 0 | AU57: 0 | AV57: 0 | AW57: 0 | AX57: 0 | AY57: 0 | AZ57: 0 | BA57: 0 | BB57: 0 | BC57: 0 | BD57: 0 | BE57: 0 | BF57: 0 | BG57: 0 | BH57: 0 | BI57: 0 | BJ57: 0 | BK57: 0 | BL57: 0 | BM57: 0
A58: =IF(Wetland_Inventory!A53<>"",Wetland_Inventory!A53,"") ->  | B58: =IF(Wetland_Inventory!B53<>"",Wetland_Inventory!B53,"") ->  | C58: =IF(Wetland_Inventory!C53<>"",Wetland_Inventory!C53,"") ->  | D58: =IF(Wetland_Inventory!D53<>"",Wetland_Inventory!D53,"") ->  | E58: =IF(Wetland_Inventory!E53<>"",Wetland_Inventory!E53,"") ->  | AJ58: 0 | AK58: 0 | AL58: 0 | AM58: 0 | AN58: 0 | AO58: 0 | AP58: 0 | AQ58: 0 | AS58: 0 | AT58: 0 | AU58: 0 | AV58: 0 | AW58: 0 | AX58: 0 | AY58: 0 | AZ58: 0 | BA58: 0 | BB58: 0 | BC58: 0 | BD58: 0 | BE58: 0 | BF58: 0 | BG58: 0 | BH58: 0 | BI58: 0 | BJ58: 0 | BK58: 0 | BL58: 0 | BM58: 0
A59: =IF(Wetland_Inventory!A54<>"",Wetland_Inventory!A54,"") ->  | B59: =IF(Wetland_Inventory!B54<>"",Wetland_Inventory!B54,"") ->  | C59: =IF(Wetland_Inventory!C54<>"",Wetland_Inventory!C54,"") ->  | D59: =IF(Wetland_Inventory!D54<>"",Wetland_Inventory!D54,"") ->  | E59: =IF(Wetland_Inventory!E54<>"",Wetland_Inventory!E54,"") ->  | AJ59: 0 | AK59: 0 | AL59: 0 | AM59: 0 | AN59: 0 | AO59: 0 | AP59: 0 | AQ59: 0 | AS59: 0 | AT59: 0 | AU59: 0 | AV59: 0 | AW59: 0 | AX59: 0 | AY59: 0 | AZ59: 0 | BA59: 0 | BB59: 0 | BC59: 0 | BD59: 0 | BE59: 0 | BF59: 0 | BG59: 0 | BH59: 0 | BI59: 0 | BJ59: 0 | BK59: 0 | BL59: 0 | BM59: 0
A60: =IF(Wetland_Inventory!A55<>"",Wetland_Inventory!A55,"") ->  | B60: =IF(Wetland_Inventory!B55<>"",Wetland_Inventory!B55,"") ->  | C60: =IF(Wetland_Inventory!C55<>"",Wetland_Inventory!C55,"") ->  | D60: =IF(Wetland_Inventory!D55<>"",Wetland_Inventory!D55,"") ->  | E60: =IF(Wetland_Inventory!E55<>"",Wetland_Inventory!E55,"") ->  | AJ60: 0 | AK60: 0 | AL60: 0 | AM60: 0 | AN60: 0 | AO60: 0 | AP60: 0 | AQ60: 0 | AS60: 0 | AT60: 0 | AU60: 0 | AV60: 0 | AW60: 0 | AX60: 0 | AY60: 0 | AZ60: 0 | BA60: 0 | BB60: 0 | BC60: 0 | BD60: 0 | BE60: 0 | BF60: 0 | BG60: 0 | BH60: 0 | BI60: 0 | BJ60: 0 | BK60: 0 | BL60: 0 | BM60: 0
A61: =IF(Wetland_Inventory!A56<>"",Wetland_Inventory!A56,"") ->  | B61: =IF(Wetland_Inventory!B56<>"",Wetland_Inventory!B56,"") ->  | C61: =IF(Wetland_Inventory!C56<>"",Wetland_Inventory!C56,"") ->  | D61: =IF(Wetland_Inventory!D56<>"",Wetland_Inventory!D56,"") ->  | E61: =IF(Wetland_Inventory!E56<>"",Wetland_Inventory!E56,"") ->  | AJ61: 0 | AK61: 0 | AL61: 0 | AM61: 0 | AN61: 0 | AO61: 0 | AP61: 0 | AQ61: 0 | AS61: 0 | AT61: 0 | AU61: 0 | AV61: 0 | AW61: 0 | AX61: 0 | AY61: 0 | AZ61: 0 | BA61: 0 | BB61: 0 | BC61: 0 | BD61: 0 | BE61: 0 | BF61: 0 | BG61: 0 | BH61: 0 | BI61: 0 | BJ61: 0 | BK61: 0 | BL61: 0 | BM61: 0
A62: =IF(Wetland_Inventory!A57<>"",Wetland_Inventory!A57,"") ->  | B62: =IF(Wetland_Inventory!B57<>"",Wetland_Inventory!B57,"") ->  | C62: =IF(Wetland_Inventory!C57<>"",Wetland_Inventory!C57,"") ->  | D62: =IF(Wetland_Inventory!D57<>"",Wetland_Inventory!D57,"") ->  | E62: =IF(Wetland_Inventory!E57<>"",Wetland_Inventory!E57,"") ->  | AJ62: 0 | AK62: 0 | AL62: 0 | AM62: 0 | AN62: 0 | AO62: 0 | AP62: 0 | AQ62: 0 | AS62: 0 | AT62: 0 | AU62: 0 | AV62: 0 | AW62: 0 | AX62: 0 | AY62: 0 | AZ62: 0 | BA62: 0 | BB62: 0 | BC62: 0 | BD62: 0 | BE62: 0 | BF62: 0 | BG62: 0 | BH62: 0 | BI62: 0 | BJ62: 0 | BK62: 0 | BL62: 0 | BM62: 0
A63: =IF(Wetland_Inventory!A58<>"",Wetland_Inventory!A58,"") ->  | B63: =IF(Wetland_Inventory!B58<>"",Wetland_Inventory!B58,"") ->  | C63: =IF(Wetland_Inventory!C58<>"",Wetland_Inventory!C58,"") ->  | D63: =IF(Wetland_Inventory!D58<>"",Wetland_Inventory!D58,"") ->  | E63: =IF(Wetland_Inventory!E58<>"",Wetland_Inventory!E58,"") ->  | AJ63: 0 | AK63: 0 | AL63: 0 | AM63: 0 | AN63: 0 | AO63: 0 | AP63: 0 | AQ63: 0 | AS63: 0 | AT63: 0 | AU63: 0 | AV63: 0 | AW63: 0 | AX63: 0 | AY63: 0 | AZ63: 0 | BA63: 0 | BB63: 0 | BC63: 0 | BD63: 0 | BE63: 0 | BF63: 0 | BG63: 0 | BH63: 0 | BI63: 0 | BJ63: 0 | BK63: 0 | BL63: 0 | BM63: 0
A64: =IF(Wetland_Inventory!A59<>"",Wetland_Inventory!A59,"") ->  | B64: =IF(Wetland_Inventory!B59<>"",Wetland_Inventory!B59,"") ->  | C64: =IF(Wetland_Inventory!C59<>"",Wetland_Inventory!C59,"") ->  | D64: =IF(Wetland_Inventory!D59<>"",Wetland_Inventory!D59,"") ->  | E64: =IF(Wetland_Inventory!E59<>"",Wetland_Inventory!E59,"") ->  | AJ64: 0 | AK64: 0 | AL64: 0 | AM64: 0 | AN64: 0 | AO64: 0 | AP64: 0 | AQ64: 0 | AS64: 0 | AT64: 0 | AU64: 0 | AV64: 0 | AW64: 0 | AX64: 0 | AY64: 0 | AZ64: 0 | BA64: 0 | BB64: 0 | BC64: 0 | BD64: 0 | BE64: 0 | BF64: 0 | BG64: 0 | BH64: 0 | BI64: 0 | BJ64: 0 | BK64: 0 | BL64: 0 | BM64: 0
A65: =IF(Wetland_Inventory!A60<>"",Wetland_Inventory!A60,"") ->  | B65: =IF(Wetland_Inventory!B60<>"",Wetland_Inventory!B60,"") ->  | C65: =IF(Wetland_Inventory!C60<>"",Wetland_Inventory!C60,"") ->  | D65: =IF(Wetland_Inventory!D60<>"",Wetland_Inventory!D60,"") ->  | E65: =IF(Wetland_Inventory!E60<>"",Wetland_Inventory!E60,"") ->  | AJ65: 0 | AK65: 0 | AL65: 0 | AM65: 0 | AN65: 0 | AO65: 0 | AP65: 0 | AQ65: 0 | AS65: 0 | AT65: 0 | AU65: 0 | AV65: 0 | AW65: 0 | AX65: 0 | AY65: 0 | AZ65: 0 | BA65: 0 | BB65: 0 | BC65: 0 | BD65: 0 | BE65: 0 | BF65: 0 | BG65: 0 | BH65: 0 | BI65: 0 | BJ65: 0 | BK65: 0 | BL65: 0 | BM65: 0
A66: =IF(Wetland_Inventory!A61<>"",Wetland_Inventory!A61,"") ->  | B66: =IF(Wetland_Inventory!B61<>"",Wetland_Inventory!B61,"") ->  | C66: =IF(Wetland_Inventory!C61<>"",Wetland_Inventory!C61,"") ->  | D66: =IF(Wetland_Inventory!D61<>"",Wetland_Inventory!D61,"") ->  | E66: =IF(Wetland_Inventory!E61<>"",Wetland_Inventory!E61,"") ->  | AJ66: 0 | AK66: 0 | AL66: 0 | AM66: 0 | AN66: 0 | AO66: 0 | AP66: 0 | AQ66: 0 | AS66: 0 | AT66: 0 | AU66: 0 | AV66: 0 | AW66: 0 | AX66: 0 | AY66: 0 | AZ66: 0 | BA66: 0 | BB66: 0 | BC66: 0 | BD66: 0 | BE66: 0 | BF66: 0 | BG66: 0 | BH66: 0 | BI66: 0 | BJ66: 0 | BK66: 0 | BL66: 0 | BM66: 0
A67: =IF(Wetland_Inventory!A62<>"",Wetland_Inventory!A62,"") ->  | B67: =IF(Wetland_Inventory!B62<>"",Wetland_Inventory!B62,"") ->  | C67: =IF(Wetland_Inventory!C62<>"",Wetland_Inventory!C62,"") ->  | D67: =IF(Wetland_Inventory!D62<>"",Wetland_Inventory!D62,"") ->  | E67: =IF(Wetland_Inventory!E62<>"",Wetland_Inventory!E62,"") ->  | AJ67: 0 | AK67: 0 | AL67: 0 | AM67: 0 | AN67: 0 | AO67: 0 | AP67: 0 | AQ67: 0 | AS67: 0 | AT67: 0 | AU67: 0 | AV67: 0 | AW67: 0 | AX67: 0 | AY67: 0 | AZ67: 0 | BA67: 0 | BB67: 0 | BC67: 0 | BD67: 0 | BE67: 0 | BF67: 0 | BG67: 0 | BH67: 0 | BI67: 0 | BJ67: 0 | BK67: 0 | BL67: 0 | BM67: 0
A68: =IF(Wetland_Inventory!A63<>"",Wetland_Inventory!A63,"") ->  | B68: =IF(Wetland_Inventory!B63<>"",Wetland_Inventory!B63,"") ->  | C68: =IF(Wetland_Inventory!C63<>"",Wetland_Inventory!C63,"") ->  | D68: =IF(Wetland_Inventory!D63<>"",Wetland_Inventory!D63,"") ->  | E68: =IF(Wetland_Inventory!E63<>"",Wetland_Inventory!E63,"") ->  | AJ68: 0 | AK68: 0 | AL68: 0 | AM68: 0 | AN68: 0 | AO68: 0 | AP68: 0 | AQ68: 0 | AS68: =IF($AB68=AS$18,$AC68,0) -> 0 | AT68: 0 | AU68: 0 | AV68: 0 | AW68: 0 | AX68: 0 | AY68: 0 | AZ68: =IF($AD68=AZ$18,$AE68,0) -> 0 | BA68: 0 | BB68: 0 | BC68: 0 | BD68: 0 | BE68: 0 | BF68: 0 | BG68: =IF($AF68=BG$18,$AG68,0) -> 0 | BH68: 0 | BI68: 0 | BJ68: 0 | BK68: 0 | BL68: 0 | BM68: 0
A69: =IF(Wetland_Inventory!A64<>"",Wetland_Inventory!A64,"") ->  | B69: =IF(Wetland_Inventory!B64<>"",Wetland_Inventory!B64,"") ->  | C69: =IF(Wetland_Inventory!C64<>"",Wetland_Inventory!C64,"") ->  | D69: =IF(Wetland_Inventory!D64<>"",Wetland_Inventory!D64,"") ->  | E69: =IF(Wetland_Inventory!E64<>"",Wetland_Inventory!E64,"") ->  | AJ69: 0 | AK69: 0 | AL69: 0 | AM69: 0 | AN69: 0 | AO69: 0 | AP69: 0 | AQ69: 0 | AS69: 0 | AT69: 0 | AU69: 0 | AV69: 0 | AW69: 0 | AX69: 0 | AY69: 0 | AZ69: 0 | BA69: 0 | BB69: 0 | BC69: 0 | BD69: 0 | BE69: 0 | BF69: 0 | BG69: 0 | BH69: 0 | BI69: 0 | BJ69: 0 | BK69: 0 | BL69: 0 | BM69: 0
A70: =IF(Wetland_Inventory!A65<>"",Wetland_Inventory!A65,"") ->  | B70: =IF(Wetland_Inventory!B65<>"",Wetland_Inventory!B65,"") ->  | C70: =IF(Wetland_Inventory!C65<>"",Wetland_Inventory!C65,"") ->  | D70: =IF(Wetland_Inventory!D65<>"",Wetland_Inventory!D65,"") ->  | E70: =IF(Wetland_Inventory!E65<>"",Wetland_Inventory!E65,"") ->  | AJ70: 0 | AK70: 0 | AL70: 0 | AM70: 0 | AN70: 0 | AO70: 0 | AP70: 0 | AQ70: 0 | AS70: 0 | AT70: 0 | AU70: 0 | AV70: 0 | AW70: 0 | AX70: 0 | AY70: 0 | AZ70: 0 | BA70: 0 | BB70: 0 | BC70: 0 | BD70: 0 | BE70: 0 | BF70: 0 | BG70: 0 | BH70: 0 | BI70: 0 | BJ70: 0 | BK70: 0 | BL70: 0 | BM70: 0
A71: =IF(Wetland_Inventory!A66<>"",Wetland_Inventory!A66,"") ->  | B71: =IF(Wetland_Inventory!B66<>"",Wetland_Inventory!B66,"") ->  | C71: =IF(Wetland_Inventory!C66<>"",Wetland_Inventory!C66,"") ->  | D71: =IF(Wetland_Inventory!D66<>"",Wetland_Inventory!D66,"") ->  | E71: =IF(Wetland_Inventory!E66<>"",Wetland_Inventory!E66,"") ->  | AJ71: 0 | AK71: 0 | AL71: 0 | AM71: 0 | AN71: 0 | AO71: 0 | AP71: 0 | AQ71: 0 | AS71: 0 | AT71: 0 | AU71: 0 | AV71: 0 | AW71: 0 | AX71: 0 | AY71: 0 | AZ71: 0 | BA71: 0 | BB71: 0 | BC71: 0 | BD71: 0 | BE71: 0 | BF71: 0 | BG71: 0 | BH71: 0 | BI71: 0 | BJ71: 0 | BK71: 0 | BL71: 0 | BM71: 0
A72: =IF(Wetland_Inventory!A67<>"",Wetland_Inventory!A67,"") ->  | B72: =IF(Wetland_Inventory!B67<>"",Wetland_Inventory!B67,"") ->  | C72: =IF(Wetland_Inventory!C67<>"",Wetland_Inventory!C67,"") ->  | D72: =IF(Wetland_Inventory!D67<>"",Wetland_Inventory!D67,"") ->  | E72: =IF(Wetland_Inventory!E67<>"",Wetland_Inventory!E67,"") ->  | AJ72: 0 | AK72: 0 | AL72: 0 | AM72: 0 | AN72: 0 | AO72: 0 | AP72: 0 | AQ72: 0 | AS72: 0 | AT72: 0 | AU72: 0 | AV72: 0 | AW72: 0 | AX72: 0 | AY72: 0 | AZ72: 0 | BA72: 0 | BB72: 0 | BC72: 0 | BD72: 0 | BE72: 0 | BF72: 0 | BG72: 0 | BH72: 0 | BI72: 0 | BJ72: 0 | BK72: 0 | BL72: 0 | BM72: 0
A73: =IF(Wetland_Inventory!A68<>"",Wetland_Inventory!A68,"") ->  | B73: =IF(Wetland_Inventory!B68<>"",Wetland_Inventory!B68,"") ->  | C73: =IF(Wetland_Inventory!C68<>"",Wetland_Inventory!C68,"") ->  | D73: =IF(Wetland_Inventory!D68<>"",Wetland_Inventory!D68,"") ->  | E73: =IF(Wetland_Inventory!E68<>"",Wetland_Inventory!E68,"") ->  | AJ73: 0 | AK73: 0 | AL73: 0 | AM73: 0 | AN73: 0 | AO73: 0 | AP73: 0 | AQ73: 0 | AS73: 0 | AT73: 0 | AU73: 0 | AV73: 0 | AW73: 0 | AX73: 0 | AY73: 0 | AZ73: 0 | BA73: 0 | BB73: 0 | BC73: 0 | BD73: 0 | BE73: 0 | BF73: 0 | BG73: 0 | BH73: 0 | BI73: 0 | BJ73: 0 | BK73: 0 | BL73: 0 | BM73: 0
A74: =IF(Wetland_Inventory!A69<>"",Wetland_Inventory!A69,"") ->  | B74: =IF(Wetland_Inventory!B69<>"",Wetland_Inventory!B69,"") ->  | C74: =IF(Wetland_Inventory!C69<>"",Wetland_Inventory!C69,"") ->  | D74: =IF(Wetland_Inventory!D69<>"",Wetland_Inventory!D69,"") ->  | E74: =IF(Wetland_Inventory!E69<>"",Wetland_Inventory!E69,"") ->  | AJ74: 0 | AK74: 0 | AL74: 0 | AM74: 0 | AN74: 0 | AO74: 0 | AP74: 0 | AQ74: 0 | AS74: 0 | AT74: 0 | AU74: 0 | AV74: 0 | AW74: 0 | AX74: 0 | AY74: 0 | AZ74: 0 | BA74: 0 | BB74: 0 | BC74: 0 | BD74: 0 | BE74: 0 | BF74: 0 | BG74: 0 | BH74: 0 | BI74: 0 | BJ74: 0 | BK74: 0 | BL74: 0 | BM74: 0
A75: =IF(Wetland_Inventory!A70<>"",Wetland_Inventory!A70,"") ->  | B75: =IF(Wetland_Inventory!B70<>"",Wetland_Inventory!B70,"") ->  | C75: =IF(Wetland_Inventory!C70<>"",Wetland_Inventory!C70,"") ->  | D75: =IF(Wetland_Inventory!D70<>"",Wetland_Inventory!D70,"") ->  | E75: =IF(Wetland_Inventory!E70<>"",Wetland_Inventory!E70,"") ->  | AJ75: 0 | AK75: 0 | AL75: 0 | AM75: 0 | AN75: 0 | AO75: 0 | AP75: 0 | AQ75: 0 | AS75: 0 | AT75: 0 | AU75: 0 | AV75: 0 | AW75: 0 | AX75: 0 | AY75: 0 | AZ75: 0 | BA75: 0 | BB75: 0 | BC75: 0 | BD75: 0 | BE75: 0 | BF75: 0 | BG75: 0 | BH75: 0 | BI75: 0 | BJ75: 0 | BK75: 0 | BL75: 0 | BM75: 0
A76: =IF(Wetland_Inventory!A71<>"",Wetland_Inventory!A71,"") ->  | B76: =IF(Wetland_Inventory!B71<>"",Wetland_Inventory!B71,"") ->  | C76: =IF(Wetland_Inventory!C71<>"",Wetland_Inventory!C71,"") ->  | D76: =IF(Wetland_Inventory!D71<>"",Wetland_Inventory!D71,"") ->  | E76: =IF(Wetland_Inventory!E71<>"",Wetland_Inventory!E71,"") ->  | AJ76: 0 | AK76: 0 | AL76: 0 | AM76: 0 | AN76: 0 | AO76: 0 | AP76: 0 | AQ76: 0 | AS76: 0 | AT76: 0 | AU76: 0 | AV76: 0 | AW76: 0 | AX76: 0 | AY76: 0 | AZ76: 0 | BA76: 0 | BB76: 0 | BC76: 0 | BD76: 0 | BE76: 0 | BF76: 0 | BG76: 0 | BH76: 0 | BI76: 0 | BJ76: 0 | BK76: 0 | BL76: 0 | BM76: 0
A77: =IF(Wetland_Inventory!A72<>"",Wetland_Inventory!A72,"") ->  | B77: =IF(Wetland_Inventory!B72<>"",Wetland_Inventory!B72,"") ->  | C77: =IF(Wetland_Inventory!C72<>"",Wetland_Inventory!C72,"") ->  | D77: =IF(Wetland_Inventory!D72<>"",Wetland_Inventory!D72,"") ->  | E77: =IF(Wetland_Inventory!E72<>"",Wetland_Inventory!E72,"") ->  | AJ77: 0 | AK77: 0 | AL77: 0 | AM77: 0 | AN77: 0 | AO77: 0 | AP77: 0 | AQ77: 0 | AS77: 0 | AT77: 0 | AU77: 0 | AV77: 0 | AW77: 0 | AX77: 0 | AY77: 0 | AZ77: 0 | BA77: 0 | BB77: 0 | BC77: 0 | BD77: 0 | BE77: 0 | BF77: 0 | BG77: 0 | BH77: 0 | BI77: 0 | BJ77: 0 | BK77: 0 | BL77: 0 | BM77: 0
A78: =IF(Wetland_Inventory!A73<>"",Wetland_Inventory!A73,"") ->  | B78: =IF(Wetland_Inventory!B73<>"",Wetland_Inventory!B73,"") ->  | C78: =IF(Wetland_Inventory!C73<>"",Wetland_Inventory!C73,"") ->  | D78: =IF(Wetland_Inventory!D73<>"",Wetland_Inventory!D73,"") ->  | E78: =IF(Wetland_Inventory!E73<>"",Wetland_Inventory!E73,"") ->  | AJ78: 0 | AK78: 0 | AL78: 0 | AM78: 0 | AN78: 0 | AO78: 0 | AP78: 0 | AQ78: 0 | AS78: 0 | AT78: 0 | AU78: 0 | AV78: 0 | AW78: 0 | AX78: 0 | AY78: 0 | AZ78: 0 | BA78: 0 | BB78: 0 | BC78: 0 | BD78: 0 | BE78: 0 | BF78: 0 | BG78: 0 | BH78: 0 | BI78: 0 | BJ78: 0 | BK78: 0 | BL78: 0 | BM78: 0
A79: =IF(Wetland_Inventory!A74<>"",Wetland_Inventory!A74,"") ->  | B79: =IF(Wetland_Inventory!B74<>"",Wetland_Inventory!B74,"") ->  | C79: =IF(Wetland_Inventory!C74<>"",Wetland_Inventory!C74,"") ->  | D79: =IF(Wetland_Inventory!D74<>"",Wetland_Inventory!D74,"") ->  | E79: =IF(Wetland_Inventory!E74<>"",Wetland_Inventory!E74,"") ->  | AJ79: 0 | AK79: 0 | AL79: 0 | AM79: 0 | AN79: 0 | AO79: 0 | AP79: 0 | AQ79: 0 | AS79: 0 | AT79: 0 | AU79: 0 | AV79: 0 | AW79: 0 | AX79: 0 | AY79: 0 | AZ79: 0 | BA79: 0 | BB79: 0 | BC79: 0 | BD79: 0 | BE79: 0 | BF79: 0 | BG79: 0 | BH79: 0 | BI79: 0 | BJ79: 0 | BK79: 0 | BL79: 0 | BM79: 0
A80: =IF(Wetland_Inventory!A75<>"",Wetland_Inventory!A75,"") ->  | B80: =IF(Wetland_Inventory!B75<>"",Wetland_Inventory!B75,"") ->  | C80: =IF(Wetland_Inventory!C75<>"",Wetland_Inventory!C75,"") ->  | D80: =IF(Wetland_Inventory!D75<>"",Wetland_Inventory!D75,"") ->  | E80: =IF(Wetland_Inventory!E75<>"",Wetland_Inventory!E75,"") ->  | AJ80: 0 | AK80: 0 | AL80: 0 | AM80: 0 | AN80: 0 | AO80: 0 | AP80: 0 | AQ80: 0 | AS80: 0 | AT80: 0 | AU80: 0 | AV80: 0 | AW80: 0 | AX80: 0 | AY80: 0 | AZ80: 0 | BA80: 0 | BB80: 0 | BC80: 0 | BD80: 0 | BE80: 0 | BF80: 0 | BG80: 0 | BH80: 0 | BI80: 0 | BJ80: 0 | BK80: 0 | BL80: 0 | BM80: 0
A81: =IF(Wetland_Inventory!A76<>"",Wetland_Inventory!A76,"") ->  | B81: =IF(Wetland_Inventory!B76<>"",Wetland_Inventory!B76,"") ->  | C81: =IF(Wetland_Inventory!C76<>"",Wetland_Inventory!C76,"") ->  | D81: =IF(Wetland_Inventory!D76<>"",Wetland_Inventory!D76,"") ->  | E81: =IF(Wetland_Inventory!E76<>"",Wetland_Inventory!E76,"") ->  | AJ81: 0 | AK81: 0 | AL81: 0 | AM81: 0 | AN81: 0 | AO81: 0 | AP81: 0 | AQ81: 0 | AS81: 0 | AT81: 0 | AU81: 0 | AV81: 0 | AW81: 0 | AX81: 0 | AY81: 0 | AZ81: 0 | BA81: 0 | BB81: 0 | BC81: 0 | BD81: 0 | BE81: 0 | BF81: 0 | BG81: 0 | BH81: 0 | BI81: 0 | BJ81: 0 | BK81: 0 | BL81: 0 | BM81: 0
A82: =IF(Wetland_Inventory!A77<>"",Wetland_Inventory!A77,"") ->  | B82: =IF(Wetland_Inventory!B77<>"",Wetland_Inventory!B77,"") ->  | C82: =IF(Wetland_Inventory!C77<>"",Wetland_Inventory!C77,"") ->  | D82: =IF(Wetland_Inventory!D77<>"",Wetland_Inventory!D77,"") ->  | E82: =IF(Wetland_Inventory!E77<>"",Wetland_Inventory!E77,"") ->  | AJ82: 0 | AK82: 0 | AL82: 0 | AM82: 0 | AN82: 0 | AO82: 0 | AP82: 0 | AQ82: 0 | AS82: 0 | AT82: 0 | AU82: 0 | AV82: 0 | AW82: 0 | AX82: 0 | AY82: 0 | AZ82: 0 | BA82: 0 | BB82: 0 | BC82: 0 | BD82: 0 | BE82: 0 | BF82: 0 | BG82: 0 | BH82: 0 | BI82: 0 | BJ82: 0 | BK82: 0 | BL82: 0 | BM82: 0
A83: =IF(Wetland_Inventory!A78<>"",Wetland_Inventory!A78,"") ->  | B83: =IF(Wetland_Inventory!B78<>"",Wetland_Inventory!B78,"") ->  | C83: =IF(Wetland_Inventory!C78<>"",Wetland_Inventory!C78,"") ->  | D83: =IF(Wetland_Inventory!D78<>"",Wetland_Inventory!D78,"") ->  | E83: =IF(Wetland_Inventory!E78<>"",Wetland_Inventory!E78,"") ->  | AJ83: 0 | AK83: 0 | AL83: 0 | AM83: 0 | AN83: 0 | AO83: 0 | AP83: 0 | AQ83: 0 | AS83: 0 | AT83: 0 | AU83: 0 | AV83: 0 | AW83: 0 | AX83: 0 | AY83: 0 | AZ83: 0 | BA83: 0 | BB83: 0 | BC83: 0 | BD83: 0 | BE83: 0 | BF83: 0 | BG83: 0 | BH83: 0 | BI83: 0 | BJ83: 0 | BK83: 0 | BL83: 0 | BM83: 0
A84: =IF(Wetland_Inventory!A79<>"",Wetland_Inventory!A79,"") ->  | B84: =IF(Wetland_Inventory!B79<>"",Wetland_Inventory!B79,"") ->  | C84: =IF(Wetland_Inventory!C79<>"",Wetland_Inventory!C79,"") ->  | D84: =IF(Wetland_Inventory!D79<>"",Wetland_Inventory!D79,"") ->  | E84: =IF(Wetland_Inventory!E79<>"",Wetland_Inventory!E79,"") ->  | L84: =IF(A84="","",G84+I84+K84) ->  | M84: =IF(A84="","",B84-L84) ->  | AB84: =IF(ISNA(VLOOKUP(F84,$C$5:$D$14,2,FALSE)),"",VLOOKUP(F84,$C$5:$D$14,2,FALSE)) ->  | AC84: =IF(AB84<>"",G84,"") ->  | AD84: =IF(ISNA(VLOOKUP(H84,$C$5:$D$14,2,FALSE)),"",VLOOKUP(H84,$C$5:$D$14,2,FALSE)) ->  | AE84: =IF(AD84<>"",I84,"") ->  | AF84: =IF(ISNA(VLOOKUP(J84,$C$5:$D$14,2,FALSE)),"",VLOOKUP(J84,$C$5:$D$14,2,FALSE)) ->  | AG84: =IF(AF84<>"",K84,"") ->  | AI84: =IF(C84<>"",C84,"") ->  | AJ84: =AS84+AZ84+BG84 -> 0 | AK84: 0 | AL84: 0 | AM84: 0 | AN84: 0 | AO84: 0 | AP84: 0 | AQ84: =SUM(AJ84:AP84) -> 0 | AS84: 0 | AT84: 0 | AU84: 0 | AV84: 0 | AW84: 0 | AX84: 0 | AY84: 0 | AZ84: 0 | BA84: 0 | BB84: 0 | BC84: 0 | BD84: 0 | BE84: 0 | BF84: 0 | BG84: 0 | BH84: 0 | BI84: 0 | BJ84: 0 | BK84: 0 | BL84: 0 | BM84: 0
A85: =IF(Wetland_Inventory!A80<>"",Wetland_Inventory!A80,"") ->  | B85: =IF(Wetland_Inventory!B80<>"",Wetland_Inventory!B80,"") ->  | C85: =IF(Wetland_Inventory!C80<>"",Wetland_Inventory!C80,"") ->  | D85: =IF(Wetland_Inventory!D80<>"",Wetland_Inventory!D80,"") ->  | E85: =IF(Wetland_Inventory!E80<>"",Wetland_Inventory!E80,"") ->  | AJ85: 0 | AK85: 0 | AL85: 0 | AM85: 0 | AN85: 0 | AO85: 0 | AP85: 0 | AQ85: 0 | AS85: 0 | AT85: 0 | AU85: 0 | AV85: 0 | AW85: 0 | AX85: 0 | AY85: 0 | AZ85: 0 | BA85: 0 | BB85: 0 | BC85: 0 | BD85: 0 | BE85: 0 | BF85: 0 | BG85: 0 | BH85: 0 | BI85: 0 | BJ85: 0 | BK85: 0 | BL85: 0 | BM85: 0
A86: =IF(Wetland_Inventory!A81<>"",Wetland_Inventory!A81,"") ->  | B86: =IF(Wetland_Inventory!B81<>"",Wetland_Inventory!B81,"") ->  | C86: =IF(Wetland_Inventory!C81<>"",Wetland_Inventory!C81,"") ->  | D86: =IF(Wetland_Inventory!D81<>"",Wetland_Inventory!D81,"") ->  | E86: =IF(Wetland_Inventory!E81<>"",Wetland_Inventory!E81,"") ->  | AJ86: 0 | AK86: 0 | AL86: 0 | AM86: 0 | AN86: 0 | AO86: 0 | AP86: 0 | AQ86: 0 | AS86: 0 | AT86: 0 | AU86: 0 | AV86: 0 | AW86: 0 | AX86: 0 | AY86: 0 | AZ86: 0 | BA86: 0 | BB86: 0 | BC86: 0 | BD86: 0 | BE86: 0 | BF86: 0 | BG86: 0 | BH86: 0 | BI86: 0 | BJ86: 0 | BK86: 0 | BL86: 0 | BM86: 0
A87: =IF(Wetland_Inventory!A82<>"",Wetland_Inventory!A82,"") ->  | B87: =IF(Wetland_Inventory!B82<>"",Wetland_Inventory!B82,"") ->  | C87: =IF(Wetland_Inventory!C82<>"",Wetland_Inventory!C82,"") ->  | D87: =IF(Wetland_Inventory!D82<>"",Wetland_Inventory!D82,"") ->  | E87: =IF(Wetland_Inventory!E82<>"",Wetland_Inventory!E82,"") ->  | AJ87: 0 | AK87: 0 | AL87: 0 | AM87: 0 | AN87: 0 | AO87: 0 | AP87: 0 | AQ87: 0 | AS87: 0 | AT87: 0 | AU87: 0 | AV87: 0 | AW87: 0 | AX87: 0 | AY87: 0 | AZ87: 0 | BA87: 0 | BB87: 0 | BC87: 0 | BD87: 0 | BE87: 0 | BF87: 0 | BG87: 0 | BH87: 0 | BI87: 0 | BJ87: 0 | BK87: 0 | BL87: 0 | BM87: 0
A88: =IF(Wetland_Inventory!A83<>"",Wetland_Inventory!A83,"") ->  | B88: =IF(Wetland_Inventory!B83<>"",Wetland_Inventory!B83,"") ->  | C88: =IF(Wetland_Inventory!C83<>"",Wetland_Inventory!C83,"") ->  | D88: =IF(Wetland_Inventory!D83<>"",Wetland_Inventory!D83,"") ->  | E88: =IF(Wetland_Inventory!E83<>"",Wetland_Inventory!E83,"") ->  | AJ88: 0 | AK88: 0 | AL88: 0 | AM88: 0 | AN88: 0 | AO88: 0 | AP88: 0 | AQ88: 0 | AS88: 0 | AT88: 0 | AU88: 0 | AV88: 0 | AW88: 0 | AX88: 0 | AY88: 0 | AZ88: 0 | BA88: 0 | BB88: 0 | BC88: 0 | BD88: 0 | BE88: 0 | BF88: 0 | BG88: 0 | BH88: 0 | BI88: 0 | BJ88: 0 | BK88: 0 | BL88: 0 | BM88: 0
A89: =IF(Wetland_Inventory!A84<>"",Wetland_Inventory!A84,"") ->  | B89: =IF(Wetland_Inventory!B84<>"",Wetland_Inventory!B84,"") ->  | C89: =IF(Wetland_Inventory!C84<>"",Wetland_Inventory!C84,"") ->  | D89: =IF(Wetland_Inventory!D84<>"",Wetland_Inventory!D84,"") ->  | E89: =IF(Wetland_Inventory!E84<>"",Wetland_Inventory!E84,"") ->  | AJ89: 0 | AK89: 0 | AL89: 0 | AM89: 0 | AN89: 0 | AO89: 0 | AP89: 0 | AQ89: 0 | AS89: 0 | AT89: 0 | AU89: 0 | AV89: 0 | AW89: 0 | AX89: 0 | AY89: 0 | AZ89: 0 | BA89: 0 | BB89: 0 | BC89: 0 | BD89: 0 | BE89: 0 | BF89: 0 | BG89: 0 | BH89: 0 | BI89: 0 | BJ89: 0 | BK89: 0 | BL89: 0 | BM89: 0
A90: =IF(Wetland_Inventory!A85<>"",Wetland_Inventory!A85,"") ->  | B90: =IF(Wetland_Inventory!B85<>"",Wetland_Inventory!B85,"") ->  | C90: =IF(Wetland_Inventory!C85<>"",Wetland_Inventory!C85,"") ->  | D90: =IF(Wetland_Inventory!D85<>"",Wetland_Inventory!D85,"") ->  | E90: =IF(Wetland_Inventory!E85<>"",Wetland_Inventory!E85,"") ->  | AJ90: 0 | AK90: 0 | AL90: 0 | AM90: 0 | AN90: 0 | AO90: 0 | AP90: 0 | AQ90: 0 | AS90: 0 | AT90: 0 | AU90: 0 | AV90: 0 | AW90: 0 | AX90: 0 | AY90: 0 | AZ90: 0 | BA90: 0 | BB90: 0 | BC90: 0 | BD90: 0 | BE90: 0 | BF90: 0 | BG90: 0 | BH90: 0 | BI90: 0 | BJ90: 0 | BK90: 0 | BL90: 0 | BM90: 0
A91: =IF(Wetland_Inventory!A86<>"",Wetland_Inventory!A86,"") ->  | B91: =IF(Wetland_Inventory!B86<>"",Wetland_Inventory!B86,"") ->  | C91: =IF(Wetland_Inventory!C86<>"",Wetland_Inventory!C86,"") ->  | D91: =IF(Wetland_Inventory!D86<>"",Wetland_Inventory!D86,"") ->  | E91: =IF(Wetland_Inventory!E86<>"",Wetland_Inventory!E86,"") ->  | AJ91: 0 | AK91: 0 | AL91: 0 | AM91: 0 | AN91: 0 | AO91: 0 | AP91: 0 | AQ91: 0 | AS91: 0 | AT91: 0 | AU91: 0 | AV91: 0 | AW91: 0 | AX91: 0 | AY91: 0 | AZ91: 0 | BA91: 0 | BB91: 0 | BC91: 0 | BD91: 0 | BE91: 0 | BF91: 0 | BG91: 0 | BH91: 0 | BI91: 0 | BJ91: 0 | BK91: 0 | BL91: 0 | BM91: 0
A92: =IF(Wetland_Inventory!A87<>"",Wetland_Inventory!A87,"") ->  | B92: =IF(Wetland_Inventory!B87<>"",Wetland_Inventory!B87,"") ->  | C92: =IF(Wetland_Inventory!C87<>"",Wetland_Inventory!C87,"") ->  | D92: =IF(Wetland_Inventory!D87<>"",Wetland_Inventory!D87,"") ->  | E92: =IF(Wetland_Inventory!E87<>"",Wetland_Inventory!E87,"") ->  | AJ92: 0 | AK92: 0 | AL92: 0 | AM92: 0 | AN92: 0 | AO92: 0 | AP92: 0 | AQ92: 0 | AS92: 0 | AT92: 0 | AU92: 0 | AV92: 0 | AW92: 0 | AX92: 0 | AY92: 0 | AZ92: 0 | BA92: 0 | BB92: 0 | BC92: 0 | BD92: 0 | BE92: 0 | BF92: 0 | BG92: 0 | BH92: 0 | BI92: 0 | BJ92: 0 | BK92: 0 | BL92: 0 | BM92: 0
A93: =IF(Wetland_Inventory!A88<>"",Wetland_Inventory!A88,"") ->  | B93: =IF(Wetland_Inventory!B88<>"",Wetland_Inventory!B88,"") ->  | C93: =IF(Wetland_Inventory!C88<>"",Wetland_Inventory!C88,"") ->  | D93: =IF(Wetland_Inventory!D88<>"",Wetland_Inventory!D88,"") ->  | E93: =IF(Wetland_Inventory!E88<>"",Wetland_Inventory!E88,"") ->  | AJ93: 0 | AK93: 0 | AL93: 0 | AM93: 0 | AN93: 0 | AO93: 0 | AP93: 0 | AQ93: 0 | AS93: 0 | AT93: 0 | AU93: 0 | AV93: 0 | AW93: 0 | AX93: 0 | AY93: 0 | AZ93: 0 | BA93: 0 | BB93: 0 | BC93: 0 | BD93: 0 | BE93: 0 | BF93: 0 | BG93: 0 | BH93: 0 | BI93: 0 | BJ93: 0 | BK93: 0 | BL93: 0 | BM93: 0
A94: =IF(Wetland_Inventory!A89<>"",Wetland_Inventory!A89,"") ->  | B94: =IF(Wetland_Inventory!B89<>"",Wetland_Inventory!B89,"") ->  | C94: =IF(Wetland_Inventory!C89<>"",Wetland_Inventory!C89,"") ->  | D94: =IF(Wetland_Inventory!D89<>"",Wetland_Inventory!D89,"") ->  | E94: =IF(Wetland_Inventory!E89<>"",Wetland_Inventory!E89,"") ->  | AJ94: 0 | AK94: 0 | AL94: 0 | AM94: 0 | AN94: 0 | AO94: 0 | AP94: 0 | AQ94: 0 | AS94: 0 | AT94: 0 | AU94: 0 | AV94: 0 | AW94: 0 | AX94: 0 | AY94: 0 | AZ94: 0 | BA94: 0 | BB94: 0 | BC94: 0 | BD94: 0 | BE94: 0 | BF94: 0 | BG94: 0 | BH94: 0 | BI94: 0 | BJ94: 0 | BK94: 0 | BL94: 0 | BM94: 0
A95: =IF(Wetland_Inventory!A90<>"",Wetland_Inventory!A90,"") ->  | B95: =IF(Wetland_Inventory!B90<>"",Wetland_Inventory!B90,"") ->  | C95: =IF(Wetland_Inventory!C90<>"",Wetland_Inventory!C90,"") ->  | D95: =IF(Wetland_Inventory!D90<>"",Wetland_Inventory!D90,"") ->  | E95: =IF(Wetland_Inventory!E90<>"",Wetland_Inventory!E90,"") ->  | AJ95: 0 | AK95: 0 | AL95: 0 | AM95: 0 | AN95: 0 | AO95: 0 | AP95: 0 | AQ95: 0 | AS95: 0 | AT95: 0 | AU95: 0 | AV95: 0 | AW95: 0 | AX95: 0 | AY95: 0 | AZ95: 0 | BA95: 0 | BB95: 0 | BC95: 0 | BD95: 0 | BE95: 0 | BF95: 0 | BG95: 0 | BH95: 0 | BI95: 0 | BJ95: 0 | BK95: 0 | BL95: 0 | BM95: 0
A96: =IF(Wetland_Inventory!A91<>"",Wetland_Inventory!A91,"") ->  | B96: =IF(Wetland_Inventory!B91<>"",Wetland_Inventory!B91,"") ->  | C96: =IF(Wetland_Inventory!C91<>"",Wetland_Inventory!C91,"") ->  | D96: =IF(Wetland_Inventory!D91<>"",Wetland_Inventory!D91,"") ->  | E96: =IF(Wetland_Inventory!E91<>"",Wetland_Inventory!E91,"") ->  | AJ96: 0 | AK96: 0 | AL96: 0 | AM96: 0 | AN96: 0 | AO96: 0 | AP96: 0 | AQ96: 0 | AS96: 0 | AT96: 0 | AU96: 0 | AV96: 0 | AW96: 0 | AX96: 0 | AY96: 0 | AZ96: 0 | BA96: 0 | BB96: 0 | BC96: 0 | BD96: 0 | BE96: 0 | BF96: 0 | BG96: 0 | BH96: 0 | BI96: 0 | BJ96: 0 | BK96: 0 | BL96: 0 | BM96: 0
A97: =IF(Wetland_Inventory!A92<>"",Wetland_Inventory!A92,"") ->  | B97: =IF(Wetland_Inventory!B92<>"",Wetland_Inventory!B92,"") ->  | C97: =IF(Wetland_Inventory!C92<>"",Wetland_Inventory!C92,"") ->  | D97: =IF(Wetland_Inventory!D92<>"",Wetland_Inventory!D92,"") ->  | E97: =IF(Wetland_Inventory!E92<>"",Wetland_Inventory!E92,"") ->  | AJ97: 0 | AK97: 0 | AL97: 0 | AM97: 0 | AN97: 0 | AO97: 0 | AP97: 0 | AQ97: 0 | AS97: 0 | AT97: 0 | AU97: 0 | AV97: 0 | AW97: 0 | AX97: 0 | AY97: 0 | AZ97: 0 | BA97: 0 | BB97: 0 | BC97: 0 | BD97: 0 | BE97: 0 | BF97: 0 | BG97: 0 | BH97: 0 | BI97: 0 | BJ97: 0 | BK97: 0 | BL97: 0 | BM97: 0
A98: =IF(Wetland_Inventory!A93<>"",Wetland_Inventory!A93,"") ->  | B98: =IF(Wetland_Inventory!B93<>"",Wetland_Inventory!B93,"") ->  | C98: =IF(Wetland_Inventory!C93<>"",Wetland_Inventory!C93,"") ->  | D98: =IF(Wetland_Inventory!D93<>"",Wetland_Inventory!D93,"") ->  | E98: =IF(Wetland_Inventory!E93<>"",Wetland_Inventory!E93,"") ->  | AJ98: 0 | AK98: 0 | AL98: 0 | AM98: 0 | AN98: 0 | AO98: 0 | AP98: 0 | AQ98: 0 | AS98: 0 | AT98: 0 | AU98: 0 | AV98: 0 | AW98: 0 | AX98: 0 | AY98: 0 | AZ98: 0 | BA98: 0 | BB98: 0 | BC98: 0 | BD98: 0 | BE98: 0 | BF98: 0 | BG98: 0 | BH98: 0 | BI98: 0 | BJ98: 0 | BK98: 0 | BL98: 0 | BM98: 0
A99: =IF(Wetland_Inventory!A94<>"",Wetland_Inventory!A94,"") ->  | B99: =IF(Wetland_Inventory!B94<>"",Wetland_Inventory!B94,"") ->  | C99: =IF(Wetland_Inventory!C94<>"",Wetland_Inventory!C94,"") ->  | D99: =IF(Wetland_Inventory!D94<>"",Wetland_Inventory!D94,"") ->  | E99: =IF(Wetland_Inventory!E94<>"",Wetland_Inventory!E94,"") ->  | AJ99: 0 | AK99: =AT99+BA99+BH99 -> 0 | AL99: =AU99+BB99+BI99 -> 0 | AM99: =AV99+BC99+BJ99 -> 0 | AN99: =AW99+BD99+BK99 -> 0 | AO99: =AX99+BE99+BL99 -> 0 | AP99: =AY99+BF99+BM99 -> 0 | AQ99: 0 | AS99: 0 | AT99: 0 | AU99: 0 | AV99: 0 | AW99: 0 | AX99: 0 | AY99: 0 | AZ99: 0 | BA99: 0 | BB99: 0 | BC99: 0 | BD99: 0 | BE99: 0 | BF99: 0 | BG99: 0 | BH99: 0 | BI99: 0 | BJ99: 0 | BK99: 0 | BL99: 0 | BM99: 0
A100: =IF(Wetland_Inventory!A95<>"",Wetland_Inventory!A95,"") ->  | B100: =IF(Wetland_Inventory!B95<>"",Wetland_Inventory!B95,"") ->  | C100: =IF(Wetland_Inventory!C95<>"",Wetland_Inventory!C95,"") ->  | D100: =IF(Wetland_Inventory!D95<>"",Wetland_Inventory!D95,"") ->  | E100: =IF(Wetland_Inventory!E95<>"",Wetland_Inventory!E95,"") ->  | AJ100: 0 | AK100: 0 | AL100: 0 | AM100: 0 | AN100: 0 | AO100: 0 | AP100: 0 | AQ100: 0 | AS100: =IF($AB100=AS$18,$AC100,0) -> 0 | AT100: 0 | AU100: 0 | AV100: 0 | AW100: 0 | AX100: 0 | AY100: 0 | AZ100: =IF($AD100=AZ$18,$AE100,0) -> 0 | BA100: 0 | BB100: 0 | BC100: 0 | BD100: 0 | BE100: 0 | BF100: 0 | BG100: =IF($AF100=BG$18,$AG100,0) -> 0 | BH100: 0 | BI100: 0 | BJ100: 0 | BK100: 0 | BL100: 0 | BM100: 0
A101: =IF(Wetland_Inventory!A96<>"",Wetland_Inventory!A96,"") ->  | B101: =IF(Wetland_Inventory!B96<>"",Wetland_Inventory!B96,"") ->  | C101: =IF(Wetland_Inventory!C96<>"",Wetland_Inventory!C96,"") ->  | D101: =IF(Wetland_Inventory!D96<>"",Wetland_Inventory!D96,"") ->  | E101: =IF(Wetland_Inventory!E96<>"",Wetland_Inventory!E96,"") ->  | AJ101: 0 | AK101: 0 | AL101: 0 | AM101: 0 | AN101: 0 | AO101: 0 | AP101: 0 | AQ101: 0 | AS101: 0 | AT101: 0 | AU101: 0 | AV101: 0 | AW101: 0 | AX101: 0 | AY101: 0 | AZ101: 0 | BA101: 0 | BB101: 0 | BC101: 0 | BD101: 0 | BE101: 0 | BF101: 0 | BG101: 0 | BH101: 0 | BI101: 0 | BJ101: 0 | BK101: 0 | BL101: 0 | BM101: 0
A102: =IF(Wetland_Inventory!A97<>"",Wetland_Inventory!A97,"") ->  | B102: =IF(Wetland_Inventory!B97<>"",Wetland_Inventory!B97,"") ->  | C102: =IF(Wetland_Inventory!C97<>"",Wetland_Inventory!C97,"") ->  | D102: =IF(Wetland_Inventory!D97<>"",Wetland_Inventory!D97,"") ->  | E102: =IF(Wetland_Inventory!E97<>"",Wetland_Inventory!E97,"") ->  | AJ102: 0 | AK102: 0 | AL102: 0 | AM102: 0 | AN102: 0 | AO102: 0 | AP102: 0 | AQ102: 0 | AS102: 0 | AT102: 0 | AU102: 0 | AV102: 0 | AW102: 0 | AX102: 0 | AY102: 0 | AZ102: 0 | BA102: 0 | BB102: 0 | BC102: 0 | BD102: 0 | BE102: 0 | BF102: 0 | BG102: 0 | BH102: 0 | BI102: 0 | BJ102: 0 | BK102: 0 | BL102: 0 | BM102: 0
A103: =IF(Wetland_Inventory!A98<>"",Wetland_Inventory!A98,"") ->  | B103: =IF(Wetland_Inventory!B98<>"",Wetland_Inventory!B98,"") ->  | C103: =IF(Wetland_Inventory!C98<>"",Wetland_Inventory!C98,"") ->  | D103: =IF(Wetland_Inventory!D98<>"",Wetland_Inventory!D98,"") ->  | E103: =IF(Wetland_Inventory!E98<>"",Wetland_Inventory!E98,"") ->  | AJ103: 0 | AK103: 0 | AL103: 0 | AM103: 0 | AN103: 0 | AO103: 0 | AP103: 0 | AQ103: 0 | AS103: 0 | AT103: 0 | AU103: 0 | AV103: 0 | AW103: 0 | AX103: 0 | AY103: 0 | AZ103: 0 | BA103: 0 | BB103: 0 | BC103: 0 | BD103: 0 | BE103: 0 | BF103: 0 | BG103: 0 | BH103: 0 | BI103: 0 | BJ103: 0 | BK103: 0 | BL103: 0 | BM103: 0
A104: =IF(Wetland_Inventory!A99<>"",Wetland_Inventory!A99,"") ->  | B104: =IF(Wetland_Inventory!B99<>"",Wetland_Inventory!B99,"") ->  | C104: =IF(Wetland_Inventory!C99<>"",Wetland_Inventory!C99,"") ->  | D104: =IF(Wetland_Inventory!D99<>"",Wetland_Inventory!D99,"") ->  | E104: =IF(Wetland_Inventory!E99<>"",Wetland_Inventory!E99,"") ->  | AJ104: 0 | AK104: 0 | AL104: 0 | AM104: 0 | AN104: 0 | AO104: 0 | AP104: 0 | AQ104: 0 | AS104: 0 | AT104: 0 | AU104: 0 | AV104: 0 | AW104: 0 | AX104: 0 | AY104: 0 | AZ104: 0 | BA104: 0 | BB104: 0 | BC104: 0 | BD104: 0 | BE104: 0 | BF104: 0 | BG104: 0 | BH104: 0 | BI104: 0 | BJ104: 0 | BK104: 0 | BL104: 0 | BM104: 0
A105: =IF(Wetland_Inventory!A100<>"",Wetland_Inventory!A100,"") ->  | B105: =IF(Wetland_Inventory!B100<>"",Wetland_Inventory!B100,"") ->  | C105: =IF(Wetland_Inventory!C100<>"",Wetland_Inventory!C100,"") ->  | D105: =IF(Wetland_Inventory!D100<>"",Wetland_Inventory!D100,"") ->  | E105: =IF(Wetland_Inventory!E100<>"",Wetland_Inventory!E100,"") ->  | AJ105: 0 | AK105: 0 | AL105: 0 | AM105: 0 | AN105: 0 | AO105: 0 | AP105: 0 | AQ105: 0 | AS105: 0 | AT105: 0 | AU105: 0 | AV105: 0 | AW105: 0 | AX105: 0 | AY105: 0 | AZ105: 0 | BA105: 0 | BB105: 0 | BC105: 0 | BD105: 0 | BE105: 0 | BF105: 0 | BG105: 0 | BH105: 0 | BI105: 0 | BJ105: 0 | BK105: 0 | BL105: 0 | BM105: 0
A106: =IF(Wetland_Inventory!A101<>"",Wetland_Inventory!A101,"") ->  | B106: =IF(Wetland_Inventory!B101<>"",Wetland_Inventory!B101,"") ->  | C106: =IF(Wetland_Inventory!C101<>"",Wetland_Inventory!C101,"") ->  | D106: =IF(Wetland_Inventory!D101<>"",Wetland_Inventory!D101,"") ->  | E106: =IF(Wetland_Inventory!E101<>"",Wetland_Inventory!E101,"") ->  | AJ106: 0 | AK106: 0 | AL106: 0 | AM106: 0 | AN106: 0 | AO106: 0 | AP106: 0 | AQ106: 0 | AS106: 0 | AT106: 0 | AU106: 0 | AV106: 0 | AW106: 0 | AX106: 0 | AY106: 0 | AZ106: 0 | BA106: 0 | BB106: 0 | BC106: 0 | BD106: 0 | BE106: 0 | BF106: 0 | BG106: 0 | BH106: 0 | BI106: 0 | BJ106: 0 | BK106: 0 | BL106: 0 | BM106: 0
A107: =IF(Wetland_Inventory!A102<>"",Wetland_Inventory!A102,"") ->  | B107: =IF(Wetland_Inventory!B102<>"",Wetland_Inventory!B102,"") ->  | C107: =IF(Wetland_Inventory!C102<>"",Wetland_Inventory!C102,"") ->  | D107: =IF(Wetland_Inventory!D102<>"",Wetland_Inventory!D102,"") ->  | E107: =IF(Wetland_Inventory!E102<>"",Wetland_Inventory!E102,"") ->  | AJ107: 0 | AK107: 0 | AL107: 0 | AM107: 0 | AN107: 0 | AO107: 0 | AP107: 0 | AQ107: 0 | AS107: 0 | AT107: 0 | AU107: 0 | AV107: 0 | AW107: 0 | AX107: 0 | AY107: 0 | AZ107: 0 | BA107: 0 | BB107: 0 | BC107: 0 | BD107: 0 | BE107: 0 | BF107: 0 | BG107: 0 | BH107: 0 | BI107: 0 | BJ107: 0 | BK107: 0 | BL107: 0 | BM107: 0
A108: =IF(Wetland_Inventory!A103<>"",Wetland_Inventory!A103,"") ->  | B108: =IF(Wetland_Inventory!B103<>"",Wetland_Inventory!B103,"") ->  | C108: =IF(Wetland_Inventory!C103<>"",Wetland_Inventory!C103,"") ->  | D108: =IF(Wetland_Inventory!D103<>"",Wetland_Inventory!D103,"") ->  | E108: =IF(Wetland_Inventory!E103<>"",Wetland_Inventory!E103,"") ->  | AJ108: 0 | AK108: 0 | AL108: 0 | AM108: 0 | AN108: 0 | AO108: 0 | AP108: 0 | AQ108: 0 | AS108: 0 | AT108: 0 | AU108: 0 | AV108: 0 | AW108: 0 | AX108: 0 | AY108: 0 | AZ108: 0 | BA108: 0 | BB108: 0 | BC108: 0 | BD108: 0 | BE108: 0 | BF108: 0 | BG108: 0 | BH108: 0 | BI108: 0 | BJ108: 0 | BK108: 0 | BL108: 0 | BM108: 0
A109: =IF(Wetland_Inventory!A104<>"",Wetland_Inventory!A104,"") ->  | B109: =IF(Wetland_Inventory!B104<>"",Wetland_Inventory!B104,"") ->  | C109: =IF(Wetland_Inventory!C104<>"",Wetland_Inventory!C104,"") ->  | D109: =IF(Wetland_Inventory!D104<>"",Wetland_Inventory!D104,"") ->  | E109: =IF(Wetland_Inventory!E104<>"",Wetland_Inventory!E104,"") ->  | AJ109: 0 | AK109: 0 | AL109: 0 | AM109: 0 | AN109: 0 | AO109: 0 | AP109: 0 | AQ109: 0 | AS109: 0 | AT109: 0 | AU109: 0 | AV109: 0 | AW109: 0 | AX109: 0 | AY109: 0 | AZ109: 0 | BA109: 0 | BB109: 0 | BC109: 0 | BD109: 0 | BE109: 0 | BF109: 0 | BG109: 0 | BH109: 0 | BI109: 0 | BJ109: 0 | BK109: 0 | BL109: 0 | BM109: 0
A110: =IF(Wetland_Inventory!A105<>"",Wetland_Inventory!A105,"") ->  | B110: =IF(Wetland_Inventory!B105<>"",Wetland_Inventory!B105,"") ->  | C110: =IF(Wetland_Inventory!C105<>"",Wetland_Inventory!C105,"") ->  | D110: =IF(Wetland_Inventory!D105<>"",Wetland_Inventory!D105,"") ->  | E110: =IF(Wetland_Inventory!E105<>"",Wetland_Inventory!E105,"") ->  | AJ110: 0 | AK110: 0 | AL110: 0 | AM110: 0 | AN110: 0 | AO110: 0 | AP110: 0 | AQ110: 0 | AS110: 0 | AT110: 0 | AU110: 0 | AV110: 0 | AW110: 0 | AX110: 0 | AY110: 0 | AZ110: 0 | BA110: 0 | BB110: 0 | BC110: 0 | BD110: 0 | BE110: 0 | BF110: 0 | BG110: 0 | BH110: 0 | BI110: 0 | BJ110: 0 | BK110: 0 | BL110: 0 | BM110: 0
A111: =IF(Wetland_Inventory!A106<>"",Wetland_Inventory!A106,"") ->  | B111: =IF(Wetland_Inventory!B106<>"",Wetland_Inventory!B106,"") ->  | C111: =IF(Wetland_Inventory!C106<>"",Wetland_Inventory!C106,"") ->  | D111: =IF(Wetland_Inventory!D106<>"",Wetland_Inventory!D106,"") ->  | E111: =IF(Wetland_Inventory!E106<>"",Wetland_Inventory!E106,"") ->  | AJ111: 0 | AK111: 0 | AL111: 0 | AM111: 0 | AN111: 0 | AO111: 0 | AP111: 0 | AQ111: 0 | AS111: 0 | AT111: 0 | AU111: 0 | AV111: 0 | AW111: 0 | AX111: 0 | AY111: 0 | AZ111: 0 | BA111: 0 | BB111: 0 | BC111: 0 | BD111: 0 | BE111: 0 | BF111: 0 | BG111: 0 | BH111: 0 | BI111: 0 | BJ111: 0 | BK111: 0 | BL111: 0 | BM111: 0
A112: =IF(Wetland_Inventory!A107<>"",Wetland_Inventory!A107,"") ->  | B112: =IF(Wetland_Inventory!B107<>"",Wetland_Inventory!B107,"") ->  | C112: =IF(Wetland_Inventory!C107<>"",Wetland_Inventory!C107,"") ->  | D112: =IF(Wetland_Inventory!D107<>"",Wetland_Inventory!D107,"") ->  | E112: =IF(Wetland_Inventory!E107<>"",Wetland_Inventory!E107,"") ->  | AJ112: 0 | AK112: 0 | AL112: 0 | AM112: 0 | AN112: 0 | AO112: 0 | AP112: 0 | AQ112: 0 | AS112: 0 | AT112: 0 | AU112: 0 | AV112: 0 | AW112: 0 | AX112: 0 | AY112: 0 | AZ112: 0 | BA112: 0 | BB112: 0 | BC112: 0 | BD112: 0 | BE112: 0 | BF112: 0 | BG112: 0 | BH112: 0 | BI112: 0 | BJ112: 0 | BK112: 0 | BL112: 0 | BM112: 0
A113: =IF(Wetland_Inventory!A108<>"",Wetland_Inventory!A108,"") ->  | B113: =IF(Wetland_Inventory!B108<>"",Wetland_Inventory!B108,"") ->  | C113: =IF(Wetland_Inventory!C108<>"",Wetland_Inventory!C108,"") ->  | D113: =IF(Wetland_Inventory!D108<>"",Wetland_Inventory!D108,"") ->  | E113: =IF(Wetland_Inventory!E108<>"",Wetland_Inventory!E108,"") ->  | AJ113: 0 | AK113: 0 | AL113: 0 | AM113: 0 | AN113: 0 | AO113: 0 | AP113: 0 | AQ113: 0 | AS113: 0 | AT113: 0 | AU113: 0 | AV113: 0 | AW113: 0 | AX113: 0 | AY113: 0 | AZ113: 0 | BA113: 0 | BB113: 0 | BC113: 0 | BD113: 0 | BE113: 0 | BF113: 0 | BG113: 0 | BH113: 0 | BI113: 0 | BJ113: 0 | BK113: 0 | BL113: 0 | BM113: 0
A114: =IF(Wetland_Inventory!A109<>"",Wetland_Inventory!A109,"") ->  | B114: =IF(Wetland_Inventory!B109<>"",Wetland_Inventory!B109,"") ->  | C114: =IF(Wetland_Inventory!C109<>"",Wetland_Inventory!C109,"") ->  | D114: =IF(Wetland_Inventory!D109<>"",Wetland_Inventory!D109,"") ->  | E114: =IF(Wetland_Inventory!E109<>"",Wetland_Inventory!E109,"") ->  | AJ114: 0 | AK114: 0 | AL114: 0 | AM114: 0 | AN114: 0 | AO114: 0 | AP114: 0 | AQ114: 0 | AS114: 0 | AT114: 0 | AU114: 0 | AV114: 0 | AW114: 0 | AX114: 0 | AY114: 0 | AZ114: 0 | BA114: 0 | BB114: 0 | BC114: 0 | BD114: 0 | BE114: 0 | BF114: 0 | BG114: 0 | BH114: 0 | BI114: 0 | BJ114: 0 | BK114: 0 | BL114: 0 | BM114: 0
A115: =IF(Wetland_Inventory!A110<>"",Wetland_Inventory!A110,"") ->  | B115: =IF(Wetland_Inventory!B110<>"",Wetland_Inventory!B110,"") ->  | C115: =IF(Wetland_Inventory!C110<>"",Wetland_Inventory!C110,"") ->  | D115: =IF(Wetland_Inventory!D110<>"",Wetland_Inventory!D110,"") ->  | E115: =IF(Wetland_Inventory!E110<>"",Wetland_Inventory!E110,"") ->  | AJ115: 0 | AK115: 0 | AL115: 0 | AM115: 0 | AN115: 0 | AO115: 0 | AP115: 0 | AQ115: 0 | AS115: 0 | AT115: 0 | AU115: 0 | AV115: 0 | AW115: 0 | AX115: 0 | AY115: 0 | AZ115: 0 | BA115: 0 | BB115: 0 | BC115: 0 | BD115: 0 | BE115: 0 | BF115: 0 | BG115: 0 | BH115: 0 | BI115: 0 | BJ115: 0 | BK115: 0 | BL115: 0 | BM115: 0
A116: =IF(Wetland_Inventory!A111<>"",Wetland_Inventory!A111,"") ->  | B116: =IF(Wetland_Inventory!B111<>"",Wetland_Inventory!B111,"") ->  | C116: =IF(Wetland_Inventory!C111<>"",Wetland_Inventory!C111,"") ->  | D116: =IF(Wetland_Inventory!D111<>"",Wetland_Inventory!D111,"") ->  | E116: =IF(Wetland_Inventory!E111<>"",Wetland_Inventory!E111,"") ->  | AJ116: 0 | AK116: 0 | AL116: 0 | AM116: 0 | AN116: 0 | AO116: 0 | AP116: 0 | AQ116: 0 | AS116: 0 | AT116: 0 | AU116: 0 | AV116: 0 | AW116: 0 | AX116: 0 | AY116: 0 | AZ116: 0 | BA116: 0 | BB116: 0 | BC116: 0 | BD116: 0 | BE116: 0 | BF116: 0 | BG116: 0 | BH116: 0 | BI116: 0 | BJ116: 0 | BK116: 0 | BL116: 0 | BM116: 0
A117: =IF(Wetland_Inventory!A112<>"",Wetland_Inventory!A112,"") ->  | B117: =IF(Wetland_Inventory!B112<>"",Wetland_Inventory!B112,"") ->  | C117: =IF(Wetland_Inventory!C112<>"",Wetland_Inventory!C112,"") ->  | D117: =IF(Wetland_Inventory!D112<>"",Wetland_Inventory!D112,"") ->  | E117: =IF(Wetland_Inventory!E112<>"",Wetland_Inventory!E112,"") ->  | AJ117: 0 | AK117: 0 | AL117: 0 | AM117: 0 | AN117: 0 | AO117: 0 | AP117: 0 | AQ117: 0 | AS117: 0 | AT117: 0 | AU117: 0 | AV117: 0 | AW117: 0 | AX117: 0 | AY117: 0 | AZ117: 0 | BA117: 0 | BB117: 0 | BC117: 0 | BD117: 0 | BE117: 0 | BF117: 0 | BG117: 0 | BH117: 0 | BI117: 0 | BJ117: 0 | BK117: 0 | BL117: 0 | BM117: 0
A118: =IF(Wetland_Inventory!A113<>"",Wetland_Inventory!A113,"") ->  | B118: =IF(Wetland_Inventory!B113<>"",Wetland_Inventory!B113,"") ->  | C118: =IF(Wetland_Inventory!C113<>"",Wetland_Inventory!C113,"") ->  | D118: =IF(Wetland_Inventory!D113<>"",Wetland_Inventory!D113,"") ->  | E118: =IF(Wetland_Inventory!E113<>"",Wetland_Inventory!E113,"") ->  | AJ118: 0 | AK118: 0 | AL118: 0 | AM118: 0 | AN118: 0 | AO118: 0 | AP118: 0 | AQ118: 0 | AS118: 0 | AT118: 0 | AU118: 0 | AV118: 0 | AW118: 0 | AX118: 0 | AY118: 0 | AZ118: 0 | BA118: 0 | BB118: 0 | BC118: 0 | BD118: 0 | BE118: 0 | BF118: 0 | BG118: 0 | BH118: 0 | BI118: 0 | BJ118: 0 | BK118: 0 | BL118: 0 | BM118: 0
A119: =IF(Wetland_Inventory!A114<>"",Wetland_Inventory!A114,"") ->  | B119: =IF(Wetland_Inventory!B114<>"",Wetland_Inventory!B114,"") ->  | C119: =IF(Wetland_Inventory!C114<>"",Wetland_Inventory!C114,"") ->  | D119: =IF(Wetland_Inventory!D114<>"",Wetland_Inventory!D114,"") ->  | E119: =IF(Wetland_Inventory!E114<>"",Wetland_Inventory!E114,"") ->  | AJ119: 0 | AK119: 0 | AL119: 0 | AM119: 0 | AN119: 0 | AO119: 0 | AP119: 0 | AQ119: 0 | AS119: 0 | AT119: 0 | AU119: 0 | AV119: 0 | AW119: 0 | AX119: 0 | AY119: 0 | AZ119: 0 | BA119: 0 | BB119: 0 | BC119: 0 | BD119: 0 | BE119: 0 | BF119: 0 | BG119: 0 | BH119: 0 | BI119: 0 | BJ119: 0 | BK119: 0 | BL119: 0 | BM119: 0
A120: =IF(Wetland_Inventory!A115<>"",Wetland_Inventory!A115,"") ->  | B120: =IF(Wetland_Inventory!B115<>"",Wetland_Inventory!B115,"") ->  | C120: =IF(Wetland_Inventory!C115<>"",Wetland_Inventory!C115,"") ->  | D120: =IF(Wetland_Inventory!D115<>"",Wetland_Inventory!D115,"") ->  | E120: =IF(Wetland_Inventory!E115<>"",Wetland_Inventory!E115,"") ->  | AJ120: 0 | AK120: 0 | AL120: 0 | AM120: 0 | AN120: 0 | AO120: 0 | AP120: 0 | AQ120: 0 | AS120: 0 | AT120: 0 | AU120: 0 | AV120: 0 | AW120: 0 | AX120: 0 | AY120: 0 | AZ120: 0 | BA120: 0 | BB120: 0 | BC120: 0 | BD120: 0 | BE120: 0 | BF120: 0 | BG120: 0 | BH120: 0 | BI120: 0 | BJ120: 0 | BK120: 0 | BL120: 0 | BM120: 0
A121: =IF(Wetland_Inventory!A116<>"",Wetland_Inventory!A116,"") ->  | B121: =IF(Wetland_Inventory!B116<>"",Wetland_Inventory!B116,"") ->  | C121: =IF(Wetland_Inventory!C116<>"",Wetland_Inventory!C116,"") ->  | D121: =IF(Wetland_Inventory!D116<>"",Wetland_Inventory!D116,"") ->  | E121: =IF(Wetland_Inventory!E116<>"",Wetland_Inventory!E116,"") ->  | AJ121: 0 | AK121: 0 | AL121: 0 | AM121: 0 | AN121: 0 | AO121: 0 | AP121: 0 | AQ121: 0 | AS121: 0 | AT121: 0 | AU121: 0 | AV121: 0 | AW121: 0 | AX121: 0 | AY121: 0 | AZ121: 0 | BA121: 0 | BB121: 0 | BC121: 0 | BD121: 0 | BE121: 0 | BF121: 0 | BG121: 0 | BH121: 0 | BI121: 0 | BJ121: 0 | BK121: 0 | BL121: 0 | BM121: 0
A122: =IF(Wetland_Inventory!A117<>"",Wetland_Inventory!A117,"") ->  | B122: =IF(Wetland_Inventory!B117<>"",Wetland_Inventory!B117,"") ->  | C122: =IF(Wetland_Inventory!C117<>"",Wetland_Inventory!C117,"") ->  | D122: =IF(Wetland_Inventory!D117<>"",Wetland_Inventory!D117,"") ->  | E122: =IF(Wetland_Inventory!E117<>"",Wetland_Inventory!E117,"") ->  | AJ122: 0 | AK122: 0 | AL122: 0 | AM122: 0 | AN122: 0 | AO122: 0 | AP122: 0 | AQ122: 0 | AS122: 0 | AT122: 0 | AU122: 0 | AV122: 0 | AW122: 0 | AX122: 0 | AY122: 0 | AZ122: 0 | BA122: 0 | BB122: 0 | BC122: 0 | BD122: 0 | BE122: 0 | BF122: 0 | BG122: 0 | BH122: 0 | BI122: 0 | BJ122: 0 | BK122: 0 | BL122: 0 | BM122: 0
A123: =IF(Wetland_Inventory!A118<>"",Wetland_Inventory!A118,"") ->  | B123: =IF(Wetland_Inventory!B118<>"",Wetland_Inventory!B118,"") ->  | C123: =IF(Wetland_Inventory!C118<>"",Wetland_Inventory!C118,"") ->  | D123: =IF(Wetland_Inventory!D118<>"",Wetland_Inventory!D118,"") ->  | E123: =IF(Wetland_Inventory!E118<>"",Wetland_Inventory!E118,"") ->  | AJ123: 0 | AK123: 0 | AL123: 0 | AM123: 0 | AN123: 0 | AO123: 0 | AP123: 0 | AQ123: 0 | AS123: 0 | AT123: 0 | AU123: 0 | AV123: 0 | AW123: 0 | AX123: 0 | AY123: 0 | AZ123: 0 | BA123: 0 | BB123: 0 | BC123: 0 | BD123: 0 | BE123: 0 | BF123: 0 | BG123: 0 | BH123: 0 | BI123: 0 | BJ123: 0 | BK123: 0 | BL123: 0 | BM123: 0
A124: =IF(Wetland_Inventory!A119<>"",Wetland_Inventory!A119,"") ->  | B124: =IF(Wetland_Inventory!B119<>"",Wetland_Inventory!B119,"") ->  | C124: =IF(Wetland_Inventory!C119<>"",Wetland_Inventory!C119,"") ->  | D124: =IF(Wetland_Inventory!D119<>"",Wetland_Inventory!D119,"") ->  | E124: =IF(Wetland_Inventory!E119<>"",Wetland_Inventory!E119,"") ->  | AJ124: 0 | AK124: 0 | AL124: 0 | AM124: 0 | AN124: 0 | AO124: 0 | AP124: 0 | AQ124: 0 | AS124: 0 | AT124: 0 | AU124: 0 | AV124: 0 | AW124: 0 | AX124: 0 | AY124: 0 | AZ124: 0 | BA124: 0 | BB124: 0 | BC124: 0 | BD124: 0 | BE124: 0 | BF124: 0 | BG124: 0 | BH124: 0 | BI124: 0 | BJ124: 0 | BK124: 0 | BL124: 0 | BM124: 0
A125: =IF(Wetland_Inventory!A120<>"",Wetland_Inventory!A120,"") ->  | B125: =IF(Wetland_Inventory!B120<>"",Wetland_Inventory!B120,"") ->  | C125: =IF(Wetland_Inventory!C120<>"",Wetland_Inventory!C120,"") ->  | D125: =IF(Wetland_Inventory!D120<>"",Wetland_Inventory!D120,"") ->  | E125: =IF(Wetland_Inventory!E120<>"",Wetland_Inventory!E120,"") ->  | AJ125: 0 | AK125: 0 | AL125: 0 | AM125: 0 | AN125: 0 | AO125: 0 | AP125: 0 | AQ125: 0 | AS125: 0 | AT125: 0 | AU125: 0 | AV125: 0 | AW125: 0 | AX125: 0 | AY125: 0 | AZ125: 0 | BA125: 0 | BB125: 0 | BC125: 0 | BD125: 0 | BE125: 0 | BF125: 0 | BG125: 0 | BH125: 0 | BI125: 0 | BJ125: 0 | BK125: 0 | BL125: 0 | BM125: 0
A126: =IF(Wetland_Inventory!A121<>"",Wetland_Inventory!A121,"") ->  | B126: =IF(Wetland_Inventory!B121<>"",Wetland_Inventory!B121,"") ->  | C126: =IF(Wetland_Inventory!C121<>"",Wetland_Inventory!C121,"") ->  | D126: =IF(Wetland_Inventory!D121<>"",Wetland_Inventory!D121,"") ->  | E126: =IF(Wetland_Inventory!E121<>"",Wetland_Inventory!E121,"") ->  | AJ126: 0 | AK126: 0 | AL126: 0 | AM126: 0 | AN126: 0 | AO126: 0 | AP126: 0 | AQ126: 0 | AS126: 0 | AT126: 0 | AU126: 0 | AV126: 0 | AW126: 0 | AX126: 0 | AY126: 0 | AZ126: 0 | BA126: 0 | BB126: 0 | BC126: 0 | BD126: 0 | BE126: 0 | BF126: 0 | BG126: 0 | BH126: 0 | BI126: 0 | BJ126: 0 | BK126: 0 | BL126: 0 | BM126: 0
A127: =IF(Wetland_Inventory!A122<>"",Wetland_Inventory!A122,"") ->  | B127: =IF(Wetland_Inventory!B122<>"",Wetland_Inventory!B122,"") ->  | C127: =IF(Wetland_Inventory!C122<>"",Wetland_Inventory!C122,"") ->  | D127: =IF(Wetland_Inventory!D122<>"",Wetland_Inventory!D122,"") ->  | E127: =IF(Wetland_Inventory!E122<>"",Wetland_Inventory!E122,"") ->  | AJ127: 0 | AK127: 0 | AL127: 0 | AM127: 0 | AN127: 0 | AO127: 0 | AP127: 0 | AQ127: 0 | AS127: 0 | AT127: 0 | AU127: 0 | AV127: 0 | AW127: 0 | AX127: 0 | AY127: 0 | AZ127: 0 | BA127: 0 | BB127: 0 | BC127: 0 | BD127: 0 | BE127: 0 | BF127: 0 | BG127: 0 | BH127: 0 | BI127: 0 | BJ127: 0 | BK127: 0 | BL127: 0 | BM127: 0
A128: =IF(Wetland_Inventory!A123<>"",Wetland_Inventory!A123,"") ->  | B128: =IF(Wetland_Inventory!B123<>"",Wetland_Inventory!B123,"") ->  | C128: =IF(Wetland_Inventory!C123<>"",Wetland_Inventory!C123,"") ->  | D128: =IF(Wetland_Inventory!D123<>"",Wetland_Inventory!D123,"") ->  | E128: =IF(Wetland_Inventory!E123<>"",Wetland_Inventory!E123,"") ->  | AJ128: 0 | AK128: 0 | AL128: 0 | AM128: 0 | AN128: 0 | AO128: 0 | AP128: 0 | AQ128: 0 | AS128: 0 | AT128: 0 | AU128: 0 | AV128: 0 | AW128: 0 | AX128: 0 | AY128: 0 | AZ128: 0 | BA128: 0 | BB128: 0 | BC128: 0 | BD128: 0 | BE128: 0 | BF128: 0 | BG128: 0 | BH128: 0 | BI128: 0 | BJ128: 0 | BK128: 0 | BL128: 0 | BM128: 0
A129: =IF(Wetland_Inventory!A124<>"",Wetland_Inventory!A124,"") ->  | B129: =IF(Wetland_Inventory!B124<>"",Wetland_Inventory!B124,"") ->  | C129: =IF(Wetland_Inventory!C124<>"",Wetland_Inventory!C124,"") ->  | D129: =IF(Wetland_Inventory!D124<>"",Wetland_Inventory!D124,"") ->  | E129: =IF(Wetland_Inventory!E124<>"",Wetland_Inventory!E124,"") ->  | AJ129: 0 | AK129: 0 | AL129: 0 | AM129: 0 | AN129: 0 | AO129: 0 | AP129: 0 | AQ129: 0 | AS129: 0 | AT129: 0 | AU129: 0 | AV129: 0 | AW129: 0 | AX129: 0 | AY129: 0 | AZ129: 0 | BA129: 0 | BB129: 0 | BC129: 0 | BD129: 0 | BE129: 0 | BF129: 0 | BG129: 0 | BH129: 0 | BI129: 0 | BJ129: 0 | BK129: 0 | BL129: 0 | BM129: 0
A130: =IF(Wetland_Inventory!A125<>"",Wetland_Inventory!A125,"") ->  | B130: =IF(Wetland_Inventory!B125<>"",Wetland_Inventory!B125,"") ->  | C130: =IF(Wetland_Inventory!C125<>"",Wetland_Inventory!C125,"") ->  | D130: =IF(Wetland_Inventory!D125<>"",Wetland_Inventory!D125,"") ->  | E130: =IF(Wetland_Inventory!E125<>"",Wetland_Inventory!E125,"") ->  | AJ130: 0 | AK130: 0 | AL130: 0 | AM130: 0 | AN130: 0 | AO130: 0 | AP130: 0 | AQ130: 0 | AS130: 0 | AT130: 0 | AU130: 0 | AV130: 0 | AW130: 0 | AX130: 0 | AY130: 0 | AZ130: 0 | BA130: 0 | BB130: 0 | BC130: 0 | BD130: 0 | BE130: 0 | BF130: 0 | BG130: 0 | BH130: 0 | BI130: 0 | BJ130: 0 | BK130: 0 | BL130: 0 | BM130: 0
A131: =IF(Wetland_Inventory!A126<>"",Wetland_Inventory!A126,"") ->  | B131: =IF(Wetland_Inventory!B126<>"",Wetland_Inventory!B126,"") ->  | C131: =IF(Wetland_Inventory!C126<>"",Wetland_Inventory!C126,"") ->  | D131: =IF(Wetland_Inventory!D126<>"",Wetland_Inventory!D126,"") ->  | E131: =IF(Wetland_Inventory!E126<>"",Wetland_Inventory!E126,"") ->  | AJ131: 0 | AK131: 0 | AL131: 0 | AM131: 0 | AN131: 0 | AO131: 0 | AP131: 0 | AQ131: 0 | AS131: 0 | AT131: 0 | AU131: 0 | AV131: 0 | AW131: 0 | AX131: 0 | AY131: 0 | AZ131: 0 | BA131: 0 | BB131: 0 | BC131: 0 | BD131: 0 | BE131: 0 | BF131: 0 | BG131: 0 | BH131: 0 | BI131: 0 | BJ131: 0 | BK131: 0 | BL131: 0 | BM131: 0
A132: =IF(Wetland_Inventory!A127<>"",Wetland_Inventory!A127,"") ->  | B132: =IF(Wetland_Inventory!B127<>"",Wetland_Inventory!B127,"") ->  | C132: =IF(Wetland_Inventory!C127<>"",Wetland_Inventory!C127,"") ->  | D132: =IF(Wetland_Inventory!D127<>"",Wetland_Inventory!D127,"") ->  | E132: =IF(Wetland_Inventory!E127<>"",Wetland_Inventory!E127,"") ->  | AJ132: 0 | AK132: 0 | AL132: 0 | AM132: 0 | AN132: 0 | AO132: 0 | AP132: 0 | AQ132: 0 | AS132: =IF($AB132=AS$18,$AC132,0) -> 0 | AT132: 0 | AU132: 0 | AV132: 0 | AW132: 0 | AX132: 0 | AY132: 0 | AZ132: =IF($AD132=AZ$18,$AE132,0) -> 0 | BA132: 0 | BB132: 0 | BC132: 0 | BD132: 0 | BE132: 0 | BF132: 0 | BG132: =IF($AF132=BG$18,$AG132,0) -> 0 | BH132: 0 | BI132: 0 | BJ132: 0 | BK132: 0 | BL132: 0 | BM132: 0
A133: =IF(Wetland_Inventory!A128<>"",Wetland_Inventory!A128,"") ->  | B133: =IF(Wetland_Inventory!B128<>"",Wetland_Inventory!B128,"") ->  | C133: =IF(Wetland_Inventory!C128<>"",Wetland_Inventory!C128,"") ->  | D133: =IF(Wetland_Inventory!D128<>"",Wetland_Inventory!D128,"") ->  | E133: =IF(Wetland_Inventory!E128<>"",Wetland_Inventory!E128,"") ->  | AJ133: 0 | AK133: 0 | AL133: 0 | AM133: 0 | AN133: 0 | AO133: 0 | AP133: 0 | AQ133: 0 | AS133: 0 | AT133: 0 | AU133: 0 | AV133: 0 | AW133: 0 | AX133: 0 | AY133: 0 | AZ133: 0 | BA133: 0 | BB133: 0 | BC133: 0 | BD133: 0 | BE133: 0 | BF133: 0 | BG133: 0 | BH133: 0 | BI133: 0 | BJ133: 0 | BK133: 0 | BL133: 0 | BM133: 0
A134: =IF(Wetland_Inventory!A129<>"",Wetland_Inventory!A129,"") ->  | B134: =IF(Wetland_Inventory!B129<>"",Wetland_Inventory!B129,"") ->  | C134: =IF(Wetland_Inventory!C129<>"",Wetland_Inventory!C129,"") ->  | D134: =IF(Wetland_Inventory!D129<>"",Wetland_Inventory!D129,"") ->  | E134: =IF(Wetland_Inventory!E129<>"",Wetland_Inventory!E129,"") ->  | AJ134: 0 | AK134: 0 | AL134: 0 | AM134: 0 | AN134: 0 | AO134: 0 | AP134: 0 | AQ134: 0 | AS134: 0 | AT134: 0 | AU134: 0 | AV134: 0 | AW134: 0 | AX134: 0 | AY134: 0 | AZ134: 0 | BA134: 0 | BB134: 0 | BC134: 0 | BD134: 0 | BE134: 0 | BF134: 0 | BG134: 0 | BH134: 0 | BI134: 0 | BJ134: 0 | BK134: 0 | BL134: 0 | BM134: 0
A135: =IF(Wetland_Inventory!A130<>"",Wetland_Inventory!A130,"") ->  | B135: =IF(Wetland_Inventory!B130<>"",Wetland_Inventory!B130,"") ->  | C135: =IF(Wetland_Inventory!C130<>"",Wetland_Inventory!C130,"") ->  | D135: =IF(Wetland_Inventory!D130<>"",Wetland_Inventory!D130,"") ->  | E135: =IF(Wetland_Inventory!E130<>"",Wetland_Inventory!E130,"") ->  | AJ135: 0 | AK135: 0 | AL135: 0 | AM135: 0 | AN135: 0 | AO135: 0 | AP135: 0 | AQ135: 0 | AS135: 0 | AT135: 0 | AU135: 0 | AV135: 0 | AW135: 0 | AX135: 0 | AY135: 0 | AZ135: 0 | BA135: 0 | BB135: 0 | BC135: 0 | BD135: 0 | BE135: 0 | BF135: 0 | BG135: 0 | BH135: 0 | BI135: 0 | BJ135: 0 | BK135: 0 | BL135: 0 | BM135: 0
A136: =IF(Wetland_Inventory!A131<>"",Wetland_Inventory!A131,"") ->  | B136: =IF(Wetland_Inventory!B131<>"",Wetland_Inventory!B131,"") ->  | C136: =IF(Wetland_Inventory!C131<>"",Wetland_Inventory!C131,"") ->  | D136: =IF(Wetland_Inventory!D131<>"",Wetland_Inventory!D131,"") ->  | E136: =IF(Wetland_Inventory!E131<>"",Wetland_Inventory!E131,"") ->  | AJ136: 0 | AK136: 0 | AL136: 0 | AM136: 0 | AN136: 0 | AO136: 0 | AP136: 0 | AQ136: 0 | AS136: 0 | AT136: 0 | AU136: 0 | AV136: 0 | AW136: 0 | AX136: 0 | AY136: 0 | AZ136: 0 | BA136: 0 | BB136: 0 | BC136: 0 | BD136: 0 | BE136: 0 | BF136: 0 | BG136: 0 | BH136: 0 | BI136: 0 | BJ136: 0 | BK136: 0 | BL136: 0 | BM136: 0
A137: =IF(Wetland_Inventory!A132<>"",Wetland_Inventory!A132,"") ->  | B137: =IF(Wetland_Inventory!B132<>"",Wetland_Inventory!B132,"") ->  | C137: =IF(Wetland_Inventory!C132<>"",Wetland_Inventory!C132,"") ->  | D137: =IF(Wetland_Inventory!D132<>"",Wetland_Inventory!D132,"") ->  | E137: =IF(Wetland_Inventory!E132<>"",Wetland_Inventory!E132,"") ->  | AJ137: 0 | AK137: 0 | AL137: 0 | AM137: 0 | AN137: 0 | AO137: 0 | AP137: 0 | AQ137: 0 | AS137: 0 | AT137: 0 | AU137: 0 | AV137: 0 | AW137: 0 | AX137: 0 | AY137: 0 | AZ137: 0 | BA137: 0 | BB137: 0 | BC137: 0 | BD137: 0 | BE137: 0 | BF137: 0 | BG137: 0 | BH137: 0 | BI137: 0 | BJ137: 0 | BK137: 0 | BL137: 0 | BM137: 0
A138: =IF(Wetland_Inventory!A133<>"",Wetland_Inventory!A133,"") ->  | B138: =IF(Wetland_Inventory!B133<>"",Wetland_Inventory!B133,"") ->  | C138: =IF(Wetland_Inventory!C133<>"",Wetland_Inventory!C133,"") ->  | D138: =IF(Wetland_Inventory!D133<>"",Wetland_Inventory!D133,"") ->  | E138: =IF(Wetland_Inventory!E133<>"",Wetland_Inventory!E133,"") ->  | AJ138: 0 | AK138: 0 | AL138: 0 | AM138: 0 | AN138: 0 | AO138: 0 | AP138: 0 | AQ138: 0 | AS138: 0 | AT138: 0 | AU138: 0 | AV138: 0 | AW138: 0 | AX138: 0 | AY138: 0 | AZ138: 0 | BA138: 0 | BB138: 0 | BC138: 0 | BD138: 0 | BE138: 0 | BF138: 0 | BG138: 0 | BH138: 0 | BI138: 0 | BJ138: 0 | BK138: 0 | BL138: 0 | BM138: 0
A139: =IF(Wetland_Inventory!A134<>"",Wetland_Inventory!A134,"") ->  | B139: =IF(Wetland_Inventory!B134<>"",Wetland_Inventory!B134,"") ->  | C139: =IF(Wetland_Inventory!C134<>"",Wetland_Inventory!C134,"") ->  | D139: =IF(Wetland_Inventory!D134<>"",Wetland_Inventory!D134,"") ->  | E139: =IF(Wetland_Inventory!E134<>"",Wetland_Inventory!E134,"") ->  | AJ139: 0 | AK139: 0 | AL139: 0 | AM139: 0 | AN139: 0 | AO139: 0 | AP139: 0 | AQ139: 0 | AS139: 0 | AT139: 0 | AU139: 0 | AV139: 0 | AW139: 0 | AX139: 0 | AY139: 0 | AZ139: 0 | BA139: 0 | BB139: 0 | BC139: 0 | BD139: 0 | BE139: 0 | BF139: 0 | BG139: 0 | BH139: 0 | BI139: 0 | BJ139: 0 | BK139: 0 | BL139: 0 | BM139: 0
A140: =IF(Wetland_Inventory!A135<>"",Wetland_Inventory!A135,"") ->  | B140: =IF(Wetland_Inventory!B135<>"",Wetland_Inventory!B135,"") ->  | C140: =IF(Wetland_Inventory!C135<>"",Wetland_Inventory!C135,"") ->  | D140: =IF(Wetland_Inventory!D135<>"",Wetland_Inventory!D135,"") ->  | E140: =IF(Wetland_Inventory!E135<>"",Wetland_Inventory!E135,"") ->  | AJ140: 0 | AK140: 0 | AL140: 0 | AM140: 0 | AN140: 0 | AO140: 0 | AP140: 0 | AQ140: 0 | AS140: 0 | AT140: 0 | AU140: 0 | AV140: 0 | AW140: 0 | AX140: 0 | AY140: 0 | AZ140: 0 | BA140: 0 | BB140: 0 | BC140: 0 | BD140: 0 | BE140: 0 | BF140: 0 | BG140: 0 | BH140: 0 | BI140: 0 | BJ140: 0 | BK140: 0 | BL140: 0 | BM140: 0
A141: =IF(Wetland_Inventory!A136<>"",Wetland_Inventory!A136,"") ->  | B141: =IF(Wetland_Inventory!B136<>"",Wetland_Inventory!B136,"") ->  | C141: =IF(Wetland_Inventory!C136<>"",Wetland_Inventory!C136,"") ->  | D141: =IF(Wetland_Inventory!D136<>"",Wetland_Inventory!D136,"") ->  | E141: =IF(Wetland_Inventory!E136<>"",Wetland_Inventory!E136,"") ->  | AJ141: 0 | AK141: 0 | AL141: 0 | AM141: 0 | AN141: 0 | AO141: 0 | AP141: 0 | AQ141: 0 | AS141: 0 | AT141: 0 | AU141: 0 | AV141: 0 | AW141: 0 | AX141: 0 | AY141: 0 | AZ141: 0 | BA141: 0 | BB141: 0 | BC141: 0 | BD141: 0 | BE141: 0 | BF141: 0 | BG141: 0 | BH141: 0 | BI141: 0 | BJ141: 0 | BK141: 0 | BL141: 0 | BM141: 0
A142: =IF(Wetland_Inventory!A137<>"",Wetland_Inventory!A137,"") ->  | B142: =IF(Wetland_Inventory!B137<>"",Wetland_Inventory!B137,"") ->  | C142: =IF(Wetland_Inventory!C137<>"",Wetland_Inventory!C137,"") ->  | D142: =IF(Wetland_Inventory!D137<>"",Wetland_Inventory!D137,"") ->  | E142: =IF(Wetland_Inventory!E137<>"",Wetland_Inventory!E137,"") ->  | AJ142: 0 | AK142: 0 | AL142: 0 | AM142: 0 | AN142: 0 | AO142: 0 | AP142: 0 | AQ142: 0 | AS142: 0 | AT142: 0 | AU142: 0 | AV142: 0 | AW142: 0 | AX142: 0 | AY142: 0 | AZ142: 0 | BA142: 0 | BB142: 0 | BC142: 0 | BD142: 0 | BE142: 0 | BF142: 0 | BG142: 0 | BH142: 0 | BI142: 0 | BJ142: 0 | BK142: 0 | BL142: 0 | BM142: 0
A143: =IF(Wetland_Inventory!A138<>"",Wetland_Inventory!A138,"") ->  | B143: =IF(Wetland_Inventory!B138<>"",Wetland_Inventory!B138,"") ->  | C143: =IF(Wetland_Inventory!C138<>"",Wetland_Inventory!C138,"") ->  | D143: =IF(Wetland_Inventory!D138<>"",Wetland_Inventory!D138,"") ->  | E143: =IF(Wetland_Inventory!E138<>"",Wetland_Inventory!E138,"") ->  | AJ143: 0 | AK143: 0 | AL143: 0 | AM143: 0 | AN143: 0 | AO143: 0 | AP143: 0 | AQ143: 0 | AS143: 0 | AT143: 0 | AU143: 0 | AV143: 0 | AW143: 0 | AX143: 0 | AY143: 0 | AZ143: 0 | BA143: 0 | BB143: 0 | BC143: 0 | BD143: 0 | BE143: 0 | BF143: 0 | BG143: 0 | BH143: 0 | BI143: 0 | BJ143: 0 | BK143: 0 | BL143: 0 | BM143: 0
A144: =IF(Wetland_Inventory!A139<>"",Wetland_Inventory!A139,"") ->  | B144: =IF(Wetland_Inventory!B139<>"",Wetland_Inventory!B139,"") ->  | C144: =IF(Wetland_Inventory!C139<>"",Wetland_Inventory!C139,"") ->  | D144: =IF(Wetland_Inventory!D139<>"",Wetland_Inventory!D139,"") ->  | E144: =IF(Wetland_Inventory!E139<>"",Wetland_Inventory!E139,"") ->  | AJ144: 0 | AK144: 0 | AL144: 0 | AM144: 0 | AN144: 0 | AO144: 0 | AP144: 0 | AQ144: 0 | AS144: 0 | AT144: 0 | AU144: 0 | AV144: 0 | AW144: 0 | AX144: 0 | AY144: 0 | AZ144: 0 | BA144: 0 | BB144: 0 | BC144: 0 | BD144: 0 | BE144: 0 | BF144: 0 | BG144: 0 | BH144: 0 | BI144: 0 | BJ144: 0 | BK144: 0 | BL144: 0 | BM144: 0
A145: =IF(Wetland_Inventory!A140<>"",Wetland_Inventory!A140,"") ->  | B145: =IF(Wetland_Inventory!B140<>"",Wetland_Inventory!B140,"") ->  | C145: =IF(Wetland_Inventory!C140<>"",Wetland_Inventory!C140,"") ->  | D145: =IF(Wetland_Inventory!D140<>"",Wetland_Inventory!D140,"") ->  | E145: =IF(Wetland_Inventory!E140<>"",Wetland_Inventory!E140,"") ->  | AJ145: 0 | AK145: 0 | AL145: 0 | AM145: 0 | AN145: 0 | AO145: 0 | AP145: 0 | AQ145: 0 | AS145: 0 | AT145: 0 | AU145: 0 | AV145: 0 | AW145: 0 | AX145: 0 | AY145: 0 | AZ145: 0 | BA145: 0 | BB145: 0 | BC145: 0 | BD145: 0 | BE145: 0 | BF145: 0 | BG145: 0 | BH145: 0 | BI145: 0 | BJ145: 0 | BK145: 0 | BL145: 0 | BM145: 0
A146: =IF(Wetland_Inventory!A141<>"",Wetland_Inventory!A141,"") ->  | B146: =IF(Wetland_Inventory!B141<>"",Wetland_Inventory!B141,"") ->  | C146: =IF(Wetland_Inventory!C141<>"",Wetland_Inventory!C141,"") ->  | D146: =IF(Wetland_Inventory!D141<>"",Wetland_Inventory!D141,"") ->  | E146: =IF(Wetland_Inventory!E141<>"",Wetland_Inventory!E141,"") ->  | AJ146: 0 | AK146: 0 | AL146: 0 | AM146: 0 | AN146: 0 | AO146: 0 | AP146: 0 | AQ146: 0 | AS146: 0 | AT146: 0 | AU146: 0 | AV146: 0 | AW146: 0 | AX146: 0 | AY146: 0 | AZ146: 0 | BA146: 0 | BB146: 0 | BC146: 0 | BD146: 0 | BE146: 0 | BF146: 0 | BG146: 0 | BH146: 0 | BI146: 0 | BJ146: 0 | BK146: 0 | BL146: 0 | BM146: 0
A147: =IF(Wetland_Inventory!A142<>"",Wetland_Inventory!A142,"") ->  | B147: =IF(Wetland_Inventory!B142<>"",Wetland_Inventory!B142,"") ->  | C147: =IF(Wetland_Inventory!C142<>"",Wetland_Inventory!C142,"") ->  | D147: =IF(Wetland_Inventory!D142<>"",Wetland_Inventory!D142,"") ->  | E147: =IF(Wetland_Inventory!E142<>"",Wetland_Inventory!E142,"") ->  | AJ147: 0 | AK147: 0 | AL147: 0 | AM147: 0 | AN147: 0 | AO147: 0 | AP147: 0 | AQ147: 0 | AS147: 0 | AT147: 0 | AU147: 0 | AV147: 0 | AW147: 0 | AX147: 0 | AY147: 0 | AZ147: 0 | BA147: 0 | BB147: 0 | BC147: 0 | BD147: 0 | BE147: 0 | BF147: 0 | BG147: 0 | BH147: 0 | BI147: 0 | BJ147: 0 | BK147: 0 | BL147: 0 | BM147: 0
A148: =IF(Wetland_Inventory!A143<>"",Wetland_Inventory!A143,"") ->  | B148: =IF(Wetland_Inventory!B143<>"",Wetland_Inventory!B143,"") ->  | C148: =IF(Wetland_Inventory!C143<>"",Wetland_Inventory!C143,"") ->  | D148: =IF(Wetland_Inventory!D143<>"",Wetland_Inventory!D143,"") ->  | E148: =IF(Wetland_Inventory!E143<>"",Wetland_Inventory!E143,"") ->  | L148: =IF(A148="","",G148+I148+K148) ->  | M148: =IF(A148="","",B148-L148) ->  | AB148: =IF(ISNA(VLOOKUP(F148,$C$5:$D$14,2,FALSE)),"",VLOOKUP(F148,$C$5:$D$14,2,FALSE)) ->  | AC148: =IF(AB148<>"",G148,"") ->  | AD148: =IF(ISNA(VLOOKUP(H148,$C$5:$D$14,2,FALSE)),"",VLOOKUP(H148,$C$5:$D$14,2,FALSE)) ->  | AE148: =IF(AD148<>"",I148,"") ->  | AF148: =IF(ISNA(VLOOKUP(J148,$C$5:$D$14,2,FALSE)),"",VLOOKUP(J148,$C$5:$D$14,2,FALSE)) ->  | AG148: =IF(AF148<>"",K148,"") ->  | AI148: =IF(C148<>"",C148,"") ->  | AJ148: =AS148+AZ148+BG148 -> 0 | AK148: 0 | AL148: 0 | AM148: 0 | AN148: 0 | AO148: 0 | AP148: 0 | AQ148: =SUM(AJ148:AP148) -> 0 | AS148: 0 | AT148: 0 | AU148: 0 | AV148: 0 | AW148: 0 | AX148: 0 | AY148: 0 | AZ148: 0 | BA148: 0 | BB148: 0 | BC148: 0 | BD148: 0 | BE148: 0 | BF148: 0 | BG148: 0 | BH148: 0 | BI148: 0 | BJ148: 0 | BK148: 0 | BL148: 0 | BM148: 0
A149: =IF(Wetland_Inventory!A144<>"",Wetland_Inventory!A144,"") ->  | B149: =IF(Wetland_Inventory!B144<>"",Wetland_Inventory!B144,"") ->  | C149: =IF(Wetland_Inventory!C144<>"",Wetland_Inventory!C144,"") ->  | D149: =IF(Wetland_Inventory!D144<>"",Wetland_Inventory!D144,"") ->  | E149: =IF(Wetland_Inventory!E144<>"",Wetland_Inventory!E144,"") ->  | AJ149: 0 | AK149: 0 | AL149: 0 | AM149: 0 | AN149: 0 | AO149: 0 | AP149: 0 | AQ149: 0 | AS149: 0 | AT149: 0 | AU149: 0 | AV149: 0 | AW149: 0 | AX149: 0 | AY149: 0 | AZ149: 0 | BA149: 0 | BB149: 0 | BC149: 0 | BD149: 0 | BE149: 0 | BF149: 0 | BG149: 0 | BH149: 0 | BI149: 0 | BJ149: 0 | BK149: 0 | BL149: 0 | BM149: 0
A150: =IF(Wetland_Inventory!A145<>"",Wetland_Inventory!A145,"") ->  | B150: =IF(Wetland_Inventory!B145<>"",Wetland_Inventory!B145,"") ->  | C150: =IF(Wetland_Inventory!C145<>"",Wetland_Inventory!C145,"") ->  | D150: =IF(Wetland_Inventory!D145<>"",Wetland_Inventory!D145,"") ->  | E150: =IF(Wetland_Inventory!E145<>"",Wetland_Inventory!E145,"") ->  | AJ150: 0 | AK150: 0 | AL150: 0 | AM150: 0 | AN150: 0 | AO150: 0 | AP150: 0 | AQ150: 0 | AS150: 0 | AT150: 0 | AU150: 0 | AV150: 0 | AW150: 0 | AX150: 0 | AY150: 0 | AZ150: 0 | BA150: 0 | BB150: 0 | BC150: 0 | BD150: 0 | BE150: 0 | BF150: 0 | BG150: 0 | BH150: 0 | BI150: 0 | BJ150: 0 | BK150: 0 | BL150: 0 | BM150: 0
A151: =IF(Wetland_Inventory!A146<>"",Wetland_Inventory!A146,"") ->  | B151: =IF(Wetland_Inventory!B146<>"",Wetland_Inventory!B146,"") ->  | C151: =IF(Wetland_Inventory!C146<>"",Wetland_Inventory!C146,"") ->  | D151: =IF(Wetland_Inventory!D146<>"",Wetland_Inventory!D146,"") ->  | E151: =IF(Wetland_Inventory!E146<>"",Wetland_Inventory!E146,"") ->  | AJ151: 0 | AK151: 0 | AL151: 0 | AM151: 0 | AN151: 0 | AO151: 0 | AP151: 0 | AQ151: 0 | AS151: 0 | AT151: 0 | AU151: 0 | AV151: 0 | AW151: 0 | AX151: 0 | AY151: 0 | AZ151: 0 | BA151: 0 | BB151: 0 | BC151: 0 | BD151: 0 | BE151: 0 | BF151: 0 | BG151: 0 | BH151: 0 | BI151: 0 | BJ151: 0 | BK151: 0 | BL151: 0 | BM151: 0
A152: =IF(Wetland_Inventory!A147<>"",Wetland_Inventory!A147,"") ->  | B152: =IF(Wetland_Inventory!B147<>"",Wetland_Inventory!B147,"") ->  | C152: =IF(Wetland_Inventory!C147<>"",Wetland_Inventory!C147,"") ->  | D152: =IF(Wetland_Inventory!D147<>"",Wetland_Inventory!D147,"") ->  | E152: =IF(Wetland_Inventory!E147<>"",Wetland_Inventory!E147,"") ->  | AJ152: 0 | AK152: 0 | AL152: 0 | AM152: 0 | AN152: 0 | AO152: 0 | AP152: 0 | AQ152: 0 | AS152: 0 | AT152: 0 | AU152: 0 | AV152: 0 | AW152: 0 | AX152: 0 | AY152: 0 | AZ152: 0 | BA152: 0 | BB152: 0 | BC152: 0 | BD152: 0 | BE152: 0 | BF152: 0 | BG152: 0 | BH152: 0 | BI152: 0 | BJ152: 0 | BK152: 0 | BL152: 0 | BM152: 0
A153: =IF(Wetland_Inventory!A148<>"",Wetland_Inventory!A148,"") ->  | B153: =IF(Wetland_Inventory!B148<>"",Wetland_Inventory!B148,"") ->  | C153: =IF(Wetland_Inventory!C148<>"",Wetland_Inventory!C148,"") ->  | D153: =IF(Wetland_Inventory!D148<>"",Wetland_Inventory!D148,"") ->  | E153: =IF(Wetland_Inventory!E148<>"",Wetland_Inventory!E148,"") ->  | AJ153: 0 | AK153: 0 | AL153: 0 | AM153: 0 | AN153: 0 | AO153: 0 | AP153: 0 | AQ153: 0 | AS153: 0 | AT153: 0 | AU153: 0 | AV153: 0 | AW153: 0 | AX153: 0 | AY153: 0 | AZ153: 0 | BA153: 0 | BB153: 0 | BC153: 0 | BD153: 0 | BE153: 0 | BF153: 0 | BG153: 0 | BH153: 0 | BI153: 0 | BJ153: 0 | BK153: 0 | BL153: 0 | BM153: 0
A154: =IF(Wetland_Inventory!A149<>"",Wetland_Inventory!A149,"") ->  | B154: =IF(Wetland_Inventory!B149<>"",Wetland_Inventory!B149,"") ->  | C154: =IF(Wetland_Inventory!C149<>"",Wetland_Inventory!C149,"") ->  | D154: =IF(Wetland_Inventory!D149<>"",Wetland_Inventory!D149,"") ->  | E154: =IF(Wetland_Inventory!E149<>"",Wetland_Inventory!E149,"") ->  | AJ154: 0 | AK154: 0 | AL154: 0 | AM154: 0 | AN154: 0 | AO154: 0 | AP154: 0 | AQ154: 0 | AS154: 0 | AT154: 0 | AU154: 0 | AV154: 0 | AW154: 0 | AX154: 0 | AY154: 0 | AZ154: 0 | BA154: 0 | BB154: 0 | BC154: 0 | BD154: 0 | BE154: 0 | BF154: 0 | BG154: 0 | BH154: 0 | BI154: 0 | BJ154: 0 | BK154: 0 | BL154: 0 | BM154: 0
A155: =IF(Wetland_Inventory!A150<>"",Wetland_Inventory!A150,"") ->  | B155: =IF(Wetland_Inventory!B150<>"",Wetland_Inventory!B150,"") ->  | C155: =IF(Wetland_Inventory!C150<>"",Wetland_Inventory!C150,"") ->  | D155: =IF(Wetland_Inventory!D150<>"",Wetland_Inventory!D150,"") ->  | E155: =IF(Wetland_Inventory!E150<>"",Wetland_Inventory!E150,"") ->  | AJ155: 0 | AK155: 0 | AL155: 0 | AM155: 0 | AN155: 0 | AO155: 0 | AP155: 0 | AQ155: 0 | AS155: 0 | AT155: 0 | AU155: 0 | AV155: 0 | AW155: 0 | AX155: 0 | AY155: 0 | AZ155: 0 | BA155: 0 | BB155: 0 | BC155: 0 | BD155: 0 | BE155: 0 | BF155: 0 | BG155: 0 | BH155: 0 | BI155: 0 | BJ155: 0 | BK155: 0 | BL155: 0 | BM155: 0
A156: =IF(Wetland_Inventory!A151<>"",Wetland_Inventory!A151,"") ->  | B156: =IF(Wetland_Inventory!B151<>"",Wetland_Inventory!B151,"") ->  | C156: =IF(Wetland_Inventory!C151<>"",Wetland_Inventory!C151,"") ->  | D156: =IF(Wetland_Inventory!D151<>"",Wetland_Inventory!D151,"") ->  | E156: =IF(Wetland_Inventory!E151<>"",Wetland_Inventory!E151,"") ->  | AJ156: 0 | AK156: 0 | AL156: 0 | AM156: 0 | AN156: 0 | AO156: 0 | AP156: 0 | AQ156: 0 | AS156: 0 | AT156: 0 | AU156: 0 | AV156: 0 | AW156: 0 | AX156: 0 | AY156: 0 | AZ156: 0 | BA156: 0 | BB156: 0 | BC156: 0 | BD156: 0 | BE156: 0 | BF156: 0 | BG156: 0 | BH156: 0 | BI156: 0 | BJ156: 0 | BK156: 0 | BL156: 0 | BM156: 0
A157: =IF(Wetland_Inventory!A152<>"",Wetland_Inventory!A152,"") ->  | B157: =IF(Wetland_Inventory!B152<>"",Wetland_Inventory!B152,"") ->  | C157: =IF(Wetland_Inventory!C152<>"",Wetland_Inventory!C152,"") ->  | D157: =IF(Wetland_Inventory!D152<>"",Wetland_Inventory!D152,"") ->  | E157: =IF(Wetland_Inventory!E152<>"",Wetland_Inventory!E152,"") ->  | AJ157: 0 | AK157: 0 | AL157: 0 | AM157: 0 | AN157: 0 | AO157: 0 | AP157: 0 | AQ157: 0 | AS157: 0 | AT157: 0 | AU157: 0 | AV157: 0 | AW157: 0 | AX157: 0 | AY157: 0 | AZ157: 0 | BA157: 0 | BB157: 0 | BC157: 0 | BD157: 0 | BE157: 0 | BF157: 0 | BG157: 0 | BH157: 0 | BI157: 0 | BJ157: 0 | BK157: 0 | BL157: 0 | BM157: 0
A158: =IF(Wetland_Inventory!A153<>"",Wetland_Inventory!A153,"") ->  | B158: =IF(Wetland_Inventory!B153<>"",Wetland_Inventory!B153,"") ->  | C158: =IF(Wetland_Inventory!C153<>"",Wetland_Inventory!C153,"") ->  | D158: =IF(Wetland_Inventory!D153<>"",Wetland_Inventory!D153,"") ->  | E158: =IF(Wetland_Inventory!E153<>"",Wetland_Inventory!E153,"") ->  | AJ158: 0 | AK158: 0 | AL158: 0 | AM158: 0 | AN158: 0 | AO158: 0 | AP158: 0 | AQ158: 0 | AS158: 0 | AT158: 0 | AU158: 0 | AV158: 0 | AW158: 0 | AX158: 0 | AY158: 0 | AZ158: 0 | BA158: 0 | BB158: 0 | BC158: 0 | BD158: 0 | BE158: 0 | BF158: 0 | BG158: 0 | BH158: 0 | BI158: 0 | BJ158: 0 | BK158: 0 | BL158: 0 | BM158: 0
A159: =IF(Wetland_Inventory!A154<>"",Wetland_Inventory!A154,"") ->  | B159: =IF(Wetland_Inventory!B154<>"",Wetland_Inventory!B154,"") ->  | C159: =IF(Wetland_Inventory!C154<>"",Wetland_Inventory!C154,"") ->  | D159: =IF(Wetland_Inventory!D154<>"",Wetland_Inventory!D154,"") ->  | E159: =IF(Wetland_Inventory!E154<>"",Wetland_Inventory!E154,"") ->  | AJ159: 0 | AK159: 0 | AL159: 0 | AM159: 0 | AN159: 0 | AO159: 0 | AP159: 0 | AQ159: 0 | AS159: 0 | AT159: 0 | AU159: 0 | AV159: 0 | AW159: 0 | AX159: 0 | AY159: 0 | AZ159: 0 | BA159: 0 | BB159: 0 | BC159: 0 | BD159: 0 | BE159: 0 | BF159: 0 | BG159: 0 | BH159: 0 | BI159: 0 | BJ159: 0 | BK159: 0 | BL159: 0 | BM159: 0
A160: =IF(Wetland_Inventory!A155<>"",Wetland_Inventory!A155,"") ->  | B160: =IF(Wetland_Inventory!B155<>"",Wetland_Inventory!B155,"") ->  | C160: =IF(Wetland_Inventory!C155<>"",Wetland_Inventory!C155,"") ->  | D160: =IF(Wetland_Inventory!D155<>"",Wetland_Inventory!D155,"") ->  | E160: =IF(Wetland_Inventory!E155<>"",Wetland_Inventory!E155,"") ->  | AJ160: 0 | AK160: 0 | AL160: 0 | AM160: 0 | AN160: 0 | AO160: 0 | AP160: 0 | AQ160: 0 | AS160: 0 | AT160: 0 | AU160: 0 | AV160: 0 | AW160: 0 | AX160: 0 | AY160: 0 | AZ160: 0 | BA160: 0 | BB160: 0 | BC160: 0 | BD160: 0 | BE160: 0 | BF160: 0 | BG160: 0 | BH160: 0 | BI160: 0 | BJ160: 0 | BK160: 0 | BL160: 0 | BM160: 0
A161: =IF(Wetland_Inventory!A156<>"",Wetland_Inventory!A156,"") ->  | B161: =IF(Wetland_Inventory!B156<>"",Wetland_Inventory!B156,"") ->  | C161: =IF(Wetland_Inventory!C156<>"",Wetland_Inventory!C156,"") ->  | D161: =IF(Wetland_Inventory!D156<>"",Wetland_Inventory!D156,"") ->  | E161: =IF(Wetland_Inventory!E156<>"",Wetland_Inventory!E156,"") ->  | AJ161: 0 | AK161: 0 | AL161: 0 | AM161: 0 | AN161: 0 | AO161: 0 | AP161: 0 | AQ161: 0 | AS161: 0 | AT161: 0 | AU161: 0 | AV161: 0 | AW161: 0 | AX161: 0 | AY161: 0 | AZ161: 0 | BA161: 0 | BB161: 0 | BC161: 0 | BD161: 0 | BE161: 0 | BF161: 0 | BG161: 0 | BH161: 0 | BI161: 0 | BJ161: 0 | BK161: 0 | BL161: 0 | BM161: 0
A162: =IF(Wetland_Inventory!A157<>"",Wetland_Inventory!A157,"") ->  | B162: =IF(Wetland_Inventory!B157<>"",Wetland_Inventory!B157,"") ->  | C162: =IF(Wetland_Inventory!C157<>"",Wetland_Inventory!C157,"") ->  | D162: =IF(Wetland_Inventory!D157<>"",Wetland_Inventory!D157,"") ->  | E162: =IF(Wetland_Inventory!E157<>"",Wetland_Inventory!E157,"") ->  | AJ162: 0 | AK162: 0 | AL162: 0 | AM162: 0 | AN162: 0 | AO162: 0 | AP162: 0 | AQ162: 0 | AS162: 0 | AT162: 0 | AU162: 0 | AV162: 0 | AW162: 0 | AX162: 0 | AY162: 0 | AZ162: 0 | BA162: 0 | BB162: 0 | BC162: 0 | BD162: 0 | BE162: 0 | BF162: 0 | BG162: 0 | BH162: 0 | BI162: 0 | BJ162: 0 | BK162: 0 | BL162: 0 | BM162: 0
A163: =IF(Wetland_Inventory!A158<>"",Wetland_Inventory!A158,"") ->  | B163: =IF(Wetland_Inventory!B158<>"",Wetland_Inventory!B158,"") ->  | C163: =IF(Wetland_Inventory!C158<>"",Wetland_Inventory!C158,"") ->  | D163: =IF(Wetland_Inventory!D158<>"",Wetland_Inventory!D158,"") ->  | E163: =IF(Wetland_Inventory!E158<>"",Wetland_Inventory!E158,"") ->  | AJ163: 0 | AK163: =AT163+BA163+BH163 -> 0 | AL163: =AU163+BB163+BI163 -> 0 | AM163: =AV163+BC163+BJ163 -> 0 | AN163: =AW163+BD163+BK163 -> 0 | AO163: =AX163+BE163+BL163 -> 0 | AP163: =AY163+BF163+BM163 -> 0 | AQ163: 0 | AS163: 0 | AT163: 0 | AU163: 0 | AV163: 0 | AW163: 0 | AX163: 0 | AY163: 0 | AZ163: 0 | BA163: 0 | BB163: 0 | BC163: 0 | BD163: 0 | BE163: 0 | BF163: 0 | BG163: 0 | BH163: 0 | BI163: 0 | BJ163: 0 | BK163: 0 | BL163: 0 | BM163: 0
A164: =IF(Wetland_Inventory!A159<>"",Wetland_Inventory!A159,"") ->  | B164: =IF(Wetland_Inventory!B159<>"",Wetland_Inventory!B159,"") ->  | C164: =IF(Wetland_Inventory!C159<>"",Wetland_Inventory!C159,"") ->  | D164: =IF(Wetland_Inventory!D159<>"",Wetland_Inventory!D159,"") ->  | E164: =IF(Wetland_Inventory!E159<>"",Wetland_Inventory!E159,"") ->  | AJ164: 0 | AK164: 0 | AL164: 0 | AM164: 0 | AN164: 0 | AO164: 0 | AP164: 0 | AQ164: 0 | AS164: 0 | AT164: 0 | AU164: 0 | AV164: 0 | AW164: 0 | AX164: 0 | AY164: 0 | AZ164: 0 | BA164: 0 | BB164: 0 | BC164: 0 | BD164: 0 | BE164: 0 | BF164: 0 | BG164: 0 | BH164: 0 | BI164: 0 | BJ164: 0 | BK164: 0 | BL164: 0 | BM164: 0
A165: =IF(Wetland_Inventory!A160<>"",Wetland_Inventory!A160,"") ->  | B165: =IF(Wetland_Inventory!B160<>"",Wetland_Inventory!B160,"") ->  | C165: =IF(Wetland_Inventory!C160<>"",Wetland_Inventory!C160,"") ->  | D165: =IF(Wetland_Inventory!D160<>"",Wetland_Inventory!D160,"") ->  | E165: =IF(Wetland_Inventory!E160<>"",Wetland_Inventory!E160,"") ->  | AJ165: 0 | AK165: 0 | AL165: 0 | AM165: 0 | AN165: 0 | AO165: 0 | AP165: 0 | AQ165: 0 | AS165: 0 | AT165: 0 | AU165: 0 | AV165: 0 | AW165: 0 | AX165: 0 | AY165: 0 | AZ165: 0 | BA165: 0 | BB165: 0 | BC165: 0 | BD165: 0 | BE165: 0 | BF165: 0 | BG165: 0 | BH165: 0 | BI165: 0 | BJ165: 0 | BK165: 0 | BL165: 0 | BM165: 0
A166: =IF(Wetland_Inventory!A161<>"",Wetland_Inventory!A161,"") ->  | B166: =IF(Wetland_Inventory!B161<>"",Wetland_Inventory!B161,"") ->  | C166: =IF(Wetland_Inventory!C161<>"",Wetland_Inventory!C161,"") ->  | D166: =IF(Wetland_Inventory!D161<>"",Wetland_Inventory!D161,"") ->  | E166: =IF(Wetland_Inventory!E161<>"",Wetland_Inventory!E161,"") ->  | AJ166: 0 | AK166: 0 | AL166: 0 | AM166: 0 | AN166: 0 | AO166: 0 | AP166: 0 | AQ166: 0 | AS166: 0 | AT166: 0 | AU166: 0 | AV166: 0 | AW166: 0 | AX166: 0 | AY166: 0 | AZ166: 0 | BA166: 0 | BB166: 0 | BC166: 0 | BD166: 0 | BE166: 0 | BF166: 0 | BG166: 0 | BH166: 0 | BI166: 0 | BJ166: 0 | BK166: 0 | BL166: 0 | BM166: 0
A167: If more lines are needed, contact your area office ARC or Biologist
A168: =IF(Wetland_Inventory!A163<>"",Wetland_Inventory!A163,"") ->  | B168: =IF(Wetland_Inventory!B163<>"",Wetland_Inventory!B163,"") ->  | C168: =IF(Wetland_Inventory!C163<>"",Wetland_Inventory!C163,"") ->  | D168: =IF(Wetland_Inventory!D163<>"",Wetland_Inventory!D163,"") ->  | E168: =IF(Wetland_Inventory!E163<>"",Wetland_Inventory!E163,"") ->  | L168: =IF(A168="","",G168+I168+K168) ->  | M168: =IF(A168="","",B168-L168) ->  | AB168: =IF(ISNA(VLOOKUP(F168,$C$5:$D$14,2,FALSE)),"",VLOOKUP(F168,$C$5:$D$14,2,FALSE)) ->  | AC168: =IF(AB168<>"",G168,"") ->  | AD168: =IF(ISNA(VLOOKUP(H168,$C$5:$D$14,2,FALSE)),"",VLOOKUP(H168,$C$5:$D$14,2,FALSE)) ->  | AE168: =IF(AD168<>"",I168,"") ->  | AF168: =IF(ISNA(VLOOKUP(J168,$C$5:$D$14,2,FALSE)),"",VLOOKUP(J168,$C$5:$D$14,2,FALSE)) ->  | AG168: =IF(AF168<>"",K168,"") ->  | AI168: =IF(C168<>"",C168,"") ->  | AJ168: =AS168+AZ168+BG168 -> 0 | AK168: =AT168+BA168+BH168 -> 0 | AL168: =AU168+BB168+BI168 -> 0 | AM168: =AV168+BC168+BJ168 -> 0 | AN168: =AW168+BD168+BK168 -> 0 | AO168: =AX168+BE168+BL168 -> 0 | AP168: =AY168+BF168+BM168 -> 0 | AQ168: =SUM(AJ168:AP168) -> 0 | AS168: =IF($AB168=AS$18,$AC168,0) -> 0 | AT168: =IF($AB168=AT$18,$AC168,0) -> 0 | AU168: 0 | AV168: 0 | AW168: 0 | AX168: 0 | AY168: 0 | AZ168: =IF($AD168=AZ$18,$AE168,0) -> 0 | BA168: =IF($AD168=BA$18,$AE168,0) -> 0 | BB168: 0 | BC168: 0 | BD168: 0 | BE168: 0 | BF168: 0 | BG168: =IF($AF168=BG$18,$AG168,0) -> 0 | BH168: =IF($AF168=BH$18,$AG168,0) -> 0 | BI168: 0 | BJ168: 0 | BK168: 0 | BL168: 0 | BM168: 0
A169: x | B169: x | C169: x | D169: x | E169: x | F169: x | G169: x | H169: x | I169: x | J169: x | K169: x | L169: x | M169: x

Sheet Inventory
A1: WRE Wetland Restoration & Vegetation Establishment Estimate - FY 2016
C2: =IF($C$5=$R$27,IF(ISNA(VLOOKUP($C$3,$V$26:$V$64,1,FALSE)),"Currently, County not eligible for Grazing Reserve Rights",""),"") ->  | J2: =Ranking!H1 -> FY16-ver1
B3: County: | G3: Date:
B4: Administering County: | G4: Assisted by:
B5: Application Type: | H5: NEST# (if applicable)
B7: Applicant(s):
B9: Application Acreage: | C9: =Landuse_Inventory!$E$15 -> 0 | H9: Flooded Land - Acres:
H10: (Criteria in Instructions)
A11: Wetland Inventory (must be completed for all apps)
C12: =IF(C9=D16+I16,"",IF(C9>D16+I16,"Check acres - App Acres > Wetland Ac. + Upland Ac. ("&C9&">"&D16&"+"&I16&")","Check acres - App Acres < Wetland Ac. + Upland Ac.("&C9&"<"&D16&"+"&I16&")")) -> 
B13: Wetlands | D13: Acres | E13: Number of Basins | G13: Uplands | I13: Acres | J13: Planted Upland Acres
B14: Non-degraded | D14: =Wetland_Inventory!BJ22 -> 0 | E14: =Wetland_Inventory!BK22 -> 0 | G14: Cropland | I14: =SUMIF(Landuse_Inventory!$D$5:$D$14,Inventory!G14,Landuse_Inventory!$K$5:$K$14) -> 0 | J14: =SUMIF(Landuse_Inventory!$D$5:$D$14,Inventory!G14,Landuse_Inventory!$F$5:$F$14) -> 0 | M14: working comments
B15: Degraded | D15: =Wetland_Inventory!BJ23 -> 0 | E15: =Wetland_Inventory!BK23 -> 0 | G15: Other | I15: =Landuse_Inventory!$K$15-Inventory!I14 -> 0 | M15: considered any wetlands with more then one degredation in the following order for inclusion to wetland categories
C16: Wetland Subtotal | D16: =SUM(D14:D15) -> 0 | E16: =SUM(E14:E15) -> 0 | H16: Upland Subtotal | I16: =SUM(I14:I15) -> 0 | M16: 1. mechanically - water retention / dike
M17: 2. sediment - sediment / obstruction removal
A18: Estimated Restoration Costs | M18: 3. vegetative
E19: Units | F19: Number of Units | H19: Cost/Unit | I19: Subtotal | J19: Total | M19: 4. no restoration
A20: Wetland Restoration (657)
B21: Sediment Removal | E21: cuyds | F21: =Wetland_Inventory!BK39 -> 0 | H21: =VLOOKUP(B21,costs_Inventory!$A$2:$D$14,4,FALSE) -> 8.1 | I21: =IF(AND(F21<>0,H21<>0),F21*H21,"") -> 
B22: Dikes or Plugs | E22: each | F22: =Wetland_Inventory!BK37 -> 0 | H22: =VLOOKUP(B22,costs_Inventory!$A$2:$D$14,4,FALSE) -> 1000 | I22: =IF(AND(F22<>0,H22<>0),F22*H22,"") -> 
B23: Fill in dugouts | E23: cuyds | F23: =Wetland_Inventory!BM43 -> 0 | H23: =VLOOKUP(B23,costs_Inventory!$A$2:$D$14,4,FALSE) -> 4.4 | V23: New counties added FY15
O24: County | P24: FIPS | R24: Easement type | V24: Grazing Reserve Rights counties | Y24: Administering County
A26: Total Wetland Restoration Cost | J26: =SUM(I20:I25) -> 0 | O26: Adams | P26: 001 | R26: 30 year easement | V26: Barnes | Y26: Adams
O27: Barnes | P27: 003 | R27: 30 year grazing reserve rights | V27: Benson | Y27: Barnes
A28: Conservation Cover (327) | J28: =IF(AND(F28<>0,H28<>0),F28*H28,"") ->  | O28: Benson | P28: 005 | R28: 30 year contract (tribal land only) | V28: Bottineau | Y28: Benson
B29: Upland Grass Seeding (cost shared) | O29: Billings | P29: 007 | V29: Burke | Y29: Billings
B30: Chemical Seedbed Preparation | E30: =VLOOKUP(B30,costs_Inventory!$A$2:$D$14,3,FALSE) -> acre | F30: =Landuse_Inventory!$F$15 -> 0 | H30: =VLOOKUP(B30,costs_Inventory!$A$2:$D$14,4,FALSE) -> 20 | I30: =IF(AND(F30<>0,H30<>0),F30*H30,"") ->  | O30: Bottineau | P30: 009 | V30: Burleigh | Y30: Bottineau
B31: Mechanical Seedbed Prep. (per Pass) | D31: (Est. assumes 2X) | E31: =VLOOKUP(B31,costs_Inventory!$A$2:$D$14,3,FALSE) -> acre | F31: =Landuse_Inventory!$F$15 -> 0 | H31: =VLOOKUP(B31,costs_Inventory!$A$2:$D$14,4,FALSE) -> 12 | I31: =IF(AND(F31<>0,H31<>0),F31*H31*2,"") ->  | O31: Bowman | P31: 011 | V31: Cass | Y31: Bowman
B32: Grass/Grain Drill | E32: =VLOOKUP(B32,costs_Inventory!$A$2:$D$14,3,FALSE) -> acre | F32: =Landuse_Inventory!$F$15 -> 0 | H32: =VLOOKUP(B32,costs_Inventory!$A$2:$D$14,4,FALSE) -> 20 | O32: Burke | P32: 013 | V32: Cavalier | Y32: Burke
B33: Native Grass Mix | E33: =VLOOKUP(B33,costs_Inventory!$A$2:$D$14,3,FALSE) -> acre | F33: =Landuse_Inventory!$F$15 -> 0 | H33: =VLOOKUP(B33,costs_Inventory!$A$2:$D$14,4,FALSE) -> 100 | O33: Burleigh | P33: 015 | V33: Dickey | Y33: Burleigh
B34: Mechanical weed control | E34: =VLOOKUP(B34,costs_Inventory!$A$2:$D$14,3,FALSE) -> acre | F34: =Landuse_Inventory!$F$15 -> 0 | H34: =VLOOKUP(B34,costs_Inventory!$A$2:$D$14,4,FALSE) -> 12 | O34: Cass | P34: 017 | V34: Divide | Y34: Cass
B35: Subtotal - Upland Grass Seeding (cost shared) | I35: =SUM(I30:I34) -> 0 | O35: Cavalier | P35: 019 | V35: Eddy | Y35: Cavalier
B36: Wetland Grass Seeding - Upland Species (cost shared) | O36: Dickey | P36: 021 | V36: Emmons | Y36: Dickey
B37: Chemical Seedbed Preparation | E37: =VLOOKUP(B37,costs_Inventory!$A$2:$D$14,3,FALSE) -> acre | F37: =Wetland_Inventory!$BK$46 -> 0 | H37: =VLOOKUP(B37,costs_Inventory!$A$2:$D$14,4,FALSE) -> 20 | I37: =IF(AND(F37<>0,H37<>0),F37*H37,"") ->  | O37: Divide | P37: 023 | V37: Foster | Y37: Divide
B38: Mechanical Seedbed Prep. (per Pass) | D38: (Est. assumes 2X) | E38: =VLOOKUP(B38,costs_Inventory!$A$2:$D$14,3,FALSE) -> acre | F38: =Wetland_Inventory!$BK$46 -> 0 | H38: =VLOOKUP(B38,costs_Inventory!$A$2:$D$14,4,FALSE) -> 12 | I38: =IF(AND(F38<>0,H38<>0),F38*H38*2,"") ->  | O38: Dunn | P38: 025 | V38: Grand Forks | Y38: Dunn
B39: Grass/Grain Drill | E39: =VLOOKUP(B39,costs_Inventory!$A$2:$D$14,3,FALSE) -> acre | F39: =Wetland_Inventory!$BK$46 -> 0 | H39: =VLOOKUP(B39,costs_Inventory!$A$2:$D$14,4,FALSE) -> 20 | O39: Eddy | P39: 027 | V39: Griggs | Y39: Eddy
B40: Native Grass Mix | E40: =VLOOKUP(B40,costs_Inventory!$A$2:$D$14,3,FALSE) -> acre | F40: =Wetland_Inventory!$BK$46 -> 0 | H40: =VLOOKUP(B40,costs_Inventory!$A$2:$D$14,4,FALSE) -> 100 | O40: Emmons | P40: 029 | V40: Kidder | Y40: Emmons
B41: Mechanical weed control | E41: =VLOOKUP(B41,costs_Inventory!$A$2:$D$14,3,FALSE) -> acre | F41: =Wetland_Inventory!$BK$46 -> 0 | H41: =VLOOKUP(B41,costs_Inventory!$A$2:$D$14,4,FALSE) -> 12 | O41: Foster | P41: 031 | V41: LaMoure | Y41: Foster
B42: Subtotal - Wetland Grass Seeding - Upland Species (cost shared) | I42: =SUM(I37:I41) -> 0 | O42: Golden Valley | P42: 033 | V42: Logan | Y42: Golden Valley
B43: Wetland Grass Seeding - Hydrophytic Species (cost shared) | O43: Grand Forks | P43: 035 | V43: McHenry | Y43: Grand Forks
B44: Chemical Seedbed Preparation | E44: =VLOOKUP(B44,costs_Inventory!$A$2:$D$14,3,FALSE) -> acre | F44: =Wetland_Inventory!$BK$45 -> 0 | H44: =VLOOKUP(B44,costs_Inventory!$A$2:$D$14,4,FALSE) -> 20 | I44: =IF(AND(F44<>0,H44<>0),F44*H44,"") ->  | O44: Grant | P44: 037 | V44: McIntosh | Y44: Grant
B45: Mechanical Seedbed Prep. (per Pass) | D45: (Est. assumes 2X) | E45: =VLOOKUP(B45,costs_Inventory!$A$2:$D$14,3,FALSE) -> acre | F45: =Wetland_Inventory!$BK$45 -> 0 | H45: =VLOOKUP(B45,costs_Inventory!$A$2:$D$14,4,FALSE) -> 12 | I45: =IF(AND(F45<>0,H45<>0),F45*H45*2,"") ->  | O45: Griggs | P45: 039 | V45: McLean | Y45: Griggs
B46: Grass/Grain Drill | E46: =VLOOKUP(B46,costs_Inventory!$A$2:$D$14,3,FALSE) -> acre | F46: =Wetland_Inventory!$BK$45 -> 0 | H46: =VLOOKUP(B46,costs_Inventory!$A$2:$D$14,4,FALSE) -> 20 | O46: Hettinger | P46: 041 | V46: Mountrail | Y46: Hettinger
B47: Native Grass Mix | E47: =VLOOKUP(B47,costs_Inventory!$A$2:$D$14,3,FALSE) -> acre | F47: =Wetland_Inventory!$BK$45 -> 0 | H47: =VLOOKUP(B47,costs_Inventory!$A$2:$D$14,4,FALSE) -> 100 | O47: Kidder | P47: 043 | V47: Nelson | Y47: Kidder
B48: Individual Vegetative Plug (Planted) | E48: =VLOOKUP(B48,costs_Inventory!$A$2:$D$14,3,FALSE) -> each | H48: =VLOOKUP(B48,costs_Inventory!$A$2:$D$14,4,FALSE) -> 1 | O48: LaMoure | P48: 045 | V48: Pembina | Y48: LaMoure
B49: Mechanical weed control | E49: =VLOOKUP(B49,costs_Inventory!$A$2:$D$14,3,FALSE) -> acre | F49: =Wetland_Inventory!$BK$45 -> 0 | H49: =VLOOKUP(B49,costs_Inventory!$A$2:$D$14,4,FALSE) -> 12 | O49: Logan | P49: 047 | V49: Pierce | Y49: Logan
B50: Subtotal - Wetland Grass Seeding - Upland Species (cost shared) | I50: =SUM(I44:I49) -> 0 | O50: McHenry | P50: 049 | V50: Ramsey | Y50: McHenry
B51: Upland Existing Cover (NOT cost shared) | E51: acre | F51: =Landuse_Inventory!G15 -> 0 | I51: 0 | O51: McIntosh | P51: 051 | V51: Ransom | Y51: McIntosh
B52: Wetland Existing Cover (NOT cost shared) | E52: acre | F52: =Wetland_Inventory!E10-Inventory!F37-Inventory!F44 -> 0 | I52: 0 | O52: McKenzie | P52: 053 | V52: Renville | Y52: McKenzie
A53: Total Conservation Cover Cost | J53: =SUM(I37:I41)+SUM(I44:I49)+SUM(I30:I34) -> 0 | O53: McLean | P53: 055 | V53: Richland | Y53: McLean - Garrison
O54: Mercer | P54: 057 | V54: Rolette | Y54: McLean - Turtle Lake
A55: Pest Management (595) | O55: Morton | P55: 059 | V55: Sargent | Y55: Mercer
B56: Anticipated cost-share on seeded acres | O56: Mountrail | P56: 061 | V56: Sheridan | Y56: Morton
B57: Mechanical weed control | D57: year 2 | E57: =VLOOKUP(B57,costs_Inventory!$A$2:$D$14,3,FALSE) -> acre | F57: =F30+F37+F44 -> 0 | H57: =VLOOKUP(B57,costs_Inventory!$A$2:$D$14,4,FALSE) -> 12 | I57: =IF(AND(F57<>0,H57<>0),F57*H57,"") ->  | O57: Nelson | P57: 063 | V57: Steele | Y57: Mountrail
B58: Mechanical weed control | D58: year 3 | E58: =VLOOKUP(B58,costs_Inventory!$A$2:$D$14,3,FALSE) -> acre | F58: =F57 -> 0 | H58: =VLOOKUP(B58,costs_Inventory!$A$2:$D$14,4,FALSE) -> 12 | O58: Oliver | P58: 065 | V58: Stutsman | Y58: Nelson
B59: Anticipated non-cost shared existing cover acres | O59: Pembina | P59: 067 | V59: Towner | Y59: Oliver
B60: Mechanical weed control | D60: year 2 | E60: =VLOOKUP(B60,costs_Inventory!$A$2:$D$14,3,FALSE) -> acre | F60: =C9-F57 -> 0 | H60: =VLOOKUP(B60,costs_Inventory!$A$2:$D$14,4,FALSE) -> 12 | O60: Pierce | P60: 069 | V60: Traill | Y60: Pembina
B61: Mechanical weed control | D61: year 3 | E61: =VLOOKUP(B61,costs_Inventory!$A$2:$D$14,3,FALSE) -> acre | F61: =F60 -> 0 | H61: =VLOOKUP(B61,costs_Inventory!$A$2:$D$14,4,FALSE) -> 12 | O61: Ramsey | P61: 071 | V61: Walsh | Y61: Pierce
A62: Total Pest Management Cost | J62: =SUM(I57:I61) -> 0 | O62: Ransom | P62: 073 | V62: Ward | Y62: Ramsey
O63: Renville | P63: 075 | V63: Wells | Y63: Ransom
A64: Upland Habitat Management (645) | E64: acre | F64: =I16 -> 0 | H64: N/C | O64: Richland | P64: 077 | V64: Williams | Y64: Renville
O65: Rolette | P65: 079 | Y65: Richland
A66: Wetland Habitat Management (644) | E66: acre | F66: =D16 -> 0 | H66: N/C | O66: Sargent | P66: 081 | V66: New counties added FY15 | Y66: Rolette
O67: Sheridan | P67: 083 | Y67: Sargent
A68: Obstruction Removal (500) | O68: Sioux | P68: 085 | Y68: Sheridan
B69: Fence Removal | C69: =IF(Wetland_Inventory!BK44="Yes","Enter feet of fence","") ->  | E69: Feet | H69: =VLOOKUP(B69,costs_Inventory!$A$2:$D$14,4,FALSE) -> 0.6 | I69: =IF(AND(F69<>0,H69<>0),F69*H69,"") ->  | O69: Slope | P69: 087 | Y69: Sioux - Selfridge
B70: Tree Removal Rows | C70: =IF(Wetland_Inventory!BK42="Yes","Enter acres of trees","") ->  | E70: acre | H70: =VLOOKUP(B70,costs_Inventory!$A$2:$D$14,4,FALSE) -> 1350 | O70: Stark | P70: 089 | Y70: Sioux - Standing Rock
B71: Tree Removal Individuals | E71: acre | F71: =Wetland_Inventory!$BM$41 -> 0 | H71: =VLOOKUP(B71,costs_Inventory!$A$2:$D$14,4,FALSE) -> 1350 | O71: Steele | P71: 091 | Y71: Slope
B72: Rock/debris removal | E72: acre | F72: =Wetland_Inventory!$BM$40 -> 0 | H72: =VLOOKUP(B72,costs_Inventory!$A$2:$D$14,4,FALSE) -> 1350 | O72: Stutsman | P72: 093 | Y72: Stark
A73: Total Obstruction Removal Costs | J73: =SUM(I69:I72) -> 0 | O73: Towner | P73: 095 | Y73: Steele
O74: Traill | P74: 097 | Y74: Stutsman
A75: Grazing Rerserve Rights ONLY | D75: =IF(C5="30 year grazing land pilot easement","(See Graze Worksheet for Cost Calculations)","") ->  | O75: Walsh | P75: 099 | Y75: Towner
B76: Fence (382) | E76: Feet | F76: =IF($C$5="30 year grazing reserve rights",Graze!D5,"N/A") -> N/A | H76: =IF($C$5="30 year grazing reserve rights",Graze!H5,"N/A") -> N/A | I76: =IF($C$5="30 year grazing reserve rights",Graze!G5,"N/A") -> N/A | O76: Ward | P76: 101 | Y76: Traill
B77: Watering Facility (614) | E77: No. | F77: =IF($C$5="30 year grazing reserve rights",Graze!D16,"N/A") -> N/A | H77: =IF($C$5="30 year grazing reserve rights",Graze!H16,"N/A") -> N/A | I77: =IF($C$5="30 year grazing reserve rights",Graze!G16,"N/A") -> N/A | O77: Wells | P77: 103 | Y77: Walsh
B78: Pipeline (516) | E78: Feet | F78: =IF($C$5="30 year grazing reserve rights",Graze!D31,"N/A") -> N/A | H78: =IF($C$5="30 year grazing reserve rights",Graze!H31,"N/A") -> N/A | I78: =IF($C$5="30 year grazing reserve rights",Graze!G31,"N/A") -> N/A | O78: Williams | P78: 105 | Y78: Ward
B79: Water Well (642) | E79: No. | F79: =IF($C$5="30 year grazing reserve rights",Graze!D55,"N/A") -> N/A | H79: =IF($C$5="30 year grazing reserve rights",Graze!H55,"N/A") -> N/A | I79: =IF($C$5="30 year grazing reserve rights",Graze!G55,"N/A") -> N/A | Y79: Wells
A80: Total Grazing Land Pilot ONLY Costs | J80: =SUM(I76:I79) -> 0 | Y80: Williams
A82: Other Conservation Practices Planned | I82: =IF(AND(F82<>0,H82<>0),F82*H82,"") -> 
B83: Wildlife water developments | E83: Number | I83: =IF(AND(F83<>0,H83<>0),F83*H83,"") -> 
B84: Well decommision | E84: Number
O85: To determine cost share rate if different from 75%
O86: Equal to the per-unit cost on the WRP cost list | S86: <-- control
O87: =Ranking!C86 -> Equal to the per-unit cost on the WRP cost list | S87: <-- from ranking sheet
A88: Total Other Conservation Practices Costs | J88: =SUM(I83:I87) -> 0 | O88: =IF(Inventory!O87=Inventory!O86,75,Ranking!E82) -> 75 | P88: =O88/100 -> 0.75 | R88: ="NRCS Share - "&O88&"%" -> NRCS Share - 75%
O89: =100-O88 -> 25 | R89: ="Landowner(s) Share - "&O89&"%" -> Landowner(s) Share - 25%
I90: Total Estimated Restoration Cost | J90: =SUM(J21:J88) -> 0
A91: Estimated Easement Value $ | D91: =IF(C3="",0,IF(Ranking!D81="No",IF(C5=R27,C9*VLOOKUP(C3,GARC!B4:D56,3,FALSE)*0.75,C9*VLOOKUP(C3,GARC!B4:D56,3,FALSE)),IF(C5=R27,C9*VLOOKUP(C3,GARC!B4:D56,2,FALSE)*0.75*Ranking!D81/100,C9*VLOOKUP(C3,GARC!B4:D56,2,FALSE)*Ranking!D81/100))) -> 0 | I91: =R88 -> NRCS Share - 75% | J91: =ROUND(J90*P88,2) -> 0 | O91: To determine other types of offers
B92: =IF(Q93="(Enter Factor 12 on Ranking Sheet)","(Enter Factor 12 on Ranking Sheet)",IF(AND(Q92="N/A", Q93="N/A"),"N/A",IF(AND(Q92="(Grazing Reserve Rights)",Q93="(Land Owner Offer)"),"(Grazing Reserve Rights & Land Owner Offer)",IF(Q92="(Grazing Reserve Rights)","(Grazing Reserve Rights)","(Land Owner Offer)")))) -> N/A | I92: =R89 -> Landowner(s) Share - 25% | J92: =J90-J91 -> 0 | O92: Grazing Reserve Rights | Q92: =IF(C5="30 year grazing reserve rights","(Grazing Reserve Rights)","N/A") -> N/A
D93: =IF(ISNA(VLOOKUP(Ranking!$E$6,SO_Summary!$Q$8:$Q$25,1,FALSE)),"","APPRAISAL WILL BE OBTAINED") ->  | O93: =IF(E78<>"No","Landowner Offer","N/A") -> Landowner Offer | P93: =Ranking!E78 -> No | Q93: =IF(P93=0,"(Enter Factor 12 on Ranking Sheet)",IF(P93="No","N/A","(Land Owner Offer)")) -> N/A
B94: The restoration costs calculated here are developed during ranking and pre-planning application phase. If an offer is made and accepted, a more thorough inventory may result in different costs.
A101: Signatures:
B104: =C7 -> 0 | E104: Date | G104: District Conservationist | J104: Date

Sheet Ranking
H1: FY16-ver1
A3: North Dakota
A4: WRE Environmental Ranking Worksheet - FY 2016
A5: Applicant ID: | C5: =IF(Inventory!C7="","",Inventory!C7) ->  | E5: Application Type: | F5: =IF(Inventory!C5="","",Inventory!C5) -> 
D6: County: | E6: =IF(Inventory!C3="","",Inventory!C3) ->  | G6: Date: | H6: =IF(Inventory!H3="","",Inventory!H3) -> 
A7: Flooded Land: | C7: =IF(Inventory!I9="","",Inventory!I9&" Acres") ->  | D7: Administering County: | E7: =IF(Inventory!C4="","",Inventory!C4) ->  | G7: =IF(Inventory!I5="","","NEST#") ->  | H7: =IF(Inventory!I5="","",Inventory!I5) -> 
A8: Acres: | C8: =IF(Inventory!C9="","",Inventory!C9) -> 0 | G8: Total Application Points | H8: =IF(AND(E99="not eligible",E100="not eligible"),"INELIGIBLE",IF(AND(E99="not ranked",E100="not eligible"),"INELIGIBLE",IF(AND(E99="not eligible",E100="not ranked"),"INELIGIBLE",MAX(E99:E100)))) -> INELIGIBLE
C9: =IF(Inventory!D16=0,"COMPLETE INVENTORY ACRES","") -> COMPLETE INVENTORY ACRES | K9: Factor 2A - per basin restored | P9: Factor 1 | T9: Factor 4b
A10: Factor | B10: Environmental Factor Considerations | E10: Number of Units | F10: Units | G10: Points | H10: Comments | K10: Criteria | N10: points | P10: Criteria | Q10: breaks | R10: points | T10: Number of Different Wetland Types | V10: Factor
A11: Prairie Pothole Ranking Factors | K11: Plugs/Retention & Sed.Removal | N11: 15 | P11: per acre | Q11: 1 | R11: 1
A12: 1 | B12: =VLOOKUP(A12,Instructions!$L$325:$N$340,2,FALSE) -> Estimate Surface Acres of Basins to be Restored (657) vegetatively | E12: =Wetland_Inventory!BJ26 -> 0 | F12: Acres | G12: =IF(E12<>"",IF(E12*R11<=R12,E12*R11,R12),"") -> 0 | K12: Ditch Plugs / Water Retention | N12: 13 | P12: Max | R12: 30
B13: =VLOOKUP(A12,Instructions!$L$325:$N$340,3,FALSE) -> This is the measured or estimated acres of wetland or former wetland acres which will be restored vegetatively. To be considered restored the acres MUST be seeded to wetland species. Tree removal from the wetland also qualifies for this factor. Reference the e-FOTG for 657 standard. | G13: =IF(E13<>"",E13*R8,"") ->  | K13: Sediment Removal Only | N13: 3 | T13: 1 | V13: 0.2
G14: =IF(E14<>"",E14*N9,"") ->  | T14: 2 | V14: 0.4
G15: =IF(E15<>"",E15*N10,"") ->  | T15: 3 | V15: 0.9
A16: 2 | B16: =VLOOKUP(A16,Instructions!$L$325:$N$340,2,FALSE) -> Wetland Basins to be Hydrologically Restored | T16: 4 | V16: 1.2
B17: =VLOOKUP(A16,Instructions!$L$325:$N$340,3,FALSE) -> This factor considers both the number of basins and acres restored to be hydrologically restored (e.g. ditch plug, broken tile, dike, diversion, sediment removal, etc.). Factor 2A is the number of wetland basins. Factor 2B is the wetland acres restored. | K17: Factor 2B - per acre restored
K18: Criteria | N18: points | T18: Factor 4c | U18: breaks
K19: Plugs/Retention & Sed.Removal | N19: 5 | P19: Factor 4a | T19: Criteria | V19: points
C20: Factor 2A - Basins Restored | D20: Plugs/Retention & Sed.Rem/dgout | E20: =Wetland_Inventory!BK28 -> 0 | F20: Basins | G20: =IF(SUM(E20:E22)>0,E20*N11+E21*N12+E22*N13,0) -> 0 | K20: Ditch Plugs / Water Retention | N20: 4 | P20: Wetland Type | R20: Points per basin | S20: Actual | T20: >=10 | U20: 10 | V20: 0
D21: Ditch Plugs / Water Retention | E21: =Wetland_Inventory!BK29 -> 0 | K21: Sediment Removal Only | N21: 1 | P21: pema | R21: 2.5 | S21: =IF(ISNUMBER(VLOOKUP(P21,$C$34:$D$37,2,FALSE)),VLOOKUP(P21,$C$34:$D$37,2,FALSE)*R21,0) -> 0 | T21: >=7 and <10 | U21: 7 | V21: -10
D22: Sed. Removal &/or Dugout Only | E22: =Wetland_Inventory!BK30 -> 0 | P22: pemc | R22: 2 | S22: =IF(ISNUMBER(VLOOKUP(P22,$C$34:$D$37,2,FALSE)),VLOOKUP(P22,$C$34:$D$37,2,FALSE)*R22,0) -> 0 | T22: >=4 and <7 | U22: 4 | V22: -20
C23: Factor 2B - Acres Restored | D23: Plugs/Retention & Sed.Rem/dgout | E23: =Wetland_Inventory!BJ28 -> 0 | F23: Acres | G23: =IF(SUM(E23:E25)>0,E23*N19+E24*N20+E25*N21,0) -> 0 | P23: pem/abf or pemf | R23: 1 | S23: =IF(ISNUMBER(VLOOKUP(P23,$C$34:$D$37,2,FALSE)),VLOOKUP(P23,$C$34:$D$37,2,FALSE)*R23,0) -> 0 | T23: >0 and <4 | U23: 0 | V23: -30
D24: Ditch Plugs / Water Retention | E24: =Wetland_Inventory!BJ29 -> 0 | K24: Factor 5 | P24: other | R24: 0.5 | S24: =IF(ISNUMBER(VLOOKUP(P24,$C$34:$D$37,2,FALSE)),VLOOKUP(P24,$C$34:$D$37,2,FALSE)*R24,0) -> 0 | T24: 0 | V24: 0
D25: Sed. Removal &/or Dugout Only | E25: =Wetland_Inventory!BJ30 -> 0 | K25: Choice | N25: Points | S25: =SUM(S21:S24) -> 0
A26: 3 | B26: =VLOOKUP(A26,Instructions!$L$325:$N$340,2,FALSE) -> Upland to Wetland Ratio | E26: =IF(D30="NA","",ROUND(D29/D30,2)) ->  | F26: Ratio | G26: =IF(D30<>0,IF(E26>Q30,R30,IF(E26>=Q31,R31,IF(E26>=Q32,R32,IF(E26>=Q33,R33,R34)))),0) -> 0 | H26: =IF(D30="NA","WETLAND NOT RANKED",IF(E26>Q30,"NOT ELIGIBLE FOR WRP","ELIGIBLE FOR WRP")) -> WETLAND NOT RANKED | N26: 0
B27: =VLOOKUP(A26,Instructions!$L$325:$N$340,3,FALSE) -> For pothole wetland type areas, this score is the result of a ratio between upland (includes non-degraded wetlands) and wetland acres. A ratio greater than 6:1 scores makes the application ineligible. | K27: Red | N27: 25
K28: Yellow | N28: 25 | P28: Factor 3
C29: Upland and Non-degraded wetland Acres: | D29: =IF(D30="NA","NA",Inventory!I16+Inventory!D14) -> NA | K29: Dark Green | N29: 20 | P29: Criteria | Q29: breaks | R29: points
C30: Degraded Wetland Acres: | D30: =IF(Inventory!D15=0,"NA",Inventory!D15) -> NA | K30: Light Green | N30: 15 | P30: >6 | Q30: 6 | R30: 0
A31: 4 | B31: =VLOOKUP(A31,Instructions!$L$325:$N$340,2,FALSE) -> Wetland Types | E31: =IF(COUNT(D34:D37)=0,"",COUNT(D34:D37)) ->  | F31: Number of Types | G31: =IF(E31="",0,IF(S25*VLOOKUP(E31,T13:V16,3)>75,75+H31,IF(S25*VLOOKUP(E31,T13:V16,3)+H31<0,0,S25*VLOOKUP(E31,T13:V16,3)+H31))) -> 0 | H31: =IF(D38>=U20,V20,IF(D38>=U21:U21,V21,IF(D38>=U22,V22,IF(D38>U23,V23,V24)))) -> 0 | K31: Beige | N31: 10 | P31: >=4 and <=6 | Q31: 4 | R31: 15
B32: =VLOOKUP(A31,Instructions!$L$325:$N$340,3,FALSE) -> This score is the combination of the wetland type, variability of wetland types within the offer, and the ratio of upland acres to existing pemf acres NOT being hydrologically restored. | K32: Dark Blue | N32: 5 | P32: >=2 and <4 | Q32: 2 | R32: 10
K33: Light Blue | N33: 5 | P33: >=1 and <2 | Q33: 1 | R33: 5
C34: pema | D34: =IF(Wetland_Inventory!F6=0,"",Wetland_Inventory!F6) ->  | K34: South & West of Missouri River | N34: 10 | P34: >0 and <1 | R34: 0
C35: pemc | D35: =IF(Wetland_Inventory!F7=0,"",Wetland_Inventory!F7) -> 
C36: pem/abf or pemf | D36: =IF(Wetland_Inventory!F8=0,"",Wetland_Inventory!F8) -> 
C37: other | D37: =IF(Wetland_Inventory!F9=0,"",Wetland_Inventory!F9) ->  | K37: Factor 8 | P37: Factor 6
C38: Upland to pemf ratio | D38: =Wetland_Inventory!BI53 -> 0 | K38: Estimated Level of Maintenance Required | N38: Points | P38: Choice | U38: Points
A39: 5 | B39: =VLOOKUP(A39,Instructions!$L$325:$N$340,2,FALSE) -> State Geographic Area From USFWS Water Breeding Pairs Map | G39: =IF(D43="",0,VLOOKUP(D43,$K$27:$N$34,4,FALSE)) -> 0
B40: =VLOOKUP(A39,Instructions!$L$325:$N$340,3,FALSE) -> Locate the offer on the statewide 2012 Waterfowl Breeding Pairs per square mile thunderstorm maps and choose the majority color for the WRE offer. See "Breeding_Pairs_Map" worksheet tab. | K40: Vegetative O&M only | N40: 10 | P40: Immediately Adjacent to protected wetland easement | U40: 20
K41: Structural and vegetative O&M | N41: 0 | P41: Not Adjacent | U41: 0
C43: Color Code: | K43: Factor 9
A44: 6 | B44: =VLOOKUP(A44,Instructions!$L$325:$N$340,2,FALSE) -> Proximity to Other Protected Wetlands | G44: =IF(C49="",0,VLOOKUP(C49,$P$39:$U$41,6,FALSE)) -> 0 | K44: Choice | L44: Points | P44: Factor 7
B45: =VLOOKUP(A44,Instructions!$L$325:$N$340,3,FALSE) -> Protected wetlands are wetlands in public ownership or protected by public easement. Examples of such programs are Waterfowl Production Areas, State Game Management Areas, Emergency Watershed Protection Easement areas, or lands with USFWS permanent wetland easements. Other WRE Easements do NOT qualify since they are not permanent. | P45: County | Q45: FIPS | R45: Points
K46: Yes | L46: 5 | P46: Adams | Q46: 001 | R46: =VLOOKUP(P46,'T&E'!$A$4:$P$56,16,FALSE) -> 8
B47: =VLOOKUP(A46,Instructions!$L$325:$N$340,3,FALSE) ->  | K47: No | L47: 0 | P47: Barnes | Q47: 003 | R47: =VLOOKUP(P47,'T&E'!$A$4:$P$56,16,FALSE) -> 8
P48: Benson | Q48: 005 | R48: =VLOOKUP(P48,'T&E'!$A$4:$P$56,16,FALSE) -> 17
C49: Not Adjacent | P49: Billings | Q49: 007 | R49: =VLOOKUP(P49,'T&E'!$A$4:$P$56,16,FALSE) -> 8
A50: 7 | B50: =VLOOKUP(A50,Instructions!$L$325:$N$340,2,FALSE) -> Threatened and Endangered Species Occur in County | G50: =IF(D57="",0,VLOOKUP(D57,$P$46:$R$98,3,FALSE)) -> 0 | L50: Factor 10 | P50: Bottineau | Q50: 009 | R50: =VLOOKUP(P50,'T&E'!$A$4:$P$56,16,FALSE) -> 11
B51: =VLOOKUP(A50,Instructions!$L$325:$N$340,3,FALSE) -> See the “County Occurrence of Endangered, Threatened and Candidate Species and Designated Critical Habitat in North Dakota” in Section I of the FOTG (is be updated for FY16). When the WRE offer is in a County recognized as having T & E species, the points are awarded. Points awarded based status of selected species. The two following tables identify the points assigned to the selected species and then the number of points for each county due to the presence of those selected species. | L51: Watershed Rating | M51: Points | P51: Bowman | Q51: 011 | R51: =VLOOKUP(P51,'T&E'!$A$4:$P$56,16,FALSE) -> 8
L52: Yes | M52: 5 | P52: Burke | Q52: 013 | R52: =VLOOKUP(P52,'T&E'!$A$4:$P$56,16,FALSE) -> 20
L53: No | M53: 0 | P53: Burleigh | Q53: 015 | R53: =VLOOKUP(P53,'T&E'!$A$4:$P$56,16,FALSE) -> 17
P54: Cass | Q54: 017 | R54: =VLOOKUP(P54,'T&E'!$A$4:$P$56,16,FALSE) -> 7
P55: Cavalier | Q55: 019 | R55: =VLOOKUP(P55,'T&E'!$A$4:$P$56,16,FALSE) -> 8
P56: Dickey | Q56: 021 | R56: =VLOOKUP(P56,'T&E'!$A$4:$P$56,16,FALSE) -> 8
C57: County: | D57: =E6 ->  | L57: Watershed HUC | M57: Priority | N57: Points | P57: Divide | Q57: 023 | R57: =VLOOKUP(P57,'T&E'!$A$4:$P$56,16,FALSE) -> 17
A58: 8 | B58: =VLOOKUP(A58,Instructions!$L$325:$N$340,2,FALSE) -> Operation and Maintenance | G58: =IF(D60="",0,VLOOKUP(D60,$K$39:$N$41,4,FALSE)) -> 0 | P58: Dunn | Q58: 025 | R58: =VLOOKUP(P58,'T&E'!$A$4:$P$56,16,FALSE) -> 20
B59: =VLOOKUP(A58,Instructions!$L$325:$N$340,3,FALSE) -> How much maintenance will be needed after restoration? | L59: 09010001 | M59: =VLOOKUP(L59,HUC_Priorities!$A$3:$C$54,2,FALSE) -> No | N59: =VLOOKUP(M59,$L$52:$M$55,2,FALSE) -> 0 | P59: Eddy | Q59: 027 | R59: =VLOOKUP(P59,'T&E'!$A$4:$P$56,16,FALSE) -> 20
D60: =IF(Inventory!D16>0,IF(Wetland_Inventory!BL38>0,K41,K40),"") ->  | L60: 09010002 | M60: =VLOOKUP(L60,HUC_Priorities!$A$3:$C$54,2,FALSE) -> Yes | N60: 5 | P60: Emmons | Q60: 029 | R60: =VLOOKUP(P60,'T&E'!$A$4:$P$56,16,FALSE) -> 17
A61: 9 | B61: =VLOOKUP(A61,Instructions!$L$325:$N$340,2,FALSE) -> Partners Release Form | G61: =IF(D66="",0,VLOOKUP(D66,$K$45:$L$47,2,FALSE)) -> 0 | L61: 09010003 | M61: =VLOOKUP(L61,HUC_Priorities!$A$3:$C$54,2,FALSE) -> Yes | N61: 5 | P61: Foster | Q61: 031 | R61: =VLOOKUP(P61,'T&E'!$A$4:$P$56,16,FALSE) -> 14
B62: =VLOOKUP(A61,Instructions!$L$325:$N$340,3,FALSE) -> Partners include SCDs, Ducks Unlimited, FWS, local Water boards, Pheasants Forever, etc. The document allows NRCD to release client information to Conservation Partners, but does not constitute a financial commitment. The release form must be signed and attached to award points. This document is attached to the bulletin. | L62: 09010004 | M62: =VLOOKUP(L62,HUC_Priorities!$A$3:$C$54,2,FALSE) -> Yes | N62: 5 | P62: Golden Valley | Q62: 033 | R62: =VLOOKUP(P62,'T&E'!$A$4:$P$56,16,FALSE) -> 8
L63: 09010005 | M63: =VLOOKUP(L63,HUC_Priorities!$A$3:$C$54,2,FALSE) -> No | N63: 0 | P63: Grand Forks | Q63: 035 | R63: =VLOOKUP(P63,'T&E'!$A$4:$P$56,16,FALSE) -> 7
B64: =VLOOKUP(A63,Instructions!$L$325:$N$340,3,FALSE) ->  | L64: 09020101 | M64: =VLOOKUP(L64,HUC_Priorities!$A$3:$C$54,2,FALSE) -> Yes | N64: 5 | P64: Grant | Q64: 037 | R64: =VLOOKUP(P64,'T&E'!$A$4:$P$56,16,FALSE) -> 8
L65: 09020104 | M65: =VLOOKUP(L65,HUC_Priorities!$A$3:$C$54,2,FALSE) -> Yes | N65: 5 | P65: Griggs | Q65: 039 | R65: =VLOOKUP(P65,'T&E'!$A$4:$P$56,16,FALSE) -> 7
D66: No | L66: 09020105 | M66: =VLOOKUP(L66,HUC_Priorities!$A$3:$C$54,2,FALSE) -> Yes | N66: 5 | P66: Hettinger | Q66: 041 | R66: =VLOOKUP(P66,'T&E'!$A$4:$P$56,16,FALSE) -> 8
A67: 10 | B67: =VLOOKUP(A67,Instructions!$L$325:$N$340,2,FALSE) -> Water Quality Improvement | G67: =IF(D71="",0,VLOOKUP(D71,$L$58:$N$111,3,FALSE)) -> 0 | L67: 09020107 | M67: =VLOOKUP(L67,HUC_Priorities!$A$3:$C$54,2,FALSE) -> Yes | N67: 5 | P67: Kidder | Q67: 043 | R67: =VLOOKUP(P67,'T&E'!$A$4:$P$56,16,FALSE) -> 17
B68: =VLOOKUP(A67,Instructions!$L$325:$N$340,3,FALSE) -> The ND Health Dept. has identified priority watersheds by 8 digit HUCs. Those watersheds with impaired waters are granted 5 points. See "HUC_map" worksheet tab for watershed HUC. | L68: 09020109 | M68: =VLOOKUP(L68,HUC_Priorities!$A$3:$C$54,2,FALSE) -> Yes | N68: 5 | P68: LaMoure | Q68: 045 | R68: =VLOOKUP(P68,'T&E'!$A$4:$P$56,16,FALSE) -> 8
L69: 09020201 | M69: =VLOOKUP(L69,HUC_Priorities!$A$3:$C$54,2,FALSE) -> Yes | N69: 5 | P69: Logan | Q69: 047 | R69: =VLOOKUP(P69,'T&E'!$A$4:$P$56,16,FALSE) -> 14
L70: 09020202 | M70: =VLOOKUP(L70,HUC_Priorities!$A$3:$C$54,2,FALSE) -> Yes | N70: 5 | P70: McHenry | Q70: 049 | R70: =VLOOKUP(P70,'T&E'!$A$4:$P$56,16,FALSE) -> 23
C71: Watershed HUC: | L71: 09020203 | M71: =VLOOKUP(L71,HUC_Priorities!$A$3:$C$54,2,FALSE) -> Yes | N71: 5 | P71: McIntosh | Q71: 051 | R71: =VLOOKUP(P71,'T&E'!$A$4:$P$56,16,FALSE) -> 17
A72: 11 | B72: =VLOOKUP(A72,Instructions!$L$325:$N$340,2,FALSE) -> Retention | G72: =IF(D77="",0,VLOOKUP(D77,$P$102:$Q$104,2,FALSE)) -> 0 | L72: 09020204 | M72: =VLOOKUP(L72,HUC_Priorities!$A$3:$C$54,2,FALSE) -> Yes | N72: 5 | P72: McKenzie | Q72: 053 | R72: =VLOOKUP(P72,'T&E'!$A$4:$P$56,16,FALSE) -> 23
B73: =VLOOKUP(A72,Instructions!$L$325:$N$340,3,FALSE) -> Will the easement's vegetative and hydrologically restored areas remain protected after the WRE easement has expired or will it return to cropland? If a public entity i.e. Natural Resources Trust, NDGF, USFWS (purchase agreement or easement) has formally agreed to extend the life of the restoration, then answer yes. | L73: 09020205 | M73: =VLOOKUP(L73,HUC_Priorities!$A$3:$C$54,2,FALSE) -> Yes | N73: 5 | P73: McLean | Q73: 055 | R73: =VLOOKUP(P73,'T&E'!$A$4:$P$56,16,FALSE) -> 20
L74: 09020301 | M74: =VLOOKUP(L74,HUC_Priorities!$A$3:$C$54,2,FALSE) -> Yes | N74: 5 | P74: Mercer | Q74: 057 | R74: =VLOOKUP(P74,'T&E'!$A$4:$P$56,16,FALSE) -> 17
L75: 09020306 | M75: =VLOOKUP(L75,HUC_Priorities!$A$3:$C$54,2,FALSE) -> Yes | N75: 5 | P75: Morton | Q75: 059 | R75: =VLOOKUP(P75,'T&E'!$A$4:$P$56,16,FALSE) -> 17
L76: 09020307 | M76: =VLOOKUP(L76,HUC_Priorities!$A$3:$C$54,2,FALSE) -> Yes | N76: 5 | P76: Mountrail | Q76: 061 | R76: =VLOOKUP(P76,'T&E'!$A$4:$P$56,16,FALSE) -> 20
D77: No | L77: 09020308 | M77: =VLOOKUP(L77,HUC_Priorities!$A$3:$C$54,2,FALSE) -> Yes | N77: 5 | P77: Nelson | Q77: 063 | R77: =VLOOKUP(P77,'T&E'!$A$4:$P$56,16,FALSE) -> 7
A78: 12 | B78: =VLOOKUP(A78,Instructions!$L$325:$N$340,2,FALSE) -> Producer will accept less than 75% of NRCS GARC for 30-Year Easement | E78: =D81 -> No | G78: =IF(D81="",0,VLOOKUP(D81,$P$109:$Q$115,2,FALSE)) -> 0 | L78: 09020310 | M78: =VLOOKUP(L78,HUC_Priorities!$A$3:$C$54,2,FALSE) -> Yes | N78: 5 | P78: Oliver | Q78: 065 | R78: =VLOOKUP(P78,'T&E'!$A$4:$P$56,16,FALSE) -> 20
B79: =VLOOKUP(A78,Instructions!$L$325:$N$340,3,FALSE) -> Will landowner (in writing) accept less than 75% of NRCS established value? If YES, enter the percent of appraised value chosen by the applicant. | L79: 09020311 | M79: =VLOOKUP(L79,HUC_Priorities!$A$3:$C$54,2,FALSE) -> Yes | N79: 5 | P79: Pembina | Q79: 067 | R79: =VLOOKUP(P79,'T&E'!$A$4:$P$56,16,FALSE) -> 8
L80: 09020313 | M80: =VLOOKUP(L80,HUC_Priorities!$A$3:$C$54,2,FALSE) -> Yes | N80: 5 | P80: Pierce | Q80: 069 | R80: =VLOOKUP(P80,'T&E'!$A$4:$P$56,16,FALSE) -> 17
D81: No | L81: 09020315 | M81: =VLOOKUP(L81,HUC_Priorities!$A$3:$C$54,2,FALSE) -> Yes | N81: =VLOOKUP(M81,$L$52:$M$55,2,FALSE) -> 5 | P81: Ramsey | Q81: 071 | R81: =VLOOKUP(P81,'T&E'!$A$4:$P$56,16,FALSE) -> 8
A82: 13 | B82: =VLOOKUP(A82,Instructions!$L$325:$N$340,2,FALSE) -> USDA Restoration Costs | G82: =IF(C86="",0,VLOOKUP(C86,$P$122:$U$124,6,FALSE)) -> 0 | L82: 09020316 | M82: =VLOOKUP(L82,HUC_Priorities!$A$3:$C$54,2,FALSE) -> Yes | N82: =VLOOKUP(M82,$L$52:$M$55,2,FALSE) -> 5 | P82: Ransom | Q82: 073 | R82: =VLOOKUP(P82,'T&E'!$A$4:$P$56,16,FALSE) -> 17
B83: =VLOOKUP(A82,Instructions!$L$325:$N$340,3,FALSE) -> The intent of this factor is to rank the cost efficiency of restoration activities. Consideration should be given if a conservation partner will decrease USDA restoration cost by paying for part of the restoration. (If COST REDUCED, enter the NRCS percent in column E). | L83: 10060005 | M83: =VLOOKUP(L83,HUC_Priorities!$A$3:$C$54,2,FALSE) -> No | N83: 0 | P83: Renville | Q83: 075 | R83: =VLOOKUP(P83,'T&E'!$A$4:$P$56,16,FALSE) -> 17
L84: 10060006 | M84: =VLOOKUP(L84,HUC_Priorities!$A$3:$C$54,2,FALSE) -> No | N84: 0 | P84: Richland | Q84: 077 | R84: =VLOOKUP(P84,'T&E'!$A$4:$P$56,16,FALSE) -> 23
L85: 10060007 | M85: =VLOOKUP(L85,HUC_Priorities!$A$3:$C$54,2,FALSE) -> No | N85: 0 | P85: Rolette | Q85: 079 | R85: =VLOOKUP(P85,'T&E'!$A$4:$P$56,16,FALSE) -> 14
C86: Equal to the per-unit cost on the WRP cost list | L86: 10100004 | M86: =VLOOKUP(L86,HUC_Priorities!$A$3:$C$54,2,FALSE) -> No | N86: 0 | P86: Sargent | Q86: 081 | R86: =VLOOKUP(P86,'T&E'!$A$4:$P$56,16,FALSE) -> 15
A87: 14 | B87: =VLOOKUP(A87,Instructions!$L$325:$N$340,2,FALSE) -> Percentage of upland area planted to annual crops | E87: =IF(Inventory!I16=0,"",IF(Inventory!J14>0,Inventory!J14/Inventory!I16,0)) ->  | F87: Percent | G87: =IF(E87<>"",IF(E87>=M116,N116,IF(E87>=M117,N117,IF(E87>=M118,N118,N119))),0) -> 0 | L87: 10110101 | M87: =VLOOKUP(L87,HUC_Priorities!$A$3:$C$54,2,FALSE) -> Yes | N87: 5 | P87: Sheridan | Q87: 083 | R87: =VLOOKUP(P87,'T&E'!$A$4:$P$56,16,FALSE) -> 17
B88: =VLOOKUP(A87,Instructions!$L$325:$N$340,3,FALSE) -> Note: Existing hay land fields in rotation for more than 4 years are not considered as an annually planted cropland. | L88: 10110102 | M88: =VLOOKUP(L88,HUC_Priorities!$A$3:$C$54,2,FALSE) -> Yes | N88: 5 | P88: Sioux | Q88: 085 | R88: =VLOOKUP(P88,'T&E'!$A$4:$P$56,16,FALSE) -> 17
L89: 10110201 | M89: =VLOOKUP(L89,HUC_Priorities!$A$3:$C$54,2,FALSE) -> No | N89: 0 | P89: Slope | Q89: 087 | R89: =VLOOKUP(P89,'T&E'!$A$4:$P$56,16,FALSE) -> 8
A90: 15 | B90: =VLOOKUP(A90,Instructions!$L$325:$N$340,2,FALSE) -> Survey Extent | F90: Turns | G90: =IF(E90="","",IF(E90<=M125,N125,IF(E90>=M130,N130,VLOOKUP(E90,M126:N129,2,FALSE)))) ->  | L90: 10110202 | M90: =VLOOKUP(L90,HUC_Priorities!$A$3:$C$54,2,FALSE) -> No | N90: 0 | P90: Stark | Q90: 089 | R90: =VLOOKUP(P90,'T&E'!$A$4:$P$56,16,FALSE) -> 8
B91: =VLOOKUP(A90,Instructions!$L$325:$N$340,3,FALSE) -> This factor considers how many turns will be needed to conduct the survey. | L91: 10110203 | M91: =VLOOKUP(L91,HUC_Priorities!$A$3:$C$54,2,FALSE) -> Yes | N91: 5 | P91: Steele | Q91: 091 | R91: =VLOOKUP(P91,'T&E'!$A$4:$P$56,16,FALSE) -> 7
D92: Number of Survey Turns: | L92: 10110204 | M92: =VLOOKUP(L92,HUC_Priorities!$A$3:$C$54,2,FALSE) -> No | N92: 0 | P92: Stutsman | Q92: 093 | R92: =VLOOKUP(P92,'T&E'!$A$4:$P$56,16,FALSE) -> 20
A93: 16 | B93: =VLOOKUP(A93,Instructions!$L$325:$N$342,2,FALSE) -> CRP set to expire within one year. | G93: =IF(D95="",0,VLOOKUP(D95,$L$136:$M$138,2,FALSE)) -> 0 | L93: 10110205 | M93: =VLOOKUP(L93,HUC_Priorities!$A$3:$C$54,2,FALSE) -> Yes | N93: =VLOOKUP(M93,$L$52:$M$55,2,FALSE) -> 5 | P93: Towner | Q93: 095 | R93: =VLOOKUP(P93,'T&E'!$A$4:$P$56,16,FALSE) -> 8
B94: =VLOOKUP(A93,Instructions!$L$325:$N$342,3,FALSE) -> Is the offered land currently in a CRP contract set to expire within one year. | L94: 10130101 | M94: =VLOOKUP(L94,HUC_Priorities!$A$3:$C$54,2,FALSE) -> Yes | N94: 5 | P94: Traill | Q94: 097 | R94: =VLOOKUP(P94,'T&E'!$A$4:$P$56,16,FALSE) -> 7
L95: 10130102 | M95: =VLOOKUP(L95,HUC_Priorities!$A$3:$C$54,2,FALSE) -> No | N95: 0 | P95: Walsh | Q95: 099 | R95: =VLOOKUP(P95,'T&E'!$A$4:$P$56,16,FALSE) -> 8
A96: 17 | B96: =VLOOKUP(A96,Instructions!$L$325:$N$342,2,FALSE) -> Cost Effectiveness | G96: =IF(Q137<=Q129,R129,IF(Q137<=Q130,R130,IF(Q137<=Q131,R131,R132))) ->  | L96: 10130103 | M96: =VLOOKUP(L96,HUC_Priorities!$A$3:$C$54,2,FALSE) -> Yes | N96: 5 | P96: Ward | Q96: 101 | R96: =VLOOKUP(P96,'T&E'!$A$4:$P$56,16,FALSE) -> 20
B97: =VLOOKUP(A96,Instructions!$L$325:$N$342,3,FALSE) -> This factor evaluates the cost of the easement against all other factors in order to try to maximize the environmental benefit per dollar expended. | L97: 10130104 | M97: =VLOOKUP(L97,HUC_Priorities!$A$3:$C$54,2,FALSE) -> Yes | N97: 5 | P97: Wells | Q97: 103 | R97: =VLOOKUP(P97,'T&E'!$A$4:$P$56,16,FALSE) -> 17
L98: 10130106 | M98: =VLOOKUP(L98,HUC_Priorities!$A$3:$C$54,2,FALSE) -> Yes | N98: 5 | P98: Williams | Q98: 105 | R98: =VLOOKUP(P98,'T&E'!$A$4:$P$56,16,FALSE) -> 17
A99: Prairie Pothole Ranking | E99: =IF(H26="PRAIRIE POTHOLE WETLAND NOT RANKED","NOT RANKED",IF(H26<>"ELIGIBLE FOR WRP","NOT ELIGIBLE",SUM(G12:G98))) -> NOT ELIGIBLE | L99: 10130201 | M99: =VLOOKUP(L99,HUC_Priorities!$A$3:$C$54,2,FALSE) -> Yes | N99: 5
A100: Floodplain Ranking | E100: =IF(H90="FLOODPLAIN NOT RANKED","NOT RANKED",IF(H90<>"ELIGIBLE AS FLOODPLAIN","NOT ELIGIBLE",SUM(G31:G92)+SUM(G39:G57)+SUM(G61:G86)+#REF!)) -> NOT ELIGIBLE | L100: 10130202 | M100: =VLOOKUP(L100,HUC_Priorities!$A$3:$C$54,2,FALSE) -> Yes | N100: 5 | P100: Factor 11
A101: Add'l 1 | B101: Is the land currently in CRP? | L101: 10130203 | M101: =VLOOKUP(L101,HUC_Priorities!$A$3:$C$54,2,FALSE) -> Yes | N101: 5 | P101: Choice | Q101: Points
A102: Add'l 2 | B102: If land is in or was previously in CRP, were trees planted? (if yes explain the type of tree planting and CRP practice in comment section below. | E102: If trees planted, how many acres of trees? | L102: 10130204 | M102: =VLOOKUP(L102,HUC_Priorities!$A$3:$C$54,2,FALSE) -> Yes | N102: 5
A103: Comments: | L103: 10130205 | M103: =VLOOKUP(L103,HUC_Priorities!$A$3:$C$54,2,FALSE) -> Yes | N103: 5 | P103: Yes | Q103: 20
L104: 10130206 | M104: =VLOOKUP(L104,HUC_Priorities!$A$3:$C$54,2,FALSE) -> Yes | N104: 5 | P104: No | Q104: 0
L105: 10130301 | M105: =VLOOKUP(L105,HUC_Priorities!$A$3:$C$54,2,FALSE) -> No | N105: 0
L106: 10130303 | M106: =VLOOKUP(L106,HUC_Priorities!$A$3:$C$54,2,FALSE) -> Yes | N106: 5 | P106: Factor 12
L107: 10160001 | M107: =VLOOKUP(L107,HUC_Priorities!$A$3:$C$54,2,FALSE) -> Yes | N107: 5 | P107: % of Appraised Value | Q107: Points
L108: 10160002 | M108: =VLOOKUP(L108,HUC_Priorities!$A$3:$C$54,2,FALSE) -> Yes | N108: 5
L109: 10160003 | M109: =VLOOKUP(L109,HUC_Priorities!$A$3:$C$54,2,FALSE) -> Yes | N109: 5
L110: 10160004 | M110: =VLOOKUP(L110,HUC_Priorities!$A$3:$C$54,2,FALSE) -> Yes | N110: 5 | P110: No | Q110: 0
P111: 50 | Q111: 25
P112: 55 | Q112: 20
P113: 60 | Q113: 15
L114: Factor 14 | P114: 65 | Q114: 10
L115: Criteria | M115: breaks | N115: points | P115: 70 | Q115: 5
L116: >=75 | M116: 0.75 | N116: 10
L117: >=50 and <75 | M117: 0.5 | N117: 7
A118: Ranking package has reviewed by: | L118: >=25 and <50 | M118: 0.25 | N118: 2
L119: < 25 | N119: 0 | P119: Factor 13
P120: Restoration Cost | U120: Points
B122: Field Office Representative | D122: Date | L122: Factor 15 | P122: Less than the per-unit cost on the WRP cost list | U122: 5
N123: point bonus | P123: Equal to the per-unit cost on the WRP cost list | U123: 0
L124: Criteria | M124: breaks | P124: Greater than the per-unit cost on the WRP cost list | U124: -5
L125: <=4 | M125: 4 | N125: 10 | S125: =IF($C$86="Less than the per-unit cost on the WRP cost list",0,"") -> 
L126: 5 | M126: 5 | N126: 7
B127: Area Office Representative | D127: Date | L127: 6 | M127: 6 | N127: 5 | P127: Factor 17
L128: 7 | M128: 7 | N128: 3 | P128: Criteria | Q128: breaks | R128: points
L129: 8 | M129: 8 | N129: 2 | P129: <= 4 | Q129: 4 | R129: 20
L130: >=9 | M130: 9 | N130: 0 | P130: 4.01 - 8 | Q130: 8 | R130: 15
P131: 8.01 - 12 | Q131: 12 | R131: 10
B132: State Office Representative | D132: Date | P132: > 12 | R132: 0
P133: Calculations
L134: Factor 16 | P134: Costs | Q134: =Inventory!D91+Inventory!J91 -> 0
L135: Choice | M135: Points | P135: Acres | Q135: =Inventory!C9 -> 0
P136: Pts for 1-15 | Q136: =SUM(G12:G92) -> 0
L137: Yes | M137: 5 | P137: Cost/Ac/Pts | Q137: =ROUND(Q134/Q135/Q136,2) -> 
L138: No | M138: 0

Sheet Graze
A1: ND WRE FY 2016
A2: Grazing Land Practices
H3: =Ranking!H1 -> FY16-ver1
A4: Practice | B4: Practice Component | C4: Units | D4: Number of Units | E4: Per Unit Cost | F4: Cost Share Type | G4: Total Cost | H4: Total Cost Per Unit
A5: Fence (382) | C5: Feet of Fence: | G5: =SUM(G6:G14) -> 0 | H5: =IF(D5<>"",ROUND(G5/D5,2),"") -> 
B6: Fence (barbed or smooth) | C6: =VLOOKUP($B6,costs_list!$D$424:$G$432,2,FALSE) -> lf. | E6: =VLOOKUP($B6,costs_list!$D$424:$G$432,3,FALSE) -> 1.07 | F6: =VLOOKUP($B6,costs_list!$D$424:$G$432,4,FALSE) -> AC | G6: =IF(D6>0,D6*E6,"") -> 
B7: Fence, chain link | C7: =VLOOKUP($B7,costs_list!$D$424:$G$432,2,FALSE) -> lf. | E7: =VLOOKUP($B7,costs_list!$D$424:$G$432,3,FALSE) -> 14.05 | F7: =VLOOKUP($B7,costs_list!$D$424:$G$432,4,FALSE) -> AC | G7: =IF(D7>0,D7*E7,"") -> 
B8: Fence, Feedlot | C8: =VLOOKUP($B8,costs_list!$D$424:$G$432,2,FALSE) -> lf. | E8: =VLOOKUP($B8,costs_list!$D$424:$G$432,3,FALSE) -> 8.2 | F8: =VLOOKUP($B8,costs_list!$D$424:$G$432,4,FALSE) -> AC
B9: Fence, Feedlot for wind protection | C9: =VLOOKUP($B9,costs_list!$D$424:$G$432,2,FALSE) -> lf. | E9: =VLOOKUP($B9,costs_list!$D$424:$G$432,3,FALSE) -> 12.85 | F9: =VLOOKUP($B9,costs_list!$D$424:$G$432,4,FALSE) -> AC
B10: Fence, power (electric) - 1 wire | C10: =VLOOKUP($B10,costs_list!$D$424:$G$432,2,FALSE) -> lf. | E10: =VLOOKUP($B10,costs_list!$D$424:$G$432,3,FALSE) -> 0.51 | F10: =VLOOKUP($B10,costs_list!$D$424:$G$432,4,FALSE) -> AC
B11: Fence, power (electric) - multiple wire | C11: =VLOOKUP($B11,costs_list!$D$424:$G$432,2,FALSE) -> lf. | E11: =VLOOKUP($B11,costs_list!$D$424:$G$432,3,FALSE) -> 0.67 | F11: =VLOOKUP($B11,costs_list!$D$424:$G$432,4,FALSE) -> AC
B12: Fence, Power (Electric) Fence Energizers | C12: =VLOOKUP($B12,costs_list!$D$424:$G$432,2,FALSE) -> each | E12: =VLOOKUP($B12,costs_list!$D$424:$G$432,3,FALSE) -> 400 | F12: =VLOOKUP($B12,costs_list!$D$424:$G$432,4,FALSE) -> AC
B13: Fence, Solar panel and energizer (electric) fence | C13: =VLOOKUP($B13,costs_list!$D$424:$G$432,2,FALSE) -> each | E13: =VLOOKUP($B13,costs_list!$D$424:$G$432,3,FALSE) -> 495 | F13: =VLOOKUP($B13,costs_list!$D$424:$G$432,4,FALSE) -> AC
B14: Fence, woven wire | C14: =VLOOKUP($B14,costs_list!$D$424:$G$432,2,FALSE) -> lf. | E14: =VLOOKUP($B14,costs_list!$D$424:$G$432,3,FALSE) -> 1.46 | F14: =VLOOKUP($B14,costs_list!$D$424:$G$432,4,FALSE) -> AC
A16: Watering Facility (614) | C16: Number of Water Facilities: | G16: =SUM(G17:G29) -> 0 | H16: =IF(D16<>"",ROUND(G16/D16,2),"") -> 
B17: Formed steel reinforced concrete (4000 psi) | C17: =VLOOKUP($B17,costs_list!$D$746:$G$758,2,FALSE) -> cu.yd. | E17: =VLOOKUP($B17,costs_list!$D$746:$G$758,3,FALSE) -> 708.8 | F17: =VLOOKUP($B17,costs_list!$D$746:$G$758,4,FALSE) -> AC | G17: =IF(D17>0,D17*E17,"") -> 
B18: Formed steel reinforced concrete (M strength) | C18: =VLOOKUP($B18,costs_list!$D$746:$G$758,2,FALSE) -> cu.yd. | E18: =VLOOKUP($B18,costs_list!$D$746:$G$758,3,FALSE) -> 567.5 | F18: =VLOOKUP($B18,costs_list!$D$746:$G$758,4,FALSE) -> AC | G18: =IF(D18>0,D18*E18,"") -> 
B19: Gravel (pit run) | C19: =VLOOKUP($B19,costs_list!$D$746:$G$758,2,FALSE) -> cu.yd. | E19: =VLOOKUP($B19,costs_list!$D$746:$G$758,3,FALSE) -> 17.25 | F19: =VLOOKUP($B19,costs_list!$D$746:$G$758,4,FALSE) -> AC
B20: Livestock Water - Storage Tank | C20: =VLOOKUP($B20,costs_list!$D$746:$G$758,2,FALSE) -> gal. | E20: =VLOOKUP($B20,costs_list!$D$746:$G$758,3,FALSE) -> 1.13 | F20: =VLOOKUP($B20,costs_list!$D$746:$G$758,4,FALSE) -> AC
B21: Livestock Water - Storage Tank, Frost-free | C21: =VLOOKUP($B21,costs_list!$D$746:$G$758,2,FALSE) -> gal. | E21: =VLOOKUP($B21,costs_list!$D$746:$G$758,3,FALSE) -> 3.4 | F21: =VLOOKUP($B21,costs_list!$D$746:$G$758,4,FALSE) -> AC
B22: Non-reinforced concrete or cement bedding/grouting | C22: =VLOOKUP($B22,costs_list!$D$746:$G$758,2,FALSE) -> cu.yd. | E22: =VLOOKUP($B22,costs_list!$D$746:$G$758,3,FALSE) -> 216.3 | F22: =VLOOKUP($B22,costs_list!$D$746:$G$758,4,FALSE) -> AC
B23: Nose Pump | C23: =VLOOKUP($B23,costs_list!$D$746:$G$758,2,FALSE) -> each | E23: =VLOOKUP($B23,costs_list!$D$746:$G$758,3,FALSE) -> 541 | F23: =VLOOKUP($B23,costs_list!$D$746:$G$758,4,FALSE) -> AC
B24: Rural Water System Hookup | C24: =VLOOKUP($B24,costs_list!$D$746:$G$758,2,FALSE) -> each | E24: =VLOOKUP($B24,costs_list!$D$746:$G$758,3,FALSE) -> 853 | F24: =VLOOKUP($B24,costs_list!$D$746:$G$758,4,FALSE) -> AC
B25: Sand (pit run) | C25: =VLOOKUP($B25,costs_list!$D$746:$G$758,2,FALSE) -> cu.yd. | E25: =VLOOKUP($B25,costs_list!$D$746:$G$758,3,FALSE) -> 21.6 | F25: =VLOOKUP($B25,costs_list!$D$746:$G$758,4,FALSE) -> AC
B26: Scoria (pit run) | C26: =VLOOKUP($B26,costs_list!$D$746:$G$758,2,FALSE) -> cu.yd. | E26: =VLOOKUP($B26,costs_list!$D$746:$G$758,3,FALSE) -> 21.6 | F26: =VLOOKUP($B26,costs_list!$D$746:$G$758,4,FALSE) -> AC
B27: Steel reinforced concrete flatwork | C27: =VLOOKUP($B27,costs_list!$D$746:$G$758,2,FALSE) -> cu.yd. | E27: =VLOOKUP($B27,costs_list!$D$746:$G$758,3,FALSE) -> 392.5 | F27: =VLOOKUP($B27,costs_list!$D$746:$G$758,4,FALSE) -> AC
B28: Water fountain | C28: =VLOOKUP($B28,costs_list!$D$746:$G$758,2,FALSE) -> each | E28: =VLOOKUP($B28,costs_list!$D$746:$G$758,3,FALSE) -> 378 | F28: =VLOOKUP($B28,costs_list!$D$746:$G$758,4,FALSE) -> AC
B29: Wildlife Guzzler | C29: =VLOOKUP($B29,costs_list!$D$746:$G$758,2,FALSE) -> each | E29: =VLOOKUP($B29,costs_list!$D$746:$G$758,3,FALSE) -> 1348.33 | F29: =VLOOKUP($B29,costs_list!$D$746:$G$758,4,FALSE) -> AC
A31: Pipeline (516) | C31: Feet of Pipeline: | G31: =SUM(G32:G53) -> 0 | H31: =IF(D31<>"",ROUND(G31/D31,2),"") -> 
B32: Alternative pumping plant power source - Engineer's Estimate | C32: =VLOOKUP($B32,costs_list!$D$704:$G$725,2,FALSE) -> each | E32: =VLOOKUP($B32,costs_list!$D$704:$G$725,3,FALSE) -> 0 | F32: =VLOOKUP($B32,costs_list!$D$704:$G$725,4,FALSE) -> AC | G32: =IF(D32>0,D32*E32,"") -> 
B33: Excavation Small Structures | C33: =VLOOKUP($B33,costs_list!$D$704:$G$725,2,FALSE) -> cu.yd. | E33: =VLOOKUP($B33,costs_list!$D$704:$G$725,3,FALSE) -> 7.1 | F33: =VLOOKUP($B33,costs_list!$D$704:$G$725,4,FALSE) -> AC | G33: =IF(D33>0,D33*E33,"") -> 
B34: Gravel (pit run) | C34: =VLOOKUP($B34,costs_list!$D$704:$G$725,2,FALSE) -> cu.yd. | E34: =VLOOKUP($B34,costs_list!$D$704:$G$725,3,FALSE) -> 17.25 | F34: =VLOOKUP($B34,costs_list!$D$704:$G$725,4,FALSE) -> AC
B35: Gravel (washed & graded) | C35: =VLOOKUP($B35,costs_list!$D$704:$G$725,2,FALSE) -> cu.yd. | E35: =VLOOKUP($B35,costs_list!$D$704:$G$725,3,FALSE) -> 28 | F35: =VLOOKUP($B35,costs_list!$D$704:$G$725,4,FALSE) -> AC
B36: Rural Water System Hookup | C36: =VLOOKUP($B36,costs_list!$D$704:$G$725,2,FALSE) -> each | E36: =VLOOKUP($B36,costs_list!$D$704:$G$725,3,FALSE) -> 853 | F36: =VLOOKUP($B36,costs_list!$D$704:$G$725,4,FALSE) -> AC
B37: Sand (pit run) | C37: =VLOOKUP($B37,costs_list!$D$704:$G$725,2,FALSE) -> cu.yd. | E37: =VLOOKUP($B37,costs_list!$D$704:$G$725,3,FALSE) -> 21.6 | F37: =VLOOKUP($B37,costs_list!$D$704:$G$725,4,FALSE) -> AC
B38: Scoria (pit run) | C38: =VLOOKUP($B38,costs_list!$D$704:$G$725,2,FALSE) -> cu.yd. | E38: =VLOOKUP($B38,costs_list!$D$704:$G$725,3,FALSE) -> 21.6 | F38: =VLOOKUP($B38,costs_list!$D$704:$G$725,4,FALSE) -> AC
B39: Small Diameter Pipe - 1 1/4 Inches to 2 inches - HDPE pipe | C39: =VLOOKUP($B39,costs_list!$D$704:$G$725,2,FALSE) -> foot | E39: =VLOOKUP($B39,costs_list!$D$704:$G$725,3,FALSE) -> 1.25 | F39: =VLOOKUP($B39,costs_list!$D$704:$G$725,4,FALSE) -> AC
B40: Small Diameter Pipe - 1 1/4 Inches to 2 inches - PVC pipe | C40: =VLOOKUP($B40,costs_list!$D$704:$G$725,2,FALSE) -> foot | E40: =VLOOKUP($B40,costs_list!$D$704:$G$725,3,FALSE) -> 0.55 | F40: =VLOOKUP($B40,costs_list!$D$704:$G$725,4,FALSE) -> AC
B41: Small Diameter Pipe - 1 Inches or Less - HDPE pipe | C41: =VLOOKUP($B41,costs_list!$D$704:$G$725,2,FALSE) -> foot | E41: =VLOOKUP($B41,costs_list!$D$704:$G$725,3,FALSE) -> 0.73 | F41: =VLOOKUP($B41,costs_list!$D$704:$G$725,4,FALSE) -> AC
B42: Small Diameter Pipe - 1 Inches or Less - PVC pipe | C42: =VLOOKUP($B42,costs_list!$D$704:$G$725,2,FALSE) -> foot | E42: =VLOOKUP($B42,costs_list!$D$704:$G$725,3,FALSE) -> 0.49 | F42: =VLOOKUP($B42,costs_list!$D$704:$G$725,4,FALSE) -> AC
B43: Small Diameter Pipe - Over 2 Inches - HDPE pipe | C43: =VLOOKUP($B43,costs_list!$D$704:$G$725,2,FALSE) -> foot | E43: =VLOOKUP($B43,costs_list!$D$704:$G$725,3,FALSE) -> 3.4 | F43: =VLOOKUP($B43,costs_list!$D$704:$G$725,4,FALSE) -> AC
B44: Small Diameter Pipe - Over 2 Inches - PVC pipe | C44: =VLOOKUP($B44,costs_list!$D$704:$G$725,2,FALSE) -> foot | E44: =VLOOKUP($B44,costs_list!$D$704:$G$725,3,FALSE) -> 1.04 | F44: =VLOOKUP($B44,costs_list!$D$704:$G$725,4,FALSE) -> AC
B45: Trenching - Boring (roadways and stream crossings) | C45: =VLOOKUP($B45,costs_list!$D$704:$G$725,2,FALSE) -> lf. | E45: =VLOOKUP($B45,costs_list!$D$704:$G$725,3,FALSE) -> 28.4 | F45: =VLOOKUP($B45,costs_list!$D$704:$G$725,4,FALSE) -> AC
B46: Trenching - Shallow Plow | C46: =VLOOKUP($B46,costs_list!$D$704:$G$725,2,FALSE) -> lf. | E46: =VLOOKUP($B46,costs_list!$D$704:$G$725,3,FALSE) -> 0.5 | F46: =VLOOKUP($B46,costs_list!$D$704:$G$725,4,FALSE) -> AC
B47: Trenching - Trenching or deep plow (frost protected plowing) | C47: =VLOOKUP($B47,costs_list!$D$704:$G$725,2,FALSE) -> lf. | E47: =VLOOKUP($B47,costs_list!$D$704:$G$725,3,FALSE) -> 2.3 | F47: =VLOOKUP($B47,costs_list!$D$704:$G$725,4,FALSE) -> AC
B48: Trenching - Trenching or deep plow and backhoe | C48: =VLOOKUP($B48,costs_list!$D$704:$G$725,2,FALSE) -> lf. | E48: =VLOOKUP($B48,costs_list!$D$704:$G$725,3,FALSE) -> 3 | F48: =VLOOKUP($B48,costs_list!$D$704:$G$725,4,FALSE) -> AC
B49: Trenching - Backhoe | C49: =VLOOKUP($B49,costs_list!$D$704:$G$725,2,FALSE) -> lf. | E49: =VLOOKUP($B49,costs_list!$D$704:$G$725,3,FALSE) -> 3.7 | F49: =VLOOKUP($B49,costs_list!$D$704:$G$725,4,FALSE) -> AC
B50: Water Pump (installed) | C50: =VLOOKUP($B50,costs_list!$D$704:$G$725,2,FALSE) -> HP | E50: =VLOOKUP($B50,costs_list!$D$704:$G$725,3,FALSE) -> 3013 | F50: =VLOOKUP($B50,costs_list!$D$704:$G$725,4,FALSE) -> AC
B51: Well - Pitless Well Units (steel) | C51: =VLOOKUP($B51,costs_list!$D$704:$G$725,2,FALSE) -> dia.in. | E51: =VLOOKUP($B51,costs_list!$D$704:$G$725,3,FALSE) -> 168 | F51: =VLOOKUP($B51,costs_list!$D$704:$G$725,4,FALSE) -> AC
B52: Well - Pressure Tank | C52: =VLOOKUP($B52,costs_list!$D$704:$G$725,2,FALSE) -> gal. | E52: =VLOOKUP($B52,costs_list!$D$704:$G$725,3,FALSE) -> 7 | F52: =VLOOKUP($B52,costs_list!$D$704:$G$725,4,FALSE) -> AC
B53: Well - Vault | C53: =VLOOKUP($B53,costs_list!$D$704:$G$725,2,FALSE) -> each | E53: =VLOOKUP($B53,costs_list!$D$704:$G$725,3,FALSE) -> 1134 | F53: =VLOOKUP($B53,costs_list!$D$704:$G$725,4,FALSE) -> AC
A55: Water Well (642) | C55: Number of Wells: | G55: =SUM(G56:G69) -> 0 | H55: =IF(D55<>"",ROUND(G55/D55,2),"") -> 
B56: Alternative pumping plant power source - Engineer's Estimate | C56: =VLOOKUP($B56,costs_list!$D$759:$G$772,2,FALSE) -> each | F56: =VLOOKUP($B56,costs_list!$D$759:$G$772,4,FALSE) -> AC | G56: =IF(D56>0,D56*E56,"") -> 
B57: Structural Steel | C57: =VLOOKUP($B57,costs_list!$D$759:$G$772,2,FALSE) -> lb. | E57: =VLOOKUP($B57,costs_list!$D$759:$G$772,3,FALSE) -> 5.7 | F57: =VLOOKUP($B57,costs_list!$D$759:$G$772,4,FALSE) -> AC | G57: =IF(D57>0,D57*E57,"") -> 
B58: Water Pump (installed) | C58: =VLOOKUP($B58,costs_list!$D$759:$G$772,2,FALSE) -> HP | E58: =VLOOKUP($B58,costs_list!$D$759:$G$772,3,FALSE) -> 3013 | F58: =VLOOKUP($B58,costs_list!$D$759:$G$772,4,FALSE) -> AC
B59: Well - Bored or dug & case 12" or larger | C59: =VLOOKUP($B59,costs_list!$D$759:$G$772,2,FALSE) -> foot | E59: =VLOOKUP($B59,costs_list!$D$759:$G$772,3,FALSE) -> 78 | F59: =VLOOKUP($B59,costs_list!$D$759:$G$772,4,FALSE) -> AC
B60: Well - Drill & case <4" | C60: =VLOOKUP($B60,costs_list!$D$759:$G$772,2,FALSE) -> foot | E60: =VLOOKUP($B60,costs_list!$D$759:$G$772,3,FALSE) -> 24.32 | F60: =VLOOKUP($B60,costs_list!$D$759:$G$772,4,FALSE) -> AC
B61: Well - Drill & case <4", Artesian | C61: =VLOOKUP($B61,costs_list!$D$759:$G$772,2,FALSE) -> foot | E61: =VLOOKUP($B61,costs_list!$D$759:$G$772,3,FALSE) -> 28.6 | F61: =VLOOKUP($B61,costs_list!$D$759:$G$772,4,FALSE) -> AC
B62: Well - Drill & case 4" & over, Artesian | C62: =VLOOKUP($B62,costs_list!$D$759:$G$772,2,FALSE) -> foot | E62: =VLOOKUP($B62,costs_list!$D$759:$G$772,3,FALSE) -> 31.85 | F62: =VLOOKUP($B62,costs_list!$D$759:$G$772,4,FALSE) -> AC
B63: Well - Drill & case 4" and over | C63: =VLOOKUP($B63,costs_list!$D$759:$G$772,2,FALSE) -> foot | E63: =VLOOKUP($B63,costs_list!$D$759:$G$772,3,FALSE) -> 26.68 | F63: =VLOOKUP($B63,costs_list!$D$759:$G$772,4,FALSE) -> AC
B64: Well - Drilling not requiring casing | C64: =VLOOKUP($B64,costs_list!$D$759:$G$772,2,FALSE) -> foot | E64: =VLOOKUP($B64,costs_list!$D$759:$G$772,3,FALSE) -> 11.35 | F64: =VLOOKUP($B64,costs_list!$D$759:$G$772,4,FALSE) -> AC
B65: Well - Pitless Well Units (steel) | C65: =VLOOKUP($B65,costs_list!$D$759:$G$772,2,FALSE) -> dia.in. | E65: =VLOOKUP($B65,costs_list!$D$759:$G$772,3,FALSE) -> 168 | F65: =VLOOKUP($B65,costs_list!$D$759:$G$772,4,FALSE) -> AC
B66: Well - Pressure Tank | C66: =VLOOKUP($B66,costs_list!$D$759:$G$772,2,FALSE) -> gal. | E66: =VLOOKUP($B66,costs_list!$D$759:$G$772,3,FALSE) -> 7 | F66: =VLOOKUP($B66,costs_list!$D$759:$G$772,4,FALSE) -> AC
B67: Well - Vault | C67: =VLOOKUP($B67,costs_list!$D$759:$G$772,2,FALSE) -> each | E67: =VLOOKUP($B67,costs_list!$D$759:$G$772,3,FALSE) -> 1134 | F67: =VLOOKUP($B67,costs_list!$D$759:$G$772,4,FALSE) -> AC
B68: Well screen, plastic or galvan. steel (installed) | C68: =VLOOKUP($B68,costs_list!$D$759:$G$772,2,FALSE) -> foot | E68: =VLOOKUP($B68,costs_list!$D$759:$G$772,3,FALSE) -> 28 | F68: =VLOOKUP($B68,costs_list!$D$759:$G$772,4,FALSE) -> AC
B69: Well screen, stainless steel or brass (installed) | C69: =VLOOKUP($B69,costs_list!$D$759:$G$772,2,FALSE) -> foot | E69: =VLOOKUP($B69,costs_list!$D$759:$G$772,3,FALSE) -> 90.75 | F69: =VLOOKUP($B69,costs_list!$D$759:$G$772,4,FALSE) -> AC
A71: Total for Grazing Land Practices | E71: =G5+G16+G31+G55 -> 0

Sheet SO_Summary
A1: North Dakota
A2: WRE Environmental Ranking Worksheet - FY 2016
A3: State Office Summary
I4: =Ranking!H1 -> FY16-ver1
M5: Red River Valley Basins | O5: Counties Southwest of Missouri River | Q5: Counties West of Highway 83
A6: Applicant ID: | F6: Total Application Points | I6: =IF(Ranking!H8="","",Ranking!H8) -> INELIGIBLE
A7: Applicant(s): | B7: =IF(Inventory!C7="","",Inventory!C7) ->  | F7: NEST# (if applicable) | I7: =IF(Inventory!I5="","N/A",Inventory!I5) -> N/A
M8: 09020101 | O8: Adams | Q8: Adams
A9: County: | B9: =IF(Inventory!C3="","",Inventory!C3) ->  | F9: Administering County: | H9: =IF(Inventory!C4="","",Inventory!C4) ->  | M9: 09020104 | O9: Billings | Q9: Billings
M10: 09020105 | O10: Bowman | Q10: Bowman
A11: Application Type: | B11: =IF(Inventory!C5="","",Inventory!C5) ->  | F11: Priority Area: | M11: 09020107 | O11: Dunn | Q11: Burke
F12: Devils Lake Basin | I12: =IF(Ranking!D71="09020201","Yes","No") -> No | M12: 09020109 | O12: Golden Valley | Q12: Divide
A13: Meets Flooded Land Criteria: | C13: =IF(OR(Inventory!I9="",Inventory!I9=0),"No","Yes") -> No | F13: Red River Valley | I13: =IF(ISNA(VLOOKUP(Ranking!$D$71,$M$8:$M$24,1,FALSE)),"No","Yes") -> No | M13: 09020201 | O13: Grant | Q13: Dunn
F14: Southwest of Missouri River | I14: =IF(ISNA(VLOOKUP(Ranking!$E$6,$O$8:$O$21,1,FALSE)),"No","Yes") -> No | M14: 09020202 | O14: Hettinger | Q14: Golden Valley
A15: Acres: | B15: =IF(Inventory!C9="","",Inventory!C9) -> 0 | F15: Tribal Contract (30-Yr) | I15: =IF(B11="30 year contract (tribal land only)","Yes","No") -> No | M15: 09020203 | O15: McKenzie | Q15: Grant
A16: Cropland Acres (includes CRP) | C16: =SUM(B50:C51)+0.25*SUM(D50:D51) -> 0 | F16: Statewide (None) | I16: =IF(AND(I12="No",I13="No",I14="No",I15="No"),"Yes","No") -> Yes | M16: 09020204 | O16: Mercer | Q16: Hettinger
A17: Wetland Acres | C17: =Inventory!D16 -> 0 | M17: 09020205 | O17: Morton | Q17: McKenzie
F18: Funding Area: | M18: 09020301 | O18: Oliver | Q18: Mercer
B19: Watershed HUC: | C19: =Ranking!D71 -> 0 | F19: Red River Basin Initiative | I19: =IF(ISNA(VLOOKUP(Ranking!$D$71,$M$8:$M$24,1,FALSE)),"No",IF(SUM(Ranking!$E$20:$E$21)>0,"Yes","No")) -> No | M19: 09020306 | O19: Sioux | Q19: Morton
B20: CRP Expires in 1 yr: | C20: =Ranking!D95 -> 0 | F20: WRE-GRR (Currently N/A) | I20: =IF(AND(B11="30 year grazing reserve rights",I14="Yes"),"Yes","No") -> No | M20: 09020307 | O20: Slope | Q20: Mountrail
B21: Currently in CRP: | C21: =Ranking!D101 -> 0 | F21: Grazing Reserve Rights | I21: =IF(B11="30 year grazing reserve rights","Yes","No") -> No | M21: 09020308 | O21: Stark | Q21: Oliver
B22: Were Trees Planted With CRP: | C22: =Ranking!D102 -> 0 | F22: None | I22: =IF(AND(I19="No",I20="No",I21="No"),"Yes","No") -> Yes | M22: 09020310 | Q22: Sioux
B23: If Trees Planted, Acres? | C23: =IF(Ranking!H102="","N/A",Ranking!H102) -> N/A | M23: 09020311 | Q23: Slope
M24: 09020313 | Q24: Stark
A25: Factor 9 - Signed Partners Release Form | I25: =Ranking!D66 -> No | Q25: Williams
A26: Factor 12 - Producer will accept less than 75% of NRCS GARC for 30-Year Easement? | I26: =IF(Ranking!D81="","",Ranking!D81) -> No
A27: Factor 13 - Producer will accept less than 75% of Restoration Cost? | I27: =IF(Ranking!C86<>"Less than the per-unit cost on the WRP cost list","No",Ranking!E82) -> No
A29: Estimated Easement Value | C29: =IF(Inventory!D91="","",Inventory!D91) -> 0 | F29: =IF(ISNA(VLOOKUP(Ranking!$E$6,$Q$8:$Q$25,1,FALSE)),"","APPRAISAL REQUIRED") -> 
A30: (From Inventory Sheet - Must equal lowest of GARC or Landowner Value to right) | F30: Market Analysis Value | I30: =VLOOKUP($B$9,GARC!$B$4:$F$56,5,FALSE)*B15 -> 
F31: GARC Value (30-Yr) | I31: =VLOOKUP($B$9,GARC!$B$4:$F$56,3,FALSE)*B15 -> 
F32: - Grazing Reserve Rights | I32: =IF(B11<>"30 year grazing reserve rights","N/A",I31*0.75) -> N/A
F33: Landowner Value | I33: =IF(I26="No","N/A",IF(B11<>"30 year grazing reserve rights",VLOOKUP($B$9,GARC!$B$4:$F$56,2,FALSE),VLOOKUP($B$9,GARC!$B$4:$F$56,3,FALSE))*B15*I26/100) -> N/A
A35: Total Estimated Restoration Cost | C35: =IF(Inventory!J90="","",Inventory!J90) -> 0
A36: =Inventory!I91 -> NRCS Share - 75% | C36: =IF(Inventory!J91="","",Inventory!J91) -> 0 | E36: =ROUND(C36,-2) -> 0
A37: =Inventory!I92 -> Landowner(s) Share - 25% | C37: =IF(Inventory!J92="","",Inventory!J92) -> 0
A39: T&E species potentially present
A40: Endangered | E40: =IF(VLOOKUP($B$9,'T&E'!$V$4:$AP$56,16,FALSE)="","None",VLOOKUP($B$9,'T&E'!$V$4:$AP$56,16,FALSE)) -> 
A41: Threatened | E41: =IF(VLOOKUP($B$9,'T&E'!$V$4:$AP$56,17,FALSE)="","None",VLOOKUP($B$9,'T&E'!$V$4:$AP$56,17,FALSE)) -> 
A42: Candidate | E42: =IF(VLOOKUP($B$9,'T&E'!$V$4:$AP$56,18,FALSE)="","None",VLOOKUP($B$9,'T&E'!$V$4:$AP$56,18,FALSE)) -> 
A43: Designated Critical Habitat
A44: Piping Plover | E44: =IF(VLOOKUP($B$9,'T&E'!$V$4:$AP$56,19,FALSE)="","None",VLOOKUP($B$9,'T&E'!$V$4:$AP$56,19,FALSE)) -> 
A45: Piping Plover | E45: =IF(VLOOKUP($B$9,'T&E'!$V$4:$AP$56,19,FALSE)="","None",VLOOKUP($B$9,'T&E'!$V$4:$AP$56,19,FALSE)) -> 
A46: Piping Plover | E46: =IF(VLOOKUP($B$9,'T&E'!$V$4:$AP$56,19,FALSE)="","None",VLOOKUP($B$9,'T&E'!$V$4:$AP$56,19,FALSE)) -> 
A48: Offer Acres
B49: Upland | C49: pema | D49: pemc | E49: pemf | F49: other | G49: Total
A50: Cropland | B50: =Landuse_Inventory!AN5 -> 0 | C50: =Landuse_Inventory!AO5 -> 0 | D50: =Landuse_Inventory!AP5 -> 0 | E50: =Landuse_Inventory!AQ5 -> 0 | F50: =Landuse_Inventory!AR5 -> 0 | G50: =SUM(B50:F50) -> 0
A51: CRP (Active) | B51: =Landuse_Inventory!AN6 -> 0 | C51: =Landuse_Inventory!AO6 -> 0 | D51: =Landuse_Inventory!AP6 -> 0 | E51: =Landuse_Inventory!AQ6 -> 0 | F51: =Landuse_Inventory!AR6 -> 0 | G51: 0
A52: Rangeland | B52: =Landuse_Inventory!AN7 -> 0 | C52: =Landuse_Inventory!AO7 -> 0 | D52: =Landuse_Inventory!AP7 -> 0 | E52: =Landuse_Inventory!AQ7 -> 0 | F52: =Landuse_Inventory!AR7 -> 0 | G52: 0
A53: Pastureland | B53: =Landuse_Inventory!AN8 -> 0 | C53: =Landuse_Inventory!AO8 -> 0 | D53: =Landuse_Inventory!AP8 -> 0 | E53: =Landuse_Inventory!AQ8 -> 0 | F53: =Landuse_Inventory!AR8 -> 0 | G53: 0
A54: Hayland | B54: =Landuse_Inventory!AN9 -> 0 | C54: =Landuse_Inventory!AO9 -> 0 | D54: =Landuse_Inventory!AP9 -> 0 | E54: =Landuse_Inventory!AQ9 -> 0 | F54: =Landuse_Inventory!AR9 -> 0 | G54: 0
A55: Wildlife/Idle | B55: =Landuse_Inventory!AN10 -> 0 | C55: =Landuse_Inventory!AO10 -> 0 | D55: =Landuse_Inventory!AP10 -> 0 | E55: =Landuse_Inventory!AQ10 -> 0 | F55: =Landuse_Inventory!AR10 -> 0 | G55: 0
A56: Forest Land | B56: =Landuse_Inventory!AN11 -> 0 | C56: =Landuse_Inventory!AO11 -> 0 | D56: =Landuse_Inventory!AP11 -> 0 | E56: =Landuse_Inventory!AQ11 -> 0 | F56: =Landuse_Inventory!AR11 -> 0 | G56: 0
B57: =SUM(B50:B56) -> 0 | C57: =SUM(C50:C56) -> 0 | D57: =SUM(D50:D56) -> 0 | E57: =SUM(E50:E56) -> 0 | F57: =SUM(F50:F56) -> 0 | G57: 0

Sheet HUC_map

Sheet Breeding_Pairs_Map
A1: The Breeding Pairs Map was developed by US Fish and Wildlife Service.
A2: For a site specific map, please refer to the GIS file located in F:\geodata\project_data\nrcs.

Sheet GrazingPilotMap

Sheet costs_Inventory (hidden)
A1: practice lookup | C1: Units | D1: $/Unit | F1: Component
A2: Sediment Removal | B2: Excavation - Sediment Removal | C2: =VLOOKUP(B2,costs_components!$B$2:$F$315,2,FALSE) -> cu.yd. | D2: =VLOOKUP(B2,costs_components!$B$2:$F$315,3,FALSE) -> 8.1 | F2: Air Relief Valve
A3: Dikes or Plugs | B3: Wetland Restoration - Ditch Plug | C3: =VLOOKUP(B3,costs_components!$B$2:$F$315,2,FALSE) -> struct | D3: =VLOOKUP(B3,costs_components!$B$2:$F$315,3,FALSE) -> 1000 | F3: Alfalfa Valve 8"-12" (installed)
A4: Fill in dugouts | B4: Excavation | C4: =VLOOKUP(B4,costs_components!$B$2:$F$315,2,FALSE) -> cu.yd. | D4: =VLOOKUP(B4,costs_components!$B$2:$F$315,3,FALSE) -> 4.4 | F4: Alternative pumping plant power source - Engineer's Estimate
A5: Chemical Seedbed Preparation | B5: Chemical Seedbed Preparation | C5: =VLOOKUP(B5,costs_components!$B$2:$F$315,2,FALSE) -> acre | D5: =VLOOKUP(B5,costs_components!$B$2:$F$315,3,FALSE) -> 20 | F5: Anchor mulch w/netting
A6: Mechanical Seedbed Prep. (per Pass) | B6: Mechanical Seedbed Preparation (per time) | C6: =VLOOKUP(B6,costs_components!$B$2:$F$315,2,FALSE) -> acre | D6: =VLOOKUP(B6,costs_components!$B$2:$F$315,3,FALSE) -> 12 | F6: Anchor mulch w/treader
A7: Grass/Grain Drill | B7: Grass/Grain Drill | C7: =VLOOKUP(B7,costs_components!$B$2:$F$315,2,FALSE) -> acre | D7: =VLOOKUP(B7,costs_components!$B$2:$F$315,3,FALSE) -> 20 | F7: Anti-Seep Collar, Butyl Rubber/Neoprene With Wood Frame
A8: Native Grass Mix | B8: Native Grass Mix | C8: =VLOOKUP(B8,costs_components!$B$2:$F$315,2,FALSE) -> acre | D8: =VLOOKUP(B8,costs_components!$B$2:$F$315,3,FALSE) -> 100 | F8: Cedar
A9: Mechanical weed control | B9: Mechanical weed control | C9: =VLOOKUP(B9,costs_components!$B$2:$F$315,2,FALSE) -> acre | D9: =VLOOKUP(B9,costs_components!$B$2:$F$315,3,FALSE) -> 12 | F9: Chemical for Weed or Pest Control
A10: Individual Vegetative Plug (Planted) | B10: Individual Vegetative Plug (Planted) | C10: =VLOOKUP(B10,costs_components!$B$2:$F$315,2,FALSE) -> each | D10: =VLOOKUP(B10,costs_components!$B$2:$F$315,3,FALSE) -> 1 | F10: Chemical Seedbed Preparation
A11: Fence Removal | B11: Other Fence Removal | C11: =VLOOKUP(B11,costs_components!$B$2:$F$315,2,FALSE) -> foot | D11: =VLOOKUP(B11,costs_components!$B$2:$F$315,3,FALSE) -> 0.6 | F11: Chemical Site Preparation - trees or shrubs
A12: Tree Removal Rows | B12: Site Clearing | C12: =VLOOKUP(B12,costs_components!$B$2:$F$315,2,FALSE) -> acre | D12: =VLOOKUP(B12,costs_components!$B$2:$F$315,3,FALSE) -> 1350 | F12: Chemical weed control - trees or shrubs
A13: Tree Removal Individuals | B13: Site Clearing | C13: =VLOOKUP(B13,costs_components!$B$2:$F$315,2,FALSE) -> acre | D13: =VLOOKUP(B13,costs_components!$B$2:$F$315,3,FALSE) -> 1350 | F13: CMP Aluminum, CR/CS, 10 gauge
A14: Rock/debris removal | B14: Site Clearing | C14: =VLOOKUP(B14,costs_components!$B$2:$F$315,2,FALSE) -> acre | D14: =VLOOKUP(B14,costs_components!$B$2:$F$315,3,FALSE) -> 1350 | F14: CMP Aluminum, CR/CS, 12 gauge
F15: CMP Standard Galvanized Steel, CR/CS, 10 gauge
F16: CMP Standard Galvanized Steel, CR/CS, 12 gauge
A17: Practice_Code | F17: CMP Standard Galvanized Steel, CR/CS, 14 gauge
A18: 327 | F18: CMP Standard Galvanized Steel, CR/CS, 16 gauge
A19: 342 | F19: CMP Steel, Polymeric Coated 10 gauge
A20: 351 | F20: CMP Steel, Polymeric Coated 12 gauge
A21: 356 | F21: CMP Steel, Polymeric Coated 14 gauge
A22: 362 | F22: CMP Steel, Polymeric Coated 16 gauge
A23: 378 | F23: CMP Steel, Polymeric Coated, CR/CS 10 gauge
A24: 382 | F24: CMP Steel, Polymeric Coated, CR/CS 12 gauge
A25: 390 | F25: CMP Steel, Polymeric Coated, CR/CS 14 gauge
A26: 391 | F26: CMP Steel, Polymeric Coated, CR/CS 16 gauge
A27: 393 | F27: CMP, Anti-Seep Diaphram - PC Steel, 2 piece, watertight coupling, rods/lugs
A28: 410 | F28: CMP, Anti-Seep Diaphram - SG Steel, 2 piece, watertight coupling, rods/lugs
A29: 500 | F29: CMP, Anti-Vortex Vane, SG Steel, for hooded inlets
A30: 516 | F30: CMP, Conical Trash Rack, SG Steel 36" and less (base on riser dia.)
A31: 595 | F31: CMP, Conical Trash Rack, SG Steel 42" and over (base on riser dia.)
A32: 612 | F32: CMP, Connecting Band - Aluminum - 12" wide 12 gauge
A33: 614 | F33: CMP, Connecting Band - Aluminum - 12" wide 14 gauge
A34: 642 | F34: CMP, Connecting Band - Aluminum - 12" wide 16 gauge
A35: 643 | F35: CMP, Connecting Band - Aluminum - 24" wide 12 gauge
A36: 644 | F36: CMP, Connecting Band - Aluminum - 24" wide 14 gauge
A37: 645 | F37: CMP, Connecting Band - Aluminum - 24" wide 16 gauge
A38: 646 | F38: CMP, Connecting Band - Aluminum - 7 1/2" wide 12 gauge
A39: 647 | F39: CMP, Connecting Band - Aluminum - 7 1/2" wide 14 gauge
A40: 656 | F40: CMP, Connecting Band - Aluminum - 7 1/2" wide 16 gauge
A41: 657 | F41: CMP, Connecting Band - Polymeric Coated Steel - 12" wide 12 gauge
A42: 658 | F42: CMP, Connecting Band - Polymeric Coated Steel - 12" wide 14 gauge
A43: 659 | F43: CMP, Connecting Band - Polymeric Coated Steel - 12" wide 16 gauge
F44: CMP, Connecting Band - Polymeric Coated Steel - 24" wide 12 gauge
F45: CMP, Connecting Band - Polymeric Coated Steel - 24" wide 14 gauge
F46: CMP, Connecting Band - Polymeric Coated Steel - 24" wide 16 gauge
F47: CMP, Connecting Band - Polymeric Coated Steel - 7 1/2" wide 12 gauge
F48: CMP, Connecting Band - Polymeric Coated Steel - 7 1/2" wide 14 gauge
F49: CMP, Connecting Band - Polymeric Coated Steel - 7 1/2" wide 16 gauge
F50: CMP, Connecting Band - Standard Galvanized Steel - 12" wide 12 gauge
F51: CMP, Connecting Band - Standard Galvanized Steel - 12" wide 14 gauge
F52: CMP, Connecting Band - Standard Galvanized Steel - 12" wide 16 gauge
F53: CMP, Connecting Band - Standard Galvanized Steel - 24" wide 12 gauge
F54: CMP, Connecting Band - Standard Galvanized Steel - 24" wide 14 gauge
F55: CMP, Connecting Band - Standard Galvanized Steel - 24" wide 16 gauge
F56: CMP, Connecting Band - Standard Galvanized Steel - 7 1/2" wide 12 gauge
F57: CMP, Connecting Band - Standard Galvanized Steel - 7 1/2" wide 14 gauge
F58: CMP, Connecting Band - Standard Galvanized Steel - 7 1/2" wide 16 gauge
F59: CMP, Connecting Band - Watertight PC Steel, incl. 4 rods/lugs - 24" wide 12 gauge
F60: CMP, Connecting Band - Watertight PC Steel, incl. 4 rods/lugs - 24" wide 14 gauge
F61: CMP, Connecting Band - Watertight PC Steel, incl. 4 rods/lugs - 24" wide 16 gauge
F62: CMP, Connecting Band - Watertight SG Steel, incl. 4 rods/lugs - 24" wide 12 gauge
F63: CMP, Connecting Band - Watertight SG Steel, incl. 4 rods/lugs - 24" wide 14 gauge
F64: CMP, Connecting Band - Watertight SG Steel, incl. 4 rods/lugs - 24" wide 16 gauge
F65: CMP, End Section 12"-24" diameter
F66: CMP, End Section 30"-36" diameter
F67: CMP, End Section 42"-54" diameter
F68: CMP, End Section 60" and larger diameter
F69: CMP, Fabricated Trash Rack, SG Steel, based on riser diameter
F70: CMP, Fabrication (labor only) - Elbows
F71: CMP, Fabrication (labor only) - Skewed or Beveled Ends
F72: CMP, Fabrication (labor only) - Tees, Wyes, and Riser Stubs
F73: CMP, Flap Gate, SG Steel
F74: CMP, Hooded Inlet Baffle Plate - SG Steel, double angle iron
F75: CMP, Screen or End Cap, SG Steel
F76: CMP, Splitter Type Anti-Vortex Wall - SG Steel (base on riser diameter)
F77: CMP, Standard Aluminum 10 gauge
F78: CMP, Standard Aluminum 12 gauge
F79: CMP, Standard Aluminum 14 gauge
F80: CMP, Standard Aluminum 16 gauge
F81: CMP, Standard Galvanized Steel 10 gauge
F82: CMP, Standard Galvanized Steel 12 gauge
F83: CMP, Standard Galvanized Steel 14 gauge
F84: CMP, Standard Galvanized Steel 16 gauge
F85: CMP, Weir Trash Rack, SG Steel, for hooded inlets
F86: Corrugated Plastic Pipe - Dual-Wall Pipe 10"
F87: Corrugated Plastic Pipe - Dual-Wall Pipe 12"
F88: Corrugated Plastic Pipe - Dual-Wall Pipe 15"
F89: Corrugated Plastic Pipe - Dual-Wall Pipe 18"
F90: Corrugated Plastic Pipe - Dual-Wall Pipe 24"
F91: Corrugated Plastic Pipe - Dual-Wall Pipe 4"
F92: Corrugated Plastic Pipe - Dual-Wall Pipe 6"
F93: Corrugated Plastic Pipe - Dual-Wall Pipe 8"
F94: Corrugated Plastic Pipe - End Section 10"
F95: Corrugated Plastic Pipe - End Section 12"
F96: Corrugated Plastic Pipe - End Section 15"
F97: Corrugated Plastic Pipe - End Section 18"
F98: Corrugated Plastic Pipe - End Section 24"
F99: Corrugated Plastic Pipe - End Section 8"
F100: Corrugated Plastic Pipe - Gasketed Sleeve Coupler 12"
F101: Corrugated Plastic Pipe - Gasketed Sleeve Coupler 15"
F102: Corrugated Plastic Pipe - Gasketed Sleeve Coupler 18"
F103: Corrugated Plastic Pipe - Gasketed Sleeve Coupler 24"
F104: Corrugated Plastic Pipe - Plastic Anti-Seep Collar (4X4) 10"
F105: Corrugated Plastic Pipe - Plastic Anti-Seep Collar (4X4) 12"
F106: Corrugated Plastic Pipe - Plastic Anti-Seep Collar (4X4) 15"
F107: Corrugated Plastic Pipe - Plastic Anti-Seep Collar (4X4) 18"
F108: Corrugated Plastic Pipe - Plastic Anti-Seep Collar (4X4) 24"
F109: Corrugated Plastic Pipe - Plastic Anti-Seep Collar (4X4) 4"
F110: Corrugated Plastic Pipe - Plastic Anti-Seep Collar (4X4) 6"
F111: Corrugated Plastic Pipe - Plastic Anti-Seep Collar (4X4) 8"
F112: Corrugated Plastic Pipe - Rodent Guard 10"
F113: Corrugated Plastic Pipe - Rodent Guard 12"
F114: Corrugated Plastic Pipe - Rodent Guard 15"
F115: Corrugated Plastic Pipe - Rodent Guard 18"
F116: Corrugated Plastic Pipe - Rodent Guard 24"
F117: Corrugated Plastic Pipe - Rodent Guard 4"
F118: Corrugated Plastic Pipe - Rodent Guard 6"
F119: Corrugated Plastic Pipe - Rodent Guard 8"
F120: Corrugated Plastic Pipe - Soil-Tight Split Coupler 12"
F121: Corrugated Plastic Pipe - Soil-Tight Split Coupler 18"
F122: Corrugated Plastic Pipe - Soil-Tight Split Coupler 24"
F123: Corrugated Plastic Pipe - Split Coupler 10"
F124: Corrugated Plastic Pipe - Split Coupler 12"
F125: Corrugated Plastic Pipe - Split Coupler 15"
F126: Corrugated Plastic Pipe - Split Coupler 18"
F127: Corrugated Plastic Pipe - Split Coupler 24"
F128: Corrugated Plastic Pipe - Split Coupler 4"
F129: Corrugated Plastic Pipe - Split Coupler 6"
F130: Corrugated Plastic Pipe - Split Coupler 8"
F131: Corrugated Plastic Pipe - Tubing/Culverts - 10"
F132: Corrugated Plastic Pipe - Tubing/Culverts - 12"
F133: Corrugated Plastic Pipe - Tubing/Culverts - 15"
F134: Corrugated Plastic Pipe - Tubing/Culverts - 18"
F135: Corrugated Plastic Pipe - Tubing/Culverts - 24
F136: Corrugated Plastic Pipe - Tubing/Culverts - 3"
F137: Corrugated Plastic Pipe - Tubing/Culverts - 4"
F138: Corrugated Plastic Pipe - Tubing/Culverts - 5"
F139: Corrugated Plastic Pipe - Tubing/Culverts - 6"
F140: Corrugated Plastic Pipe - Tubing/Culverts - 8"
F141: Corrugated Plastic Pipe - Tubing/Culverts w/sock - 10"
F142: Corrugated Plastic Pipe - Tubing/Culverts w/sock - 12"
F143: Corrugated Plastic Pipe - Tubing/Culverts w/sock - 15"
F144: Corrugated Plastic Pipe - Tubing/Culverts w/sock - 18"
F145: Corrugated Plastic Pipe - Tubing/Culverts w/sock - 24
F146: Corrugated Plastic Pipe - Tubing/Culverts w/sock - 3"
F147: Corrugated Plastic Pipe - Tubing/Culverts w/sock - 4"
F148: Corrugated Plastic Pipe - Tubing/Culverts w/sock - 5"
F149: Corrugated Plastic Pipe - Tubing/Culverts w/sock - 6"
F150: Corrugated Plastic Pipe - Tubing/Culverts w/sock - 8"
F151: Critical Area Planting - Introduced / Native Grass Mix
F152: Critical Area Planting - Native Grass Mix
F153: Critical Area Treatment - Heavy shaping
F154: Critical Area Treatment - Light shaping
F155: Decomm. Well diameter <4"
F156: Decomm. Well diameter 30" and larger
F157: Decomm. Well diameter 4"
F158: Decomm. Well diameter 5"
F159: Decomm. Well diameter 6-29"
F160: Earth Fill - Class A Compaction - Clay Liners (specified density)
F161: Earth Fill - Class A Compaction (specified density)
F162: Earth Fill - Class C Compaction (specified method)
F163: Earth Fill (hand compaction)
F164: Excavation
F165: Excavation - Sediment Removal
F166: Excavation Small Structures
F167: Feedlot Fence Removal
F168: Fence (barbed or smooth)
F169: Fence, chain link
F170: Fence, Feedlot
F171: Fence, Feedlot for wind protection
F172: Fence, power (electric) - 1 wire
F173: Fence, power (electric) - multiple wire
F174: Fence, Power (Electric) Fence Energizers
F175: Fence, Solar panel and energizer (electric) fence
F176: Fence, woven wire
F177: Fence, Silt
F178: Formed steel reinforced concrete (4000 psi)
F179: Formed steel reinforced concrete (M strength)
F180: FS Potted or Containerized Tree or Shrub Planting
F181: FS Replacement Planting
F182: FS Site Prep. - Dozing, Scarifying, etc.
F183: FS Trees and Shrubs Planted
F184: Gate Valve
F185: Geotextile Fabric - Woven or non-woven fabric
F186: Grade Stabilization - Engineer's Estimate (for items not currently in cost tables)
F187: Grade Transition Section
F188: Grass seeding between rows (sideoats grama and blue grama)
F189: Grass/Grain Drill
F190: Gravel (pit run)
F191: Gravel (washed & graded)
F192: Hand Opening Slide Gate
F193: Hand Plant (Bare root or container)
F194: Hand Plant (unrooted cuttings)
F195: Hauling Materials (offsite borrow)
F196: Heavy Site preparation (dozed, sheared, clipped, etc)
F197: Hydoseeder, seeding and mulch
F198: Individual Vegetative Plug (Planted)
F199: Introduced Species (1 to 2 species)
F200: Introduced Species (3 or more species)
... 113 more rows

Sheet costs_list (hidden)
A1: Grazing Reserve Rights | C1: No Change - Reviewed | D1: Changed Costs
A3: Practice_Code | B3: Cost_Share_Program | C3: Practice_Name | D3: Component | E3: Unit_Type | F3: Unit_Cost | G3: Cost_Type | H3: Share_Rate | J3: Unit_Cost | K3: different | N3: Practice_Code
A4: 327 | B4: WRP | C4: Conservation Cover | D4: Chemical for Weed or Pest Control | E4: acre | F4: =VLOOKUP($D4,costs_components!$B$2:$F$315,3,FALSE) -> 25 | G4: AC | H4: 75 | J4: 20 | K4: =IF(F4<>J4,"XXX","") -> XXX | N4: 327
A5: 327 | B5: WRP | C5: Conservation Cover | D5: Chemical Seedbed Preparation | E5: acre | F5: =VLOOKUP($D5,costs_components!$B$2:$F$315,3,FALSE) -> 20 | G5: AC | H5: 75 | J5: 20 | K5: =IF(F5<>J5,"XXX","") ->  | N5: 342
A6: 327 | B6: WRP | C6: Conservation Cover | D6: Grass/Grain Drill | E6: acre | F6: =VLOOKUP($D6,costs_components!$B$2:$F$315,3,FALSE) -> 20 | G6: AC | H6: 75 | J6: 20 | N6: 351
A7: 327 | B7: WRP | C7: Conservation Cover | D7: Individual Vegetative Plug (Planted) | E7: each | F7: =VLOOKUP($D7,costs_components!$B$2:$F$315,3,FALSE) -> 1 | G7: AC | H7: 75 | J7: 1 | N7: 356
A8: 327 | B8: WRP | C8: Conservation Cover | D8: Mechanical Seedbed Preparation (per time) | E8: acre | F8: =VLOOKUP($D8,costs_components!$B$2:$F$315,3,FALSE) -> 12 | G8: AC | H8: 75 | J8: 20 | K8: XXX | N8: 362
A9: 327 | B9: WRP | C9: Conservation Cover | D9: Mechanical weed control | E9: acre | F9: =VLOOKUP($D9,costs_components!$B$2:$F$315,3,FALSE) -> 12 | G9: AC | H9: 75 | J9: 12 | N9: 378
A10: 327 | B10: WRP | C10: Conservation Cover | D10: Native Grass Mix | E10: acre | F10: =VLOOKUP($D10,costs_components!$B$2:$F$315,3,FALSE) -> 100 | G10: AC | H10: 75 | J10: 100 | N10: 382
A11: 327 | B11: WRP | C11: Conservation Cover | D11: Native Grass with Shrub and/or Forb Species | E11: acre | F11: =VLOOKUP($D11,costs_components!$B$2:$F$315,3,FALSE) -> 100 | G11: AC | H11: 75 | J11: 88.78 | K11: XXX | N11: 390
A12: 342 | B12: WRP | C12: Critical Area Planting | D12: Anchor mulch w/netting | E12: sq.yd. | F12: =VLOOKUP($D12,costs_components!$B$2:$F$315,3,FALSE) -> 1.1 | G12: AC | H12: 75 | J12: 1.1 | N12: 391
A13: 342 | B13: WRP | C13: Critical Area Planting | D13: Anchor mulch w/treader | E13: sq.yd. | F13: =VLOOKUP($D13,costs_components!$B$2:$F$315,3,FALSE) -> 0.16 | G13: AC | H13: 75 | J13: 0.16 | N13: 393
A14: 342 | B14: WRP | C14: Critical Area Planting | D14: Chemical for Weed or Pest Control | E14: acre | F14: =VLOOKUP($D14,costs_components!$B$2:$F$315,3,FALSE) -> 25 | G14: AC | H14: 75 | J14: 20 | K14: XXX | N14: 410
A15: 342 | B15: WRP | C15: Critical Area Planting | D15: Chemical Seedbed Preparation | E15: acre | F15: =VLOOKUP($D15,costs_components!$B$2:$F$315,3,FALSE) -> 20 | G15: AC | H15: 75 | J15: 20 | N15: 500
A16: 342 | B16: WRP | C16: Critical Area Planting | D16: Critical Area Planting - Introduced / Native Grass Mix | E16: acre | F16: =VLOOKUP($D16,costs_components!$B$2:$F$315,3,FALSE) -> 61.8 | G16: AC | H16: 75 | J16: 61.8 | N16: 516
A17: 342 | B17: WRP | C17: Critical Area Planting | D17: Critical Area Planting - Native Grass Mix | E17: acre | F17: =VLOOKUP($D17,costs_components!$B$2:$F$315,3,FALSE) -> 75.75 | G17: AC | H17: 75 | J17: 75.75 | N17: 595
A18: 342 | B18: WRP | C18: Critical Area Planting | D18: Critical Area Treatment - Heavy shaping | E18: acre | F18: =VLOOKUP($D18,costs_components!$B$2:$F$315,3,FALSE) -> 910 | G18: AC | H18: 75 | J18: 910 | N18: 612
A19: 342 | B19: WRP | C19: Critical Area Planting | D19: Critical Area Treatment - Light shaping | E19: acre | F19: =VLOOKUP($D19,costs_components!$B$2:$F$315,3,FALSE) -> 455 | G19: AC | H19: 75 | J19: 455 | N19: 614
A20: 342 | B20: WRP | C20: Critical Area Planting | D20: Grass/Grain Drill | E20: acre | F20: =VLOOKUP($D20,costs_components!$B$2:$F$315,3,FALSE) -> 20 | G20: AC | H20: 75 | J20: 20 | N20: 642
A21: 342 | B21: WRP | C21: Critical Area Planting | D21: Hydoseeder, seeding and mulch | E21: sq.yd. | F21: =VLOOKUP($D21,costs_components!$B$2:$F$315,3,FALSE) -> 0.21 | G21: AC | H21: 75 | J21: 0.21 | N21: 643
A22: 342 | B22: WRP | C22: Critical Area Planting | D22: Individual Vegetative Plug (Planted) | E22: each | F22: =VLOOKUP($D22,costs_components!$B$2:$F$315,3,FALSE) -> 1 | G22: AC | H22: 75 | J22: 1 | N22: 644
A23: 342 | B23: WRP | C23: Critical Area Planting | D23: Mechanical Seedbed Preparation (per time) | E23: acre | F23: =VLOOKUP($D23,costs_components!$B$2:$F$315,3,FALSE) -> 12 | G23: AC | H23: 75 | J23: 20 | K23: XXX | N23: 645
A24: 342 | B24: WRP | C24: Critical Area Planting | D24: Mechanical weed control | E24: acre | F24: =VLOOKUP($D24,costs_components!$B$2:$F$315,3,FALSE) -> 12 | G24: AC | H24: 75 | J24: 12 | N24: 646
A25: 342 | B25: WRP | C25: Critical Area Planting | D25: Mulch Blankets | E25: sq.yd. | F25: =VLOOKUP($D25,costs_components!$B$2:$F$315,3,FALSE) -> 1.66 | G25: AC | H25: 75 | J25: 1.66 | N25: 647
A26: 342 | B26: WRP | C26: Critical Area Planting | D26: Sod in-place | E26: sq.yd. | F26: =VLOOKUP($D26,costs_components!$B$2:$F$315,3,FALSE) -> 1.1 | G26: AC | H26: 75 | J26: 1.1 | N26: 656
A27: 342 | B27: WRP | C27: Critical Area Planting | D27: Temporary Cover | E27: acre | F27: =VLOOKUP($D27,costs_components!$B$2:$F$315,3,FALSE) -> 20 | G27: AC | H27: 75 | J27: 20 | N27: 657
A28: 342 | B28: WRP | C28: Critical Area Planting | D28: Turf reinforcing materials | E28: sq.yd. | F28: =VLOOKUP($D28,costs_components!$B$2:$F$315,3,FALSE) -> 3.9 | G28: AC | H28: 75 | J28: 3.9 | N28: 658
A29: 351 | B29: WRP | C29: Well Decommissioning | D29: Decomm. Well diameter <4" | E29: foot | F29: =VLOOKUP($D29,costs_components!$B$2:$F$315,3,FALSE) -> 5.5 | G29: AC | H29: 75 | J29: 5.5 | N29: 659
A30: 351 | B30: WRP | C30: Well Decommissioning | D30: Decomm. Well diameter 30" and larger | E30: foot | F30: =VLOOKUP($D30,costs_components!$B$2:$F$315,3,FALSE) -> 27.5 | G30: AC | H30: 75 | J30: 27.5
A31: 351 | B31: WRP | C31: Well Decommissioning | D31: Decomm. Well diameter 4" | E31: foot | F31: =VLOOKUP($D31,costs_components!$B$2:$F$315,3,FALSE) -> 3 | G31: AC | H31: 75 | J31: 3
A32: 351 | B32: WRP | C32: Well Decommissioning | D32: Decomm. Well diameter 5" | E32: foot | F32: =VLOOKUP($D32,costs_components!$B$2:$F$315,3,FALSE) -> 5.1 | G32: AC | H32: 75 | J32: 5.1
A33: 351 | B33: WRP | C33: Well Decommissioning | D33: Decomm. Well diameter 6-29" | E33: foot | F33: =VLOOKUP($D33,costs_components!$B$2:$F$315,3,FALSE) -> 10 | G33: AC | H33: 75 | J33: 10
A34: 356 | B34: WRP | C34: Dike | D34: Earth Fill - Class A Compaction - Clay Liners (specified density) | E34: cu.yd. | F34: =VLOOKUP($D34,costs_components!$B$2:$F$315,3,FALSE) -> 5.3 | G34: AC | H34: 75 | J34: 4.25 | K34: XXX
A35: 356 | B35: WRP | C35: Dike | D35: Earth Fill - Class A Compaction (specified density) | E35: cu.yd. | F35: =VLOOKUP($D35,costs_components!$B$2:$F$315,3,FALSE) -> 3.6 | G35: AC | H35: 75 | J35: 2.85 | K35: XXX
A36: 356 | B36: WRP | C36: Dike | D36: Earth Fill - Class C Compaction (specified method) | E36: cu.yd. | F36: =VLOOKUP($D36,costs_components!$B$2:$F$315,3,FALSE) -> 3 | G36: AC | H36: 75 | J36: 2.4 | K36: XXX
A37: 356 | B37: WRP | C37: Dike | D37: Earth Fill (hand compaction) | E37: cu.yd. | F37: =VLOOKUP($D37,costs_components!$B$2:$F$315,3,FALSE) -> 7.1 | G37: AC | H37: 75 | J37: 5.67 | K37: XXX
A38: 356 | B38: WRP | C38: Dike | D38: Excavation | E38: cu.yd. | F38: =VLOOKUP($D38,costs_components!$B$2:$F$315,3,FALSE) -> 4.4 | G38: AC | H38: 75 | J38: 2.1 | K38: XXX
A39: 356 | B39: WRP | C39: Dike | D39: Fence, Silt | E39: lf. | F39: =VLOOKUP($D39,costs_components!$B$2:$F$315,3,FALSE) -> 3.3 | G39: AC | H39: 75 | J39: 2.6 | K39: XXX
A40: 356 | B40: WRP | C40: Dike | D40: Site Clearing | E40: acre | F40: =VLOOKUP($D40,costs_components!$B$2:$F$315,3,FALSE) -> 1350 | G40: AC | H40: 75 | J40: 1200 | K40: XXX
A41: 356 | B41: WRP | C41: Dike | D41: Structure Removal | E41: acre | F41: =VLOOKUP($D41,costs_components!$B$2:$F$315,3,FALSE) -> 1350 | G41: AC | H41: 75 | J41: 1080 | K41: XXX
A42: 356 | B42: WRP | C42: Dike | D42: Water for Fill | E42: 1000gal | F42: =VLOOKUP($D42,costs_components!$B$2:$F$315,3,FALSE) -> 14.75 | G42: AC | H42: 75 | J42: 14.75
A43: 362 | B43: WRP | C43: Diversion | D43: CMP Aluminum, CR/CS, 10 gauge | E43: lf-in. | F43: =VLOOKUP($D43,costs_components!$B$2:$F$315,3,FALSE) -> 4.09 | G43: AC | H43: 75 | J43: 4.09
A44: 362 | B44: WRP | C44: Diversion | D44: CMP Aluminum, CR/CS, 12 gauge | E44: lf-in. | F44: =VLOOKUP($D44,costs_components!$B$2:$F$315,3,FALSE) -> 3.23 | G44: AC | H44: 75 | J44: 3.23
A45: 362 | B45: WRP | C45: Diversion | D45: CMP Aluminum, CR/CS, 14 gauge | E45: lf-in. | F45: =VLOOKUP($D45,costs_components!$B$2:$F$315,3,FALSE) -> 2.58 | G45: AC | H45: 75 | J45: 2.58
A46: 362 | B46: WRP | C46: Diversion | D46: CMP Aluminum, CR/CS, 16 gauge | E46: lf-in. | F46: =VLOOKUP($D46,costs_components!$B$2:$F$315,3,FALSE) -> 2.15 | G46: AC | H46: 75 | J46: 2.15
A47: 362 | B47: WRP | C47: Diversion | D47: CMP Standard Galvanized Steel, CR/CS, 10 gauge | E47: lf-in. | F47: =VLOOKUP($D47,costs_components!$B$2:$F$315,3,FALSE) -> 3.71 | G47: AC | H47: 75 | J47: 3.71
A48: 362 | B48: WRP | C48: Diversion | D48: CMP Standard Galvanized Steel, CR/CS, 12 gauge | E48: lf-in. | F48: =VLOOKUP($D48,costs_components!$B$2:$F$315,3,FALSE) -> 2.93 | G48: AC | H48: 75 | J48: 2.93
A49: 362 | B49: WRP | C49: Diversion | D49: CMP Standard Galvanized Steel, CR/CS, 14 gauge | E49: lf-in. | F49: =VLOOKUP($D49,costs_components!$B$2:$F$315,3,FALSE) -> 2.34 | G49: AC | H49: 75 | J49: 2.34
A50: 362 | B50: WRP | C50: Diversion | D50: CMP Standard Galvanized Steel, CR/CS, 16 gauge | E50: lf-in. | F50: =VLOOKUP($D50,costs_components!$B$2:$F$315,3,FALSE) -> 1.95 | G50: AC | H50: 75 | J50: 1.95
A51: 362 | B51: WRP | C51: Diversion | D51: CMP Steel, Polymeric Coated 10 gauge | E51: lf-in. | F51: =VLOOKUP($D51,costs_components!$B$2:$F$315,3,FALSE) -> 3.99 | G51: AC | H51: 75 | J51: 3.99
A52: 362 | B52: WRP | C52: Diversion | D52: CMP Steel, Polymeric Coated 12 gauge | E52: lf-in. | F52: =VLOOKUP($D52,costs_components!$B$2:$F$315,3,FALSE) -> 3.15 | G52: AC | H52: 75 | J52: 3.15
A53: 362 | B53: WRP | C53: Diversion | D53: CMP Steel, Polymeric Coated 14 gauge | E53: lf-in. | F53: =VLOOKUP($D53,costs_components!$B$2:$F$315,3,FALSE) -> 2.52 | G53: AC | H53: 75 | J53: 2.52
A54: 362 | B54: WRP | C54: Diversion | D54: CMP Steel, Polymeric Coated 16 gauge | E54: lf-in. | F54: =VLOOKUP($D54,costs_components!$B$2:$F$315,3,FALSE) -> 2.1 | G54: AC | H54: 75 | J54: 2.1
A55: 362 | B55: WRP | C55: Diversion | D55: CMP Steel, Polymeric Coated, CR/CS 10 gauge | E55: lf-in. | F55: =VLOOKUP($D55,costs_components!$B$2:$F$315,3,FALSE) -> 4.75 | G55: AC | H55: 75 | J55: 4.75
A56: 362 | B56: WRP | C56: Diversion | D56: CMP Steel, Polymeric Coated, CR/CS 12 gauge | E56: lf-in. | F56: =VLOOKUP($D56,costs_components!$B$2:$F$315,3,FALSE) -> 3.75 | G56: AC | H56: 75 | J56: 3.75
A57: 362 | B57: WRP | C57: Diversion | D57: CMP Steel, Polymeric Coated, CR/CS 14 gauge | E57: lf-in. | F57: =VLOOKUP($D57,costs_components!$B$2:$F$315,3,FALSE) -> 3 | G57: AC | H57: 75 | J57: 3
A58: 362 | B58: WRP | C58: Diversion | D58: CMP Steel, Polymeric Coated, CR/CS 16 gauge | E58: lf-in. | F58: =VLOOKUP($D58,costs_components!$B$2:$F$315,3,FALSE) -> 2.5 | G58: AC | H58: 75 | J58: 2.5
A59: 362 | B59: WRP | C59: Diversion | D59: CMP, Anti-Seep Diaphram - PC Steel, 2 piece, watertight coupling, rods/lugs | E59: dia.in. | F59: =VLOOKUP($D59,costs_components!$B$2:$F$315,3,FALSE) -> 46.25 | G59: AC | H59: 75 | J59: 46.25
A60: 362 | B60: WRP | C60: Diversion | D60: CMP, Anti-Seep Diaphram - SG Steel, 2 piece, watertight coupling, rods/lugs | E60: dia.in. | F60: =VLOOKUP($D60,costs_components!$B$2:$F$315,3,FALSE) -> 33.25 | G60: AC | H60: 75 | J60: 33.25
A61: 362 | B61: WRP | C61: Diversion | D61: CMP, Anti-Vortex Vane, SG Steel, for hooded inlets | E61: dia.in. | F61: =VLOOKUP($D61,costs_components!$B$2:$F$315,3,FALSE) -> 3.5 | G61: AC | H61: 75 | J61: 8.5 | K61: XXX
A62: 362 | B62: WRP | C62: Diversion | D62: CMP, Conical Trash Rack, SG Steel 36" and less (base on riser dia.) | E62: dia.in. | F62: =VLOOKUP($D62,costs_components!$B$2:$F$315,3,FALSE) -> 39.75 | G62: AC | H62: 75 | J62: 39.75
A63: 362 | B63: WRP | C63: Diversion | D63: CMP, Conical Trash Rack, SG Steel 42" and over (base on riser dia.) | E63: dia.in. | F63: =VLOOKUP($D63,costs_components!$B$2:$F$315,3,FALSE) -> 66.25 | G63: AC | H63: 75 | J63: 66.25
A64: 362 | B64: WRP | C64: Diversion | D64: CMP, Connecting Band - Aluminum - 12" wide 12 gauge | E64: dia.in. | F64: =VLOOKUP($D64,costs_components!$B$2:$F$315,3,FALSE) -> 3.83 | G64: AC | H64: 75 | J64: 3.83
A65: 362 | B65: WRP | C65: Diversion | D65: CMP, Connecting Band - Aluminum - 12" wide 14 gauge | E65: dia.in. | F65: =VLOOKUP($D65,costs_components!$B$2:$F$315,3,FALSE) -> 2.7 | G65: AC | H65: 75 | J65: 2.7
A66: 362 | B66: WRP | C66: Diversion | D66: CMP, Connecting Band - Aluminum - 12" wide 16 gauge | E66: dia.in. | F66: =VLOOKUP($D66,costs_components!$B$2:$F$315,3,FALSE) -> 2.25 | G66: AC | H66: 75 | J66: 2.25
A67: 362 | B67: WRP | C67: Diversion | D67: CMP, Connecting Band - Aluminum - 24" wide 12 gauge | E67: dia.in. | F67: =VLOOKUP($D67,costs_components!$B$2:$F$315,3,FALSE) -> 7.23 | G67: AC | H67: 75 | J67: 7.23
A68: 362 | B68: WRP | C68: Diversion | D68: CMP, Connecting Band - Aluminum - 24" wide 14 gauge | E68: dia.in. | F68: =VLOOKUP($D68,costs_components!$B$2:$F$315,3,FALSE) -> 5.1 | G68: AC | H68: 75 | J68: 5.1
A69: 362 | B69: WRP | C69: Diversion | D69: CMP, Connecting Band - Aluminum - 24" wide 16 gauge | E69: dia.in. | F69: =VLOOKUP($D69,costs_components!$B$2:$F$315,3,FALSE) -> 4.25 | G69: AC | H69: 75 | J69: 4.25 | K69: =IF(F69<>J69,"XXX","") -> 
A70: 362 | B70: WRP | C70: Diversion | D70: CMP, Connecting Band - Aluminum - 7 1/2" wide 12 gauge | E70: dia.in. | F70: =VLOOKUP($D70,costs_components!$B$2:$F$315,3,FALSE) -> 2.55 | G70: AC | H70: 75 | J70: 2.55
A71: 362 | B71: WRP | C71: Diversion | D71: CMP, Connecting Band - Aluminum - 7 1/2" wide 14 gauge | E71: dia.in. | F71: =VLOOKUP($D71,costs_components!$B$2:$F$315,3,FALSE) -> 1.8 | G71: AC | H71: 75 | J71: 1.8
A72: 362 | B72: WRP | C72: Diversion | D72: CMP, Connecting Band - Aluminum - 7 1/2" wide 16 gauge | E72: dia.in. | F72: =VLOOKUP($D72,costs_components!$B$2:$F$315,3,FALSE) -> 1.5 | G72: AC | H72: 75 | J72: 1.5
A73: 362 | B73: WRP | C73: Diversion | D73: CMP, Connecting Band - Polymeric Coated Steel - 12" wide 12 gauge | E73: dia.in. | F73: =VLOOKUP($D73,costs_components!$B$2:$F$315,3,FALSE) -> 4.68 | G73: AC | H73: 75 | J73: 4.68
A74: 362 | B74: WRP | C74: Diversion | D74: CMP, Connecting Band - Polymeric Coated Steel - 12" wide 14 gauge | E74: dia.in. | F74: =VLOOKUP($D74,costs_components!$B$2:$F$315,3,FALSE) -> 3.3 | G74: AC | H74: 75 | J74: 3.3
A75: 362 | B75: WRP | C75: Diversion | D75: CMP, Connecting Band - Polymeric Coated Steel - 12" wide 16 gauge | E75: dia.in. | F75: =VLOOKUP($D75,costs_components!$B$2:$F$315,3,FALSE) -> 2.75 | G75: AC | H75: 75 | J75: 2.75
A76: 362 | B76: WRP | C76: Diversion | D76: CMP, Connecting Band - Polymeric Coated Steel - 24" wide 12 gauge | E76: dia.in. | F76: =VLOOKUP($D76,costs_components!$B$2:$F$315,3,FALSE) -> 9.35 | G76: AC | H76: 75 | J76: 9.35
A77: 362 | B77: WRP | C77: Diversion | D77: CMP, Connecting Band - Polymeric Coated Steel - 24" wide 14 gauge | E77: dia.in. | F77: =VLOOKUP($D77,costs_components!$B$2:$F$315,3,FALSE) -> 6.6 | G77: AC | H77: 75 | J77: 6.6
A78: 362 | B78: WRP | C78: Diversion | D78: CMP, Connecting Band - Polymeric Coated Steel - 24" wide 16 gauge | E78: dia.in. | F78: =VLOOKUP($D78,costs_components!$B$2:$F$315,3,FALSE) -> 5.5 | G78: AC | H78: 75 | J78: 5.5
A79: 362 | B79: WRP | C79: Diversion | D79: CMP, Connecting Band - Polymeric Coated Steel - 7 1/2" wide 12 gauge | E79: dia.in. | F79: =VLOOKUP($D79,costs_components!$B$2:$F$315,3,FALSE) -> 3.4 | G79: AC | H79: 75 | J79: 3.4
A80: 362 | B80: WRP | C80: Diversion | D80: CMP, Connecting Band - Polymeric Coated Steel - 7 1/2" wide 14 gauge | E80: dia.in. | F80: =VLOOKUP($D80,costs_components!$B$2:$F$315,3,FALSE) -> 2.4 | G80: AC | H80: 75 | J80: 2.4
A81: 362 | B81: WRP | C81: Diversion | D81: CMP, Connecting Band - Polymeric Coated Steel - 7 1/2" wide 16 gauge | E81: dia.in. | F81: =VLOOKUP($D81,costs_components!$B$2:$F$315,3,FALSE) -> 2 | G81: AC | H81: 75 | J81: 2
A82: 362 | B82: WRP | C82: Diversion | D82: CMP, Connecting Band - Standard Galvanized Steel - 12" wide 12 gauge | E82: dia.in. | F82: =VLOOKUP($D82,costs_components!$B$2:$F$315,3,FALSE) -> 3.4 | G82: AC | H82: 75 | J82: 3.4
A83: 362 | B83: WRP | C83: Diversion | D83: CMP, Connecting Band - Standard Galvanized Steel - 12" wide 14 gauge | E83: dia.in. | F83: =VLOOKUP($D83,costs_components!$B$2:$F$315,3,FALSE) -> 2.4 | G83: AC | H83: 75 | J83: 2.4
A84: 362 | B84: WRP | C84: Diversion | D84: CMP, Connecting Band - Standard Galvanized Steel - 12" wide 16 gauge | E84: dia.in. | F84: =VLOOKUP($D84,costs_components!$B$2:$F$315,3,FALSE) -> 2 | G84: AC | H84: 75 | J84: 2
A85: 362 | B85: WRP | C85: Diversion | D85: CMP, Connecting Band - Standard Galvanized Steel - 24" wide 12 gauge | E85: dia.in. | F85: =VLOOKUP($D85,costs_components!$B$2:$F$315,3,FALSE) -> 6.38 | G85: AC | H85: 75 | J85: 6.38
A86: 362 | B86: WRP | C86: Diversion | D86: CMP, Connecting Band - Standard Galvanized Steel - 24" wide 14 gauge | E86: dia.in. | F86: =VLOOKUP($D86,costs_components!$B$2:$F$315,3,FALSE) -> 4.5 | G86: AC | H86: 75 | J86: 4.5
A87: 362 | B87: WRP | C87: Diversion | D87: CMP, Connecting Band - Standard Galvanized Steel - 24" wide 16 gauge | E87: dia.in. | F87: =VLOOKUP($D87,costs_components!$B$2:$F$315,3,FALSE) -> 3.75 | G87: AC | H87: 75 | J87: 3.75
A88: 362 | B88: WRP | C88: Diversion | D88: CMP, Connecting Band - Standard Galvanized Steel - 7 1/2" wide 12 gauge | E88: dia.in. | F88: =VLOOKUP($D88,costs_components!$B$2:$F$315,3,FALSE) -> 2.55 | G88: AC | H88: 75 | J88: 2.55
A89: 362 | B89: WRP | C89: Diversion | D89: CMP, Connecting Band - Standard Galvanized Steel - 7 1/2" wide 14 gauge | E89: dia.in. | F89: =VLOOKUP($D89,costs_components!$B$2:$F$315,3,FALSE) -> 1.8 | G89: AC | H89: 75 | J89: 1.8
A90: 362 | B90: WRP | C90: Diversion | D90: CMP, Connecting Band - Standard Galvanized Steel - 7 1/2" wide 16 gauge | E90: dia.in. | F90: =VLOOKUP($D90,costs_components!$B$2:$F$315,3,FALSE) -> 1.5 | G90: AC | H90: 75 | J90: 150 | K90: XXX
A91: 362 | B91: WRP | C91: Diversion | D91: CMP, Connecting Band - Watertight PC Steel, incl. 4 rods/lugs - 24" wide 12 gauge | E91: dia.in. | F91: =VLOOKUP($D91,costs_components!$B$2:$F$315,3,FALSE) -> 16.58 | G91: AC | H91: 75 | J91: 16.58
A92: 362 | B92: WRP | C92: Diversion | D92: CMP, Connecting Band - Watertight PC Steel, incl. 4 rods/lugs - 24" wide 14 gauge | E92: dia.in. | F92: =VLOOKUP($D92,costs_components!$B$2:$F$315,3,FALSE) -> 11.7 | G92: AC | H92: 75 | J92: 11.7
A93: 362 | B93: WRP | C93: Diversion | D93: CMP, Connecting Band - Watertight PC Steel, incl. 4 rods/lugs - 24" wide 16 gauge | E93: dia.in. | F93: =VLOOKUP($D93,costs_components!$B$2:$F$315,3,FALSE) -> 9.75 | G93: AC | H93: 75 | J93: 9.75
A94: 362 | B94: WRP | C94: Diversion | D94: CMP, Connecting Band - Watertight SG Steel, incl. 4 rods/lugs - 24" wide 12 gauge | E94: dia.in. | F94: =VLOOKUP($D94,costs_components!$B$2:$F$315,3,FALSE) -> 12.33 | G94: AC | H94: 75 | J94: 12.33
A95: 362 | B95: WRP | C95: Diversion | D95: CMP, Connecting Band - Watertight SG Steel, incl. 4 rods/lugs - 24" wide 14 gauge | E95: dia.in. | F95: =VLOOKUP($D95,costs_components!$B$2:$F$315,3,FALSE) -> 8.7 | G95: AC | H95: 75 | J95: 8.7
A96: 362 | B96: WRP | C96: Diversion | D96: CMP, Connecting Band - Watertight SG Steel, incl. 4 rods/lugs - 24" wide 16 gauge | E96: dia.in. | F96: =VLOOKUP($D96,costs_components!$B$2:$F$315,3,FALSE) -> 7.25 | G96: AC | H96: 75 | J96: 7.25
A97: 362 | B97: WRP | C97: Diversion | D97: CMP, End Section 12"-24" diameter | E97: dia.in. | F97: =VLOOKUP($D97,costs_components!$B$2:$F$315,3,FALSE) -> 8.5 | G97: AC | H97: 75 | J97: 8.5
A98: 362 | B98: WRP | C98: Diversion | D98: CMP, End Section 30"-36" diameter | E98: dia.in. | F98: =VLOOKUP($D98,costs_components!$B$2:$F$315,3,FALSE) -> 13.25 | G98: AC | H98: 75 | J98: 13.25
A99: 362 | B99: WRP | C99: Diversion | D99: CMP, End Section 42"-54" diameter | E99: dia.in. | F99: =VLOOKUP($D99,costs_components!$B$2:$F$315,3,FALSE) -> 25 | G99: AC | H99: 75 | J99: 25
A100: 362 | B100: WRP | C100: Diversion | D100: CMP, End Section 60" and larger diameter | E100: dia.in. | F100: =VLOOKUP($D100,costs_components!$B$2:$F$315,3,FALSE) -> 33 | G100: AC | H100: 75 | J100: 33
A101: 362 | B101: WRP | C101: Diversion | D101: CMP, Fabrication (labor only) - Elbows | E101: dia.in. | F101: =VLOOKUP($D101,costs_components!$B$2:$F$315,3,FALSE) -> 10 | G101: AC | H101: 75 | J101: 10
A102: 362 | B102: WRP | C102: Diversion | D102: CMP, Fabrication (labor only) - Skewed or Beveled Ends | E102: dia.in. | F102: =VLOOKUP($D102,costs_components!$B$2:$F$315,3,FALSE) -> 6 | G102: AC | H102: 75 | J102: 6
A103: 362 | B103: WRP | C103: Diversion | D103: CMP, Fabrication (labor only) - Tees, Wyes, and Riser Stubs | E103: dia.in. | F103: =VLOOKUP($D103,costs_components!$B$2:$F$315,3,FALSE) -> 13.25 | G103: AC | H103: 75 | J103: 13.25
A104: 362 | B104: WRP | C104: Diversion | D104: CMP, Flap Gate, SG Steel | E104: dia.in. | F104: =VLOOKUP($D104,costs_components!$B$2:$F$315,3,FALSE) -> 20 | G104: AC | H104: 75 | J104: 20
A105: 362 | B105: WRP | C105: Diversion | D105: CMP, Hooded Inlet Baffle Plate - SG Steel, double angle iron | E105: dia.in. | F105: =VLOOKUP($D105,costs_components!$B$2:$F$315,3,FALSE) -> 15.5 | G105: AC | H105: 75 | J105: 15.5
A106: 362 | B106: WRP | C106: Diversion | D106: CMP, Screen or End Cap, SG Steel | E106: dia.in. | F106: =VLOOKUP($D106,costs_components!$B$2:$F$315,3,FALSE) -> 8.25 | G106: AC | H106: 75 | J106: 8.25
A107: 362 | B107: WRP | C107: Diversion | D107: CMP, Splitter Type Anti-Vortex Wall - SG Steel (base on riser diameter) | E107: dia.in. | F107: =VLOOKUP($D107,costs_components!$B$2:$F$315,3,FALSE) -> 8.5 | G107: AC | H107: 75 | J107: 8.5
A108: 362 | B108: WRP | C108: Diversion | D108: CMP, Standard Aluminum 10 gauge | E108: lf-in. | F108: =VLOOKUP($D108,costs_components!$B$2:$F$315,3,FALSE) -> 3.42 | G108: AC | H108: 75 | J108: 3.42
A109: 362 | B109: WRP | C109: Diversion | D109: CMP, Standard Aluminum 12 gauge | E109: lf-in. | F109: =VLOOKUP($D109,costs_components!$B$2:$F$315,3,FALSE) -> 2.7 | G109: AC | H109: 75 | J109: 2.7
A110: 362 | B110: WRP | C110: Diversion | D110: CMP, Standard Aluminum 14 gauge | E110: lf-in. | F110: =VLOOKUP($D110,costs_components!$B$2:$F$315,3,FALSE) -> 2.16 | G110: AC | H110: 75 | J110: 2.16
A111: 362 | B111: WRP | C111: Diversion | D111: CMP, Standard Aluminum 16 gauge | E111: lf-in. | F111: =VLOOKUP($D111,costs_components!$B$2:$F$315,3,FALSE) -> 1.8 | G111: AC | H111: 75 | J111: 1.8
A112: 362 | B112: WRP | C112: Diversion | D112: CMP, Standard Galvanized Steel 10 gauge | E112: lf-in. | F112: =VLOOKUP($D112,costs_components!$B$2:$F$315,3,FALSE) -> 2.79 | G112: AC | H112: 75 | J112: 2.79
A113: 362 | B113: WRP | C113: Diversion | D113: CMP, Standard Galvanized Steel 12 gauge | E113: lf-in. | F113: =VLOOKUP($D113,costs_components!$B$2:$F$315,3,FALSE) -> 2.21 | G113: AC | H113: 75 | J113: 2.21
A114: 362 | B114: WRP | C114: Diversion | D114: CMP, Standard Galvanized Steel 14 gauge | E114: lf-in. | F114: =VLOOKUP($D114,costs_components!$B$2:$F$315,3,FALSE) -> 1.76 | G114: AC | H114: 75 | J114: 1.76
A115: 362 | B115: WRP | C115: Diversion | D115: CMP, Standard Galvanized Steel 16 gauge | E115: lf-in. | F115: =VLOOKUP($D115,costs_components!$B$2:$F$315,3,FALSE) -> 1.47 | G115: AC | H115: 75 | J115: 1.47
A116: 362 | B116: WRP | C116: Diversion | D116: CMP, Weir Trash Rack, SG Steel, for hooded inlets | E116: dia.in. | F116: =VLOOKUP($D116,costs_components!$B$2:$F$315,3,FALSE) -> 13.25 | G116: AC | H116: 75 | J116: 13.25
A117: 362 | B117: WRP | C117: Diversion | D117: Corrugated Plastic Pipe - Dual-Wall Pipe 10" | E117: foot | F117: =VLOOKUP($D117,costs_components!$B$2:$F$315,3,FALSE) -> 5.75 | G117: AC | H117: 75 | J117: 5.75
A118: 362 | B118: WRP | C118: Diversion | D118: Corrugated Plastic Pipe - Dual-Wall Pipe 12" | E118: foot | F118: =VLOOKUP($D118,costs_components!$B$2:$F$315,3,FALSE) -> 7.5 | G118: AC | H118: 75 | J118: 7.5
A119: 362 | B119: WRP | C119: Diversion | D119: Corrugated Plastic Pipe - Dual-Wall Pipe 15" | E119: foot | F119: =VLOOKUP($D119,costs_components!$B$2:$F$315,3,FALSE) -> 9 | G119: AC | H119: 75 | J119: 9
A120: 362 | B120: WRP | C120: Diversion | D120: Corrugated Plastic Pipe - Dual-Wall Pipe 18" | E120: foot | F120: =VLOOKUP($D120,costs_components!$B$2:$F$315,3,FALSE) -> 14.25 | G120: AC | H120: 75 | J120: 14.25
A121: 362 | B121: WRP | C121: Diversion | D121: Corrugated Plastic Pipe - Dual-Wall Pipe 24" | E121: foot | F121: =VLOOKUP($D121,costs_components!$B$2:$F$315,3,FALSE) -> 21.75 | G121: AC | H121: 75 | J121: 21.75
A122: 362 | B122: WRP | C122: Diversion | D122: Corrugated Plastic Pipe - Dual-Wall Pipe 4" | E122: foot | F122: =VLOOKUP($D122,costs_components!$B$2:$F$315,3,FALSE) -> 1.1 | G122: AC | H122: 75 | J122: 1.1
A123: 362 | B123: WRP | C123: Diversion | D123: Corrugated Plastic Pipe - Dual-Wall Pipe 6" | E123: foot | F123: =VLOOKUP($D123,costs_components!$B$2:$F$315,3,FALSE) -> 2.5 | G123: AC | H123: 75 | J123: 2.5
A124: 362 | B124: WRP | C124: Diversion | D124: Corrugated Plastic Pipe - Dual-Wall Pipe 8" | E124: foot | F124: =VLOOKUP($D124,costs_components!$B$2:$F$315,3,FALSE) -> 4 | G124: AC | H124: 75 | J124: 4
A125: 362 | B125: WRP | C125: Diversion | D125: Corrugated Plastic Pipe - End Section 10" | E125: each | F125: =VLOOKUP($D125,costs_components!$B$2:$F$315,3,FALSE) -> 80 | G125: AC | H125: 75 | J125: 80
A126: 362 | B126: WRP | C126: Diversion | D126: Corrugated Plastic Pipe - End Section 12" | E126: each | F126: =VLOOKUP($D126,costs_components!$B$2:$F$315,3,FALSE) -> 93.25 | G126: AC | H126: 75 | J126: 93.25
A127: 362 | B127: WRP | C127: Diversion | D127: Corrugated Plastic Pipe - End Section 15" | E127: each | F127: =VLOOKUP($D127,costs_components!$B$2:$F$315,3,FALSE) -> 116.5 | G127: AC | H127: 75 | J127: 116.5
A128: 362 | B128: WRP | C128: Diversion | D128: Corrugated Plastic Pipe - End Section 18" | E128: each | F128: =VLOOKUP($D128,costs_components!$B$2:$F$315,3,FALSE) -> 153 | G128: AC | H128: 75 | J128: 153
A129: 362 | B129: WRP | C129: Diversion | D129: Corrugated Plastic Pipe - End Section 24" | E129: each | F129: =VLOOKUP($D129,costs_components!$B$2:$F$315,3,FALSE) -> 225.75 | G129: AC | H129: 75 | J129: 225.75
A130: 362 | B130: WRP | C130: Diversion | D130: Corrugated Plastic Pipe - End Section 8" | E130: each | F130: =VLOOKUP($D130,costs_components!$B$2:$F$315,3,FALSE) -> 73 | G130: AC | H130: 75 | J130: 73
A131: 362 | B131: WRP | C131: Diversion | D131: Corrugated Plastic Pipe - Gasketed Sleeve Coupler 12" | E131: each | F131: =VLOOKUP($D131,costs_components!$B$2:$F$315,3,FALSE) -> 35.25 | G131: AC | H131: 75 | J131: 35.25
A132: 362 | B132: WRP | C132: Diversion | D132: Corrugated Plastic Pipe - Gasketed Sleeve Coupler 15" | E132: each | F132: =VLOOKUP($D132,costs_components!$B$2:$F$315,3,FALSE) -> 51.5 | G132: AC | H132: 75 | J132: 51.5
A133: 362 | B133: WRP | C133: Diversion | D133: Corrugated Plastic Pipe - Gasketed Sleeve Coupler 18" | E133: each | F133: =VLOOKUP($D133,costs_components!$B$2:$F$315,3,FALSE) -> 70 | G133: AC | H133: 75 | J133: 70 | K133: =IF(F133<>J133,"XXX","") -> 
A134: 362 | B134: WRP | C134: Diversion | D134: Corrugated Plastic Pipe - Gasketed Sleeve Coupler 24" | E134: each | F134: =VLOOKUP($D134,costs_components!$B$2:$F$315,3,FALSE) -> 215.75 | G134: AC | H134: 75 | J134: 215.75
A135: 362 | B135: WRP | C135: Diversion | D135: Corrugated Plastic Pipe - Plastic Anti-Seep Collar (4X4) 10" | E135: each | F135: =VLOOKUP($D135,costs_components!$B$2:$F$315,3,FALSE) -> 174 | G135: AC | H135: 75 | J135: 174
A136: 362 | B136: WRP | C136: Diversion | D136: Corrugated Plastic Pipe - Plastic Anti-Seep Collar (4X4) 12" | E136: each | F136: =VLOOKUP($D136,costs_components!$B$2:$F$315,3,FALSE) -> 178 | G136: AC | H136: 75 | J136: 178
A137: 362 | B137: WRP | C137: Diversion | D137: Corrugated Plastic Pipe - Plastic Anti-Seep Collar (4X4) 15" | E137: each | F137: =VLOOKUP($D137,costs_components!$B$2:$F$315,3,FALSE) -> 188.75 | G137: AC | H137: 75 | J137: 188.75
A138: 362 | B138: WRP | C138: Diversion | D138: Corrugated Plastic Pipe - Plastic Anti-Seep Collar (4X4) 18" | E138: each | F138: =VLOOKUP($D138,costs_components!$B$2:$F$315,3,FALSE) -> 194 | G138: AC | H138: 75 | J138: 194
A139: 362 | B139: WRP | C139: Diversion | D139: Corrugated Plastic Pipe - Plastic Anti-Seep Collar (4X4) 24" | E139: each | F139: =VLOOKUP($D139,costs_components!$B$2:$F$315,3,FALSE) -> 215.75 | G139: AC | H139: 75 | J139: 215.75
A140: 362 | B140: WRP | C140: Diversion | D140: Corrugated Plastic Pipe - Plastic Anti-Seep Collar (4X4) 4" | E140: each | F140: =VLOOKUP($D140,costs_components!$B$2:$F$315,3,FALSE) -> 156.5 | G140: AC | H140: 75 | J140: 156.5
A141: 362 | B141: WRP | C141: Diversion | D141: Corrugated Plastic Pipe - Plastic Anti-Seep Collar (4X4) 6" | E141: each | F141: =VLOOKUP($D141,costs_components!$B$2:$F$315,3,FALSE) -> 155.75 | G141: AC | H141: 75 | J141: 155.75
A142: 362 | B142: WRP | C142: Diversion | D142: Corrugated Plastic Pipe - Plastic Anti-Seep Collar (4X4) 8" | E142: each | F142: =VLOOKUP($D142,costs_components!$B$2:$F$315,3,FALSE) -> 161.75 | G142: AC | H142: 75 | J142: 161.75
A143: 362 | B143: WRP | C143: Diversion | D143: Corrugated Plastic Pipe - Rodent Guard 10" | E143: each | F143: =VLOOKUP($D143,costs_components!$B$2:$F$315,3,FALSE) -> 29 | G143: AC | H143: 75 | J143: 29
A144: 362 | B144: WRP | C144: Diversion | D144: Corrugated Plastic Pipe - Rodent Guard 12" | E144: each | F144: =VLOOKUP($D144,costs_components!$B$2:$F$315,3,FALSE) -> 37.25 | G144: AC | H144: 75 | J144: 37.25
A145: 362 | B145: WRP | C145: Diversion | D145: Corrugated Plastic Pipe - Rodent Guard 15" | E145: each | F145: =VLOOKUP($D145,costs_components!$B$2:$F$315,3,FALSE) -> 55.25 | G145: AC | H145: 75 | J145: 55.25
A146: 362 | B146: WRP | C146: Diversion | D146: Corrugated Plastic Pipe - Rodent Guard 18" | E146: each | F146: =VLOOKUP($D146,costs_components!$B$2:$F$315,3,FALSE) -> 94.5 | G146: AC | H146: 75 | J146: 94.5
A147: 362 | B147: WRP | C147: Diversion | D147: Corrugated Plastic Pipe - Rodent Guard 24" | E147: each | F147: =VLOOKUP($D147,costs_components!$B$2:$F$315,3,FALSE) -> 122 | G147: AC | H147: 75 | J147: 122
A148: 362 | B148: WRP | C148: Diversion | D148: Corrugated Plastic Pipe - Rodent Guard 4" | E148: each | F148: =VLOOKUP($D148,costs_components!$B$2:$F$315,3,FALSE) -> 16 | G148: AC | H148: 75 | J148: 16
A149: 362 | B149: WRP | C149: Diversion | D149: Corrugated Plastic Pipe - Rodent Guard 6" | E149: each | F149: =VLOOKUP($D149,costs_components!$B$2:$F$315,3,FALSE) -> 18 | G149: AC | H149: 75 | J149: 18
A150: 362 | B150: WRP | C150: Diversion | D150: Corrugated Plastic Pipe - Rodent Guard 8" | E150: each | F150: =VLOOKUP($D150,costs_components!$B$2:$F$315,3,FALSE) -> 22.5 | G150: AC | H150: 75 | J150: 22.5
A151: 362 | B151: WRP | C151: Diversion | D151: Corrugated Plastic Pipe - Soil-Tight Split Coupler 12" | E151: each | F151: =VLOOKUP($D151,costs_components!$B$2:$F$315,3,FALSE) -> 23.5 | G151: AC | H151: 75 | J151: 23.5
A152: 362 | B152: WRP | C152: Diversion | D152: Corrugated Plastic Pipe - Soil-Tight Split Coupler 18" | E152: each | F152: =VLOOKUP($D152,costs_components!$B$2:$F$315,3,FALSE) -> 36.5 | G152: AC | H152: 75 | J152: 36.5
A153: 362 | B153: WRP | C153: Diversion | D153: Corrugated Plastic Pipe - Soil-Tight Split Coupler 24" | E153: each | F153: =VLOOKUP($D153,costs_components!$B$2:$F$315,3,FALSE) -> 54 | G153: AC | H153: 75 | J153: 54
A154: 362 | B154: WRP | C154: Diversion | D154: Corrugated Plastic Pipe - Split Coupler 10" | E154: each | F154: =VLOOKUP($D154,costs_components!$B$2:$F$315,3,FALSE) -> 6 | G154: AC | H154: 75 | J154: 6
A155: 362 | B155: WRP | C155: Diversion | D155: Corrugated Plastic Pipe - Split Coupler 12" | E155: each | F155: =VLOOKUP($D155,costs_components!$B$2:$F$315,3,FALSE) -> 8 | G155: AC | H155: 75 | J155: 8
A156: 362 | B156: WRP | C156: Diversion | D156: Corrugated Plastic Pipe - Split Coupler 15" | E156: each | F156: =VLOOKUP($D156,costs_components!$B$2:$F$315,3,FALSE) -> 13.75 | G156: AC | H156: 75 | J156: 13.75
A157: 362 | B157: WRP | C157: Diversion | D157: Corrugated Plastic Pipe - Split Coupler 18" | E157: each | F157: =VLOOKUP($D157,costs_components!$B$2:$F$315,3,FALSE) -> 18.5 | G157: AC | H157: 75 | J157: 18.5
A158: 362 | B158: WRP | C158: Diversion | D158: Corrugated Plastic Pipe - Split Coupler 24" | E158: each | F158: =VLOOKUP($D158,costs_components!$B$2:$F$315,3,FALSE) -> 29.75 | G158: AC | H158: 75 | J158: 29.75
A159: 362 | B159: WRP | C159: Diversion | D159: Corrugated Plastic Pipe - Split Coupler 4" | E159: each | F159: =VLOOKUP($D159,costs_components!$B$2:$F$315,3,FALSE) -> 1.75 | G159: AC | H159: 75 | J159: 1.75
A160: 362 | B160: WRP | C160: Diversion | D160: Corrugated Plastic Pipe - Split Coupler 6" | E160: each | F160: =VLOOKUP($D160,costs_components!$B$2:$F$315,3,FALSE) -> 3 | G160: AC | H160: 75 | J160: 3
A161: 362 | B161: WRP | C161: Diversion | D161: Corrugated Plastic Pipe - Split Coupler 8" | E161: each | F161: =VLOOKUP($D161,costs_components!$B$2:$F$315,3,FALSE) -> 4.5 | G161: AC | H161: 75 | J161: 4.5
A162: 362 | B162: WRP | C162: Diversion | D162: Corrugated Plastic Pipe - Tubing/Culverts - 10" | E162: foot | F162: =VLOOKUP($D162,costs_components!$B$2:$F$315,3,FALSE) -> 3.75 | G162: AC | H162: 75 | J162: 3.75
A163: 362 | B163: WRP | C163: Diversion | D163: Corrugated Plastic Pipe - Tubing/Culverts - 12" | E163: foot | F163: =VLOOKUP($D163,costs_components!$B$2:$F$315,3,FALSE) -> 4.75 | G163: AC | H163: 75 | J163: 4.75
A164: 362 | B164: WRP | C164: Diversion | D164: Corrugated Plastic Pipe - Tubing/Culverts - 15" | E164: foot | F164: =VLOOKUP($D164,costs_components!$B$2:$F$315,3,FALSE) -> 7 | G164: AC | H164: 75 | J164: 7
A165: 362 | B165: WRP | C165: Diversion | D165: Corrugated Plastic Pipe - Tubing/Culverts - 18" | E165: foot | F165: =VLOOKUP($D165,costs_components!$B$2:$F$315,3,FALSE) -> 11 | G165: AC | H165: 75 | J165: 11
A166: 362 | B166: WRP | C166: Diversion | D166: Corrugated Plastic Pipe - Tubing/Culverts - 24 | E166: foot | F166: =VLOOKUP($D166,costs_components!$B$2:$F$315,3,FALSE) -> 17.75 | G166: AC | H166: 75 | J166: 17.75
A167: 362 | B167: WRP | C167: Diversion | D167: Corrugated Plastic Pipe - Tubing/Culverts - 3" | E167: foot | F167: =VLOOKUP($D167,costs_components!$B$2:$F$315,3,FALSE) -> 0.45 | G167: AC | H167: 75 | J167: 0.45
A168: 362 | B168: WRP | C168: Diversion | D168: Corrugated Plastic Pipe - Tubing/Culverts - 4" | E168: foot | F168: =VLOOKUP($D168,costs_components!$B$2:$F$315,3,FALSE) -> 0.5 | G168: AC | H168: 75 | J168: 0.5
A169: 362 | B169: WRP | C169: Diversion | D169: Corrugated Plastic Pipe - Tubing/Culverts - 5" | E169: foot | F169: =VLOOKUP($D169,costs_components!$B$2:$F$315,3,FALSE) -> 0.75 | G169: AC | H169: 75 | J169: 0.75
A170: 362 | B170: WRP | C170: Diversion | D170: Corrugated Plastic Pipe - Tubing/Culverts - 6" | E170: foot | F170: =VLOOKUP($D170,costs_components!$B$2:$F$315,3,FALSE) -> 1 | G170: AC | H170: 75 | J170: 1
